Workbook

Sheet Introduction
C4: Joint Monitoring Programme for Water Supply, Sanitation and Hygiene
C6: Estimates on household water, sanitation and hygiene by wealth quintile and sub-national region in
C7: =+Water!B5 -> Congo
C9: Updated May 2021
C11: Follow the links below to find the following information:
C13: JMP Estimates
C14: WASH status and trends by wealth quintile (customized quintiles made without water and sanitation assets)
C15: Water
C16: Sanitation
C17: Hygiene
C19: Data inputs
C20: customized wealth quintiles and subnational data:
C21: =IF(INDIRECT(CONCATENATE("Water","!B105"))=0,"",INDIRECT(CONCATENATE("Water","!B105"))) -> WHS03
C22: =IF(INDIRECT(CONCATENATE("Water","!B106"))=0,"",INDIRECT(CONCATENATE("Water","!B106"))) -> DHS05
C23: =IF(INDIRECT(CONCATENATE("Water","!B107"))=0,"",INDIRECT(CONCATENATE("Water","!B107"))) -> AIS09
C24: =IF(INDIRECT(CONCATENATE("Water","!B108"))=0,"",INDIRECT(CONCATENATE("Water","!B108"))) -> DHS12
C25: =IF(INDIRECT(CONCATENATE("Water","!B109"))=0,"",INDIRECT(CONCATENATE("Water","!B109"))) -> MICS15
C26: =IF(INDIRECT(CONCATENATE("Water","!B110"))=0,"",INDIRECT(CONCATENATE("Water","!B110"))) -> 
C27: =IF(INDIRECT(CONCATENATE("Water","!B111"))=0,"",INDIRECT(CONCATENATE("Water","!B111"))) -> 
C28: =IF(INDIRECT(CONCATENATE("Water","!B112"))=0,"",INDIRECT(CONCATENATE("Water","!B112"))) -> 
C29: =IF(INDIRECT(CONCATENATE("Water","!B113"))=0,"",INDIRECT(CONCATENATE("Water","!B113"))) -> 
C30: =IF(INDIRECT(CONCATENATE("Water","!B114"))=0,"",INDIRECT(CONCATENATE("Water","!B114"))) -> 
C31: =IF(INDIRECT(CONCATENATE("Water","!B115"))=0,"",INDIRECT(CONCATENATE("Water","!B115"))) -> 
C32: =IF(INDIRECT(CONCATENATE("Water","!B116"))=0,"",INDIRECT(CONCATENATE("Water","!B116"))) -> 
L55: =+IF(ISNUMBER(M48), "", "Insufficient data to estimate safely managed sanitation services at national level") -> Insufficient data to estimate safely managed sanitation services at national level

Sheet Water
A1: BGD
B4: Summary of trends in use of drinking water by wealth quintile (%)
B5: =IF(ISERROR(INDIRECT(CONCATENATE($B105,"!A2"))),"",INDIRECT(CONCATENATE($B105,"!A2"))) -> Congo
B7: =B118 -> National use of drinking water sources, 2000–2020 | J7: =B218 -> Urban use of drinking water sources, 2000–2020 | R7: =B318 -> Rural use of drinking water sources, 2000–2020
B31: =IF(ISERROR(INDIRECT(CONCATENATE($B105,"!A2"))),"",INDIRECT(CONCATENATE($B105,"!A2"))) -> Congo | F31: Poorest | J31: Poor | N31: Middle | R31: Rich | V31: Richest
F32: Basic | G32: Limited | H32: Unimproved | I32: Surface water | J32: Basic | K32: Limited | L32: Unimproved | M32: Surface water | N32: Basic | O32: Limited | P32: Unimproved | Q32: Surface water | R32: Basic | S32: Limited | T32: Unimproved | U32: Surface water | V32: Basic | W32: Limited | X32: Unimproved | Y32: Surface water
B33: NATIONAL | D33: Estimate | E33: =C99 -> 2000 | F33: =E99 -> 19.07649527 | G33: =F99 -> 4.608672255 | H33: 51.08104051 | I33: 25.23379196 | J33: =J99 -> 25.90335769 | K33: =K99 -> 5.953793706 | L33: 51.95718248 | M33: 16.18566613 | N33: =O99 -> 62.53289375 | O33: =P99 -> 9.93697254 | P33: 22.19335894 | Q33: 5.336774766 | R33: =T99 -> 80.65436065 | S33: =U99 -> 12.59036075 | T33: 6.251361436 | U33: 0.5039171695 | V33: =Y99 -> 83.87446032 | W33: =Z99 -> 13.08180703 | X33: 3.01450405 | Y33: 0.02922859619
E34: =C100 -> 2020 | F34: =E100 -> 33.89600689 | G34: 8.188903899 | H34: 30.18364563 | I34: 27.73144358 | J34: =J100 -> 76.7418585 | K34: 17.63884048 | L34: 2.394098891 | M34: 3.225202125 | N34: =O100 -> 86.28813181 | O34: 13.71186819 | P34: 0 | Q34: 0 | R34: =T100 -> 84.8861013 | S34: 13.25094675 | T34: 1.86295195 | U34: 0 | V34: =Y100 -> 83.76341162 | W34: 13.06448689 | X34: 3.11920259 | Y34: 0.05289890681
B36: URBAN | D36: Estimate | E36: =C199 -> 2000 | F36: =E199 -> 73.43541339 | G36: =F199 -> 13.61917671 | H36: 12.76346351 | I36: 0.1819463876 | J36: =J199 -> 82.20690782 | K36: =K199 -> 10.98777055 | L36: 6.805321631 | M36: 0 | N36: =O199 -> 86.10657844 | O36: =P199 -> 9.371494601 | P36: 4.521926963 | Q36: 0 | R36: =T199 -> 87.60614082 | S36: =U199 -> 9.740386174 | T36: 2.653473008 | U36: 0 | V36: =Y199 -> 86.29658372 | W36: =Z199 -> 12.0251985 | X36: 1.678217788 | Y36: 0
E37: =C200 -> 2020 | F37: =E200 -> 81.86481032 | G37: 15.18247487 | H37: 2.952714807 | I37: 0 | J37: =J200 -> 87.1101925 | K37: 11.6431433 | L37: 1.246664205 | M37: 0 | N37: =O200 -> 88.42808501 | O37: 9.624158065 | P37: 1.947756927 | Q37: 0 | R37: =T200 -> 88.03789917 | S37: 9.788390721 | T37: 2.173710106 | U37: 0 | V37: =Y200 -> 85.0724983 | W37: 11.85462546 | X37: 3.072876242 | Y37: 0
B39: RURAL | D39: Estimate | E39: =C299 -> 2000 | F39: =E299 -> 14.986021 | G39: =F299 -> 4.9892743 | H39: 50.85348335 | I39: 29.17122135 | J39: =J299 -> 19.44174766 | K39: =K299 -> 7.613308148 | L39: 50.56140704 | M39: 22.38353715 | N39: =O299 -> 17.30515013 | O39: =P299 -> 8.815508644 | P39: 54.99808363 | Q39: 18.8812576 | R39: =T299 -> 17.54046885 | S39: =U299 -> 4.699707649 | T39: 58.26438623 | U39: 19.49543727 | V39: =Y299 -> 33.26944591 | W39: =Z299 -> 11.11023795 | X39: 44.53235958 | Y39: 11.08795656
E40: =C300 -> 2020 | F40: =E300 -> 21.05569251 | G40: 7.010041259 | H40: 31.89695673 | I40: 40.0373095 | J40: =J300 -> 32.42455863 | K40: 12.69732334 | L40: 29.68008863 | M40: 25.1980294 | N40: =O300 -> 34.53502097 | O40: 17.59266887 | P40: 28.03013042 | Q40: 19.84217974 | R40: =T300 -> 55.95447415 | S40: 14.99216882 | T40: 17.40162309 | U40: 11.65173395 | V40: =Y300 -> 67.83377441 | W40: 22.6528983 | X40: 7.174281943 | Y40: 2.339045352
A97: NATIONAL | D97: Poorest | I97: Poor | N97: Middle | S97: Rich | X97: Richest
D98: Improved | E98: Basic | F98: Limited | G98: Unimproved | H98: Surface water | I98: Improved | J98: Basic | K98: Limited | L98: Unimproved | M98: Surface water | N98: Improved | O98: Basic | P98: Limited | Q98: Unimproved | R98: Surface water | S98: Improved | T98: Basic | U98: Limited | V98: Unimproved | W98: Surface water | X98: Improved | Y98: Basic | Z98: Limited | AA98: Unimproved | AB98: Surface water
A99: Forecast period: | C99: 2000 | D99: =IF((D101+H101)>100,D101*100/(D101+H101),D101) -> 23.68516753 | E99: =D99*AVERAGEIF(E105:E116,">0")/100 -> 19.07649527 | F99: =D99*(100-AVERAGEIF(E105:E116,">0"))/100 -> 4.608672255 | G99: =100-(E99+F99+H99) -> 51.08104051 | H99: =IF((D101+H101)>100,H101*100/(D101+H101),H101) -> 25.23379196 | I99: =IF((I101+M101)>100,I101*100/(I101+M101),I101) -> 31.85715139 | J99: =I99*AVERAGEIF(J105:J116,">0")/100 -> 25.90335769 | K99: =I99*(100-AVERAGEIF(J105:J116,">0"))/100 -> 5.953793706 | L99: =100-(J99+K99+M99) -> 51.95718248 | M99: =IF((I101+M101)>100,M101*100/(I101+M101),M101) -> 16.18566613 | N99: =IF((N101+R101)>100,N101*100/(N101+R101),N101) -> 72.46986629 | O99: =N99*AVERAGEIF(O105:O116,">0")/100 -> 62.53289375 | P99: =N99*(100-AVERAGEIF(O105:O116,">0"))/100 -> 9.93697254 | Q99: =100-(O99+P99+R99) -> 22.19335894 | R99: =IF((N101+R101)>100,R101*100/(N101+R101),R101) -> 5.336774766 | S99: =IF((S101+W101)>100,S101*100/(S101+W101),S101) -> 93.24472139 | T99: =S99*AVERAGEIF(T105:T116,">0")/100 -> 80.65436065 | U99: =S99*(100-AVERAGEIF(T105:T116,">0"))/100 -> 12.59036075 | V99: =100-(T99+U99+W99) -> 6.251361436 | W99: =IF((S101+W101)>100,W101*100/(S101+W101),W101) -> 0.5039171695 | X99: =IF((X101+AB101)>100,X101*100/(X101+AB101),X101) -> 96.95626735 | Y99: =X99*AVERAGEIF(Y105:Y116,">0")/100 -> 83.87446032 | Z99: =X99*(100-AVERAGEIF(Y105:Y116,">0"))/100 -> 13.08180703 | AA99: =100-(Y99+Z99+AB99) -> 3.01450405 | AB99: =IF((X101+AB101)>100,AB101*100/(X101+AB101),AB101) -> 0.02922859619
C100: 2020 | D100: =IF((D102+H102)>100,D102*100/(D102+H102),D102) -> 42.08491079 | E100: =D100*AVERAGEIF(E105:E116,">0")/100 -> 33.89600689 | F100: =D100*(100-AVERAGEIF(E105:E116,">0"))/100 -> 8.188903899 | G100: =100-(E100+F100+H100) -> 30.18364563 | H100: =IF((D102+H102)>100,H102*100/(D102+H102),H102) -> 27.73144358 | I100: =IF((I102+M102)>100,I102*100/(I102+M102),I102) -> 94.38069898 | J100: =I100*AVERAGEIF(J105:J116,">0")/100 -> 76.7418585 | K100: =I100*(100-AVERAGEIF(J105:J116,">0"))/100 -> 17.63884048 | L100: =100-(J100+K100+M100) -> 2.394098891 | M100: =IF((I102+M102)>100,M102*100/(I102+M102),M102) -> 3.225202125 | N100: =IF((N102+R102)>100,N102*100/(N102+R102),N102) -> 100 | O100: =N100*AVERAGEIF(O105:O116,">0")/100 -> 86.28813181 | P100: =N100*(100-AVERAGEIF(O105:O116,">0"))/100 -> 13.71186819 | Q100: =100-(O100+P100+R100) -> 0 | R100: =IF((N102+R102)>100,R102*100/(N102+R102),R102) -> 0 | S100: =IF((S102+W102)>100,S102*100/(S102+W102),S102) -> 98.13704805 | T100: =S100*AVERAGEIF(T105:T116,">0")/100 -> 84.8861013 | U100: =S100*(100-AVERAGEIF(T105:T116,">0"))/100 -> 13.25094675 | V100: =100-(T100+U100+W100) -> 1.86295195 | W100: =IF((S102+W102)>100,W102*100/(S102+W102),W102) -> 0 | X100: =IF((X102+AB102)>100,X102*100/(X102+AB102),X102) -> 96.8278985 | Y100: =X100*AVERAGEIF(Y105:Y116,">0")/100 -> 83.76341162 | Z100: =X100*(100-AVERAGEIF(Y105:Y116,">0"))/100 -> 13.06448689 | AA100: =100-(Y100+Z100+AB100) -> 3.11920259 | AB100: =IF((X102+AB102)>100,AB102*100/(X102+AB102),AB102) -> 0.05289890681
A101: Regression period: | C101: =MinRegYear(C99,C105:C116) -> 2003 | D101: =IF(MAX(C105:C116)-MIN(C105:C116)<5,AVERAGEIF(C105:C116,">0",D105:D116), IF(FORECAST($C101,D$105:D$116,$C$105:$C$116)<0,0, IF(FORECAST($C101,D$105:D$116,$C$105:$C$116)>100,100, FORECAST($C101,D$105:D$116,$C$105:$C$116)))) -> 23.68516753 | H101: =IF(MAX(C105:C116)-MIN(C105:C116)<5,AVERAGEIF(C105:C116,">0",H105:H116), IF(FORECAST($C101,H$105:H$116,$C$105:$C$116)<0,0, IF(FORECAST($C101,H$105:H$116,$C$105:$C$116)>100,100, FORECAST($C101,H$105:H$116,$C$105:$C$116)))) -> 25.23379196 | I101: =IF(MAX(C105:C116)-MIN(C105:C116)<5,AVERAGEIF(C105:C116,">0",I105:I116), IF(FORECAST($C101,I$105:I$116,$C$105:$C$116)<0,0, IF(FORECAST($C101,I$105:I$116,$C$105:$C$116)>100,100, FORECAST($C101,I$105:I$116,$C$105:$C$116)))) -> 31.85715139 | M101: =IF(MAX(C105:C116)-MIN(C105:C116)<5,AVERAGEIF(C105:C116,">0",M105:M116), IF(FORECAST($C101,M$105:M$116,$C$105:$C$116)<0,0, IF(FORECAST($C101,M$105:M$116,$C$105:$C$116)>100,100, FORECAST($C101,M$105:M$116,$C$105:$C$116)))) -> 16.18566613 | N101: =IF(MAX(C105:C116)-MIN(C105:C116)<5,AVERAGEIF(C105:C116,">0",N105:N116), IF(FORECAST($C101,N$105:N$116,$C$105:$C$116)<0,0, IF(FORECAST($C101,N$105:N$116,$C$105:$C$116)>100,100, FORECAST($C101,N$105:N$116,$C$105:$C$116)))) -> 72.46986629 | R101: =IF(MAX(C105:C116)-MIN(C105:C116)<5,AVERAGEIF(C105:C116,">0",R105:R116), IF(FORECAST($C101,R$105:R$116,$C$105:$C$116)<0,0, IF(FORECAST($C101,R$105:R$116,$C$105:$C$116)>100,100, FORECAST($C101,R$105:R$116,$C$105:$C$116)))) -> 5.336774766 | S101: =IF(MAX(C105:C116)-MIN(C105:C116)<5,AVERAGEIF(C105:C116,">0",S105:S116), IF(FORECAST($C101,S$105:S$116,$C$105:$C$116)<0,0, IF(FORECAST($C101,S$105:S$116,$C$105:$C$116)>100,100, FORECAST($C101,S$105:S$116,$C$105:$C$116)))) -> 93.24472139 | W101: =IF(MAX(C105:C116)-MIN(C105:C116)<5,AVERAGEIF(C105:C116,">0",W105:W116), IF(FORECAST($C101,W$105:W$116,$C$105:$C$116)<0,0, IF(FORECAST($C101,W$105:W$116,$C$105:$C$116)>100,100, FORECAST($C101,W$105:W$116,$C$105:$C$116)))) -> 0.5039171695 | X101: =IF(MAX(C105:C116)-MIN(C105:C116)<5,AVERAGEIF(C105:C116,">0",X105:X116), IF(FORECAST($C101,X$105:X$116,$C$105:$C$116)<0,0, IF(FORECAST($C101,X$105:X$116,$C$105:$C$116)>100,100, FORECAST($C101,X$105:X$116,$C$105:$C$116)))) -> 96.95626735 | AB101: =IF(MAX(C105:C116)-MIN(C105:C116)<5,AVERAGEIF(C105:C116,">0",AB105:AB116), IF(FORECAST($C101,AB$105:AB$116,$C$105:$C$116)<0,0, IF(FORECAST($C101,AB$105:AB$116,$C$105:$C$116)>100,100, FORECAST($C101,AB$105:AB$116,$C$105:$C$116)))) -> 0.02922859619
C102: =MaxRegYear(C100,C105:C116) -> 2017 | D102: =IF(MAX(C105:C116)-MIN(C105:C116)<5,AVERAGEIF(C105:C116,">0",D105:D116), IF(FORECAST($C102,D$105:D$116,$C$105:$C$116)<0,0, IF(FORECAST($C102,D$105:D$116,$C$105:$C$116)>100,100, FORECAST($C102,D$105:D$116,$C$105:$C$116)))) -> 42.08491079 | H102: =IF(MAX(C105:C116)-MIN(C105:C116)<5,AVERAGEIF(C105:C116,">0",H105:H116), IF(FORECAST($C102,H$105:H$116,$C$105:$C$116)<0,0, IF(FORECAST($C102,H$105:H$116,$C$105:$C$116)>100,100, FORECAST($C102,H$105:H$116,$C$105:$C$116)))) -> 27.73144358 | I102: =IF(MAX(C105:C116)-MIN(C105:C116)<5,AVERAGEIF(C105:C116,">0",I105:I116), IF(FORECAST($C102,I$105:I$116,$C$105:$C$116)<0,0, IF(FORECAST($C102,I$105:I$116,$C$105:$C$116)>100,100, FORECAST($C102,I$105:I$116,$C$105:$C$116)))) -> 94.38069898 | M102: =IF(MAX(C105:C116)-MIN(C105:C116)<5,AVERAGEIF(C105:C116,">0",M105:M116), IF(FORECAST($C102,M$105:M$116,$C$105:$C$116)<0,0, IF(FORECAST($C102,M$105:M$116,$C$105:$C$116)>100,100, FORECAST($C102,M$105:M$116,$C$105:$C$116)))) -> 3.225202125 | N102: =IF(MAX(C105:C116)-MIN(C105:C116)<5,AVERAGEIF(C105:C116,">0",N105:N116), IF(FORECAST($C102,N$105:N$116,$C$105:$C$116)<0,0, IF(FORECAST($C102,N$105:N$116,$C$105:$C$116)>100,100, FORECAST($C102,N$105:N$116,$C$105:$C$116)))) -> 100 | R102: =IF(MAX(C105:C116)-MIN(C105:C116)<5,AVERAGEIF(C105:C116,">0",R105:R116), IF(FORECAST($C102,R$105:R$116,$C$105:$C$116)<0,0, IF(FORECAST($C102,R$105:R$116,$C$105:$C$116)>100,100, FORECAST($C102,R$105:R$116,$C$105:$C$116)))) -> 0 | S102: =IF(MAX(C105:C116)-MIN(C105:C116)<5,AVERAGEIF(C105:C116,">0",S105:S116), IF(FORECAST($C102,S$105:S$116,$C$105:$C$116)<0,0, IF(FORECAST($C102,S$105:S$116,$C$105:$C$116)>100,100, FORECAST($C102,S$105:S$116,$C$105:$C$116)))) -> 98.13704805 | W102: =IF(MAX(C105:C116)-MIN(C105:C116)<5,AVERAGEIF(C105:C116,">0",W105:W116), IF(FORECAST($C102,W$105:W$116,$C$105:$C$116)<0,0, IF(FORECAST($C102,W$105:W$116,$C$105:$C$116)>100,100, FORECAST($C102,W$105:W$116,$C$105:$C$116)))) -> 0 | X102: =IF(MAX(C105:C116)-MIN(C105:C116)<5,AVERAGEIF(C105:C116,">0",X105:X116), IF(FORECAST($C102,X$105:X$116,$C$105:$C$116)<0,0, IF(FORECAST($C102,X$105:X$116,$C$105:$C$116)>100,100, FORECAST($C102,X$105:X$116,$C$105:$C$116)))) -> 96.8278985 | AB102: =IF(MAX(C105:C116)-MIN(C105:C116)<5,AVERAGEIF(C105:C116,">0",AB105:AB116), IF(FORECAST($C102,AB$105:AB$116,$C$105:$C$116)<0,0, IF(FORECAST($C102,AB$105:AB$116,$C$105:$C$116)>100,100, FORECAST($C102,AB$105:AB$116,$C$105:$C$116)))) -> 0.05289890681
B104: Survey | C104: Year | D104: Improved | E104: % Improved < = 30min | H104: Surface water | I104: Improved | J104: % Improved < = 30min | M104: Surface water | N104: Improved | O104: % Improved < = 30min | R104: Surface water | S104: Improved | T104: % Improved < = 30min | W104: Surface water | X104: Improved | Y104: % Improved < = 30min | AB104: Surface water
B105: WHS03 | D105: =IF(ISERROR(INDIRECT(CONCATENATE($B105,"!C16"))),"",INDIRECT(CONCATENATE($B105,"!C16"))) -> 56.07471252 | E105: =IF(ISERROR(INDIRECT(CONCATENATE($B105,"!C23"))),"",INDIRECT(CONCATENATE($B105,"!C23"))) -> 91.95502085 | H105: =IF(ISERROR(INDIRECT(CONCATENATE($B105,"!C21"))),"",INDIRECT(CONCATENATE($B105,"!C21"))) -> 0.04265672068 | I105: =IF(ISERROR(INDIRECT(CONCATENATE($B105,"!D16"))),"",INDIRECT(CONCATENATE($B105,"!D16"))) -> 59.77027429 | J105: =IF(ISERROR(INDIRECT(CONCATENATE($B105,"!D23"))),"",INDIRECT(CONCATENATE($B105,"!D23"))) -> 95.24867883 | M105: =IF(ISERROR(INDIRECT(CONCATENATE($B105,"!D21"))),"",INDIRECT(CONCATENATE($B105,"!D21"))) -> 0 | N105: =IF(ISERROR(INDIRECT(CONCATENATE($B105,"!E16"))),"",INDIRECT(CONCATENATE($B105,"!E16"))) -> 61.01689701 | O105: =IF(ISERROR(INDIRECT(CONCATENATE($B105,"!E23"))),"",INDIRECT(CONCATENATE($B105,"!E23"))) -> 90.65716068 | R105: =IF(ISERROR(INDIRECT(CONCATENATE($B105,"!E21"))),"",INDIRECT(CONCATENATE($B105,"!E21"))) -> 0 | S105: =IF(ISERROR(INDIRECT(CONCATENATE($B105,"!F16"))),"",INDIRECT(CONCATENATE($B105,"!F16"))) -> 72.90194118 | T105: =IF(ISERROR(INDIRECT(CONCATENATE($B105,"!F23"))),"",INDIRECT(CONCATENATE($B105,"!F23"))) -> 78.91617821 | W105: =IF(ISERROR(INDIRECT(CONCATENATE($B105,"!F21"))),"",INDIRECT(CONCATENATE($B105,"!F21"))) -> 0 | X105: =IF(ISERROR(INDIRECT(CONCATENATE($B105,"!G16"))),"",INDIRECT(CONCATENATE($B105,"!G16"))) -> 70.47672215 | Y105: =IF(ISERROR(INDIRECT(CONCATENATE($B105,"!G23"))),"",INDIRECT(CONCATENATE($B105,"!G23"))) -> 67.61125013 | AB105: =IF(ISERROR(INDIRECT(CONCATENATE($B105,"!G221"))),"",INDIRECT(CONCATENATE($B105,"!G21"))) -> 0.05375782987
B106: DHS05 | C106: 2005 | D106: 29.82947783 | E106: 78.79926111 | H106: 23.9736912 | I106: 37.30271758 | J106: 75.736891 | M106: 16.90232054 | N106: 73.17566417 | O106: 84.41143973 | R106: 5.646481573 | S106: 92.9420886 | T106: 87.83390514 | W106: 0.4221223534 | X106: 96.05965332 | Y106: 94.60916466 | AB106: 0
B107: AIS09 | C107: 2009 | D107: 28.31793283 | E107: N/A | H107: 27.71877356 | I107: 67.13900309 | J107: N/A | M107: 5.927902405 | N107: 93.05092711 | O107: N/A | R107: 0.396587326 | S107: 97.05555476 | T107: N/A | W107: 0.2820268859 | X107: 98.3519171 | Y107: N/A | AB107: 0.06594574249
B108: DHS12 | C108: 2012 | D108: 30.3 | E108: 73.3 | H108: 29.4 | I108: 66.7 | J108: 73.3 | M108: 8.7 | N108: 92.8 | O108: 80.3 | R108: 0.8 | S108: 96.3 | T108: 86.4 | W108: 0.1 | X108: 96.9 | Y108: 88.2 | AB108: 0.1
B109: MICS15 | C109: 2015 | D109: 44.40701336 | E109: 78.11350935 | H109: 25.01641002 | I109: 85.79994777 | J109: 80.95829605 | M109: 6.365766133 | N109: 97.77465219 | O109: 89.78392685 | R109: 0.4741862482 | S109: 96.81534744 | T109: 92.83994993 | W109: 0.03717968251 | X109: 96.24759209 | Y109: 95.60965676 | AB109: 0
D111: =IF(ISERROR(INDIRECT(CONCATENATE($B111,"!C16"))),"",INDIRECT(CONCATENATE($B111,"!C16"))) ->  | E111: =IF(ISERROR(INDIRECT(CONCATENATE($B111,"!C23"))),"",INDIRECT(CONCATENATE($B111,"!C23"))) ->  | H111: =IF(ISERROR(INDIRECT(CONCATENATE($B111,"!C21"))),"",INDIRECT(CONCATENATE($B111,"!C21"))) ->  | I111: =IF(ISERROR(INDIRECT(CONCATENATE($B111,"!D16"))),"",INDIRECT(CONCATENATE($B111,"!D16"))) ->  | J111: =IF(ISERROR(INDIRECT(CONCATENATE($B111,"!D23"))),"",INDIRECT(CONCATENATE($B111,"!D23"))) ->  | M111: =IF(ISERROR(INDIRECT(CONCATENATE($B111,"!D21"))),"",INDIRECT(CONCATENATE($B111,"!D21"))) ->  | N111: =IF(ISERROR(INDIRECT(CONCATENATE($B111,"!E16"))),"",INDIRECT(CONCATENATE($B111,"!E16"))) ->  | O111: =IF(ISERROR(INDIRECT(CONCATENATE($B111,"!E23"))),"",INDIRECT(CONCATENATE($B111,"!E23"))) ->  | R111: =IF(ISERROR(INDIRECT(CONCATENATE($B111,"!E21"))),"",INDIRECT(CONCATENATE($B111,"!E21"))) ->  | S111: =IF(ISERROR(INDIRECT(CONCATENATE($B111,"!F16"))),"",INDIRECT(CONCATENATE($B111,"!F16"))) ->  | T111: =IF(ISERROR(INDIRECT(CONCATENATE($B111,"!F23"))),"",INDIRECT(CONCATENATE($B111,"!F23"))) ->  | W111: =IF(ISERROR(INDIRECT(CONCATENATE($B111,"!F21"))),"",INDIRECT(CONCATENATE($B111,"!F21"))) ->  | X111: =IF(ISERROR(INDIRECT(CONCATENATE($B111,"!G16"))),"",INDIRECT(CONCATENATE($B111,"!G16"))) ->  | Y111: =IF(ISERROR(INDIRECT(CONCATENATE($B111,"!G23"))),"",INDIRECT(CONCATENATE($B111,"!G23"))) ->  | AB111: =IF(ISERROR(INDIRECT(CONCATENATE($B111,"!G221"))),"",INDIRECT(CONCATENATE($B111,"!G21"))) -> 
D112: =IF(ISERROR(INDIRECT(CONCATENATE($B112,"!C16"))),"",INDIRECT(CONCATENATE($B112,"!C16"))) ->  | E112: =IF(ISERROR(INDIRECT(CONCATENATE($B112,"!C23"))),"",INDIRECT(CONCATENATE($B112,"!C23"))) ->  | H112: =IF(ISERROR(INDIRECT(CONCATENATE($B112,"!C21"))),"",INDIRECT(CONCATENATE($B112,"!C21"))) ->  | I112: =IF(ISERROR(INDIRECT(CONCATENATE($B112,"!D16"))),"",INDIRECT(CONCATENATE($B112,"!D16"))) ->  | J112: =IF(ISERROR(INDIRECT(CONCATENATE($B112,"!D23"))),"",INDIRECT(CONCATENATE($B112,"!D23"))) ->  | M112: =IF(ISERROR(INDIRECT(CONCATENATE($B112,"!D21"))),"",INDIRECT(CONCATENATE($B112,"!D21"))) ->  | N112: =IF(ISERROR(INDIRECT(CONCATENATE($B112,"!E16"))),"",INDIRECT(CONCATENATE($B112,"!E16"))) ->  | O112: =IF(ISERROR(INDIRECT(CONCATENATE($B112,"!E23"))),"",INDIRECT(CONCATENATE($B112,"!E23"))) ->  | R112: =IF(ISERROR(INDIRECT(CONCATENATE($B112,"!E21"))),"",INDIRECT(CONCATENATE($B112,"!E21"))) ->  | S112: =IF(ISERROR(INDIRECT(CONCATENATE($B112,"!F16"))),"",INDIRECT(CONCATENATE($B112,"!F16"))) ->  | T112: =IF(ISERROR(INDIRECT(CONCATENATE($B112,"!F23"))),"",INDIRECT(CONCATENATE($B112,"!F23"))) ->  | W112: =IF(ISERROR(INDIRECT(CONCATENATE($B112,"!F21"))),"",INDIRECT(CONCATENATE($B112,"!F21"))) ->  | X112: =IF(ISERROR(INDIRECT(CONCATENATE($B112,"!G16"))),"",INDIRECT(CONCATENATE($B112,"!G16"))) ->  | Y112: =IF(ISERROR(INDIRECT(CONCATENATE($B112,"!G23"))),"",INDIRECT(CONCATENATE($B112,"!G23"))) ->  | AB112: =IF(ISERROR(INDIRECT(CONCATENATE($B112,"!G221"))),"",INDIRECT(CONCATENATE($B112,"!G21"))) -> 
B118: =CONCATENATE("National use of drinking water sources, ",C99,"–",C100) -> National use of drinking water sources, 2000–2020 | S118: Data points used for regression
E153: =IF(ISERROR(INDIRECT(CONCATENATE($B153,"!M18"))),"",INDIRECT(CONCATENATE($B153,"!M18"))) ->  | F153: =IF(ISERROR(INDIRECT(CONCATENATE($B153,"!M19"))),"",INDIRECT(CONCATENATE($B153,"!M19"))) ->  | G153: =IF(ISERROR(INDIRECT(CONCATENATE($B153,"!M20"))),"",INDIRECT(CONCATENATE($B153,"!M20"))) ->  | H153: =IF(ISERROR(INDIRECT(CONCATENATE($B153,"!M21"))),"",INDIRECT(CONCATENATE($B153,"!M21"))) ->  | J153: =IF(ISERROR(INDIRECT(CONCATENATE($B153,"!N18"))),"",INDIRECT(CONCATENATE($B153,"!N18"))) ->  | K153: =IF(ISERROR(INDIRECT(CONCATENATE($B153,"!N19"))),"",INDIRECT(CONCATENATE($B153,"!N19"))) ->  | L153: =IF(ISERROR(INDIRECT(CONCATENATE($B153,"!N20"))),"",INDIRECT(CONCATENATE($B153,"!N20"))) ->  | M153: =IF(ISERROR(INDIRECT(CONCATENATE($B153,"!N21"))),"",INDIRECT(CONCATENATE($B153,"!N21"))) ->  | O153: =IF(ISERROR(INDIRECT(CONCATENATE($B153,"!O18"))),"",INDIRECT(CONCATENATE($B153,"!O18"))) ->  | P153: =IF(ISERROR(INDIRECT(CONCATENATE($B153,"!O19"))),"",INDIRECT(CONCATENATE($B153,"!O19"))) ->  | Q153: =IF(ISERROR(INDIRECT(CONCATENATE($B153,"!O20"))),"",INDIRECT(CONCATENATE($B153,"!O20"))) ->  | R153: =IF(ISERROR(INDIRECT(CONCATENATE($B153,"!O21"))),"",INDIRECT(CONCATENATE($B153,"!O21"))) ->  | T153: =IF(ISERROR(INDIRECT(CONCATENATE($B153,"!P18"))),"",INDIRECT(CONCATENATE($B153,"!P18"))) ->  | U153: =IF(ISERROR(INDIRECT(CONCATENATE($B153,"!P19"))),"",INDIRECT(CONCATENATE($B153,"!P19"))) ->  | V153: =IF(ISERROR(INDIRECT(CONCATENATE($B153,"!P20"))),"",INDIRECT(CONCATENATE($B153,"!P20"))) ->  | W153: =IF(ISERROR(INDIRECT(CONCATENATE($B153,"!P21"))),"",INDIRECT(CONCATENATE($B153,"!P21"))) ->  | Y153: =IF(ISERROR(INDIRECT(CONCATENATE($B153,"!Q18"))),"",INDIRECT(CONCATENATE($B153,"!Q18"))) ->  | Z153: =IF(ISERROR(INDIRECT(CONCATENATE($B153,"!Q19"))),"",INDIRECT(CONCATENATE($B153,"!Q19"))) ->  | AA153: =IF(ISERROR(INDIRECT(CONCATENATE($B153,"!Q20"))),"",INDIRECT(CONCATENATE($B153,"!Q20"))) ->  | AB153: =IF(ISERROR(INDIRECT(CONCATENATE($B153,"!Q21"))),"",INDIRECT(CONCATENATE($B153,"!Q1"))) -> 
A197: URBAN | D197: Poorest | I197: Poor | N197: Middle | S197: Rich | X197: Richest
D198: Improved | E198: Basic | F198: Limited | G198: Unimproved | H198: Surface water | I198: Improved | J198: Basic | K198: Limited | L198: Unimproved | M198: Surface water | N198: Improved | O198: Basic | P198: Limited | Q198: Unimproved | R198: Surface water | S198: Improved | T198: Basic | U198: Limited | V198: Unimproved | W198: Surface water | X198: Improved | Y198: Basic | Z198: Limited | AA198: Unimproved | AB198: Surface water
A199: Forecast period: | C199: 2000 | D199: =IF((D201+H201)>100,D201*100/(D201+H201),D201) -> 87.0545901 | E199: =D199*AVERAGEIF(E205:E216,">0")/100 -> 73.43541339 | F199: =D199*(100-AVERAGEIF(E205:E216,">0"))/100 -> 13.61917671 | G199: =100-(E199+F199+H199) -> 12.76346351 | H199: =IF((D201+H201)>100,H201*100/(D201+H201),H201) -> 0.1819463876 | I199: =IF((I201+M201)>100,I201*100/(I201+M201),I201) -> 93.19467837 | J199: =I199*AVERAGEIF(J205:J216,">0")/100 -> 82.20690782 | K199: =I199*(100-AVERAGEIF(J205:J216,">0"))/100 -> 10.98777055 | L199: =100-(J199+K199+M199) -> 6.805321631 | M199: =IF((I201+M201)>100,M201*100/(I201+M201),M201) -> 0 | N199: =IF((N201+R201)>100,N201*100/(N201+R201),N201) -> 95.47807304 | O199: =N199*AVERAGEIF(O205:O216,">0")/100 -> 86.10657844 | P199: =N199*(100-AVERAGEIF(O205:O216,">0"))/100 -> 9.371494601 | Q199: =100-(O199+P199+R199) -> 4.521926963 | R199: =IF((N201+R201)>100,R201*100/(N201+R201),R201) -> 0 | S199: =IF((S201+W201)>100,S201*100/(S201+W201),S201) -> 97.34652699 | T199: =S199*AVERAGEIF(T205:T216,">0")/100 -> 87.60614082 | U199: =S199*(100-AVERAGEIF(T205:T216,">0"))/100 -> 9.740386174 | V199: =100-(T199+U199+W199) -> 2.653473008 | W199: =IF((S201+W201)>100,W201*100/(S201+W201),W201) -> 0 | X199: =IF((X201+AB201)>100,X201*100/(X201+AB201),X201) -> 98.32178221 | Y199: =X199*AVERAGEIF(Y205:Y216,">0")/100 -> 86.29658372 | Z199: =X199*(100-AVERAGEIF(Y205:Y216,">0"))/100 -> 12.0251985 | AA199: =100-(Y199+Z199+AB199) -> 1.678217788 | AB199: =IF((X201+AB201)>100,AB201*100/(X201+AB201),AB201) -> 0
C200: 2020 | D200: =IF((D202+H202)>100,D202*100/(D202+H202),D202) -> 97.04728519 | E200: =D200*AVERAGEIF(E205:E216,">0")/100 -> 81.86481032 | F200: =D200*(100-AVERAGEIF(E205:E216,">0"))/100 -> 15.18247487 | G200: =100-(E200+F200+H200) -> 2.952714807 | H200: =IF((D202+H202)>100,H202*100/(D202+H202),H202) -> 0 | I200: =IF((I202+M202)>100,I202*100/(I202+M202),I202) -> 98.7533358 | J200: =I200*AVERAGEIF(J205:J216,">0")/100 -> 87.1101925 | K200: =I200*(100-AVERAGEIF(J205:J216,">0"))/100 -> 11.6431433 | L200: =100-(J200+K200+M200) -> 1.246664205 | M200: =IF((I202+M202)>100,M202*100/(I202+M202),M202) -> 0 | N200: =IF((N202+R202)>100,N202*100/(N202+R202),N202) -> 98.05224307 | O200: =N200*AVERAGEIF(O205:O216,">0")/100 -> 88.42808501 | P200: =N200*(100-AVERAGEIF(O205:O216,">0"))/100 -> 9.624158065 | Q200: =100-(O200+P200+R200) -> 1.947756927 | R200: =IF((N202+R202)>100,R202*100/(N202+R202),R202) -> 0 | S200: =IF((S202+W202)>100,S202*100/(S202+W202),S202) -> 97.82628989 | T200: =S200*AVERAGEIF(T205:T216,">0")/100 -> 88.03789917 | U200: =S200*(100-AVERAGEIF(T205:T216,">0"))/100 -> 9.788390721 | V200: =100-(T200+U200+W200) -> 2.173710106 | W200: =IF((S202+W202)>100,W202*100/(S202+W202),W202) -> 0 | X200: =IF((X202+AB202)>100,X202*100/(X202+AB202),X202) -> 96.92712376 | Y200: =X200*AVERAGEIF(Y205:Y216,">0")/100 -> 85.0724983 | Z200: =X200*(100-AVERAGEIF(Y205:Y216,">0"))/100 -> 11.85462546 | AA200: =100-(Y200+Z200+AB200) -> 3.072876242 | AB200: =IF((X202+AB202)>100,AB202*100/(X202+AB202),AB202) -> 0
A201: Regression period: | C201: =MinRegYear(C199,C205:C216) -> 2003 | D201: =IF(MAX(C205:C216)-MIN(C205:C216)<5,AVERAGEIF(C205:C216,">0",D205:D216), IF(FORECAST($C201,D$205:D$216,$C$205:$C$216)<0,0, IF(FORECAST($C201,D$205:D$216,$C$205:$C$216)>100,100, FORECAST($C201,D$205:D$216,$C$205:$C$216)))) -> 87.0545901 | H201: =IF(MAX(C205:C216)-MIN(C205:C216)<5,AVERAGEIF(C205:C216,">0",H205:H216), IF(FORECAST($C201,H$205:H$216,$C$205:$C$216)<0,0, IF(FORECAST($C201,H$205:H$216,$C$205:$C$216)>100,100, FORECAST($C201,H$205:H$216,$C$205:$C$216)))) -> 0.1819463876 | I201: =IF(MAX(C205:C216)-MIN(C205:C216)<5,AVERAGEIF(C205:C216,">0",I205:I216), IF(FORECAST($C201,I$205:I$216,$C$205:$C$216)<0,0, IF(FORECAST($C201,I$205:I$216,$C$205:$C$216)>100,100, FORECAST($C201,I$205:I$216,$C$205:$C$216)))) -> 93.19467837 | M201: =IF(MAX(C205:C216)-MIN(C205:C216)<5,AVERAGEIF(C205:C216,">0",M205:M216), IF(FORECAST($C201,M$205:M$216,$C$205:$C$216)<0,0, IF(FORECAST($C201,M$205:M$216,$C$205:$C$216)>100,100, FORECAST($C201,M$205:M$216,$C$205:$C$216)))) -> 0 | N201: =IF(MAX(C205:C216)-MIN(C205:C216)<5,AVERAGEIF(C205:C216,">0",N205:N216), IF(FORECAST($C201,N$205:N$216,$C$205:$C$216)<0,0, IF(FORECAST($C201,N$205:N$216,$C$205:$C$216)>100,100, FORECAST($C201,N$205:N$216,$C$205:$C$216)))) -> 95.47807304 | R201: =IF(MAX(C205:C216)-MIN(C205:C216)<5,AVERAGEIF(C205:C216,">0",R205:R216), IF(FORECAST($C201,R$205:R$216,$C$205:$C$216)<0,0, IF(FORECAST($C201,R$205:R$216,$C$205:$C$216)>100,100, FORECAST($C201,R$205:R$216,$C$205:$C$216)))) -> 0 | S201: =IF(MAX(C205:C216)-MIN(C205:C216)<5,AVERAGEIF(C205:C216,">0",S205:S216), IF(FORECAST($C201,S$205:S$216,$C$205:$C$216)<0,0, IF(FORECAST($C201,S$205:S$216,$C$205:$C$216)>100,100, FORECAST($C201,S$205:S$216,$C$205:$C$216)))) -> 97.34652699 | W201: =IF(MAX(C205:C216)-MIN(C205:C216)<5,AVERAGEIF(C205:C216,">0",W205:W216), IF(FORECAST($C201,W$205:W$216,$C$205:$C$216)<0,0, IF(FORECAST($C201,W$205:W$216,$C$205:$C$216)>100,100, FORECAST($C201,W$205:W$216,$C$205:$C$216)))) -> 0 | X201: =IF(MAX(C205:C216)-MIN(C205:C216)<5,AVERAGEIF(C205:C216,">0",X205:X216), IF(FORECAST($C201,X$205:X$216,$C$205:$C$216)<0,0, IF(FORECAST($C201,X$205:X$216,$C$205:$C$216)>100,100, FORECAST($C201,X$205:X$216,$C$205:$C$216)))) -> 98.32178221 | AB201: =IF(MAX(C205:C216)-MIN(C205:C216)<5,AVERAGEIF(C205:C216,">0",AB205:AB216), IF(FORECAST($C201,AB$205:AB$216,$C$205:$C$216)<0,0, IF(FORECAST($C201,AB$205:AB$216,$C$205:$C$216)>100,100, FORECAST($C201,AB$205:AB$216,$C$205:$C$216)))) -> 0
C202: =MaxRegYear(C200,C205:C216) -> 2017 | D202: =IF(MAX(C205:C216)-MIN(C205:C216)<5,AVERAGEIF(C205:C216,">0",D205:D216), IF(FORECAST($C202,D$205:D$216,$C$205:$C$216)<0,0, IF(FORECAST($C202,D$205:D$216,$C$205:$C$216)>100,100, FORECAST($C202,D$205:D$216,$C$205:$C$216)))) -> 97.04728519 | H202: =IF(MAX(C205:C216)-MIN(C205:C216)<5,AVERAGEIF(C205:C216,">0",H205:H216), IF(FORECAST($C202,H$205:H$216,$C$205:$C$216)<0,0, IF(FORECAST($C202,H$205:H$216,$C$205:$C$216)>100,100, FORECAST($C202,H$205:H$216,$C$205:$C$216)))) -> 0 | I202: =IF(MAX(C205:C216)-MIN(C205:C216)<5,AVERAGEIF(C205:C216,">0",I205:I216), IF(FORECAST($C202,I$205:I$216,$C$205:$C$216)<0,0, IF(FORECAST($C202,I$205:I$216,$C$205:$C$216)>100,100, FORECAST($C202,I$205:I$216,$C$205:$C$216)))) -> 98.7533358 | M202: =IF(MAX(C205:C216)-MIN(C205:C216)<5,AVERAGEIF(C205:C216,">0",M205:M216), IF(FORECAST($C202,M$205:M$216,$C$205:$C$216)<0,0, IF(FORECAST($C202,M$205:M$216,$C$205:$C$216)>100,100, FORECAST($C202,M$205:M$216,$C$205:$C$216)))) -> 0 | N202: =IF(MAX(C205:C216)-MIN(C205:C216)<5,AVERAGEIF(C205:C216,">0",N205:N216), IF(FORECAST($C202,N$205:N$216,$C$205:$C$216)<0,0, IF(FORECAST($C202,N$205:N$216,$C$205:$C$216)>100,100, FORECAST($C202,N$205:N$216,$C$205:$C$216)))) -> 98.05224307 | R202: =IF(MAX(C205:C216)-MIN(C205:C216)<5,AVERAGEIF(C205:C216,">0",R205:R216), IF(FORECAST($C202,R$205:R$216,$C$205:$C$216)<0,0, IF(FORECAST($C202,R$205:R$216,$C$205:$C$216)>100,100, FORECAST($C202,R$205:R$216,$C$205:$C$216)))) -> 0 | S202: =IF(MAX(C205:C216)-MIN(C205:C216)<5,AVERAGEIF(C205:C216,">0",S205:S216), IF(FORECAST($C202,S$205:S$216,$C$205:$C$216)<0,0, IF(FORECAST($C202,S$205:S$216,$C$205:$C$216)>100,100, FORECAST($C202,S$205:S$216,$C$205:$C$216)))) -> 97.82628989 | W202: =IF(MAX(C205:C216)-MIN(C205:C216)<5,AVERAGEIF(C205:C216,">0",W205:W216), IF(FORECAST($C202,W$205:W$216,$C$205:$C$216)<0,0, IF(FORECAST($C202,W$205:W$216,$C$205:$C$216)>100,100, FORECAST($C202,W$205:W$216,$C$205:$C$216)))) -> 0 | X202: =IF(MAX(C205:C216)-MIN(C205:C216)<5,AVERAGEIF(C205:C216,">0",X205:X216), IF(FORECAST($C202,X$205:X$216,$C$205:$C$216)<0,0, IF(FORECAST($C202,X$205:X$216,$C$205:$C$216)>100,100, FORECAST($C202,X$205:X$216,$C$205:$C$216)))) -> 96.92712376 | AB202: =IF(MAX(C205:C216)-MIN(C205:C216)<5,AVERAGEIF(C205:C216,">0",AB205:AB216), IF(FORECAST($C202,AB$205:AB$216,$C$205:$C$216)<0,0, IF(FORECAST($C202,AB$205:AB$216,$C$205:$C$216)>100,100, FORECAST($C202,AB$205:AB$216,$C$205:$C$216)))) -> 0
B204: Survey | C204: Year | D204: Improved | E204: % Improved < = 30min | H204: Surface water | I204: Improved | J204: % Improved < = 30min | M204: Surface water | N204: Improved | O204: % Improved < = 30min | R204: Surface water | S204: Improved | T204: % Improved < = 30min | W204: Surface water | X204: Improved | Y204: % Improved < = 30min | AB204: Surface water
B205: WHS03 | D205: =IF(ISERROR(INDIRECT(CONCATENATE($B205,"!H16"))),"",INDIRECT(CONCATENATE($B205,"!H16"))) -> 56.82255813 | E205: =IF(ISERROR(INDIRECT(CONCATENATE($B205,"!H23"))),"",INDIRECT(CONCATENATE($B205,"!H23"))) -> 92.4892367 | H205: =IF(ISERROR(INDIRECT(CONCATENATE($B205,"!H21"))),"",INDIRECT(CONCATENATE($B205,"!H21"))) -> 0.04792776264 | I205: =IF(ISERROR(INDIRECT(CONCATENATE($B205,"!I16"))),"",INDIRECT(CONCATENATE($B205,"!I16"))) -> 58.75333518 | J205: =IF(ISERROR(INDIRECT(CONCATENATE($B205,"!I23"))),"",INDIRECT(CONCATENATE($B205,"!I23"))) -> 94.24612696 | M205: =IF(ISERROR(INDIRECT(CONCATENATE($B205,"!I21"))),"",INDIRECT(CONCATENATE($B205,"!I21"))) -> 0 | N205: =IF(ISERROR(INDIRECT(CONCATENATE($B205,"!J16"))),"",INDIRECT(CONCATENATE($B205,"!J16"))) -> 62.0591556 | O205: =IF(ISERROR(INDIRECT(CONCATENATE($B205,"!J23"))),"",INDIRECT(CONCATENATE($B205,"!J23"))) -> 91.32393639 | R205: =IF(ISERROR(INDIRECT(CONCATENATE($B205,"!J21"))),"",INDIRECT(CONCATENATE($B205,"!J21"))) -> 0 | S205: =IF(ISERROR(INDIRECT(CONCATENATE($B205,"!K16"))),"",INDIRECT(CONCATENATE($B205,"!K16"))) -> 68.51903431 | T205: =IF(ISERROR(INDIRECT(CONCATENATE($B205,"!K23"))),"",INDIRECT(CONCATENATE($B205,"!K23"))) -> 85.87676667 | W205: =IF(ISERROR(INDIRECT(CONCATENATE($B205,"!K21"))),"",INDIRECT(CONCATENATE($B205,"!K21"))) -> 0 | X205: =IF(ISERROR(INDIRECT(CONCATENATE($B205,"!L16"))),"",INDIRECT(CONCATENATE($B205,"!L16"))) -> 89.78725583 | Y205: =IF(ISERROR(INDIRECT(CONCATENATE($B205,"!L23"))),"",INDIRECT(CONCATENATE($B205,"!L23"))) -> 70.2507571 | AB205: =IF(ISERROR(INDIRECT(CONCATENATE($B205,"!L221"))),"",INDIRECT(CONCATENATE($B205,"!L21"))) -> 0
B206: DHS05 | C206: 2005 | D206: 89.38143548 | E206: 87.28939764 | H206: 0.2298062053 | I206: 94.00667697 | J206: 83.25179398 | M206: 0 | N206: 95.13588838 | O206: 90.61396058 | R206: 0 | S206: 96.41229671 | T206: 92.89533195 | W206: 0 | X206: 97.34544328 | Y206: 95.7070496 | AB206: 0
B207: AIS09 | C207: 2009 | D207: 91.07754396 | E207: N/A | H207: 0 | I207: 96.43116948 | J207: N/A | M207: 0 | N207: 97.73094247 | O207: N/A | R207: 0 | S207: 99.2508924 | T207: N/A | W207: 0 | X207: 98.7318495 | Y207: N/A | AB207: 0
B208: DHS12 | C208: 2012 | D208: 91 | E208: 73.6 | H208: 0 | I208: 95 | J208: 84.1 | M208: 0 | N208: 97.2 | O208: 86.5 | R208: 0 | S208: 97.6 | T208: 85.2 | W208: 0 | X208: 98 | Y208: 89.5 | AB208: 0
B209: MICS15 | C209: 2015 | D209: 97.45853509 | E209: 84.04372699 | H209: 0.09305573026 | I209: 98.85522883 | J209: 91.24157272 | M209: 0 | N209: 97.17767066 | O209: 92.30075515 | R209: 0 | S209: 97.11671344 | T209: 96.00434235 | W209: 0 | X209: 96.3209007 | Y209: 95.62038481 | AB209: 0
B218: =CONCATENATE("Urban use of drinking water sources, ",C199,"–",C200) -> Urban use of drinking water sources, 2000–2020 | S218: Data points used for regression
E253: =IF(ISERROR(INDIRECT(CONCATENATE($B253,"!M18"))),"",INDIRECT(CONCATENATE($B253,"!M18"))) ->  | F253: =IF(ISERROR(INDIRECT(CONCATENATE($B253,"!M19"))),"",INDIRECT(CONCATENATE($B253,"!M19"))) ->  | G253: =IF(ISERROR(INDIRECT(CONCATENATE($B253,"!M20"))),"",INDIRECT(CONCATENATE($B253,"!M20"))) ->  | H253: =IF(ISERROR(INDIRECT(CONCATENATE($B253,"!M21"))),"",INDIRECT(CONCATENATE($B253,"!M21"))) ->  | J253: =IF(ISERROR(INDIRECT(CONCATENATE($B253,"!N18"))),"",INDIRECT(CONCATENATE($B253,"!N18"))) ->  | K253: =IF(ISERROR(INDIRECT(CONCATENATE($B253,"!N19"))),"",INDIRECT(CONCATENATE($B253,"!N19"))) ->  | L253: =IF(ISERROR(INDIRECT(CONCATENATE($B253,"!N20"))),"",INDIRECT(CONCATENATE($B253,"!N20"))) ->  | M253: =IF(ISERROR(INDIRECT(CONCATENATE($B253,"!N21"))),"",INDIRECT(CONCATENATE($B253,"!N21"))) ->  | O253: =IF(ISERROR(INDIRECT(CONCATENATE($B253,"!O18"))),"",INDIRECT(CONCATENATE($B253,"!O18"))) ->  | P253: =IF(ISERROR(INDIRECT(CONCATENATE($B253,"!O19"))),"",INDIRECT(CONCATENATE($B253,"!O19"))) ->  | Q253: =IF(ISERROR(INDIRECT(CONCATENATE($B253,"!O20"))),"",INDIRECT(CONCATENATE($B253,"!O20"))) ->  | R253: =IF(ISERROR(INDIRECT(CONCATENATE($B253,"!O21"))),"",INDIRECT(CONCATENATE($B253,"!O21"))) ->  | T253: =IF(ISERROR(INDIRECT(CONCATENATE($B253,"!P18"))),"",INDIRECT(CONCATENATE($B253,"!P18"))) ->  | U253: =IF(ISERROR(INDIRECT(CONCATENATE($B253,"!P19"))),"",INDIRECT(CONCATENATE($B253,"!P19"))) ->  | V253: =IF(ISERROR(INDIRECT(CONCATENATE($B253,"!P20"))),"",INDIRECT(CONCATENATE($B253,"!P20"))) ->  | W253: =IF(ISERROR(INDIRECT(CONCATENATE($B253,"!P21"))),"",INDIRECT(CONCATENATE($B253,"!P21"))) ->  | Y253: =IF(ISERROR(INDIRECT(CONCATENATE($B253,"!Q18"))),"",INDIRECT(CONCATENATE($B253,"!Q18"))) ->  | Z253: =IF(ISERROR(INDIRECT(CONCATENATE($B253,"!Q19"))),"",INDIRECT(CONCATENATE($B253,"!Q19"))) ->  | AA253: =IF(ISERROR(INDIRECT(CONCATENATE($B253,"!Q20"))),"",INDIRECT(CONCATENATE($B253,"!Q20"))) ->  | AB253: =IF(ISERROR(INDIRECT(CONCATENATE($B253,"!Q21"))),"",INDIRECT(CONCATENATE($B253,"!Q1"))) -> 
E254: =IF(ISERROR(INDIRECT(CONCATENATE($B254,"!M18"))),"",INDIRECT(CONCATENATE($B254,"!M18"))) ->  | F254: =IF(ISERROR(INDIRECT(CONCATENATE($B254,"!M19"))),"",INDIRECT(CONCATENATE($B254,"!M19"))) ->  | G254: =IF(ISERROR(INDIRECT(CONCATENATE($B254,"!M20"))),"",INDIRECT(CONCATENATE($B254,"!M20"))) ->  | H254: =IF(ISERROR(INDIRECT(CONCATENATE($B254,"!M21"))),"",INDIRECT(CONCATENATE($B254,"!M21"))) ->  | J254: =IF(ISERROR(INDIRECT(CONCATENATE($B254,"!N18"))),"",INDIRECT(CONCATENATE($B254,"!N18"))) ->  | K254: =IF(ISERROR(INDIRECT(CONCATENATE($B254,"!N19"))),"",INDIRECT(CONCATENATE($B254,"!N19"))) ->  | L254: =IF(ISERROR(INDIRECT(CONCATENATE($B254,"!N20"))),"",INDIRECT(CONCATENATE($B254,"!N20"))) ->  | M254: =IF(ISERROR(INDIRECT(CONCATENATE($B254,"!N21"))),"",INDIRECT(CONCATENATE($B254,"!N21"))) ->  | O254: =IF(ISERROR(INDIRECT(CONCATENATE($B254,"!O18"))),"",INDIRECT(CONCATENATE($B254,"!O18"))) ->  | P254: =IF(ISERROR(INDIRECT(CONCATENATE($B254,"!O19"))),"",INDIRECT(CONCATENATE($B254,"!O19"))) ->  | Q254: =IF(ISERROR(INDIRECT(CONCATENATE($B254,"!O20"))),"",INDIRECT(CONCATENATE($B254,"!O20"))) ->  | R254: =IF(ISERROR(INDIRECT(CONCATENATE($B254,"!O21"))),"",INDIRECT(CONCATENATE($B254,"!O21"))) ->  | T254: =IF(ISERROR(INDIRECT(CONCATENATE($B254,"!P18"))),"",INDIRECT(CONCATENATE($B254,"!P18"))) ->  | U254: =IF(ISERROR(INDIRECT(CONCATENATE($B254,"!P19"))),"",INDIRECT(CONCATENATE($B254,"!P19"))) ->  | V254: =IF(ISERROR(INDIRECT(CONCATENATE($B254,"!P20"))),"",INDIRECT(CONCATENATE($B254,"!P20"))) ->  | W254: =IF(ISERROR(INDIRECT(CONCATENATE($B254,"!P21"))),"",INDIRECT(CONCATENATE($B254,"!P21"))) ->  | Y254: =IF(ISERROR(INDIRECT(CONCATENATE($B254,"!Q18"))),"",INDIRECT(CONCATENATE($B254,"!Q18"))) ->  | Z254: =IF(ISERROR(INDIRECT(CONCATENATE($B254,"!Q19"))),"",INDIRECT(CONCATENATE($B254,"!Q19"))) ->  | AA254: =IF(ISERROR(INDIRECT(CONCATENATE($B254,"!Q20"))),"",INDIRECT(CONCATENATE($B254,"!Q20"))) ->  | AB254: =IF(ISERROR(INDIRECT(CONCATENATE($B254,"!Q21"))),"",INDIRECT(CONCATENATE($B254,"!Q1"))) -> 
E255: =IF(ISERROR(INDIRECT(CONCATENATE($B255,"!M18"))),"",INDIRECT(CONCATENATE($B255,"!M18"))) ->  | F255: =IF(ISERROR(INDIRECT(CONCATENATE($B255,"!M19"))),"",INDIRECT(CONCATENATE($B255,"!M19"))) ->  | G255: =IF(ISERROR(INDIRECT(CONCATENATE($B255,"!M20"))),"",INDIRECT(CONCATENATE($B255,"!M20"))) ->  | H255: =IF(ISERROR(INDIRECT(CONCATENATE($B255,"!M21"))),"",INDIRECT(CONCATENATE($B255,"!M21"))) ->  | J255: =IF(ISERROR(INDIRECT(CONCATENATE($B255,"!N18"))),"",INDIRECT(CONCATENATE($B255,"!N18"))) ->  | K255: =IF(ISERROR(INDIRECT(CONCATENATE($B255,"!N19"))),"",INDIRECT(CONCATENATE($B255,"!N19"))) ->  | L255: =IF(ISERROR(INDIRECT(CONCATENATE($B255,"!N20"))),"",INDIRECT(CONCATENATE($B255,"!N20"))) ->  | M255: =IF(ISERROR(INDIRECT(CONCATENATE($B255,"!N21"))),"",INDIRECT(CONCATENATE($B255,"!N21"))) ->  | O255: =IF(ISERROR(INDIRECT(CONCATENATE($B255,"!O18"))),"",INDIRECT(CONCATENATE($B255,"!O18"))) ->  | P255: =IF(ISERROR(INDIRECT(CONCATENATE($B255,"!O19"))),"",INDIRECT(CONCATENATE($B255,"!O19"))) ->  | Q255: =IF(ISERROR(INDIRECT(CONCATENATE($B255,"!O20"))),"",INDIRECT(CONCATENATE($B255,"!O20"))) ->  | R255: =IF(ISERROR(INDIRECT(CONCATENATE($B255,"!O21"))),"",INDIRECT(CONCATENATE($B255,"!O21"))) ->  | T255: =IF(ISERROR(INDIRECT(CONCATENATE($B255,"!P18"))),"",INDIRECT(CONCATENATE($B255,"!P18"))) ->  | U255: =IF(ISERROR(INDIRECT(CONCATENATE($B255,"!P19"))),"",INDIRECT(CONCATENATE($B255,"!P19"))) ->  | V255: =IF(ISERROR(INDIRECT(CONCATENATE($B255,"!P20"))),"",INDIRECT(CONCATENATE($B255,"!P20"))) ->  | W255: =IF(ISERROR(INDIRECT(CONCATENATE($B255,"!P21"))),"",INDIRECT(CONCATENATE($B255,"!P21"))) ->  | Y255: =IF(ISERROR(INDIRECT(CONCATENATE($B255,"!Q18"))),"",INDIRECT(CONCATENATE($B255,"!Q18"))) ->  | Z255: =IF(ISERROR(INDIRECT(CONCATENATE($B255,"!Q19"))),"",INDIRECT(CONCATENATE($B255,"!Q19"))) ->  | AA255: =IF(ISERROR(INDIRECT(CONCATENATE($B255,"!Q20"))),"",INDIRECT(CONCATENATE($B255,"!Q20"))) ->  | AB255: =IF(ISERROR(INDIRECT(CONCATENATE($B255,"!Q21"))),"",INDIRECT(CONCATENATE($B255,"!Q1"))) -> 
E256: =IF(ISERROR(INDIRECT(CONCATENATE($B256,"!M18"))),"",INDIRECT(CONCATENATE($B256,"!M18"))) ->  | F256: =IF(ISERROR(INDIRECT(CONCATENATE($B256,"!M19"))),"",INDIRECT(CONCATENATE($B256,"!M19"))) ->  | G256: =IF(ISERROR(INDIRECT(CONCATENATE($B256,"!M20"))),"",INDIRECT(CONCATENATE($B256,"!M20"))) ->  | H256: =IF(ISERROR(INDIRECT(CONCATENATE($B256,"!M21"))),"",INDIRECT(CONCATENATE($B256,"!M21"))) ->  | J256: =IF(ISERROR(INDIRECT(CONCATENATE($B256,"!N18"))),"",INDIRECT(CONCATENATE($B256,"!N18"))) ->  | K256: =IF(ISERROR(INDIRECT(CONCATENATE($B256,"!N19"))),"",INDIRECT(CONCATENATE($B256,"!N19"))) ->  | L256: =IF(ISERROR(INDIRECT(CONCATENATE($B256,"!N20"))),"",INDIRECT(CONCATENATE($B256,"!N20"))) ->  | M256: =IF(ISERROR(INDIRECT(CONCATENATE($B256,"!N21"))),"",INDIRECT(CONCATENATE($B256,"!N21"))) ->  | O256: =IF(ISERROR(INDIRECT(CONCATENATE($B256,"!O18"))),"",INDIRECT(CONCATENATE($B256,"!O18"))) ->  | P256: =IF(ISERROR(INDIRECT(CONCATENATE($B256,"!O19"))),"",INDIRECT(CONCATENATE($B256,"!O19"))) ->  | Q256: =IF(ISERROR(INDIRECT(CONCATENATE($B256,"!O20"))),"",INDIRECT(CONCATENATE($B256,"!O20"))) ->  | R256: =IF(ISERROR(INDIRECT(CONCATENATE($B256,"!O21"))),"",INDIRECT(CONCATENATE($B256,"!O21"))) ->  | T256: =IF(ISERROR(INDIRECT(CONCATENATE($B256,"!P18"))),"",INDIRECT(CONCATENATE($B256,"!P18"))) ->  | U256: =IF(ISERROR(INDIRECT(CONCATENATE($B256,"!P19"))),"",INDIRECT(CONCATENATE($B256,"!P19"))) ->  | V256: =IF(ISERROR(INDIRECT(CONCATENATE($B256,"!P20"))),"",INDIRECT(CONCATENATE($B256,"!P20"))) ->  | W256: =IF(ISERROR(INDIRECT(CONCATENATE($B256,"!P21"))),"",INDIRECT(CONCATENATE($B256,"!P21"))) ->  | Y256: =IF(ISERROR(INDIRECT(CONCATENATE($B256,"!Q18"))),"",INDIRECT(CONCATENATE($B256,"!Q18"))) ->  | Z256: =IF(ISERROR(INDIRECT(CONCATENATE($B256,"!Q19"))),"",INDIRECT(CONCATENATE($B256,"!Q19"))) ->  | AA256: =IF(ISERROR(INDIRECT(CONCATENATE($B256,"!Q20"))),"",INDIRECT(CONCATENATE($B256,"!Q20"))) ->  | AB256: =IF(ISERROR(INDIRECT(CONCATENATE($B256,"!Q21"))),"",INDIRECT(CONCATENATE($B256,"!Q1"))) -> 
E257: =IF(ISERROR(INDIRECT(CONCATENATE($B257,"!M18"))),"",INDIRECT(CONCATENATE($B257,"!M18"))) ->  | F257: =IF(ISERROR(INDIRECT(CONCATENATE($B257,"!M19"))),"",INDIRECT(CONCATENATE($B257,"!M19"))) ->  | G257: =IF(ISERROR(INDIRECT(CONCATENATE($B257,"!M20"))),"",INDIRECT(CONCATENATE($B257,"!M20"))) ->  | H257: =IF(ISERROR(INDIRECT(CONCATENATE($B257,"!M21"))),"",INDIRECT(CONCATENATE($B257,"!M21"))) ->  | J257: =IF(ISERROR(INDIRECT(CONCATENATE($B257,"!N18"))),"",INDIRECT(CONCATENATE($B257,"!N18"))) ->  | K257: =IF(ISERROR(INDIRECT(CONCATENATE($B257,"!N19"))),"",INDIRECT(CONCATENATE($B257,"!N19"))) ->  | L257: =IF(ISERROR(INDIRECT(CONCATENATE($B257,"!N20"))),"",INDIRECT(CONCATENATE($B257,"!N20"))) ->  | M257: =IF(ISERROR(INDIRECT(CONCATENATE($B257,"!N21"))),"",INDIRECT(CONCATENATE($B257,"!N21"))) ->  | O257: =IF(ISERROR(INDIRECT(CONCATENATE($B257,"!O18"))),"",INDIRECT(CONCATENATE($B257,"!O18"))) ->  | P257: =IF(ISERROR(INDIRECT(CONCATENATE($B257,"!O19"))),"",INDIRECT(CONCATENATE($B257,"!O19"))) ->  | Q257: =IF(ISERROR(INDIRECT(CONCATENATE($B257,"!O20"))),"",INDIRECT(CONCATENATE($B257,"!O20"))) ->  | R257: =IF(ISERROR(INDIRECT(CONCATENATE($B257,"!O21"))),"",INDIRECT(CONCATENATE($B257,"!O21"))) ->  | T257: =IF(ISERROR(INDIRECT(CONCATENATE($B257,"!P18"))),"",INDIRECT(CONCATENATE($B257,"!P18"))) ->  | U257: =IF(ISERROR(INDIRECT(CONCATENATE($B257,"!P19"))),"",INDIRECT(CONCATENATE($B257,"!P19"))) ->  | V257: =IF(ISERROR(INDIRECT(CONCATENATE($B257,"!P20"))),"",INDIRECT(CONCATENATE($B257,"!P20"))) ->  | W257: =IF(ISERROR(INDIRECT(CONCATENATE($B257,"!P21"))),"",INDIRECT(CONCATENATE($B257,"!P21"))) ->  | Y257: =IF(ISERROR(INDIRECT(CONCATENATE($B257,"!Q18"))),"",INDIRECT(CONCATENATE($B257,"!Q18"))) ->  | Z257: =IF(ISERROR(INDIRECT(CONCATENATE($B257,"!Q19"))),"",INDIRECT(CONCATENATE($B257,"!Q19"))) ->  | AA257: =IF(ISERROR(INDIRECT(CONCATENATE($B257,"!Q20"))),"",INDIRECT(CONCATENATE($B257,"!Q20"))) ->  | AB257: =IF(ISERROR(INDIRECT(CONCATENATE($B257,"!Q21"))),"",INDIRECT(CONCATENATE($B257,"!Q1"))) -> 
A297: RURAL | D297: Poorest | I297: Poor | N297: Middle | S297: Rich | X297: Richest
D298: Improved | E298: Basic | F298: Limited | G298: Unimproved | H298: Surface water | I298: Improved | J298: Basic | K298: Limited | L298: Unimproved | M298: Surface water | N298: Improved | O298: Basic | P298: Limited | Q298: Unimproved | R298: Surface water | S298: Improved | T298: Basic | U298: Limited | V298: Unimproved | W298: Surface water | X298: Improved | Y298: Basic | Z298: Limited | AA298: Unimproved | AB298: Surface water
A299: Forecast period: | C299: 2000 | D299: =IF((D301+H301)>100,D301*100/(D301+H301),D301) -> 19.9752953 | E299: =D299*AVERAGEIF(E305:E316,">0")/100 -> 14.986021 | F299: =D299*(100-AVERAGEIF(E305:E316,">0"))/100 -> 4.9892743 | G299: =100-(E299+F299+H299) -> 50.85348335 | H299: =IF((D301+H301)>100,H301*100/(D301+H301),H301) -> 29.17122135 | I299: =IF((I301+M301)>100,I301*100/(I301+M301),I301) -> 27.05505581 | J299: =I299*AVERAGEIF(J305:J316,">0")/100 -> 19.44174766 | K299: =I299*(100-AVERAGEIF(J305:J316,">0"))/100 -> 7.613308148 | L299: =100-(J299+K299+M299) -> 50.56140704 | M299: =IF((I301+M301)>100,M301*100/(I301+M301),M301) -> 22.38353715 | N299: =IF((N301+R301)>100,N301*100/(N301+R301),N301) -> 26.12065877 | O299: =N299*AVERAGEIF(O305:O316,">0")/100 -> 17.30515013 | P299: =N299*(100-AVERAGEIF(O305:O316,">0"))/100 -> 8.815508644 | Q299: =100-(O299+P299+R299) -> 54.99808363 | R299: =IF((N301+R301)>100,R301*100/(N301+R301),R301) -> 18.8812576 | S299: =IF((S301+W301)>100,S301*100/(S301+W301),S301) -> 22.2401765 | T299: =S299*AVERAGEIF(T305:T316,">0")/100 -> 17.54046885 | U299: =S299*(100-AVERAGEIF(T305:T316,">0"))/100 -> 4.699707649 | V299: =100-(T299+U299+W299) -> 58.26438623 | W299: =IF((S301+W301)>100,W301*100/(S301+W301),W301) -> 19.49543727 | X299: =IF((X301+AB301)>100,X301*100/(X301+AB301),X301) -> 44.37968386 | Y299: =X299*AVERAGEIF(Y305:Y316,">0")/100 -> 33.26944591 | Z299: =X299*(100-AVERAGEIF(Y305:Y316,">0"))/100 -> 11.11023795 | AA299: =100-(Y299+Z299+AB299) -> 44.53235958 | AB299: =IF((X301+AB301)>100,AB301*100/(X301+AB301),AB301) -> 11.08795656
C300: 2020 | D300: =IF((D302+H302)>100,D302*100/(D302+H302),D302) -> 28.06573377 | E300: =D300*AVERAGEIF(E305:E316,">0")/100 -> 21.05569251 | F300: =D300*(100-AVERAGEIF(E305:E316,">0"))/100 -> 7.010041259 | G300: =100-(E300+F300+H300) -> 31.89695673 | H300: =IF((D302+H302)>100,H302*100/(D302+H302),H302) -> 40.0373095 | I300: =IF((I302+M302)>100,I302*100/(I302+M302),I302) -> 45.12188198 | J300: =I300*AVERAGEIF(J305:J316,">0")/100 -> 32.42455863 | K300: =I300*(100-AVERAGEIF(J305:J316,">0"))/100 -> 12.69732334 | L300: =100-(J300+K300+M300) -> 29.68008863 | M300: =IF((I302+M302)>100,M302*100/(I302+M302),M302) -> 25.1980294 | N300: =IF((N302+R302)>100,N302*100/(N302+R302),N302) -> 52.12768984 | O300: =N300*AVERAGEIF(O305:O316,">0")/100 -> 34.53502097 | P300: =N300*(100-AVERAGEIF(O305:O316,">0"))/100 -> 17.59266887 | Q300: =100-(O300+P300+R300) -> 28.03013042 | R300: =IF((N302+R302)>100,R302*100/(N302+R302),R302) -> 19.84217974 | S300: =IF((S302+W302)>100,S302*100/(S302+W302),S302) -> 70.94664297 | T300: =S300*AVERAGEIF(T305:T316,">0")/100 -> 55.95447415 | U300: =S300*(100-AVERAGEIF(T305:T316,">0"))/100 -> 14.99216882 | V300: =100-(T300+U300+W300) -> 17.40162309 | W300: =IF((S302+W302)>100,W302*100/(S302+W302),W302) -> 11.65173395 | X300: =IF((X302+AB302)>100,X302*100/(X302+AB302),X302) -> 90.4866727 | Y300: =X300*AVERAGEIF(Y305:Y316,">0")/100 -> 67.83377441 | Z300: =X300*(100-AVERAGEIF(Y305:Y316,">0"))/100 -> 22.6528983 | AA300: =100-(Y300+Z300+AB300) -> 7.174281943 | AB300: =IF((X302+AB302)>100,AB302*100/(X302+AB302),AB302) -> 2.339045352
A301: Regression period: | C301: =MinRegYear(C299,C305:C316) -> 2003 | D301: =IF(MAX(C305:C316)-MIN(C305:C316)<5,AVERAGEIF(C305:C316,">0",D305:D316), IF(FORECAST($C301,D$305:D$316,$C$305:$C$316)<0,0, IF(FORECAST($C301,D$305:D$316,$C$305:$C$316)>100,100, FORECAST($C301,D$305:D$316,$C$305:$C$316)))) -> 19.9752953 | H301: =IF(MAX(C305:C316)-MIN(C305:C316)<5,AVERAGEIF(C305:C316,">0",H305:H316), IF(FORECAST($C301,H$305:H$316,$C$305:$C$316)<0,0, IF(FORECAST($C301,H$305:H$316,$C$305:$C$316)>100,100, FORECAST($C301,H$305:H$316,$C$305:$C$316)))) -> 29.17122135 | I301: =IF(MAX(C305:C316)-MIN(C305:C316)<5,AVERAGEIF(C305:C316,">0",I305:I316), IF(FORECAST($C301,I$305:I$316,$C$305:$C$316)<0,0, IF(FORECAST($C301,I$305:I$316,$C$305:$C$316)>100,100, FORECAST($C301,I$305:I$316,$C$305:$C$316)))) -> 27.05505581 | M301: =IF(MAX(C305:C316)-MIN(C305:C316)<5,AVERAGEIF(C305:C316,">0",M305:M316), IF(FORECAST($C301,M$305:M$316,$C$305:$C$316)<0,0, IF(FORECAST($C301,M$305:M$316,$C$305:$C$316)>100,100, FORECAST($C301,M$305:M$316,$C$305:$C$316)))) -> 22.38353715 | N301: =IF(MAX(C305:C316)-MIN(C305:C316)<5,AVERAGEIF(C305:C316,">0",N305:N316), IF(FORECAST($C301,N$305:N$316,$C$305:$C$316)<0,0, IF(FORECAST($C301,N$305:N$316,$C$305:$C$316)>100,100, FORECAST($C301,N$305:N$316,$C$305:$C$316)))) -> 26.12065877 | R301: =IF(MAX(C305:C316)-MIN(C305:C316)<5,AVERAGEIF(C305:C316,">0",R305:R316), IF(FORECAST($C301,R$305:R$316,$C$305:$C$316)<0,0, IF(FORECAST($C301,R$305:R$316,$C$305:$C$316)>100,100, FORECAST($C301,R$305:R$316,$C$305:$C$316)))) -> 18.8812576 | S301: =IF(MAX(C305:C316)-MIN(C305:C316)<5,AVERAGEIF(C305:C316,">0",S305:S316), IF(FORECAST($C301,S$305:S$316,$C$305:$C$316)<0,0, IF(FORECAST($C301,S$305:S$316,$C$305:$C$316)>100,100, FORECAST($C301,S$305:S$316,$C$305:$C$316)))) -> 22.2401765 | W301: =IF(MAX(C305:C316)-MIN(C305:C316)<5,AVERAGEIF(C305:C316,">0",W305:W316), IF(FORECAST($C301,W$305:W$316,$C$305:$C$316)<0,0, IF(FORECAST($C301,W$305:W$316,$C$305:$C$316)>100,100, FORECAST($C301,W$305:W$316,$C$305:$C$316)))) -> 19.49543727 | X301: =IF(MAX(C305:C316)-MIN(C305:C316)<5,AVERAGEIF(C305:C316,">0",X305:X316), IF(FORECAST($C301,X$305:X$316,$C$305:$C$316)<0,0, IF(FORECAST($C301,X$305:X$316,$C$305:$C$316)>100,100, FORECAST($C301,X$305:X$316,$C$305:$C$316)))) -> 44.37968386 | AB301: =IF(MAX(C305:C316)-MIN(C305:C316)<5,AVERAGEIF(C305:C316,">0",AB305:AB316), IF(FORECAST($C301,AB$305:AB$316,$C$305:$C$316)<0,0, IF(FORECAST($C301,AB$305:AB$316,$C$305:$C$316)>100,100, FORECAST($C301,AB$305:AB$316,$C$305:$C$316)))) -> 11.08795656
C302: =MaxRegYear(C300,C305:C316) -> 2017 | D302: =IF(MAX(C305:C316)-MIN(C305:C316)<5,AVERAGEIF(C305:C316,">0",D305:D316), IF(FORECAST($C302,D$305:D$316,$C$305:$C$316)<0,0, IF(FORECAST($C302,D$305:D$316,$C$305:$C$316)>100,100, FORECAST($C302,D$305:D$316,$C$305:$C$316)))) -> 28.06573377 | H302: =IF(MAX(C305:C316)-MIN(C305:C316)<5,AVERAGEIF(C305:C316,">0",H305:H316), IF(FORECAST($C302,H$305:H$316,$C$305:$C$316)<0,0, IF(FORECAST($C302,H$305:H$316,$C$305:$C$316)>100,100, FORECAST($C302,H$305:H$316,$C$305:$C$316)))) -> 40.0373095 | I302: =IF(MAX(C305:C316)-MIN(C305:C316)<5,AVERAGEIF(C305:C316,">0",I305:I316), IF(FORECAST($C302,I$305:I$316,$C$305:$C$316)<0,0, IF(FORECAST($C302,I$305:I$316,$C$305:$C$316)>100,100, FORECAST($C302,I$305:I$316,$C$305:$C$316)))) -> 45.12188198 | M302: =IF(MAX(C305:C316)-MIN(C305:C316)<5,AVERAGEIF(C305:C316,">0",M305:M316), IF(FORECAST($C302,M$305:M$316,$C$305:$C$316)<0,0, IF(FORECAST($C302,M$305:M$316,$C$305:$C$316)>100,100, FORECAST($C302,M$305:M$316,$C$305:$C$316)))) -> 25.1980294 | N302: =IF(MAX(C305:C316)-MIN(C305:C316)<5,AVERAGEIF(C305:C316,">0",N305:N316), IF(FORECAST($C302,N$305:N$316,$C$305:$C$316)<0,0, IF(FORECAST($C302,N$305:N$316,$C$305:$C$316)>100,100, FORECAST($C302,N$305:N$316,$C$305:$C$316)))) -> 52.12768984 | R302: =IF(MAX(C305:C316)-MIN(C305:C316)<5,AVERAGEIF(C305:C316,">0",R305:R316), IF(FORECAST($C302,R$305:R$316,$C$305:$C$316)<0,0, IF(FORECAST($C302,R$305:R$316,$C$305:$C$316)>100,100, FORECAST($C302,R$305:R$316,$C$305:$C$316)))) -> 19.84217974 | S302: =IF(MAX(C305:C316)-MIN(C305:C316)<5,AVERAGEIF(C305:C316,">0",S305:S316), IF(FORECAST($C302,S$305:S$316,$C$305:$C$316)<0,0, IF(FORECAST($C302,S$305:S$316,$C$305:$C$316)>100,100, FORECAST($C302,S$305:S$316,$C$305:$C$316)))) -> 70.94664297 | W302: =IF(MAX(C305:C316)-MIN(C305:C316)<5,AVERAGEIF(C305:C316,">0",W305:W316), IF(FORECAST($C302,W$305:W$316,$C$305:$C$316)<0,0, IF(FORECAST($C302,W$305:W$316,$C$305:$C$316)>100,100, FORECAST($C302,W$305:W$316,$C$305:$C$316)))) -> 11.65173395 | X302: =IF(MAX(C305:C316)-MIN(C305:C316)<5,AVERAGEIF(C305:C316,">0",X305:X316), IF(FORECAST($C302,X$305:X$316,$C$305:$C$316)<0,0, IF(FORECAST($C302,X$305:X$316,$C$305:$C$316)>100,100, FORECAST($C302,X$305:X$316,$C$305:$C$316)))) -> 90.4866727 | AB302: =IF(MAX(C305:C316)-MIN(C305:C316)<5,AVERAGEIF(C305:C316,">0",AB305:AB316), IF(FORECAST($C302,AB$305:AB$316,$C$305:$C$316)<0,0, IF(FORECAST($C302,AB$305:AB$316,$C$305:$C$316)>100,100, FORECAST($C302,AB$305:AB$316,$C$305:$C$316)))) -> 2.339045352
B304: Survey | C304: Year | D304: Improved | E304: % Improved < = 30min | H304: Surface water | I304: Improved | J304: % Improved < = 30min | M304: Surface water | N304: Improved | O304: % Improved < = 30min | R304: Surface water | S304: Improved | T304: % Improved < = 30min | W304: Surface water | X304: Improved | Y304: % Improved < = 30min | AB304: Surface water
B305: WHS03 | D305: =IF(ISERROR(INDIRECT(CONCATENATE($B305,"!M16"))),"",INDIRECT(CONCATENATE($B305,"!M16"))) -> 41.43611716 | E305: =IF(ISERROR(INDIRECT(CONCATENATE($B305,"!M23"))),"",INDIRECT(CONCATENATE($B305,"!M23"))) -> 66.26596166 | H305: =IF(ISERROR(INDIRECT(CONCATENATE($B305,"!M21"))),"",INDIRECT(CONCATENATE($B305,"!M21"))) -> 0 | I305: =IF(ISERROR(INDIRECT(CONCATENATE($B305,"!N16"))),"",INDIRECT(CONCATENATE($B305,"!N16"))) -> 28.39511258 | J305: =IF(ISERROR(INDIRECT(CONCATENATE($B305,"!N23"))),"",INDIRECT(CONCATENATE($B305,"!N23"))) -> 54.90240211 | M305: =IF(ISERROR(INDIRECT(CONCATENATE($B305,"!N21"))),"",INDIRECT(CONCATENATE($B305,"!N21"))) -> 0 | N305: =IF(ISERROR(INDIRECT(CONCATENATE($B305,"!O16"))),"",INDIRECT(CONCATENATE($B305,"!O16"))) -> 30.41679454 | O305: =IF(ISERROR(INDIRECT(CONCATENATE($B305,"!O23"))),"",INDIRECT(CONCATENATE($B305,"!O23"))) -> 57.33352208 | R305: =IF(ISERROR(INDIRECT(CONCATENATE($B305,"!O21"))),"",INDIRECT(CONCATENATE($B305,"!O21"))) -> 0 | S305: =IF(ISERROR(INDIRECT(CONCATENATE($B305,"!P16"))),"",INDIRECT(CONCATENATE($B305,"!P16"))) -> 22.96826555 | T305: =IF(ISERROR(INDIRECT(CONCATENATE($B305,"!P23"))),"",INDIRECT(CONCATENATE($B305,"!P23"))) -> 82.31687531 | W305: =IF(ISERROR(INDIRECT(CONCATENATE($B305,"!P21"))),"",INDIRECT(CONCATENATE($B305,"!P21"))) -> 0.3324685189 | X305: =IF(ISERROR(INDIRECT(CONCATENATE($B305,"!Q16"))),"",INDIRECT(CONCATENATE($B305,"!Q16"))) -> 54.17238192 | Y305: =IF(ISERROR(INDIRECT(CONCATENATE($B305,"!Q23"))),"",INDIRECT(CONCATENATE($B305,"!Q23"))) -> 59.49460445 | AB305: =IF(ISERROR(INDIRECT(CONCATENATE($B305,"!Q221"))),"",INDIRECT(CONCATENATE($B305,"!Q21"))) -> 0.1685952279
B306: DHS05 | C306: 2005 | D306: 27.03660336 | E306: 75.19593143 | H306: 24.72527542 | I306: 32.62364124 | J306: 81.67665855 | M306: 22.4345655 | N306: 31.11425085 | O306: 63.14877804 | R306: 20.34581475 | S306: 28.71071894 | T306: 83.04754791 | W306: 20.37989614 | X306: 52.04104068 | Y306: 80.62331417 | AB306: 10.48944756
B307: AIS09 | C307: 2009 | D307: 13.43821993 | E307: N/A | H307: 41.90347187 | I307: 34.00335291 | J307: N/A | M307: 22.62124485 | N307: 38.65575824 | O307: N/A | R307: 16.63044042 | S307: 47.40265494 | T307: N/A | W307: 12.01873188 | X307: 63.65869389 | Y307: N/A | AB307: 5.934692331
B308: DHS12 | C308: 2012 | D308: 25.5 | E308: 79.1 | H308: 40 | I308: 30.3 | J308: 72.1 | M308: 27.3 | N308: 35.8 | O308: 68.7 | R308: 20.4 | S308: 46.6 | T308: 71.5 | W308: 16 | X308: 71.4 | Y308: 78.4 | AB308: 6.1
B309: MICS15 | C309: 2015 | D309: 30.68512333 | E309: 79.52920995 | H309: 32.56446356 | I309: 48.71736902 | J309: 78.76071103 | M309: 23.00835789 | N309: 52.78433321 | O309: 75.82097225 | R309: 20.13925681 | S309: 67.13929838 | T309: 78.60913162 | W309: 13.33544989 | X309: 85.92633491 | Y309: 81.34402738 | AB309: 3.704941701
B318: =CONCATENATE("Rural use of drinking water sources, ",C299,"–",C300) -> Rural use of drinking water sources, 2000–2020 | S318: Data points used for regression

Sheet Sanitation
B4: Summary of trends in use of sanitation facilities by wealth quintile (%)
B5: =IF(ISERROR(INDIRECT(CONCATENATE($B105,"!A2"))),"",INDIRECT(CONCATENATE($B105,"!A2"))) -> Congo
B7: =B118 -> National use of sanitation facilities, 2000–2020 | J7: =B218 -> Urban use of sanitation facilities, 2000–2020 | R7: =B318 -> Rural use of sanitation facilities, 2000–2020
B31: =IF(ISERROR(INDIRECT(CONCATENATE($B105,"!A2"))),"",INDIRECT(CONCATENATE($B105,"!A2"))) -> Congo | F31: Poorest | J31: Poor | N31: Middle | R31: Rich | V31: Richest
F32: Basic | G32: Limited | H32: Unimproved | I32: Open defecation | J32: Basic | K32: Limited | L32: Unimproved | M32: Open defecation | N32: Basic | O32: Limited | P32: Unimproved | Q32: Open defecation | R32: Basic | S32: Limited | T32: Unimproved | U32: Open defecation | V32: Basic | W32: Limited | X32: Unimproved | Y32: Open defecation
B33: NATIONAL | D33: Estimate | E33: =C99 -> 2000 | F33: =E99 -> 2.136400951 | G33: =F99 -> 1.92985301 | H33: 75.61865465 | I33: 20.31509139 | J33: =J99 -> 7.209884535 | K33: =K99 -> 11.52680127 | L33: 66.81086633 | M33: 14.45244786 | N33: =O99 -> 10.69261612 | O33: =P99 -> 23.5442175 | P33: 59.44740245 | Q33: 6.315763937 | R33: =T99 -> 16.64292115 | S33: =U99 -> 35.45130716 | T33: 45.3422847 | U33: 2.563486987 | V33: =Y99 -> 39.23274213 | W33: =Z99 -> 26.6455236 | X33: 33.00172225 | Y33: 1.120012017
E34: =C100 -> 2020 | F34: =E100 -> 2.65442397 | G34: 2.397793395 | H34: 61.5810663 | I34: 33.36671634 | J34: =J100 -> 13.60477598 | K34: 21.75063254 | L34: 58.48857067 | M34: 6.156020811 | N34: =O100 -> 19.4135386 | O34: 42.74693583 | P34: 37.26649832 | Q34: 0.5730272518 | R34: =T100 -> 25.64511757 | S34: 54.62700519 | T34: 19.4498353 | U34: 0.2780419421 | V34: =Y100 -> 54.44869334 | W34: 36.9796722 | X34: 8.173273799 | Y34: 0.3983606549
B36: URBAN | D36: Estimate | E36: =C199 -> 2000 | F36: =E199 -> 11.5875921 | G36: =F199 -> 19.02926919 | H36: 60.12431651 | I36: 9.258822202 | J36: =J199 -> 10.29686663 | K36: =K199 -> 24.89477272 | L36: 62.43128644 | M36: 2.377074211 | N36: =O199 -> 15.72211478 | O36: =P199 -> 34.30890656 | P36: 47.11020643 | Q36: 2.858772236 | R36: =T199 -> 21.64023078 | S36: =U199 -> 37.99996813 | T36: 39.00894936 | U36: 1.350851719 | V36: =Y199 -> 47.09398089 | W36: =Z199 -> 26.29914658 | X36: 25.51660352 | Y36: 1.09026901
E37: =C200 -> 2020 | F37: =E200 -> 17.6946062 | G37: 29.05827385 | H37: 50.84920816 | I37: 2.397911786 | J37: =J200 -> 18.94155828 | K37: 45.79507588 | L37: 33.70275234 | M37: 1.560613494 | N37: =O200 -> 24.45783937 | O37: 53.37206459 | P37: 21.45576675 | Q37: 0.714329295 | R37: =T200 -> 30.88056826 | S37: 54.2258824 | T37: 14.20609649 | U37: 0.6874528487 | V37: =Y200 -> 61.16420229 | W37: 34.15651621 | X37: 4.679281504 | Y37: 0
B39: RURAL | D39: Estimate | E39: =C299 -> 2000 | F39: =E299 -> 1.135459388 | G39: =F299 -> 0.8819509624 | H39: 73.36705347 | I39: 24.61553618 | J39: =J299 -> 1.87688984 | K39: =K299 -> 1.615619127 | L39: 80.90911146 | M39: 15.59837958 | N39: =O299 -> 4.195922651 | O39: =P299 -> 2.892249584 | P39: 81.44910306 | Q39: 11.4627247 | R39: =T299 -> 5.040255606 | S39: =U299 -> 6.091547884 | T39: 73.79669304 | U39: 15.07150347 | V39: =Y299 -> 20.41620875 | W39: =Z299 -> 19.41110904 | X39: 55.27617469 | Y39: 4.896507522
E40: =C300 -> 2020 | F40: =E300 -> 0.9570826774 | G40: 0.7433995413 | H40: 48.9966511 | I40: 49.30286668 | J40: =J300 -> 2.83800673 | K40: 2.442944631 | L40: 62.73985714 | M40: 31.9791915 | N40: =O300 -> 4.595501865 | O40: 3.167679546 | P40: 69.48599936 | Q40: 22.75081923 | R40: =T300 -> 7.727281809 | S40: 9.339031753 | T40: 70.12401234 | U40: 12.8096741 | V40: =Y300 -> 22.44845075 | W40: 21.3433028 | X40: 51.56119156 | Y40: 4.647054896
A97: NATIONAL | D97: Poorest | I97: Poor | N97: Middle | S97: Rich | X97: Richest
D98: Improved | E98: Basic | F98: Limited | G98: Unimproved | H98: Open defecation | I98: Improved | J98: Basic | K98: Limited | L98: Unimproved | M98: Open defecation | N98: Improved | O98: Basic | P98: Limited | Q98: Unimproved | R98: Open defecation | S98: Improved | T98: Basic | U98: Limited | V98: Unimproved | W98: Open defecation | X98: Improved | Y98: Basic | Z98: Limited | AA98: Unimproved | AB98: Open defecation
A99: Forecast period: | C99: 2000 | D99: =IF((D101+H101)>100,D101*100/(D101+H101),D101) -> 4.066253961 | E99: =D99*AVERAGEIF(E105:E116,">0")/100 -> 2.136400951 | F99: =D99*(100-AVERAGEIF(E105:E116,">0"))/100 -> 1.92985301 | G99: =100-(E99+F99+H99) -> 75.61865465 | H99: =IF((D101+H101)>100,H101*100/(D101+H101),H101) -> 20.31509139 | I99: =IF((I101+M101)>100,I101*100/(I101+M101),I101) -> 18.73668581 | J99: =I99*AVERAGEIF(J105:J116,">0")/100 -> 7.209884535 | K99: =I99*(100-AVERAGEIF(J105:J116,">0"))/100 -> 11.52680127 | L99: =100-(J99+K99+M99) -> 66.81086633 | M99: =IF((I101+M101)>100,M101*100/(I101+M101),M101) -> 14.45244786 | N99: =IF((N101+R101)>100,N101*100/(N101+R101),N101) -> 34.23683362 | O99: =N99*AVERAGEIF(O105:O116,">0")/100 -> 10.69261612 | P99: =N99*(100-AVERAGEIF(O105:O116,">0"))/100 -> 23.5442175 | Q99: =100-(O99+P99+R99) -> 59.44740245 | R99: =IF((N101+R101)>100,R101*100/(N101+R101),R101) -> 6.315763937 | S99: =IF((S101+W101)>100,S101*100/(S101+W101),S101) -> 52.09422831 | T99: =S99*AVERAGEIF(T105:T116,">0")/100 -> 16.64292115 | U99: =S99*(100-AVERAGEIF(T105:T116,">0"))/100 -> 35.45130716 | V99: =100-(T99+U99+W99) -> 45.3422847 | W99: =IF((S101+W101)>100,W101*100/(S101+W101),W101) -> 2.563486987 | X99: =IF((X101+AB101)>100,X101*100/(X101+AB101),X101) -> 65.87826573 | Y99: =X99*AVERAGEIF(Y105:Y116,">0")/100 -> 39.23274213 | Z99: =X99*(100-AVERAGEIF(Y105:Y116,">0"))/100 -> 26.6455236 | AA99: =100-(Y99+Z99+AB99) -> 33.00172225 | AB99: =IF((X101+AB101)>100,AB101*100/(X101+AB101),AB101) -> 1.120012017
C100: 2020 | D100: =IF((D102+H102)>100,D102*100/(D102+H102),D102) -> 5.052217365 | E100: =D100*AVERAGEIF(E105:E116,">0")/100 -> 2.65442397 | F100: =D100*(100-AVERAGEIF(E105:E116,">0"))/100 -> 2.397793395 | G100: =100-(E100+F100+H100) -> 61.5810663 | H100: =IF((D102+H102)>100,H102*100/(D102+H102),H102) -> 33.36671634 | I100: =IF((I102+M102)>100,I102*100/(I102+M102),I102) -> 35.35540852 | J100: =I100*AVERAGEIF(J105:J116,">0")/100 -> 13.60477598 | K100: =I100*(100-AVERAGEIF(J105:J116,">0"))/100 -> 21.75063254 | L100: =100-(J100+K100+M100) -> 58.48857067 | M100: =IF((I102+M102)>100,M102*100/(I102+M102),M102) -> 6.156020811 | N100: =IF((N102+R102)>100,N102*100/(N102+R102),N102) -> 62.16047443 | O100: =N100*AVERAGEIF(O105:O116,">0")/100 -> 19.4135386 | P100: =N100*(100-AVERAGEIF(O105:O116,">0"))/100 -> 42.74693583 | Q100: =100-(O100+P100+R100) -> 37.26649832 | R100: =IF((N102+R102)>100,R102*100/(N102+R102),R102) -> 0.5730272518 | S100: =IF((S102+W102)>100,S102*100/(S102+W102),S102) -> 80.27212276 | T100: =S100*AVERAGEIF(T105:T116,">0")/100 -> 25.64511757 | U100: =S100*(100-AVERAGEIF(T105:T116,">0"))/100 -> 54.62700519 | V100: =100-(T100+U100+W100) -> 19.4498353 | W100: =IF((S102+W102)>100,W102*100/(S102+W102),W102) -> 0.2780419421 | X100: =IF((X102+AB102)>100,X102*100/(X102+AB102),X102) -> 91.42836555 | Y100: =X100*AVERAGEIF(Y105:Y116,">0")/100 -> 54.44869334 | Z100: =X100*(100-AVERAGEIF(Y105:Y116,">0"))/100 -> 36.9796722 | AA100: =100-(Y100+Z100+AB100) -> 8.173273799 | AB100: =IF((X102+AB102)>100,AB102*100/(X102+AB102),AB102) -> 0.3983606549
A101: Regression period: | C101: =MinRegYear(C99,C105:C116) -> 2003 | D101: =IF(MAX(C105:C116)-MIN(C105:C116)<5,AVERAGEIF(C105:C116,">0",D105:D116), IF(FORECAST($C101,D$105:D$116,$C$105:$C$116)<0,0, IF(FORECAST($C101,D$105:D$116,$C$105:$C$116)>100,100, FORECAST($C101,D$105:D$116,$C$105:$C$116)))) -> 4.066253961 | H101: =IF(MAX(C105:C116)-MIN(C105:C116)<5,AVERAGEIF(C105:C116,">0",H105:H116), IF(FORECAST($C101,H$105:H$116,$C$105:$C$116)<0,0, IF(FORECAST($C101,H$105:H$116,$C$105:$C$116)>100,100, FORECAST($C101,H$105:H$116,$C$105:$C$116)))) -> 20.31509139 | I101: =IF(MAX(C105:C116)-MIN(C105:C116)<5,AVERAGEIF(C105:C116,">0",I105:I116), IF(FORECAST($C101,I$105:I$116,$C$105:$C$116)<0,0, IF(FORECAST($C101,I$105:I$116,$C$105:$C$116)>100,100, FORECAST($C101,I$105:I$116,$C$105:$C$116)))) -> 18.73668581 | M101: =IF(MAX(C105:C116)-MIN(C105:C116)<5,AVERAGEIF(C105:C116,">0",M105:M116), IF(FORECAST($C101,M$105:M$116,$C$105:$C$116)<0,0, IF(FORECAST($C101,M$105:M$116,$C$105:$C$116)>100,100, FORECAST($C101,M$105:M$116,$C$105:$C$116)))) -> 14.45244786 | N101: =IF(MAX(C105:C116)-MIN(C105:C116)<5,AVERAGEIF(C105:C116,">0",N105:N116), IF(FORECAST($C101,N$105:N$116,$C$105:$C$116)<0,0, IF(FORECAST($C101,N$105:N$116,$C$105:$C$116)>100,100, FORECAST($C101,N$105:N$116,$C$105:$C$116)))) -> 34.23683362 | R101: =IF(MAX(C105:C116)-MIN(C105:C116)<5,AVERAGEIF(C105:C116,">0",R105:R116), IF(FORECAST($C101,R$105:R$116,$C$105:$C$116)<0,0, IF(FORECAST($C101,R$105:R$116,$C$105:$C$116)>100,100, FORECAST($C101,R$105:R$116,$C$105:$C$116)))) -> 6.315763937 | S101: =IF(MAX(C105:C116)-MIN(C105:C116)<5,AVERAGEIF(C105:C116,">0",S105:S116), IF(FORECAST($C101,S$105:S$116,$C$105:$C$116)<0,0, IF(FORECAST($C101,S$105:S$116,$C$105:$C$116)>100,100, FORECAST($C101,S$105:S$116,$C$105:$C$116)))) -> 52.09422831 | W101: =IF(MAX(C105:C116)-MIN(C105:C116)<5,AVERAGEIF(C105:C116,">0",W105:W116), IF(FORECAST($C101,W$105:W$116,$C$105:$C$116)<0,0, IF(FORECAST($C101,W$105:W$116,$C$105:$C$116)>100,100, FORECAST($C101,W$105:W$116,$C$105:$C$116)))) -> 2.563486987 | X101: =IF(MAX(C105:C116)-MIN(C105:C116)<5,AVERAGEIF(C105:C116,">0",X105:X116), IF(FORECAST($C101,X$105:X$116,$C$105:$C$116)<0,0, IF(FORECAST($C101,X$105:X$116,$C$105:$C$116)>100,100, FORECAST($C101,X$105:X$116,$C$105:$C$116)))) -> 65.87826573 | AB101: =IF(MAX(C105:C116)-MIN(C105:C116)<5,AVERAGEIF(C105:C116,">0",AB105:AB116), IF(FORECAST($C101,AB$105:AB$116,$C$105:$C$116)<0,0, IF(FORECAST($C101,AB$105:AB$116,$C$105:$C$116)>100,100, FORECAST($C101,AB$105:AB$116,$C$105:$C$116)))) -> 1.120012017
C102: =MaxRegYear(C100,C105:C116) -> 2017 | D102: =IF(MAX(C105:C116)-MIN(C105:C116)<5,AVERAGEIF(C105:C116,">0",D105:D116), IF(FORECAST($C102,D$105:D$116,$C$105:$C$116)<0,0, IF(FORECAST($C102,D$105:D$116,$C$105:$C$116)>100,100, FORECAST($C102,D$105:D$116,$C$105:$C$116)))) -> 5.052217365 | H102: =IF(MAX(C105:C116)-MIN(C105:C116)<5,AVERAGEIF(C105:C116,">0",H105:H116), IF(FORECAST($C102,H$105:H$116,$C$105:$C$116)<0,0, IF(FORECAST($C102,H$105:H$116,$C$105:$C$116)>100,100, FORECAST($C102,H$105:H$116,$C$105:$C$116)))) -> 33.36671634 | I102: =IF(MAX(C105:C116)-MIN(C105:C116)<5,AVERAGEIF(C105:C116,">0",I105:I116), IF(FORECAST($C102,I$105:I$116,$C$105:$C$116)<0,0, IF(FORECAST($C102,I$105:I$116,$C$105:$C$116)>100,100, FORECAST($C102,I$105:I$116,$C$105:$C$116)))) -> 35.35540852 | M102: =IF(MAX(C105:C116)-MIN(C105:C116)<5,AVERAGEIF(C105:C116,">0",M105:M116), IF(FORECAST($C102,M$105:M$116,$C$105:$C$116)<0,0, IF(FORECAST($C102,M$105:M$116,$C$105:$C$116)>100,100, FORECAST($C102,M$105:M$116,$C$105:$C$116)))) -> 6.156020811 | N102: =IF(MAX(C105:C116)-MIN(C105:C116)<5,AVERAGEIF(C105:C116,">0",N105:N116), IF(FORECAST($C102,N$105:N$116,$C$105:$C$116)<0,0, IF(FORECAST($C102,N$105:N$116,$C$105:$C$116)>100,100, FORECAST($C102,N$105:N$116,$C$105:$C$116)))) -> 62.16047443 | R102: =IF(MAX(C105:C116)-MIN(C105:C116)<5,AVERAGEIF(C105:C116,">0",R105:R116), IF(FORECAST($C102,R$105:R$116,$C$105:$C$116)<0,0, IF(FORECAST($C102,R$105:R$116,$C$105:$C$116)>100,100, FORECAST($C102,R$105:R$116,$C$105:$C$116)))) -> 0.5730272518 | S102: =IF(MAX(C105:C116)-MIN(C105:C116)<5,AVERAGEIF(C105:C116,">0",S105:S116), IF(FORECAST($C102,S$105:S$116,$C$105:$C$116)<0,0, IF(FORECAST($C102,S$105:S$116,$C$105:$C$116)>100,100, FORECAST($C102,S$105:S$116,$C$105:$C$116)))) -> 80.27212276 | W102: =IF(MAX(C105:C116)-MIN(C105:C116)<5,AVERAGEIF(C105:C116,">0",W105:W116), IF(FORECAST($C102,W$105:W$116,$C$105:$C$116)<0,0, IF(FORECAST($C102,W$105:W$116,$C$105:$C$116)>100,100, FORECAST($C102,W$105:W$116,$C$105:$C$116)))) -> 0.2780419421 | X102: =IF(MAX(C105:C116)-MIN(C105:C116)<5,AVERAGEIF(C105:C116,">0",X105:X116), IF(FORECAST($C102,X$105:X$116,$C$105:$C$116)<0,0, IF(FORECAST($C102,X$105:X$116,$C$105:$C$116)>100,100, FORECAST($C102,X$105:X$116,$C$105:$C$116)))) -> 91.42836555 | AB102: =IF(MAX(C105:C116)-MIN(C105:C116)<5,AVERAGEIF(C105:C116,">0",AB105:AB116), IF(FORECAST($C102,AB$105:AB$116,$C$105:$C$116)<0,0, IF(FORECAST($C102,AB$105:AB$116,$C$105:$C$116)>100,100, FORECAST($C102,AB$105:AB$116,$C$105:$C$116)))) -> 0.3983606549
B104: Survey | C104: Year | D104: Improved | E104: Not shared | H104: Open defecation | I104: Improved | J104: Not shared | M104: Open defecation | N104: Improved | O104: Not shared | R104: Open defecation | S104: Improved | T104: Not shared | W104: Open defecation | X104: Improved | Y104: Not shared | AB104: Open defecation
B105: WHS03 | D105: =IF(ISERROR(INDIRECT(CONCATENATE($B105,"!C122"))),"",INDIRECT(CONCATENATE($B105,"!C122"))) -> 45.57950647 | E105: =IF(ISERROR(INDIRECT(CONCATENATE($B105,"!C129"))),"",INDIRECT(CONCATENATE($B105,"!C129"))) -> 63.80006061 | H105: =IF(ISERROR(INDIRECT(CONCATENATE($B105,"!C127"))),"",INDIRECT(CONCATENATE($B105,"!C127"))) -> 8.326910612 | I105: =IF(ISERROR(INDIRECT(CONCATENATE($B105,"!D122"))),"",INDIRECT(CONCATENATE($B105,"!D122"))) -> 48.97146594 | J105: =IF(ISERROR(INDIRECT(CONCATENATE($B105,"!D129"))),"",INDIRECT(CONCATENATE($B105,"!D129"))) -> 48.36308645 | M105: =IF(ISERROR(INDIRECT(CONCATENATE($B105,"!D127"))),"",INDIRECT(CONCATENATE($B105,"!D127"))) -> 2.638548566 | N105: =IF(ISERROR(INDIRECT(CONCATENATE($B105,"!E122"))),"",INDIRECT(CONCATENATE($B105,"!E122"))) -> 44.21140941 | O105: =IF(ISERROR(INDIRECT(CONCATENATE($B105,"!E129"))),"",INDIRECT(CONCATENATE($B105,"!E129"))) -> 49.49115505 | R105: =IF(ISERROR(INDIRECT(CONCATENATE($B105,"!E127"))),"",INDIRECT(CONCATENATE($B105,"!E127"))) -> 1.450405379 | S105: =IF(ISERROR(INDIRECT(CONCATENATE($B105,"!F122"))),"",INDIRECT(CONCATENATE($B105,"!F122"))) -> 34.07232977 | T105: =IF(ISERROR(INDIRECT(CONCATENATE($B105,"!F129"))),"",INDIRECT(CONCATENATE($B105,"!F129"))) -> 42.31004986 | W105: =IF(ISERROR(INDIRECT(CONCATENATE($B105,"!F127"))),"",INDIRECT(CONCATENATE($B105,"!F127"))) -> 0.2772707746 | X105: =IF(ISERROR(INDIRECT(CONCATENATE($B105,"!G122"))),"",INDIRECT(CONCATENATE($B105,"!G122"))) -> 50.91568664 | Y105: =IF(ISERROR(INDIRECT(CONCATENATE($B105,"!G129"))),"",INDIRECT(CONCATENATE($B105,"!G129"))) -> 67.86811474 | AB105: =IF(ISERROR(INDIRECT(CONCATENATE($B105,"!G2127"))),"",INDIRECT(CONCATENATE($B105,"!G127"))) -> 0.6915078933
B106: DHS05 | C106: 2005 | D106: 4.432746353 | E106: N/A | H106: 22.66167826 | I106: 22.89565078 | J106: N/A | M106: 15.40231088 | N106: 41.96803364 | O106: N/A | R106: 6.557453007 | S106: 60.99359215 | T106: N/A | W106: 1.570748687 | X106: 73.38313995 | Y106: N/A | AB106: 0.875779365
B107: AIS09 | C107: 2009 | D107: 4.382457507 | E107: N/A | H107: 25.59379027 | I107: 25.30826605 | J107: N/A | M107: 7.397430877 | N107: 44.04461942 | O107: N/A | R107: 2.221278068 | S107: 59.53329343 | T107: N/A | W107: 2.75268372 | X107: 71.99062934 | Y107: N/A | AB107: 1.204420747
B108: DHS12 | C108: 2012 | D108: 4.160657052 | E108: 43.64196741 | H108: 27.72823433 | I108: 24.5720703 | J108: 29.10297843 | M108: 9.000951629 | N108: 44.03302827 | O108: 21.50843947 | R108: 2.350363894 | S108: 63.2364386 | T108: 22.32765708 | W108: 0.9777464543 | X108: 79.12915502 | Y108: 44.57015782 | AB108: 0.3391828479
B109: MICS15 | C109: 2015 | D109: 5.331507697 | E109: 50.17731681 | H109: 32.31217152 | I109: 36.59525314 | J109: 37.97406058 | M109: 8.823642022 | N109: 64.74348052 | O109: 22.69437472 | R109: 2.23829193 | S109: 82.98208471 | T109: 31.20547008 | W109: 0.2186329217 | X109: 91.93534537 | Y109: 66.22190479 | AB109: 0.565815858
B118: =CONCATENATE("National use of sanitation facilities, ",C99,"–",C100) -> National use of sanitation facilities, 2000–2020 | S118: Data points used for regression
A197: URBAN | D197: Poorest | I197: Poor | N197: Middle | S197: Rich | X197: Richest
D198: Improved | E198: Basic | F198: Limited | G198: Unimproved | H198: Open defecation | I198: Improved | J198: Basic | K198: Limited | L198: Unimproved | M198: Open defecation | N198: Improved | O198: Basic | P198: Limited | Q198: Unimproved | R198: Open defecation | S198: Improved | T198: Basic | U198: Limited | V198: Unimproved | W198: Open defecation | X198: Improved | Y198: Basic | Z198: Limited | AA198: Unimproved | AB198: Open defecation
A199: Forecast period: | C199: 2000 | D199: =IF((D201+H201)>100,D201*100/(D201+H201),D201) -> 30.61686129 | E199: =D199*AVERAGEIF(E205:E216,">0")/100 -> 11.5875921 | F199: =D199*(100-AVERAGEIF(E205:E216,">0"))/100 -> 19.02926919 | G199: =100-(E199+F199+H199) -> 60.12431651 | H199: =IF((D201+H201)>100,H201*100/(D201+H201),H201) -> 9.258822202 | I199: =IF((I201+M201)>100,I201*100/(I201+M201),I201) -> 35.19163935 | J199: =I199*AVERAGEIF(J205:J216,">0")/100 -> 10.29686663 | K199: =I199*(100-AVERAGEIF(J205:J216,">0"))/100 -> 24.89477272 | L199: =100-(J199+K199+M199) -> 62.43128644 | M199: =IF((I201+M201)>100,M201*100/(I201+M201),M201) -> 2.377074211 | N199: =IF((N201+R201)>100,N201*100/(N201+R201),N201) -> 50.03102133 | O199: =N199*AVERAGEIF(O205:O216,">0")/100 -> 15.72211478 | P199: =N199*(100-AVERAGEIF(O205:O216,">0"))/100 -> 34.30890656 | Q199: =100-(O199+P199+R199) -> 47.11020643 | R199: =IF((N201+R201)>100,R201*100/(N201+R201),R201) -> 2.858772236 | S199: =IF((S201+W201)>100,S201*100/(S201+W201),S201) -> 59.64019892 | T199: =S199*AVERAGEIF(T205:T216,">0")/100 -> 21.64023078 | U199: =S199*(100-AVERAGEIF(T205:T216,">0"))/100 -> 37.99996813 | V199: =100-(T199+U199+W199) -> 39.00894936 | W199: =IF((S201+W201)>100,W201*100/(S201+W201),W201) -> 1.350851719 | X199: =IF((X201+AB201)>100,X201*100/(X201+AB201),X201) -> 73.39312747 | Y199: =X199*AVERAGEIF(Y205:Y216,">0")/100 -> 47.09398089 | Z199: =X199*(100-AVERAGEIF(Y205:Y216,">0"))/100 -> 26.29914658 | AA199: =100-(Y199+Z199+AB199) -> 25.51660352 | AB199: =IF((X201+AB201)>100,AB201*100/(X201+AB201),AB201) -> 1.09026901
C200: 2020 | D200: =IF((D202+H202)>100,D202*100/(D202+H202),D202) -> 46.75288005 | E200: =D200*AVERAGEIF(E205:E216,">0")/100 -> 17.6946062 | F200: =D200*(100-AVERAGEIF(E205:E216,">0"))/100 -> 29.05827385 | G200: =100-(E200+F200+H200) -> 50.84920816 | H200: =IF((D202+H202)>100,H202*100/(D202+H202),H202) -> 2.397911786 | I200: =IF((I202+M202)>100,I202*100/(I202+M202),I202) -> 64.73663417 | J200: =I200*AVERAGEIF(J205:J216,">0")/100 -> 18.94155828 | K200: =I200*(100-AVERAGEIF(J205:J216,">0"))/100 -> 45.79507588 | L200: =100-(J200+K200+M200) -> 33.70275234 | M200: =IF((I202+M202)>100,M202*100/(I202+M202),M202) -> 1.560613494 | N200: =IF((N202+R202)>100,N202*100/(N202+R202),N202) -> 77.82990396 | O200: =N200*AVERAGEIF(O205:O216,">0")/100 -> 24.45783937 | P200: =N200*(100-AVERAGEIF(O205:O216,">0"))/100 -> 53.37206459 | Q200: =100-(O200+P200+R200) -> 21.45576675 | R200: =IF((N202+R202)>100,R202*100/(N202+R202),R202) -> 0.714329295 | S200: =IF((S202+W202)>100,S202*100/(S202+W202),S202) -> 85.10645066 | T200: =S200*AVERAGEIF(T205:T216,">0")/100 -> 30.88056826 | U200: =S200*(100-AVERAGEIF(T205:T216,">0"))/100 -> 54.2258824 | V200: =100-(T200+U200+W200) -> 14.20609649 | W200: =IF((S202+W202)>100,W202*100/(S202+W202),W202) -> 0.6874528487 | X200: =IF((X202+AB202)>100,X202*100/(X202+AB202),X202) -> 95.3207185 | Y200: =X200*AVERAGEIF(Y205:Y216,">0")/100 -> 61.16420229 | Z200: =X200*(100-AVERAGEIF(Y205:Y216,">0"))/100 -> 34.15651621 | AA200: =100-(Y200+Z200+AB200) -> 4.679281504 | AB200: =IF((X202+AB202)>100,AB202*100/(X202+AB202),AB202) -> 0
A201: Regression period: | C201: =MinRegYear(C199,C205:C216) -> 2003 | D201: =IF(MAX(C205:C216)-MIN(C205:C216)<5,AVERAGEIF(C205:C216,">0",D205:D216), IF(FORECAST($C201,D$205:D$216,$C$205:$C$216)<0,0, IF(FORECAST($C201,D$205:D$216,$C$205:$C$216)>100,100, FORECAST($C201,D$205:D$216,$C$205:$C$216)))) -> 30.61686129 | H201: =IF(MAX(C205:C216)-MIN(C205:C216)<5,AVERAGEIF(C205:C216,">0",H205:H216), IF(FORECAST($C201,H$205:H$216,$C$205:$C$216)<0,0, IF(FORECAST($C201,H$205:H$216,$C$205:$C$216)>100,100, FORECAST($C201,H$205:H$216,$C$205:$C$216)))) -> 9.258822202 | I201: =IF(MAX(C205:C216)-MIN(C205:C216)<5,AVERAGEIF(C205:C216,">0",I205:I216), IF(FORECAST($C201,I$205:I$216,$C$205:$C$216)<0,0, IF(FORECAST($C201,I$205:I$216,$C$205:$C$216)>100,100, FORECAST($C201,I$205:I$216,$C$205:$C$216)))) -> 35.19163935 | M201: =IF(MAX(C205:C216)-MIN(C205:C216)<5,AVERAGEIF(C205:C216,">0",M205:M216), IF(FORECAST($C201,M$205:M$216,$C$205:$C$216)<0,0, IF(FORECAST($C201,M$205:M$216,$C$205:$C$216)>100,100, FORECAST($C201,M$205:M$216,$C$205:$C$216)))) -> 2.377074211 | N201: =IF(MAX(C205:C216)-MIN(C205:C216)<5,AVERAGEIF(C205:C216,">0",N205:N216), IF(FORECAST($C201,N$205:N$216,$C$205:$C$216)<0,0, IF(FORECAST($C201,N$205:N$216,$C$205:$C$216)>100,100, FORECAST($C201,N$205:N$216,$C$205:$C$216)))) -> 50.03102133 | R201: =IF(MAX(C205:C216)-MIN(C205:C216)<5,AVERAGEIF(C205:C216,">0",R205:R216), IF(FORECAST($C201,R$205:R$216,$C$205:$C$216)<0,0, IF(FORECAST($C201,R$205:R$216,$C$205:$C$216)>100,100, FORECAST($C201,R$205:R$216,$C$205:$C$216)))) -> 2.858772236 | S201: =IF(MAX(C205:C216)-MIN(C205:C216)<5,AVERAGEIF(C205:C216,">0",S205:S216), IF(FORECAST($C201,S$205:S$216,$C$205:$C$216)<0,0, IF(FORECAST($C201,S$205:S$216,$C$205:$C$216)>100,100, FORECAST($C201,S$205:S$216,$C$205:$C$216)))) -> 59.64019892 | W201: =IF(MAX(C205:C216)-MIN(C205:C216)<5,AVERAGEIF(C205:C216,">0",W205:W216), IF(FORECAST($C201,W$205:W$216,$C$205:$C$216)<0,0, IF(FORECAST($C201,W$205:W$216,$C$205:$C$216)>100,100, FORECAST($C201,W$205:W$216,$C$205:$C$216)))) -> 1.350851719 | X201: =IF(MAX(C205:C216)-MIN(C205:C216)<5,AVERAGEIF(C205:C216,">0",X205:X216), IF(FORECAST($C201,X$205:X$216,$C$205:$C$216)<0,0, IF(FORECAST($C201,X$205:X$216,$C$205:$C$216)>100,100, FORECAST($C201,X$205:X$216,$C$205:$C$216)))) -> 73.39312747 | AB201: =IF(MAX(C205:C216)-MIN(C205:C216)<5,AVERAGEIF(C205:C216,">0",AB205:AB216), IF(FORECAST($C201,AB$205:AB$216,$C$205:$C$216)<0,0, IF(FORECAST($C201,AB$205:AB$216,$C$205:$C$216)>100,100, FORECAST($C201,AB$205:AB$216,$C$205:$C$216)))) -> 1.09026901
C202: =MaxRegYear(C200,C205:C216) -> 2017 | D202: =IF(MAX(C205:C216)-MIN(C205:C216)<5,AVERAGEIF(C205:C216,">0",D205:D216), IF(FORECAST($C202,D$205:D$216,$C$205:$C$216)<0,0, IF(FORECAST($C202,D$205:D$216,$C$205:$C$216)>100,100, FORECAST($C202,D$205:D$216,$C$205:$C$216)))) -> 46.75288005 | H202: =IF(MAX(C205:C216)-MIN(C205:C216)<5,AVERAGEIF(C205:C216,">0",H205:H216), IF(FORECAST($C202,H$205:H$216,$C$205:$C$216)<0,0, IF(FORECAST($C202,H$205:H$216,$C$205:$C$216)>100,100, FORECAST($C202,H$205:H$216,$C$205:$C$216)))) -> 2.397911786 | I202: =IF(MAX(C205:C216)-MIN(C205:C216)<5,AVERAGEIF(C205:C216,">0",I205:I216), IF(FORECAST($C202,I$205:I$216,$C$205:$C$216)<0,0, IF(FORECAST($C202,I$205:I$216,$C$205:$C$216)>100,100, FORECAST($C202,I$205:I$216,$C$205:$C$216)))) -> 64.73663417 | M202: =IF(MAX(C205:C216)-MIN(C205:C216)<5,AVERAGEIF(C205:C216,">0",M205:M216), IF(FORECAST($C202,M$205:M$216,$C$205:$C$216)<0,0, IF(FORECAST($C202,M$205:M$216,$C$205:$C$216)>100,100, FORECAST($C202,M$205:M$216,$C$205:$C$216)))) -> 1.560613494 | N202: =IF(MAX(C205:C216)-MIN(C205:C216)<5,AVERAGEIF(C205:C216,">0",N205:N216), IF(FORECAST($C202,N$205:N$216,$C$205:$C$216)<0,0, IF(FORECAST($C202,N$205:N$216,$C$205:$C$216)>100,100, FORECAST($C202,N$205:N$216,$C$205:$C$216)))) -> 77.82990396 | R202: =IF(MAX(C205:C216)-MIN(C205:C216)<5,AVERAGEIF(C205:C216,">0",R205:R216), IF(FORECAST($C202,R$205:R$216,$C$205:$C$216)<0,0, IF(FORECAST($C202,R$205:R$216,$C$205:$C$216)>100,100, FORECAST($C202,R$205:R$216,$C$205:$C$216)))) -> 0.714329295 | S202: =IF(MAX(C205:C216)-MIN(C205:C216)<5,AVERAGEIF(C205:C216,">0",S205:S216), IF(FORECAST($C202,S$205:S$216,$C$205:$C$216)<0,0, IF(FORECAST($C202,S$205:S$216,$C$205:$C$216)>100,100, FORECAST($C202,S$205:S$216,$C$205:$C$216)))) -> 85.10645066 | W202: =IF(MAX(C205:C216)-MIN(C205:C216)<5,AVERAGEIF(C205:C216,">0",W205:W216), IF(FORECAST($C202,W$205:W$216,$C$205:$C$216)<0,0, IF(FORECAST($C202,W$205:W$216,$C$205:$C$216)>100,100, FORECAST($C202,W$205:W$216,$C$205:$C$216)))) -> 0.6874528487 | X202: =IF(MAX(C205:C216)-MIN(C205:C216)<5,AVERAGEIF(C205:C216,">0",X205:X216), IF(FORECAST($C202,X$205:X$216,$C$205:$C$216)<0,0, IF(FORECAST($C202,X$205:X$216,$C$205:$C$216)>100,100, FORECAST($C202,X$205:X$216,$C$205:$C$216)))) -> 95.3207185 | AB202: =IF(MAX(C205:C216)-MIN(C205:C216)<5,AVERAGEIF(C205:C216,">0",AB205:AB216), IF(FORECAST($C202,AB$205:AB$216,$C$205:$C$216)<0,0, IF(FORECAST($C202,AB$205:AB$216,$C$205:$C$216)>100,100, FORECAST($C202,AB$205:AB$216,$C$205:$C$216)))) -> 0
B204: Survey | C204: Year | D204: Improved | E204: Not shared | H204: Open defecation | I204: Improved | J204: Not shared | M204: Open defecation | N204: Improved | O204: Not shared | R204: Open defecation | S204: Improved | T204: Not shared | W204: Open defecation | X204: Improved | Y204: Not shared | AB204: Open defecation
B205: WHS03 | D205: =IF(ISERROR(INDIRECT(CONCATENATE($B205,"!H122"))),"",INDIRECT(CONCATENATE($B205,"!H122"))) -> 57.68732147 | E205: =IF(ISERROR(INDIRECT(CONCATENATE($B205,"!H129"))),"",INDIRECT(CONCATENATE($B205,"!H129"))) -> 55.20441808 | H205: =IF(ISERROR(INDIRECT(CONCATENATE($B205,"!H127"))),"",INDIRECT(CONCATENATE($B205,"!H127"))) -> 5.736681127 | I205: =IF(ISERROR(INDIRECT(CONCATENATE($B205,"!I122"))),"",INDIRECT(CONCATENATE($B205,"!I122"))) -> 45.10189624 | J205: =IF(ISERROR(INDIRECT(CONCATENATE($B205,"!I129"))),"",INDIRECT(CONCATENATE($B205,"!I129"))) -> 49.84191781 | M205: =IF(ISERROR(INDIRECT(CONCATENATE($B205,"!I127"))),"",INDIRECT(CONCATENATE($B205,"!I127"))) -> 0.6719726508 | N205: =IF(ISERROR(INDIRECT(CONCATENATE($B205,"!J122"))),"",INDIRECT(CONCATENATE($B205,"!J122"))) -> 43.89533045 | O205: =IF(ISERROR(INDIRECT(CONCATENATE($B205,"!J129"))),"",INDIRECT(CONCATENATE($B205,"!J129"))) -> 47.36977073 | R205: =IF(ISERROR(INDIRECT(CONCATENATE($B205,"!J127"))),"",INDIRECT(CONCATENATE($B205,"!J127"))) -> 1.158369219 | S205: =IF(ISERROR(INDIRECT(CONCATENATE($B205,"!K122"))),"",INDIRECT(CONCATENATE($B205,"!K122"))) -> 33.15022509 | T205: =IF(ISERROR(INDIRECT(CONCATENATE($B205,"!K129"))),"",INDIRECT(CONCATENATE($B205,"!K129"))) -> 42.44478779 | W205: =IF(ISERROR(INDIRECT(CONCATENATE($B205,"!K127"))),"",INDIRECT(CONCATENATE($B205,"!K127"))) -> 0.3053764027 | X205: =IF(ISERROR(INDIRECT(CONCATENATE($B205,"!L122"))),"",INDIRECT(CONCATENATE($B205,"!L122"))) -> 53.68329315 | Y205: =IF(ISERROR(INDIRECT(CONCATENATE($B205,"!L129"))),"",INDIRECT(CONCATENATE($B205,"!L129"))) -> 69.41677562 | AB205: =IF(ISERROR(INDIRECT(CONCATENATE($B205,"!L2127"))),"",INDIRECT(CONCATENATE($B205,"!L127"))) -> 0.7727683752
B206: DHS05 | C206: 2005 | D206: 34.73232735 | E206: N/A | H206: 9.828692818 | I206: 44.14244657 | J206: N/A | M206: 2.606243856 | N206: 59.42751455 | O206: N/A | R206: 1.698478523 | S206: 68.06101649 | T206: N/A | W206: 1.01745995 | X206: 80.0306972 | Y206: N/A | AB206: 0.7442450424
B207: AIS09 | C207: 2009 | D207: 36.57238745 | E207: N/A | H207: 4.749963462 | I207: 44.74936246 | J207: N/A | M207: 1.381969681 | N207: 56.99369145 | O207: N/A | R207: 3.521471503 | S207: 65.58604114 | T207: N/A | W207: 1.614483336 | X207: 77.85076941 | Y207: N/A | AB207: 1.0112197
B208: DHS12 | C208: 2012 | D208: 36.87543538 | E208: 25.23104679 | H208: 2.818505141 | I208: 44.62670644 | J208: 16.96019724 | M208: 1.989902561 | N208: 59.71992415 | O208: 18.48035887 | R208: 1.163191696 | S208: 70.00528673 | T208: 28.13146501 | W208: 0.6238918521 | X208: 85.68570769 | Y208: 49.18179134 | AB208: 0
B209: MICS15 | C209: 2015 | D209: 47.71190527 | E209: 33.10581547 | H209: 5.426241525 | I209: 68.44838834 | J209: 20.97611992 | M209: 1.838940689 | N209: 81.56635491 | O209: 28.42406884 | R209: 0.6098868446 | S209: 87.65997278 | T209: 38.27766373 | W209: 0.7733883634 | X209: 95.42677413 | Y209: 73.90166778 | AB209: 0.0880819686
B218: =CONCATENATE("Urban use of sanitation facilities, ",C199,"–",C200) -> Urban use of sanitation facilities, 2000–2020 | S218: Data points used for regression
A297: RURAL | D297: Poorest | I297: Poor | N297: Middle | S297: Rich | X297: Richest
D298: Improved | E298: Basic | F298: Limited | G298: Unimproved | H298: Open defecation | I298: Improved | J298: Basic | K298: Limited | L298: Unimproved | M298: Open defecation | N298: Improved | O298: Basic | P298: Limited | Q298: Unimproved | R298: Open defecation | S298: Improved | T298: Basic | U298: Limited | V298: Unimproved | W298: Open defecation | X298: Improved | Y298: Basic | Z298: Limited | AA298: Unimproved | AB298: Open defecation
A299: Forecast period: | C299: 2000 | D299: =IF((D301+H301)>100,D301*100/(D301+H301),D301) -> 2.017410351 | E299: =D299*AVERAGEIF(E305:E316,">0")/100 -> 1.135459388 | F299: =D299*(100-AVERAGEIF(E305:E316,">0"))/100 -> 0.8819509624 | G299: =100-(E299+F299+H299) -> 73.36705347 | H299: =IF((D301+H301)>100,H301*100/(D301+H301),H301) -> 24.61553618 | I299: =IF((I301+M301)>100,I301*100/(I301+M301),I301) -> 3.492508967 | J299: =I299*AVERAGEIF(J305:J316,">0")/100 -> 1.87688984 | K299: =I299*(100-AVERAGEIF(J305:J316,">0"))/100 -> 1.615619127 | L299: =100-(J299+K299+M299) -> 80.90911146 | M299: =IF((I301+M301)>100,M301*100/(I301+M301),M301) -> 15.59837958 | N299: =IF((N301+R301)>100,N301*100/(N301+R301),N301) -> 7.088172235 | O299: =N299*AVERAGEIF(O305:O316,">0")/100 -> 4.195922651 | P299: =N299*(100-AVERAGEIF(O305:O316,">0"))/100 -> 2.892249584 | Q299: =100-(O299+P299+R299) -> 81.44910306 | R299: =IF((N301+R301)>100,R301*100/(N301+R301),R301) -> 11.4627247 | S299: =IF((S301+W301)>100,S301*100/(S301+W301),S301) -> 11.13180349 | T299: =S299*AVERAGEIF(T305:T316,">0")/100 -> 5.040255606 | U299: =S299*(100-AVERAGEIF(T305:T316,">0"))/100 -> 6.091547884 | V299: =100-(T299+U299+W299) -> 73.79669304 | W299: =IF((S301+W301)>100,W301*100/(S301+W301),W301) -> 15.07150347 | X299: =IF((X301+AB301)>100,X301*100/(X301+AB301),X301) -> 39.82731779 | Y299: =X299*AVERAGEIF(Y305:Y316,">0")/100 -> 20.41620875 | Z299: =X299*(100-AVERAGEIF(Y305:Y316,">0"))/100 -> 19.41110904 | AA299: =100-(Y299+Z299+AB299) -> 55.27617469 | AB299: =IF((X301+AB301)>100,AB301*100/(X301+AB301),AB301) -> 4.896507522
C300: 2020 | D300: =IF((D302+H302)>100,D302*100/(D302+H302),D302) -> 1.700482219 | E300: =D300*AVERAGEIF(E305:E316,">0")/100 -> 0.9570826774 | F300: =D300*(100-AVERAGEIF(E305:E316,">0"))/100 -> 0.7433995413 | G300: =100-(E300+F300+H300) -> 48.9966511 | H300: =IF((D302+H302)>100,H302*100/(D302+H302),H302) -> 49.30286668 | I300: =IF((I302+M302)>100,I302*100/(I302+M302),I302) -> 5.28095136 | J300: =I300*AVERAGEIF(J305:J316,">0")/100 -> 2.83800673 | K300: =I300*(100-AVERAGEIF(J305:J316,">0"))/100 -> 2.442944631 | L300: =100-(J300+K300+M300) -> 62.73985714 | M300: =IF((I302+M302)>100,M302*100/(I302+M302),M302) -> 31.9791915 | N300: =IF((N302+R302)>100,N302*100/(N302+R302),N302) -> 7.763181411 | O300: =N300*AVERAGEIF(O305:O316,">0")/100 -> 4.595501865 | P300: =N300*(100-AVERAGEIF(O305:O316,">0"))/100 -> 3.167679546 | Q300: =100-(O300+P300+R300) -> 69.48599936 | R300: =IF((N302+R302)>100,R302*100/(N302+R302),R302) -> 22.75081923 | S300: =IF((S302+W302)>100,S302*100/(S302+W302),S302) -> 17.06631356 | T300: =S300*AVERAGEIF(T305:T316,">0")/100 -> 7.727281809 | U300: =S300*(100-AVERAGEIF(T305:T316,">0"))/100 -> 9.339031753 | V300: =100-(T300+U300+W300) -> 70.12401234 | W300: =IF((S302+W302)>100,W302*100/(S302+W302),W302) -> 12.8096741 | X300: =IF((X302+AB302)>100,X302*100/(X302+AB302),X302) -> 43.79175355 | Y300: =X300*AVERAGEIF(Y305:Y316,">0")/100 -> 22.44845075 | Z300: =X300*(100-AVERAGEIF(Y305:Y316,">0"))/100 -> 21.3433028 | AA300: =100-(Y300+Z300+AB300) -> 51.56119156 | AB300: =IF((X302+AB302)>100,AB302*100/(X302+AB302),AB302) -> 4.647054896
A301: Regression period: | C301: =MinRegYear(C299,C305:C316) -> 2003 | D301: =IF(MAX(C305:C316)-MIN(C305:C316)<5,AVERAGEIF(C305:C316,">0",D305:D316), IF(FORECAST($C301,D$305:D$316,$C$305:$C$316)<0,0, IF(FORECAST($C301,D$305:D$316,$C$305:$C$316)>100,100, FORECAST($C301,D$305:D$316,$C$305:$C$316)))) -> 2.017410351 | H301: =IF(MAX(C305:C316)-MIN(C305:C316)<5,AVERAGEIF(C305:C316,">0",H305:H316), IF(FORECAST($C301,H$305:H$316,$C$305:$C$316)<0,0, IF(FORECAST($C301,H$305:H$316,$C$305:$C$316)>100,100, FORECAST($C301,H$305:H$316,$C$305:$C$316)))) -> 24.61553618 | I301: =IF(MAX(C305:C316)-MIN(C305:C316)<5,AVERAGEIF(C305:C316,">0",I305:I316), IF(FORECAST($C301,I$305:I$316,$C$305:$C$316)<0,0, IF(FORECAST($C301,I$305:I$316,$C$305:$C$316)>100,100, FORECAST($C301,I$305:I$316,$C$305:$C$316)))) -> 3.492508967 | M301: =IF(MAX(C305:C316)-MIN(C305:C316)<5,AVERAGEIF(C305:C316,">0",M305:M316), IF(FORECAST($C301,M$305:M$316,$C$305:$C$316)<0,0, IF(FORECAST($C301,M$305:M$316,$C$305:$C$316)>100,100, FORECAST($C301,M$305:M$316,$C$305:$C$316)))) -> 15.59837958 | N301: =IF(MAX(C305:C316)-MIN(C305:C316)<5,AVERAGEIF(C305:C316,">0",N305:N316), IF(FORECAST($C301,N$305:N$316,$C$305:$C$316)<0,0, IF(FORECAST($C301,N$305:N$316,$C$305:$C$316)>100,100, FORECAST($C301,N$305:N$316,$C$305:$C$316)))) -> 7.088172235 | R301: =IF(MAX(C305:C316)-MIN(C305:C316)<5,AVERAGEIF(C305:C316,">0",R305:R316), IF(FORECAST($C301,R$305:R$316,$C$305:$C$316)<0,0, IF(FORECAST($C301,R$305:R$316,$C$305:$C$316)>100,100, FORECAST($C301,R$305:R$316,$C$305:$C$316)))) -> 11.4627247 | S301: =IF(MAX(C305:C316)-MIN(C305:C316)<5,AVERAGEIF(C305:C316,">0",S305:S316), IF(FORECAST($C301,S$305:S$316,$C$305:$C$316)<0,0, IF(FORECAST($C301,S$305:S$316,$C$305:$C$316)>100,100, FORECAST($C301,S$305:S$316,$C$305:$C$316)))) -> 11.13180349 | W301: =IF(MAX(C305:C316)-MIN(C305:C316)<5,AVERAGEIF(C305:C316,">0",W305:W316), IF(FORECAST($C301,W$305:W$316,$C$305:$C$316)<0,0, IF(FORECAST($C301,W$305:W$316,$C$305:$C$316)>100,100, FORECAST($C301,W$305:W$316,$C$305:$C$316)))) -> 15.07150347 | X301: =IF(MAX(C305:C316)-MIN(C305:C316)<5,AVERAGEIF(C305:C316,">0",X305:X316), IF(FORECAST($C301,X$305:X$316,$C$305:$C$316)<0,0, IF(FORECAST($C301,X$305:X$316,$C$305:$C$316)>100,100, FORECAST($C301,X$305:X$316,$C$305:$C$316)))) -> 39.82731779 | AB301: =IF(MAX(C305:C316)-MIN(C305:C316)<5,AVERAGEIF(C305:C316,">0",AB305:AB316), IF(FORECAST($C301,AB$305:AB$316,$C$305:$C$316)<0,0, IF(FORECAST($C301,AB$305:AB$316,$C$305:$C$316)>100,100, FORECAST($C301,AB$305:AB$316,$C$305:$C$316)))) -> 4.896507522
C302: =MaxRegYear(C300,C305:C316) -> 2017 | D302: =IF(MAX(C305:C316)-MIN(C305:C316)<5,AVERAGEIF(C305:C316,">0",D305:D316), IF(FORECAST($C302,D$305:D$316,$C$305:$C$316)<0,0, IF(FORECAST($C302,D$305:D$316,$C$305:$C$316)>100,100, FORECAST($C302,D$305:D$316,$C$305:$C$316)))) -> 1.700482219 | H302: =IF(MAX(C305:C316)-MIN(C305:C316)<5,AVERAGEIF(C305:C316,">0",H305:H316), IF(FORECAST($C302,H$305:H$316,$C$305:$C$316)<0,0, IF(FORECAST($C302,H$305:H$316,$C$305:$C$316)>100,100, FORECAST($C302,H$305:H$316,$C$305:$C$316)))) -> 49.30286668 | I302: =IF(MAX(C305:C316)-MIN(C305:C316)<5,AVERAGEIF(C305:C316,">0",I305:I316), IF(FORECAST($C302,I$305:I$316,$C$305:$C$316)<0,0, IF(FORECAST($C302,I$305:I$316,$C$305:$C$316)>100,100, FORECAST($C302,I$305:I$316,$C$305:$C$316)))) -> 5.28095136 | M302: =IF(MAX(C305:C316)-MIN(C305:C316)<5,AVERAGEIF(C305:C316,">0",M305:M316), IF(FORECAST($C302,M$305:M$316,$C$305:$C$316)<0,0, IF(FORECAST($C302,M$305:M$316,$C$305:$C$316)>100,100, FORECAST($C302,M$305:M$316,$C$305:$C$316)))) -> 31.9791915 | N302: =IF(MAX(C305:C316)-MIN(C305:C316)<5,AVERAGEIF(C305:C316,">0",N305:N316), IF(FORECAST($C302,N$305:N$316,$C$305:$C$316)<0,0, IF(FORECAST($C302,N$305:N$316,$C$305:$C$316)>100,100, FORECAST($C302,N$305:N$316,$C$305:$C$316)))) -> 7.763181411 | R302: =IF(MAX(C305:C316)-MIN(C305:C316)<5,AVERAGEIF(C305:C316,">0",R305:R316), IF(FORECAST($C302,R$305:R$316,$C$305:$C$316)<0,0, IF(FORECAST($C302,R$305:R$316,$C$305:$C$316)>100,100, FORECAST($C302,R$305:R$316,$C$305:$C$316)))) -> 22.75081923 | S302: =IF(MAX(C305:C316)-MIN(C305:C316)<5,AVERAGEIF(C305:C316,">0",S305:S316), IF(FORECAST($C302,S$305:S$316,$C$305:$C$316)<0,0, IF(FORECAST($C302,S$305:S$316,$C$305:$C$316)>100,100, FORECAST($C302,S$305:S$316,$C$305:$C$316)))) -> 17.06631356 | W302: =IF(MAX(C305:C316)-MIN(C305:C316)<5,AVERAGEIF(C305:C316,">0",W305:W316), IF(FORECAST($C302,W$305:W$316,$C$305:$C$316)<0,0, IF(FORECAST($C302,W$305:W$316,$C$305:$C$316)>100,100, FORECAST($C302,W$305:W$316,$C$305:$C$316)))) -> 12.8096741 | X302: =IF(MAX(C305:C316)-MIN(C305:C316)<5,AVERAGEIF(C305:C316,">0",X305:X316), IF(FORECAST($C302,X$305:X$316,$C$305:$C$316)<0,0, IF(FORECAST($C302,X$305:X$316,$C$305:$C$316)>100,100, FORECAST($C302,X$305:X$316,$C$305:$C$316)))) -> 43.79175355 | AB302: =IF(MAX(C305:C316)-MIN(C305:C316)<5,AVERAGEIF(C305:C316,">0",AB305:AB316), IF(FORECAST($C302,AB$305:AB$316,$C$305:$C$316)<0,0, IF(FORECAST($C302,AB$305:AB$316,$C$305:$C$316)>100,100, FORECAST($C302,AB$305:AB$316,$C$305:$C$316)))) -> 4.647054896
B304: Survey | C304: Year | D304: Improved | E304: Not shared | H304: Open defecation | I304: Improved | J304: Not shared | M304: Open defecation | N304: Improved | O304: Not shared | R304: Open defecation | S304: Improved | T304: Not shared | W304: Open defecation | X304: Improved | Y304: Not shared | AB304: Open defecation
B305: WHS03 | D305: =IF(ISERROR(INDIRECT(CONCATENATE($B305,"!M122"))),"",INDIRECT(CONCATENATE($B305,"!M122"))) -> 31.14610934 | E305: =IF(ISERROR(INDIRECT(CONCATENATE($B305,"!M129"))),"",INDIRECT(CONCATENATE($B305,"!M129"))) -> 87.64227556 | H305: =IF(ISERROR(INDIRECT(CONCATENATE($B305,"!M127"))),"",INDIRECT(CONCATENATE($B305,"!M127"))) -> 18.92159954 | I305: =IF(ISERROR(INDIRECT(CONCATENATE($B305,"!N122"))),"",INDIRECT(CONCATENATE($B305,"!N122"))) -> 29.47245543 | J305: =IF(ISERROR(INDIRECT(CONCATENATE($B305,"!N129"))),"",INDIRECT(CONCATENATE($B305,"!N129"))) -> 70.90109114 | M305: =IF(ISERROR(INDIRECT(CONCATENATE($B305,"!N127"))),"",INDIRECT(CONCATENATE($B305,"!N127"))) -> 18.86058526 | N305: =IF(ISERROR(INDIRECT(CONCATENATE($B305,"!O122"))),"",INDIRECT(CONCATENATE($B305,"!O122"))) -> 9.932777505 | O305: =IF(ISERROR(INDIRECT(CONCATENATE($B305,"!O129"))),"",INDIRECT(CONCATENATE($B305,"!O129"))) -> 84.9145925 | R305: =IF(ISERROR(INDIRECT(CONCATENATE($B305,"!O127"))),"",INDIRECT(CONCATENATE($B305,"!O127"))) -> 1.487590091 | S305: =IF(ISERROR(INDIRECT(CONCATENATE($B305,"!P122"))),"",INDIRECT(CONCATENATE($B305,"!P122"))) -> 12.81060793 | T305: =IF(ISERROR(INDIRECT(CONCATENATE($B305,"!P129"))),"",INDIRECT(CONCATENATE($B305,"!P129"))) -> 43.24009654 | W305: =IF(ISERROR(INDIRECT(CONCATENATE($B305,"!P127"))),"",INDIRECT(CONCATENATE($B305,"!P127"))) -> 4.424052512 | X305: =IF(ISERROR(INDIRECT(CONCATENATE($B305,"!Q122"))),"",INDIRECT(CONCATENATE($B305,"!Q122"))) -> 51.83983769 | Y305: =IF(ISERROR(INDIRECT(CONCATENATE($B305,"!Q129"))),"",INDIRECT(CONCATENATE($B305,"!Q129"))) -> 65.58284176 | AB305: =IF(ISERROR(INDIRECT(CONCATENATE($B305,"!Q2127"))),"",INDIRECT(CONCATENATE($B305,"!Q127"))) -> 11.78670055
B306: DHS05 | C306: 2005 | D306: 2.045325336 | E306: N/A | H306: 27.40133738 | I306: 4.07592906 | J306: N/A | M306: 18.023413 | N306: 7.380460628 | O306: N/A | R306: 13.88882339 | S306: 12.56002178 | T306: N/A | W306: 17.17435903 | X306: 41.01038997 | Y306: N/A | AB306: 4.857712251
B307: AIS09 | C307: 2009 | D307: 1.716581983 | E307: N/A | H307: 37.82423364 | I307: 4.239022097 | J307: N/A | M307: 22.76634685 | N307: 7.314814082 | O307: N/A | R307: 14.83293369 | S307: 13.76127311 | T307: N/A | W307: 9.524506552 | X307: 40.73287649 | Y307: N/A | AB307: 4.838890724
B308: DHS12 | C308: 2012 | D308: 1.899706779 | E308: 28.78462031 | H308: 37.69900467 | I308: 3.589051886 | J308: 41.31173313 | M308: 25.5506048 | N308: 6.994540604 | O308: 44.66191409 | R308: 18.94273599 | S308: 12.83985889 | T308: 37.6722662 | W308: 14.68617315 | X308: 41.90710664 | Y308: 43.35092892 | AB308: 4.648092784
B309: MICS15 | C309: 2015 | D309: 1.751533317 | E309: 52.42215181 | H309: 46.67561078 | I309: 5.770663496 | J309: 49.00850895 | M309: 29.98483549 | N309: 8.06110692 | O309: 48.01184109 | R309: 21.56888725 | S309: 17.6589739 | T309: 54.92157318 | W309: 14.21575718 | X309: 43.87094356 | Y309: 44.85169528 | AB309: 4.724611032
B318: =CONCATENATE("Rural use of sanitation facilities, ",C299,"–",C300) -> Rural use of sanitation facilities, 2000–2020 | S318: Data points used for regression

Sheet Hygiene
B4: Access to hygiene facilities by wealth quintile (%)
B5: =IF(ISERROR(INDIRECT(CONCATENATE($E$32,"!A2"))),"",INDIRECT(CONCATENATE($E$32,"!A2"))) -> 
B7: =CONCATENATE("National ",IF(ISERROR(INDIRECT(CONCATENATE($E$32,"!A2"))),"",INDIRECT(CONCATENATE($E$32,"!A210")))) -> National | K7: =CONCATENATE("Urban ",IF(ISERROR(INDIRECT(CONCATENATE($E$32,"!A2"))),"",INDIRECT(CONCATENATE($E$32,"!A210")))) -> Urban | S7: =CONCATENATE("Rural ",IF(ISERROR(INDIRECT(CONCATENATE($E$32,"!A2"))),"",INDIRECT(CONCATENATE($E$32,"!A210")))) -> Rural
E32: =INDEX(B88:B100,A88) -> 0 | G32: =IF(ISERROR(INDIRECT(CONCATENATE($E$32,"!A2"))),"",INDIRECT(CONCATENATE($E$32,"!A2"))) ->  | K32: Poorest | N32: Poor | Q32: Middle | T32: Rich | W32: Richest
K33: Basic | L33: Limited | M33: No facility | N33: Basic | O33: Limited | P33: No facility | Q33: Basic | R33: Limited | S33: No facility | T33: Basic | U33: Limited | V33: No facility | W33: Basic | X33: Limited | Y33: No facility
B34: >>> Select Survey : | G34: NATIONAL | J34: =IF(ISERROR(INDIRECT(CONCATENATE(#REF!,"!A2"))),"",INDIRECT(CONCATENATE(#REF!,"!A210"))) ->  | K34: =IF(ISERROR(INDIRECT(CONCATENATE($E$32,"!C222"))),"",INDIRECT(CONCATENATE($E$32,"!C222"))) ->  | L34: =IF(ISERROR(INDIRECT(CONCATENATE($E$32,"!C223"))),"",INDIRECT(CONCATENATE($E$32,"!C223"))) ->  | M34: =IF(ISERROR(INDIRECT(CONCATENATE($E$32,"!C224"))),"",INDIRECT(CONCATENATE($E$32,"!C224"))) ->  | N34: =IF(ISERROR(INDIRECT(CONCATENATE($E$32,"!D222"))),"",INDIRECT(CONCATENATE($E$32,"!D222"))) ->  | O34: =IF(ISERROR(INDIRECT(CONCATENATE($E$32,"!D223"))),"",INDIRECT(CONCATENATE($E$32,"!D223"))) ->  | P34: =IF(ISERROR(INDIRECT(CONCATENATE($E$32,"!D224"))),"",INDIRECT(CONCATENATE($E$32,"!D224"))) ->  | Q34: =IF(ISERROR(INDIRECT(CONCATENATE($E$32,"!E222"))),"",INDIRECT(CONCATENATE($E$32,"!E222"))) ->  | R34: =IF(ISERROR(INDIRECT(CONCATENATE($E$32,"!E223"))),"",INDIRECT(CONCATENATE($E$32,"!E223"))) ->  | S34: =IF(ISERROR(INDIRECT(CONCATENATE($E$32,"!E224"))),"",INDIRECT(CONCATENATE($E$32,"!E224"))) ->  | T34: =IF(ISERROR(INDIRECT(CONCATENATE($E$32,"!F222"))),"",INDIRECT(CONCATENATE($E$32,"!F222"))) ->  | U34: =IF(ISERROR(INDIRECT(CONCATENATE($E$32,"!F223"))),"",INDIRECT(CONCATENATE($E$32,"!F223"))) ->  | V34: =IF(ISERROR(INDIRECT(CONCATENATE($E$32,"!F224"))),"",INDIRECT(CONCATENATE($E$32,"!F224"))) ->  | W34: =IF(ISERROR(INDIRECT(CONCATENATE($E$32,"!G222"))),"",INDIRECT(CONCATENATE($E$32,"!G222"))) ->  | X34: =IF(ISERROR(INDIRECT(CONCATENATE($E$32,"!G223"))),"",INDIRECT(CONCATENATE($E$32,"!G223"))) ->  | Y34: =IF(ISERROR(INDIRECT(CONCATENATE($E$32,"!G224"))),"",INDIRECT(CONCATENATE($E$32,"!G224"))) -> 
G37: URBAN | J37: =IF(ISERROR(INDIRECT(CONCATENATE(#REF!,"!A2"))),"",INDIRECT(CONCATENATE(#REF!,"!A210"))) ->  | K37: =IF(ISERROR(INDIRECT(CONCATENATE($E$32,"!H222"))),"",INDIRECT(CONCATENATE($E$32,"!H222"))) ->  | L37: =IF(ISERROR(INDIRECT(CONCATENATE($E$32,"!H223"))),"",INDIRECT(CONCATENATE($E$32,"!H223"))) ->  | M37: =IF(ISERROR(INDIRECT(CONCATENATE($E$32,"!H224"))),"",INDIRECT(CONCATENATE($E$32,"!H224"))) ->  | N37: =IF(ISERROR(INDIRECT(CONCATENATE($E$32,"!I222"))),"",INDIRECT(CONCATENATE($E$32,"!I222"))) ->  | O37: =IF(ISERROR(INDIRECT(CONCATENATE($E$32,"!I223"))),"",INDIRECT(CONCATENATE($E$32,"!I223"))) ->  | P37: =IF(ISERROR(INDIRECT(CONCATENATE($E$32,"!I224"))),"",INDIRECT(CONCATENATE($E$32,"!I224"))) ->  | Q37: =IF(ISERROR(INDIRECT(CONCATENATE($E$32,"!J222"))),"",INDIRECT(CONCATENATE($E$32,"!J222"))) ->  | R37: =IF(ISERROR(INDIRECT(CONCATENATE($E$32,"!J223"))),"",INDIRECT(CONCATENATE($E$32,"!J223"))) ->  | S37: =IF(ISERROR(INDIRECT(CONCATENATE($E$32,"!J224"))),"",INDIRECT(CONCATENATE($E$32,"!J224"))) ->  | T37: =IF(ISERROR(INDIRECT(CONCATENATE($E$32,"!K222"))),"",INDIRECT(CONCATENATE($E$32,"!K222"))) ->  | U37: =IF(ISERROR(INDIRECT(CONCATENATE($E$32,"!K223"))),"",INDIRECT(CONCATENATE($E$32,"!K223"))) ->  | V37: =IF(ISERROR(INDIRECT(CONCATENATE($E$32,"!K224"))),"",INDIRECT(CONCATENATE($E$32,"!K224"))) ->  | W37: =IF(ISERROR(INDIRECT(CONCATENATE($E$32,"!L222"))),"",INDIRECT(CONCATENATE($E$32,"!L222"))) ->  | X37: =IF(ISERROR(INDIRECT(CONCATENATE($E$32,"!L223"))),"",INDIRECT(CONCATENATE($E$32,"!L223"))) ->  | Y37: =IF(ISERROR(INDIRECT(CONCATENATE($E$32,"!L224"))),"",INDIRECT(CONCATENATE($E$32,"!L224"))) -> 
G40: RURAL | J40: =IF(ISERROR(INDIRECT(CONCATENATE(#REF!,"!A2"))),"",INDIRECT(CONCATENATE(#REF!,"!A210"))) ->  | K40: =IF(ISERROR(INDIRECT(CONCATENATE($E$32,"!M222"))),"",INDIRECT(CONCATENATE($E$32,"!M222"))) ->  | L40: =IF(ISERROR(INDIRECT(CONCATENATE($E$32,"!M223"))),"",INDIRECT(CONCATENATE($E$32,"!M223"))) ->  | M40: =IF(ISERROR(INDIRECT(CONCATENATE($E$32,"!M224"))),"",INDIRECT(CONCATENATE($E$32,"!M224"))) ->  | N40: =IF(ISERROR(INDIRECT(CONCATENATE($E$32,"!N222"))),"",INDIRECT(CONCATENATE($E$32,"!N222"))) ->  | O40: =IF(ISERROR(INDIRECT(CONCATENATE($E$32,"!N223"))),"",INDIRECT(CONCATENATE($E$32,"!N223"))) ->  | P40: =IF(ISERROR(INDIRECT(CONCATENATE($E$32,"!N224"))),"",INDIRECT(CONCATENATE($E$32,"!N224"))) ->  | Q40: =IF(ISERROR(INDIRECT(CONCATENATE($E$32,"!O222"))),"",INDIRECT(CONCATENATE($E$32,"!O222"))) ->  | R40: =IF(ISERROR(INDIRECT(CONCATENATE($E$32,"!O223"))),"",INDIRECT(CONCATENATE($E$32,"!O223"))) ->  | S40: =IF(ISERROR(INDIRECT(CONCATENATE($E$32,"!O224"))),"",INDIRECT(CONCATENATE($E$32,"!O224"))) ->  | T40: =IF(ISERROR(INDIRECT(CONCATENATE($E$32,"!P222"))),"",INDIRECT(CONCATENATE($E$32,"!P222"))) ->  | U40: =IF(ISERROR(INDIRECT(CONCATENATE($E$32,"!P223"))),"",INDIRECT(CONCATENATE($E$32,"!P223"))) ->  | V40: =IF(ISERROR(INDIRECT(CONCATENATE($E$32,"!P224"))),"",INDIRECT(CONCATENATE($E$32,"!P224"))) ->  | W40: =IF(ISERROR(INDIRECT(CONCATENATE($E$32,"!Q222"))),"",INDIRECT(CONCATENATE($E$32,"!Q222"))) ->  | X40: =IF(ISERROR(INDIRECT(CONCATENATE($E$32,"!Q223"))),"",INDIRECT(CONCATENATE($E$32,"!Q223"))) ->  | Y40: =IF(ISERROR(INDIRECT(CONCATENATE($E$32,"!Q224"))),"",INDIRECT(CONCATENATE($E$32,"!Q224"))) -> 
A88: 2 | B88: Template

Sheet WHS03
A2: =A1026 -> Congo
A3: =A1034 -> 2003
A4: Use of drinking water sources
A5: by wealth quintile and sub-national region
A6: Notes:
A7: WHO/UNICEF JMP customised wealth index excludes water,
A8: sanitation and hygiene assets.
A9: Survey used for analysis: | B9: =A1025 -> WHS03
A10: =B1028 -> 
A11: =B1027 -> 
A14: Use of drinking water sources | C14: NATIONAL wealth index quintile | H14: URBAN wealth index quintile | M14: RURAL wealth index quintile | BA14: Raw numbers of respondents: | BB14: Use of drinking water sources | BC14: NATIONAL wealth index quintile | BH14: URBAN wealth index quintile | BM14: RURAL wealth index quintile
A15: Weighted percentage (used in graphs) | C15: Poorest | D15: Poor | E15: Middle | F15: Rich | G15: Richest | H15: Poorest | I15: Poor | J15: Middle | K15: Rich | L15: Richest | M15: Poorest | N15: Poor | O15: Middle | P15: Rich | Q15: Richest | BA15: Water data, raw numbers (weighted) | BC15: Poorest | BD15: Poor | BE15: Middle | BF15: Rich | BG15: Richest | BH15: Poorest | BI15: Poor | BJ15: Middle | BK15: Rich | BL15: Richest | BM15: Poorest | BN15: Poor | BO15: Middle | BP15: Rich | BQ15: Richest
A16: Water | B16: Improved | C16: 56.07471252 | D16: 59.77027429 | E16: 61.01689701 | F16: 72.90194118 | G16: 70.47672215 | H16: 56.82255813 | I16: 58.75333518 | J16: 62.0591556 | K16: 68.51903431 | L16: 89.78725583 | M16: 41.43611716 | N16: 28.39511258 | O16: 30.41679454 | P16: 22.96826555 | Q16: 54.17238192 | BA16: Water | BB16: Improved | BC16: N/A | BD16: N/A | BE16: N/A | BF16: N/A | BG16: N/A | BH16: N/A | BI16: N/A | BJ16: N/A | BK16: N/A | BL16: N/A | BM16: N/A | BN16: N/A | BO16: N/A | BP16: N/A | BQ16: N/A
B17: Not Improved | C17: 43.92528748 | D17: 40.22972571 | E17: 38.98310299 | F17: 27.09805882 | G17: 29.52327785 | H17: 43.17744187 | I17: 41.24666482 | J17: 37.9408444 | K17: 31.48096569 | L17: 10.21274417 | M17: 58.56388284 | N17: 71.60488742 | O17: 69.58320546 | P17: 77.03173445 | Q17: 45.82761808 | BB17: Not Improved | BC17: N/A | BD17: N/A | BE17: N/A | BF17: N/A | BG17: N/A | BH17: N/A | BI17: N/A | BJ17: N/A | BK17: N/A | BL17: N/A | BM17: N/A | BN17: N/A | BO17: N/A | BP17: N/A | BQ17: N/A
A18: Water ladder | B18: Basic | C18: =C16*C23/100 -> 51.56351359 | D18: =D16*D23/100 -> 56.93039659 | E18: =E16*E23/100 -> 55.31618636 | F18: 57.53142582 | G18: 47.65019289 | H18: 52.55475029 | I18: 55.37274286 | J18: 56.67486378 | K18: 58.84193122 | L18: 63.076227 | M18: 27.45804151 | N18: 15.58959889 | O18: 17.43901961 | P18: 18.90675851 | Q18: 32.22964434 | BA18: Water ladder | BB18: Basic | BC18: N/A | BD18: N/A | BE18: N/A | BF18: N/A | BG18: N/A | BH18: N/A | BI18: N/A | BJ18: N/A | BK18: N/A | BL18: N/A | BM18: N/A | BN18: N/A | BO18: N/A | BP18: N/A | BQ18: N/A
B19: Limited | C19: =C16*C22/100 -> 4.51119893 | D19: =D16*D22/100 -> 2.839877696 | E19: =E16*E22/100 -> 5.700710649 | F19: 15.37051536 | G19: 22.82652926 | H19: 4.267807842 | I19: 3.380592316 | J19: 5.384291819 | K19: 9.677103092 | L19: 26.71102883 | M19: 13.97807565 | N19: 12.80551369 | O19: 12.97777493 | P19: 4.061507037 | Q19: 21.94273758 | BB19: Limited | BC19: N/A | BD19: N/A | BE19: N/A | BF19: N/A | BG19: N/A | BH19: N/A | BI19: N/A | BJ19: N/A | BK19: N/A | BL19: N/A | BM19: N/A | BN19: N/A | BO19: N/A | BP19: N/A | BQ19: N/A
B20: Unimproved | C20: =100-C18-C19-C21 -> 43.88263076 | D20: =100-D18-D19-D21 -> 40.22972571 | E20: =100-E18-E19-E21 -> 38.98310299 | F20: 27.09805882 | G20: 29.46952002 | H20: 43.12951411 | I20: 41.24666482 | J20: 37.9408444 | K20: 31.48096569 | L20: 10.21274417 | M20: 58.56388284 | N20: 71.60488742 | O20: 69.58320546 | P20: 76.69926593 | Q20: 45.65902285 | BB20: Unimproved | BC20: N/A | BD20: N/A | BE20: N/A | BF20: N/A | BG20: N/A | BH20: N/A | BI20: N/A | BJ20: N/A | BK20: N/A | BL20: N/A | BM20: N/A | BN20: N/A | BO20: N/A | BP20: N/A | BQ20: N/A
B21: Surface water | C21: 0.04265672068 | D21: 0 | E21: 0 | F21: 0 | G21: 0.05375782987 | H21: 0.04792776264 | I21: 0 | J21: 0 | K21: 0 | L21: 0 | M21: 0 | N21: 0 | O21: 0 | P21: 0.3324685189 | Q21: 0.1685952279 | BB21: Surface water | BC21: N/A | BD21: N/A | BE21: N/A | BF21: N/A | BG21: N/A | BH21: N/A | BI21: N/A | BJ21: N/A | BK21: N/A | BL21: N/A | BM21: N/A | BN21: N/A | BO21: N/A | BP21: N/A | BQ21: N/A
A22: Improved water point at more than 30 minutes | B22: Yes | C22: 8.04497915 | D22: 4.75132117 | E22: 9.342839325 | F22: 21.08382179 | G22: 32.38874987 | H22: 7.5107633 | I22: 5.753873045 | J22: 8.676063614 | K22: 14.12323333 | L22: 29.7492429 | M22: 33.73403834 | N22: 45.09759789 | O22: 42.66647792 | P22: 17.68312469 | Q22: 40.50539555 | BA22: Improved water point at more than 30 minutes | BB22: Yes | BC22: N/A | BD22: N/A | BE22: N/A | BF22: N/A | BG22: N/A | BH22: N/A | BI22: N/A | BJ22: N/A | BK22: N/A | BL22: N/A | BM22: N/A | BN22: N/A | BO22: N/A | BP22: N/A | BQ22: N/A
B23: No | C23: 91.95502085 | D23: 95.24867883 | E23: 90.65716068 | F23: 78.91617821 | G23: 67.61125013 | H23: 92.4892367 | I23: 94.24612696 | J23: 91.32393639 | K23: 85.87676667 | L23: 70.2507571 | M23: 66.26596166 | N23: 54.90240211 | O23: 57.33352208 | P23: 82.31687531 | Q23: 59.49460445 | BB23: No | BC23: N/A | BD23: N/A | BE23: N/A | BF23: N/A | BG23: N/A | BH23: N/A | BI23: N/A | BJ23: N/A | BK23: N/A | BL23: N/A | BM23: N/A | BN23: N/A | BO23: N/A | BP23: N/A | BQ23: N/A
A24: Manually calculated ratios | B24: Improved wells
B25: Improved springs
B26: Other
C27: NATIONAL wealth index quintile | H27: URBAN wealth index quintile | M27: RURAL wealth index quintile | BA27: Raw numbers of respondents: | BB27: Use of drinking water sources | BC27: NATIONAL wealth index quintile | BH27: URBAN wealth index quintile | BM27: RURAL wealth index quintile
A28: Percentage based on weighted population | C28: Poorest | D28: Poor | E28: Middle | F28: Rich | G28: Richest | H28: Poorest | I28: Poor | J28: Middle | K28: Rich | L28: Richest | M28: Poorest | N28: Poor | O28: Middle | P28: Rich | Q28: Richest | BA28: Water data, raw numbers (weighted) | BC28: Poorest | BD28: Poor | BE28: Middle | BF28: Rich | BG28: Richest | BH28: Poorest | BI28: Poor | BJ28: Middle | BK28: Rich | BL28: Richest | BM28: Poorest | BN28: Poor | BO28: Middle | BP28: Rich | BQ28: Richest
A29: Piped water | B29: Yes | C29: 53.56634212 | D29: 48.87151991 | E29: 48.99949479 | F29: 51.70605715 | G29: 32.96259727 | H29: 54.25842292 | I29: 50.74601101 | J29: 46.91927164 | K29: 54.31849434 | L29: 53.37455565 | M29: 11.25424209 | N29: 2.333350793 | O29: 4.375394246 | P29: 3.266345941 | Q29: 0.9535764924 | BA29: Piped water | BB29: Yes | BC29: N/A | BD29: N/A | BE29: N/A | BF29: N/A | BG29: N/A | BH29: N/A | BI29: N/A | BJ29: N/A | BK29: N/A | BL29: N/A | BM29: N/A | BN29: N/A | BO29: N/A | BP29: N/A | BQ29: N/A
B30: No | C30: 46.43365788 | D30: 51.12848009 | E30: 51.00050521 | F30: 48.29394285 | G30: 67.03740273 | H30: 45.74157708 | I30: 49.25398899 | J30: 53.08072836 | K30: 45.68150566 | L30: 46.62544435 | M30: 88.74575791 | N30: 97.66664921 | O30: 95.62460575 | P30: 96.73365406 | Q30: 99.04642351 | BB30: No | BC30: N/A | BD30: N/A | BE30: N/A | BF30: N/A | BG30: N/A | BH30: N/A | BI30: N/A | BJ30: N/A | BK30: N/A | BL30: N/A | BM30: N/A | BN30: N/A | BO30: N/A | BP30: N/A | BQ30: N/A
A31: Piped water on premises | B31: Yes | C31: 40.72021375 | D31: 29.11037443 | E31: 24.33700293 | F31: 19.46181058 | G31: 10.57134049 | H31: 41.83427473 | I31: 30.1756587 | J31: 24.83374954 | K31: 23.77163094 | L31: 16.4083361 | M31: 5.116798147 | N31: 0.3227402517 | O31: 2.016600529 | P31: 0 | Q31: 0 | BA31: Piped water on premises | BB31: Yes | BC31: N/A | BD31: N/A | BE31: N/A | BF31: N/A | BG31: N/A | BH31: N/A | BI31: N/A | BJ31: N/A | BK31: N/A | BL31: N/A | BM31: N/A | BN31: N/A | BO31: N/A | BP31: N/A | BQ31: N/A
B32: No | C32: 59.27978625 | D32: 70.88962557 | E32: 75.66299707 | F32: 80.53818942 | G32: 89.42865951 | H32: 58.16572527 | I32: 69.8243413 | J32: 75.16625046 | K32: 76.22836906 | L32: 83.5916639 | M32: 94.88320185 | N32: 99.67725975 | O32: 97.98339947 | P32: 100 | Q32: 100 | BB32: No | BC32: N/A | BD32: N/A | BE32: N/A | BF32: N/A | BG32: N/A | BH32: N/A | BI32: N/A | BJ32: N/A | BK32: N/A | BL32: N/A | BM32: N/A | BN32: N/A | BO32: N/A | BP32: N/A | BQ32: N/A
A33: Piped water into dwelling | B33: Yes | C33: N/A | D33: N/A | E33: N/A | F33: N/A | G33: N/A | H33: N/A | I33: N/A | J33: N/A | K33: N/A | L33: N/A | M33: N/A | N33: N/A | O33: N/A | P33: N/A | Q33: N/A | BA33: Piped water into dwelling | BB33: Yes | BC33: N/A | BD33: N/A | BE33: N/A | BF33: N/A | BG33: N/A | BH33: N/A | BI33: N/A | BJ33: N/A | BK33: N/A | BL33: N/A | BM33: N/A | BN33: N/A | BO33: N/A | BP33: N/A | BQ33: N/A
B34: No | C34: N/A | D34: N/A | E34: N/A | F34: N/A | G34: N/A | H34: N/A | I34: N/A | J34: N/A | K34: N/A | L34: N/A | M34: N/A | N34: N/A | O34: N/A | P34: N/A | Q34: N/A | BB34: No | BC34: N/A | BD34: N/A | BE34: N/A | BF34: N/A | BG34: N/A | BH34: N/A | BI34: N/A | BJ34: N/A | BK34: N/A | BL34: N/A | BM34: N/A | BN34: N/A | BO34: N/A | BP34: N/A | BQ34: N/A
A35: Water source on premises | B35: Yes | C35: N/A | D35: N/A | E35: N/A | F35: N/A | G35: N/A | H35: N/A | I35: N/A | J35: N/A | K35: N/A | L35: N/A | M35: N/A | N35: N/A | O35: N/A | P35: N/A | Q35: N/A | BA35: Water source on premises | BB35: Yes | BC35: N/A | BD35: N/A | BE35: N/A | BF35: N/A | BG35: N/A | BH35: N/A | BI35: N/A | BJ35: N/A | BK35: N/A | BL35: N/A | BM35: N/A | BN35: N/A | BO35: N/A | BP35: N/A | BQ35: N/A
B36: No | C36: N/A | D36: N/A | E36: N/A | F36: N/A | G36: N/A | H36: N/A | I36: N/A | J36: N/A | K36: N/A | L36: N/A | M36: N/A | N36: N/A | O36: N/A | P36: N/A | Q36: N/A | BB36: No | BC36: N/A | BD36: N/A | BE36: N/A | BF36: N/A | BG36: N/A | BH36: N/A | BI36: N/A | BJ36: N/A | BK36: N/A | BL36: N/A | BM36: N/A | BN36: N/A | BO36: N/A | BP36: N/A | BQ36: N/A
A37: Improved Water source on premises | B37: Yes | C37: N/A | D37: N/A | E37: N/A | F37: N/A | G37: N/A | H37: N/A | I37: N/A | J37: N/A | K37: N/A | L37: N/A | M37: N/A | N37: N/A | O37: N/A | P37: N/A | Q37: N/A | BA37: Improved water source on premises | BB37: Yes | BC37: N/A | BD37: N/A | BE37: N/A | BF37: N/A | BG37: N/A | BH37: N/A | BI37: N/A | BJ37: N/A | BK37: N/A | BL37: N/A | BM37: N/A | BN37: N/A | BO37: N/A | BP37: N/A | BQ37: N/A
B38: No | C38: N/A | D38: N/A | E38: N/A | F38: N/A | G38: N/A | H38: N/A | I38: N/A | J38: N/A | K38: N/A | L38: N/A | M38: N/A | N38: N/A | O38: N/A | P38: N/A | Q38: N/A | BB38: No | BC38: N/A | BD38: N/A | BE38: N/A | BF38: N/A | BG38: N/A | BH38: N/A | BI38: N/A | BJ38: N/A | BK38: N/A | BL38: N/A | BM38: N/A | BN38: N/A | BO38: N/A | BP38: N/A | BQ38: N/A
A39: Piped water on premises available when needed | B39: Yes | C39: N/A | D39: N/A | E39: N/A | F39: N/A | G39: N/A | H39: N/A | I39: N/A | J39: N/A | K39: N/A | L39: N/A | M39: N/A | N39: N/A | O39: N/A | P39: N/A | Q39: N/A | BA39: Piped water on premises available when needed | BB39: Yes | BC39: N/A | BD39: N/A | BE39: N/A | BF39: N/A | BG39: N/A | BH39: N/A | BI39: N/A | BJ39: N/A | BK39: N/A | BL39: N/A | BM39: N/A | BN39: N/A | BO39: N/A | BP39: N/A | BQ39: N/A
B40: No | C40: N/A | D40: N/A | E40: N/A | F40: N/A | G40: N/A | H40: N/A | I40: N/A | J40: N/A | K40: N/A | L40: N/A | M40: N/A | N40: N/A | O40: N/A | P40: N/A | Q40: N/A | BB40: No | BC40: N/A | BD40: N/A | BE40: N/A | BF40: N/A | BG40: N/A | BH40: N/A | BI40: N/A | BJ40: N/A | BK40: N/A | BL40: N/A | BM40: N/A | BN40: N/A | BO40: N/A | BP40: N/A | BQ40: N/A
A41: Water point at more than 30 minutes | B41: Yes | C41: 13.62484018 | D41: 5.405729341 | E41: 8.846991393 | F41: 21.9907983 | G41: 32.91444525 | H41: 13.7809365 | I41: 5.964601152 | J41: 8.746783216 | K41: 13.23915156 | L41: 28.76373915 | M41: 37.03141318 | N41: 56.84341336 | O41: 39.44417663 | P41: 32.9712765 | Q41: 39.52605049 | BA41: Water point at more than 30 minutes | BB41: Yes | BC41: N/A | BD41: N/A | BE41: N/A | BF41: N/A | BG41: N/A | BH41: N/A | BI41: N/A | BJ41: N/A | BK41: N/A | BL41: N/A | BM41: N/A | BN41: N/A | BO41: N/A | BP41: N/A | BQ41: N/A
B42: No | C42: 86.37515982 | D42: 94.59427066 | E42: 91.15300861 | F42: 78.0092017 | G42: 67.08555475 | H42: 86.2190635 | I42: 94.03539885 | J42: 91.25321678 | K42: 86.76084844 | L42: 71.23626085 | M42: 62.96858682 | N42: 43.15658664 | O42: 60.55582337 | P42: 67.0287235 | Q42: 60.47394951 | BB42: No | BC42: N/A | BD42: N/A | BE42: N/A | BF42: N/A | BG42: N/A | BH42: N/A | BI42: N/A | BJ42: N/A | BK42: N/A | BL42: N/A | BM42: N/A | BN42: N/A | BO42: N/A | BP42: N/A | BQ42: N/A
A43: Water source available when needed | B43: Yes | C43: N/A | D43: N/A | E43: N/A | F43: N/A | G43: N/A | H43: N/A | I43: N/A | J43: N/A | K43: N/A | L43: N/A | M43: N/A | N43: N/A | O43: N/A | P43: N/A | Q43: N/A | BA43: Water source available when needed | BB43: Yes | BC43: N/A | BD43: N/A | BE43: N/A | BF43: N/A | BG43: N/A | BH43: N/A | BI43: N/A | BJ43: N/A | BK43: N/A | BL43: N/A | BM43: N/A | BN43: N/A | BO43: N/A | BP43: N/A | BQ43: N/A
B44: No | C44: N/A | D44: N/A | E44: N/A | F44: N/A | G44: N/A | H44: N/A | I44: N/A | J44: N/A | K44: N/A | L44: N/A | M44: N/A | N44: N/A | O44: N/A | P44: N/A | Q44: N/A | BB44: No | BC44: N/A | BD44: N/A | BE44: N/A | BF44: N/A | BG44: N/A | BH44: N/A | BI44: N/A | BJ44: N/A | BK44: N/A | BL44: N/A | BM44: N/A | BN44: N/A | BO44: N/A | BP44: N/A | BQ44: N/A
A45: Improved water source available when needed | B45: Yes | C45: N/A | D45: N/A | E45: N/A | F45: N/A | G45: N/A | H45: N/A | I45: N/A | J45: N/A | K45: N/A | L45: N/A | M45: N/A | N45: N/A | O45: N/A | P45: N/A | Q45: N/A | BA45: Improved water source available when needed | BB45: Yes | BC45: N/A | BD45: N/A | BE45: N/A | BF45: N/A | BG45: N/A | BH45: N/A | BI45: N/A | BJ45: N/A | BK45: N/A | BL45: N/A | BM45: N/A | BN45: N/A | BO45: N/A | BP45: N/A | BQ45: N/A
B46: No | C46: N/A | D46: N/A | E46: N/A | F46: N/A | G46: N/A | H46: N/A | I46: N/A | J46: N/A | K46: N/A | L46: N/A | M46: N/A | N46: N/A | O46: N/A | P46: N/A | Q46: N/A | BB46: No | BC46: N/A | BD46: N/A | BE46: N/A | BF46: N/A | BG46: N/A | BH46: N/A | BI46: N/A | BJ46: N/A | BK46: N/A | BL46: N/A | BM46: N/A | BN46: N/A | BO46: N/A | BP46: N/A | BQ46: N/A
A47: Microbiological quality at point of collection | B47: Not contaminated (No E. coli in 100 mL) | C47: N/A | D47: N/A | E47: N/A | F47: N/A | G47: N/A | H47: N/A | I47: N/A | J47: N/A | K47: N/A | L47: N/A | M47: N/A | N47: N/A | O47: N/A | P47: N/A | Q47: N/A | BA47: Microbiological quality at point of collection | BB47: Not contaminated (No E. coli in 100 mL) | BC47: N/A | BD47: N/A | BE47: N/A | BF47: N/A | BG47: N/A | BH47: N/A | BI47: N/A | BJ47: N/A | BK47: N/A | BL47: N/A | BM47: N/A | BN47: N/A | BO47: N/A | BP47: N/A | BQ47: N/A
B48: Contaminated (E. coli detected in 100 mL) | C48: N/A | D48: N/A | E48: N/A | F48: N/A | G48: N/A | H48: N/A | I48: N/A | J48: N/A | K48: N/A | L48: N/A | M48: N/A | N48: N/A | O48: N/A | P48: N/A | Q48: N/A | BB48: Contaminated (E. coli detected in 100 mL) | BC48: N/A | BD48: N/A | BE48: N/A | BF48: N/A | BG48: N/A | BH48: N/A | BI48: N/A | BJ48: N/A | BK48: N/A | BL48: N/A | BM48: N/A | BN48: N/A | BO48: N/A | BP48: N/A | BQ48: N/A
B49: Highly contaminated (>100 CFU/100 mL) | C49: N/A | D49: N/A | E49: N/A | F49: N/A | G49: N/A | H49: N/A | I49: N/A | J49: N/A | K49: N/A | L49: N/A | M49: N/A | N49: N/A | O49: N/A | P49: N/A | Q49: N/A | BB49: Highly contaminated (>100 CFU/100 mL) | BC49: N/A | BD49: N/A | BE49: N/A | BF49: N/A | BG49: N/A | BH49: N/A | BI49: N/A | BJ49: N/A | BK49: N/A | BL49: N/A | BM49: N/A | BN49: N/A | BO49: N/A | BP49: N/A | BQ49: N/A
A50: Microbiological quality of improved water sources at point of collection | B50: Not contaminated (No E. coli in 100 mL) | C50: N/A | D50: N/A | E50: N/A | F50: N/A | G50: N/A | H50: N/A | I50: N/A | J50: N/A | K50: N/A | L50: N/A | M50: N/A | N50: N/A | O50: N/A | P50: N/A | Q50: N/A | BA50: Microbiological quality of improved water sources at point of collection | BB50: Not contaminated (No E. coli in 100 mL) | BC50: N/A | BD50: N/A | BE50: N/A | BF50: N/A | BG50: N/A | BH50: N/A | BI50: N/A | BJ50: N/A | BK50: N/A | BL50: N/A | BM50: N/A | BN50: N/A | BO50: N/A | BP50: N/A | BQ50: N/A
B51: Contaminated (E. coli detected in 100 mL) | C51: N/A | D51: N/A | E51: N/A | F51: N/A | G51: N/A | H51: N/A | I51: N/A | J51: N/A | K51: N/A | L51: N/A | M51: N/A | N51: N/A | O51: N/A | P51: N/A | Q51: N/A | BB51: Contaminated (E. coli detected in 100 mL) | BC51: N/A | BD51: N/A | BE51: N/A | BF51: N/A | BG51: N/A | BH51: N/A | BI51: N/A | BJ51: N/A | BK51: N/A | BL51: N/A | BM51: N/A | BN51: N/A | BO51: N/A | BP51: N/A | BQ51: N/A
B52: Highly contaminated (>100 CFU/100 mL) | C52: N/A | D52: N/A | E52: N/A | F52: N/A | G52: N/A | H52: N/A | I52: N/A | J52: N/A | K52: N/A | L52: N/A | M52: N/A | N52: N/A | O52: N/A | P52: N/A | Q52: N/A | BB52: Highly contaminated (>100 CFU/100 mL) | BC52: N/A | BD52: N/A | BE52: N/A | BF52: N/A | BG52: N/A | BH52: N/A | BI52: N/A | BJ52: N/A | BK52: N/A | BL52: N/A | BM52: N/A | BN52: N/A | BO52: N/A | BP52: N/A | BQ52: N/A
A53: Microbiological quality of piped on premises at point of collection | B53: Not contaminated (No E. coli in 100 mL) | C53: N/A | D53: N/A | E53: N/A | F53: N/A | G53: N/A | H53: N/A | I53: N/A | J53: N/A | K53: N/A | L53: N/A | M53: N/A | N53: N/A | O53: N/A | P53: N/A | Q53: N/A | BA53: Microbiological quality of piped on premises at point of collection | BB53: Not contaminated (No E. coli in 100 mL) | BC53: N/A | BD53: N/A | BE53: N/A | BF53: N/A | BG53: N/A | BH53: N/A | BI53: N/A | BJ53: N/A | BK53: N/A | BL53: N/A | BM53: N/A | BN53: N/A | BO53: N/A | BP53: N/A | BQ53: N/A
B54: Contaminated (E. coli detected in 100 mL) | C54: N/A | D54: N/A | E54: N/A | F54: N/A | G54: N/A | H54: N/A | I54: N/A | J54: N/A | K54: N/A | L54: N/A | M54: N/A | N54: N/A | O54: N/A | P54: N/A | Q54: N/A | BB54: Contaminated (E. coli detected in 100 mL) | BC54: N/A | BD54: N/A | BE54: N/A | BF54: N/A | BG54: N/A | BH54: N/A | BI54: N/A | BJ54: N/A | BK54: N/A | BL54: N/A | BM54: N/A | BN54: N/A | BO54: N/A | BP54: N/A | BQ54: N/A
B55: Highly contaminated (>100 CFU/100 mL) | C55: N/A | D55: N/A | E55: N/A | F55: N/A | G55: N/A | H55: N/A | I55: N/A | J55: N/A | K55: N/A | L55: N/A | M55: N/A | N55: N/A | O55: N/A | P55: N/A | Q55: N/A | BB55: Highly contaminated (>100 CFU/100 mL) | BC55: N/A | BD55: N/A | BE55: N/A | BF55: N/A | BG55: N/A | BH55: N/A | BI55: N/A | BJ55: N/A | BK55: N/A | BL55: N/A | BM55: N/A | BN55: N/A | BO55: N/A | BP55: N/A | BQ55: N/A
C56: NATIONAL wealth index quintile | H56: URBAN wealth index quintile | M56: RURAL wealth index quintile | BA56: Raw numbers of respondents: | BB56: Use of drinking water sources | BC56: NATIONAL wealth index quintile | BH56: URBAN wealth index quintile | BM56: RURAL wealth index quintile
A57: Percentage based on weighted population | C57: Poorest | D57: Poor | E57: Middle | F57: Rich | G57: Richest | H57: Poorest | I57: Poor | J57: Middle | K57: Rich | L57: Richest | M57: Poorest | N57: Poor | O57: Middle | P57: Rich | Q57: Richest | BA57: Water data, raw numbers (weighted) | BC57: Poorest | BD57: Poor | BE57: Middle | BF57: Rich | BG57: Richest | BH57: Poorest | BI57: Poor | BJ57: Middle | BK57: Rich | BL57: Richest | BM57: Poorest | BN57: Poor | BO57: Middle | BP57: Rich | BQ57: Richest
A58: main source of drinking water | B58: Piped water through house connection or yard | C58: 72.46544801 | D58: 48.34840374 | E58: 38.28227311 | F58: 24.69957951 | G58: 12.80054568 | H58: 73.58278878 | I58: 51.17454258 | J58: 39.38071618 | K58: 33.03680511 | L58: 17.03295642 | M58: 7.262729603 | N58: 0.5750125882 | O58: 4.904240405 | P58: 0 | Q58: 0
B59: Public standpipe | C59: 22.86089294 | D59: 32.82059605 | E59: 38.79426945 | F59: 40.92216027 | G59: 27.11295749 | H59: 21.8529777 | I59: 34.88501712 | J59: 35.02264837 | K59: 42.452736 | L59: 38.37342208 | M59: 8.711423542 | N59: 3.582219338 | O59: 5.736431828 | P59: 8.625854155 | Q59: 1.147443483
B60: Protected tube well or bore hole | C60: 2.233274263 | D60: 3.202848139 | E60: 4.26828778 | F60: 2.523474877 | G60: 4.151842242 | H60: 2.109081877 | I60: 3.277225727 | J60: 4.038588391 | K60: 2.75223836 | L60: 4.184353423 | M60: 2.269499042 | N60: 6.802084652 | O60: 1.528459063 | P60: 0.8328296686 | Q60: 1.915389537
B61: Protected dug well or protected spring | C61: 2.19162882 | D61: 13.48692344 | E61: 12.26873083 | F61: 18.11710779 | G61: 31.96867768 | H61: 2.40100514 | I61: 8.967190103 | J61: 17.94359985 | K61: 14.21146125 | L61: 29.10697651 | M61: 20.13527359 | N61: 21.8851885 | O61: 23.21177232 | P61: 30.49600103 | Q61: 29.78102761
B62: Unprotected dug well or spring | C62: 0.1603534077 | D62: 0.7296398812 | E62: 4.020001027 | F62: 7.477915019 | G62: 14.60170051 | H62: 0 | I62: 0.3609139783 | J62: 1.588199983 | K62: 4.775150326 | L62: 6.794789761 | M62: 41.18601006 | N62: 49.40963488 | O62: 26.02834787 | P62: 38.47099854 | Q62: 34.61266766
B63: Rainwater (into tank or cistern ) | C63: 0 | D63: 0.1984996361 | E63: 0.8430668916 | F63: 2.748000877 | G63: 2.064023599 | H63: 0 | I63: 0 | J63: 1.067422618 | K63: 1.395586997 | L63: 2.85824567 | M63: 1.652035072 | N63: 0.9504692752 | O63: 2.596688569 | P63: 4.065015888 | Q63: 1.269868404
B64: Water taken directly from pond-water or stream | C64: 0.04942473283 | D64: 0 | E64: 0 | F64: 0 | G64: 0.05997343132 | H64: 0.0541465035 | I64: 0 | J64: 0 | K64: 0 | L64: 0 | M64: 0 | N64: 0 | O64: 0 | P64: 0.8737884518 | Q64: 0.2014273986
B65: Tanker-truck, vendor | C65: 0.03897782447 | D65: 1.213089115 | E65: 1.523370905 | F65: 3.511761669 | G65: 7.240279359 | H65: 0 | I65: 1.335110492 | J65: 0.9588246096 | K65: 1.37602195 | L65: 1.649256137 | M65: 18.78302909 | N65: 16.79539077 | O65: 35.99405994 | P65: 16.63551227 | Q65: 31.07217591
A108: =A1026 -> Congo
A109: =A1034 -> 2003
A110: Use of sanitation facilities
A111: by wealth quintile and sub-national region
A112: Notes:
A113: WHO/UNICEF JMP customised wealth index excludes water,
A114: sanitation and hygiene assets.
A115: Survey used for analysis: | B115: =A1025 -> WHS03
A116: =B1030 -> 
A117: =B1029 -> 
A120: Use of sanitation facilities | C120: NATIONAL wealth index quintile | H120: URBAN wealth index quintile | M120: RURAL wealth index quintile | BA120: Raw numbers of respondents: | BB120: Use of sanitation facilities | BC120: NATIONAL wealth index quintile | BH120: URBAN wealth index quintile | BM120: RURAL wealth index quintile
A121: Weighted percentage (used in graphs) | C121: Poorest | D121: Poor | E121: Middle | F121: Rich | G121: Richest | H121: Poorest | I121: Poor | J121: Middle | K121: Rich | L121: Richest | M121: Poorest | N121: Poor | O121: Middle | P121: Rich | Q121: Richest | BA121: Sanitation data, raw numbers (weighted) | BC121: Poorest | BD121: Poor | BE121: Middle | BF121: Rich | BG121: Richest | BH121: Poorest | BI121: Poor | BJ121: Middle | BK121: Rich | BL121: Richest | BM121: Poorest | BN121: Poor | BO121: Middle | BP121: Rich | BQ121: Richest
A122: Sanitation | B122: Improved | C122: 45.57950647 | D122: 48.97146594 | E122: 44.21140941 | F122: 34.07232977 | G122: 50.91568664 | H122: 57.68732147 | I122: 45.10189624 | J122: 43.89533045 | K122: 33.15022509 | L122: 53.68329315 | M122: 31.14610934 | N122: 29.47245543 | O122: 9.932777505 | P122: 12.81060793 | Q122: 51.83983769 | BA122: Sanitation | BB122: Improved | BC122: 27721.844 | BD122: 29865.69039 | BE122: 26955.80212 | BF122: 20743.56551 | BG122: 31028.04916 | BH122: 31707.04049 | BI122: 24703.71139 | BJ122: 24041.53638 | BK122: 18243.84153 | BL122: 29464.00371 | BM122: 1878.189986 | BN122: 1777.703674 | BO122: 599.879468 | BP122: 774.154973 | BQ122: 3124.889555
B123: Not Improved | C123: 54.42049353 | D123: 51.02853406 | E123: 55.78859059 | F123: 65.92767023 | G123: 49.08431336 | H123: 42.31267853 | I123: 54.89810376 | J123: 56.10466955 | K123: 66.84977491 | L123: 46.31670685 | M123: 68.85389066 | N123: 70.52754457 | O123: 90.0672225 | P123: 87.18939207 | Q123: 48.16016231 | BB123: Not Improved | BC123: 33099.00761 | BD123: 31120.21194 | BE123: 34014.4372 | BF123: 40137.40637 | BG123: 29912.00922 | BH123: 23256.58008 | BI123: 30069.39895 | BJ123: 30728.60918 | BK123: 36789.99756 | BL123: 25420.86266 | BM123: 4152.065561 | BN123: 4254.042403 | BO123: 5439.513518 | BP123: 5268.922587 | BQ123: 2903.079849
A124: Sanitation ladder | B124: Basic | C124: =C122*C129/100 -> 29.07975275 | D124: =D122*D129/100 -> 23.68411241 | E124: =E122*E129/100 -> 21.88073718 | F124: 14.41601972 | G124: 34.55551663 | H124: 31.84595013 | I124: 22.47965006 | J124: 20.79311739 | K124: 14.07054269 | L124: 37.26521116 | M124: 27.29715897 | N124: 20.89629249 | O124: 8.434377542 | P124: 5.539319235 | Q124: 33.99803872 | BA124: Sanitation ladder | BB124: Basic | BC124: 20308.15545 | BD124: 18004.73559 | BE124: 14611.67739 | BF124: 9634.398224 | BG124: 20003.6123 | BH124: 21250.43302 | BI124: 14912.4838 | BJ124: 12465.78672 | BK124: 8687.595322 | BL124: 18904.65849 | BM124: 1637.742518 | BN124: 1455.978519 | BO124: 495.4257288 | BP124: 267.4673243 | BQ124: 2485.007518
B125: Limited | C125: =C122*C128/100 -> 16.49975372 | D125: =D122*D128/100 -> 25.28735353 | E125: =E122*E128/100 -> 22.33067223 | F125: 19.65631006 | G125: 16.36017001 | H125: 25.84137135 | I125: 22.62224618 | J125: 23.10221306 | K125: 19.0796824 | L125: 16.418082 | M125: 3.848950365 | N125: 8.576162944 | O125: 1.498399963 | P125: 7.271288693 | Q125: 17.84179897 | BB125: Limited | BC125: 6111.450706 | BD125: 10617.75025 | BE125: 10341.0882 | BF125: 9927.311661 | BG125: 7667.852932 | BH125: 9132.699757 | BI125: 8239.442142 | BJ125: 9575.208431 | BK125: 8727.054436 | BL125: 7202.761303 | BM125: 227.1126862 | BN125: 310.1515694 | BO125: 104.4537392 | BP125: 506.6876488 | BQ125: 639.8820372
B126: Unimproved | C126: =100-C124-C125-C127 -> 46.09358291 | D126: =100-D124-D125-D127 -> 48.3899855 | E126: =100-E124-E125-E127 -> 54.33818521 | F126: 65.65039945 | G126: 48.39280547 | H126: 36.5759974 | I126: 54.22613111 | J126: 54.94630033 | K126: 66.54439851 | L126: 45.54393847 | M126: 49.93229112 | N126: 51.66695931 | O126: 88.5796324 | P126: 82.76533956 | Q126: 36.37346176 | BB126: Unimproved | BC126: 28142.94585 | BD126: 29543.87185 | BE126: 33159.17372 | BF126: 39971.87817 | BG126: 29513.81495 | BH126: 20179.4408 | BI126: 29711.7662 | BJ126: 30117.34233 | BK126: 36624.46935 | BL126: 25022.66839 | BM126: 3013.567909 | BN126: 3118.602637 | BO126: 5349.672107 | BP126: 5001.573663 | BQ126: 2192.581146
B127: Open defecation | C127: 8.326910612 | D127: 2.638548566 | E127: 1.450405379 | F127: 0.2772707746 | G127: 0.6915078933 | H127: 5.736681127 | I127: 0.6719726508 | J127: 1.158369219 | K127: 0.3053764027 | L127: 0.7727683752 | M127: 18.92159954 | N127: 18.86058526 | O127: 1.487590091 | P127: 4.424052512 | Q127: 11.78670055 | BB127: Open defecation | BC127: 4956.061766 | BD127: 1576.340096 | BE127: 855.2634811 | BF127: 165.5282021 | BG127: 398.1942711 | BH127: 3077.139284 | BI127: 357.6327477 | BJ127: 611.2668533 | BK127: 165.5282021 | BL127: 398.1942711 | BM127: 1138.497652 | BN127: 1135.439766 | BO127: 89.84141159 | BP127: 267.3489246 | BQ127: 710.498703
A128: Shared among Improved Sanitation | B128: Yes | C128: 36.19993939 | D128: 51.63691355 | E128: 50.50884495 | F128: 57.68995014 | G128: 32.13188526 | H128: 44.79558192 | I128: 50.15808219 | J128: 52.63022927 | K128: 57.55521221 | L128: 30.58322438 | M128: 12.35772444 | N128: 29.09890886 | O128: 15.0854075 | P128: 56.75990346 | Q128: 34.41715824 | BA128: Shared among improved sanitation facilities | BB128: Yes | BC128: N/A | BD128: N/A | BE128: N/A | BF128: N/A | BG128: N/A | BH128: N/A | BI128: N/A | BJ128: N/A | BK128: N/A | BL128: N/A | BM128: N/A | BN128: N/A | BO128: N/A | BP128: N/A | BQ128: N/A
B129: No | C129: 63.80006061 | D129: 48.36308645 | E129: 49.49115505 | F129: 42.31004986 | G129: 67.86811474 | H129: 55.20441808 | I129: 49.84191781 | J129: 47.36977073 | K129: 42.44478779 | L129: 69.41677562 | M129: 87.64227556 | N129: 70.90109114 | O129: 84.9145925 | P129: 43.24009654 | Q129: 65.58284176 | BB129: No | BC129: N/A | BD129: N/A | BE129: N/A | BF129: N/A | BG129: N/A | BH129: N/A | BI129: N/A | BJ129: N/A | BK129: N/A | BL129: N/A | BM129: N/A | BN129: N/A | BO129: N/A | BP129: N/A | BQ129: N/A
A130: Manually calculated ratios | B130: Improved latrines
B131: Other
B132: Other
C133: NATIONAL wealth index quintile | H133: URBAN wealth index quintile | M133: RURAL wealth index quintile | BA133: Raw numbers of respondents: | BB133: Use of sanitation facilities | BC133: NATIONAL wealth index quintile | BH133: URBAN wealth index quintile | BM133: RURAL wealth index quintile
A134: Percentage based on weighted population | C134: Poorest | D134: Poor | E134: Middle | F134: Rich | G134: Richest | H134: Poorest | I134: Poor | J134: Middle | K134: Rich | L134: Richest | M134: Poorest | N134: Poor | O134: Middle | P134: Rich | Q134: Richest | BA134: Sanitation data, raw numbers (weighted) | BC134: Poorest | BD134: Poor | BE134: Middle | BF134: Rich | BG134: Richest | BH134: Poorest | BI134: Poor | BJ134: Middle | BK134: Rich | BL134: Richest | BM134: Poorest | BN134: Poor | BO134: Middle | BP134: Rich | BQ134: Richest
A135: Sanitation type | B135: Sewer connection | C135: 1.322437051 | D135: 0.9792274133 | E135: 0.4364439263 | F135: 4.526587432 | G135: 15.33534991 | H135: 1.583986752 | I135: 0.9449105534 | J135: 1.38505602 | K135: 4.430269536 | L135: 16.70871866 | M135: 0.2211312861 | N135: 0 | O135: 0 | P135: 0 | Q135: 0 | BA135: Sanitation type | BB135: Sewer connection | BC135: N/A | BD135: N/A | BE135: N/A | BF135: N/A | BG135: N/A | BH135: N/A | BI135: N/A | BJ135: N/A | BK135: N/A | BL135: N/A | BM135: N/A | BN135: N/A | BO135: N/A | BP135: N/A | BQ135: N/A
B136: Septic tank connection | C136: 0.424073217 | D136: 1.716075704 | E136: 2.339898858 | F136: 6.675052165 | G136: 9.332155316 | H136: 0.9170475741 | I136: 2.934223926 | J136: 1.897488068 | K136: 7.798733442 | L136: 9.182095798 | M136: 0 | N136: 0 | O136: 0 | P136: 0 | Q136: 0 | BB136: Septic tank connection | BC136: N/A | BD136: N/A | BE136: N/A | BF136: N/A | BG136: N/A | BH136: N/A | BI136: N/A | BJ136: N/A | BK136: N/A | BL136: N/A | BM136: N/A | BN136: N/A | BO136: N/A | BP136: N/A | BQ136: N/A
B137: Improved latrines | C137: 43.83299621 | D137: 46.27616282 | E137: 41.43506662 | F137: 22.87069018 | G137: 26.24818141 | H137: 55.18628715 | I137: 41.22276176 | J137: 40.61278636 | K137: 20.92122211 | L137: 27.79247869 | M137: 30.92497805 | N137: 29.47245543 | O137: 9.932777505 | P137: 12.81060793 | Q137: 51.83983769 | BB137: Improved latrines | BC137: N/A | BD137: N/A | BE137: N/A | BF137: N/A | BG137: N/A | BH137: N/A | BI137: N/A | BJ137: N/A | BK137: N/A | BL137: N/A | BM137: N/A | BN137: N/A | BO137: N/A | BP137: N/A | BQ137: N/A
B138: Unimproved facilities | C138: 46.27187075 | D138: 48.44377261 | E138: 54.38583494 | F138: 65.65578199 | G138: 48.43089379 | H138: 36.71417673 | I138: 54.24516887 | J138: 54.98861107 | K138: 66.5489996 | L138: 45.59119853 | M138: 49.9741327 | N138: 51.70314859 | O138: 88.5796324 | P138: 82.76533956 | Q138: 36.37346176 | BB138: Unimproved facilities | BC138: N/A | BD138: N/A | BE138: N/A | BF138: N/A | BG138: N/A | BH138: N/A | BI138: N/A | BJ138: N/A | BK138: N/A | BL138: N/A | BM138: N/A | BN138: N/A | BO138: N/A | BP138: N/A | BQ138: N/A
B139: Open defecation | C139: 8.148622775 | D139: 2.584761454 | E139: 1.402755657 | F139: 0.2718882385 | G139: 0.6534195761 | H139: 5.598501794 | I139: 0.6529348898 | J139: 1.116058479 | K139: 0.3007753135 | L139: 0.7255083184 | M139: 18.87975797 | N139: 18.82439598 | O139: 1.487590091 | P139: 4.424052512 | Q139: 11.78670055 | BB139: Open defecation | BC139: N/A | BD139: N/A | BE139: N/A | BF139: N/A | BG139: N/A | BH139: N/A | BI139: N/A | BJ139: N/A | BK139: N/A | BL139: N/A | BM139: N/A | BN139: N/A | BO139: N/A | BP139: N/A | BQ139: N/A
A140: Septic tank emptying practices | B140: Not emptied/treated and disposed in situ | C140: N/A | D140: N/A | E140: N/A | F140: N/A | G140: N/A | H140: N/A | I140: N/A | J140: N/A | K140: N/A | L140: N/A | M140: N/A | N140: N/A | O140: N/A | P140: N/A | Q140: N/A | BA140: Septic tank emptying practices | BB140: Not emptied/treated and disposed in situ | BC140: N/A | BD140: N/A | BE140: N/A | BF140: N/A | BG140: N/A | BH140: N/A | BI140: N/A | BJ140: N/A | BK140: N/A | BL140: N/A | BM140: N/A | BN140: N/A | BO140: N/A | BP140: N/A | BQ140: N/A
B141: Emptied and buried on site | C141: N/A | D141: N/A | E141: N/A | F141: N/A | G141: N/A | H141: N/A | I141: N/A | J141: N/A | K141: N/A | L141: N/A | M141: N/A | N141: N/A | O141: N/A | P141: N/A | Q141: N/A | BB141: Emptied and buried on site | BC141: N/A | BD141: N/A | BE141: N/A | BF141: N/A | BG141: N/A | BH141: N/A | BI141: N/A | BJ141: N/A | BK141: N/A | BL141: N/A | BM141: N/A | BN141: N/A | BO141: N/A | BP141: N/A | BQ141: N/A
B142: Emptied and discharged locally | C142: N/A | D142: N/A | E142: N/A | F142: N/A | G142: N/A | H142: N/A | I142: N/A | J142: N/A | K142: N/A | L142: N/A | M142: N/A | N142: N/A | O142: N/A | P142: N/A | Q142: N/A | BB142: Emptied and discharged locally | BC142: N/A | BD142: N/A | BE142: N/A | BF142: N/A | BG142: N/A | BH142: N/A | BI142: N/A | BJ142: N/A | BK142: N/A | BL142: N/A | BM142: N/A | BN142: N/A | BO142: N/A | BP142: N/A | BQ142: N/A
B143: Emptied and removed offsite | C143: N/A | D143: N/A | E143: N/A | F143: N/A | G143: N/A | H143: N/A | I143: N/A | J143: N/A | K143: N/A | L143: N/A | M143: N/A | N143: N/A | O143: N/A | P143: N/A | Q143: N/A | BB143: Emptied and removed offsite | BC143: N/A | BD143: N/A | BE143: N/A | BF143: N/A | BG143: N/A | BH143: N/A | BI143: N/A | BJ143: N/A | BK143: N/A | BL143: N/A | BM143: N/A | BN143: N/A | BO143: N/A | BP143: N/A | BQ143: N/A
A144: Latrine emptying practices | B144: Not emptied/treated and disposed in situ | C144: N/A | D144: N/A | E144: N/A | F144: N/A | G144: N/A | H144: N/A | I144: N/A | J144: N/A | K144: N/A | L144: N/A | M144: N/A | N144: N/A | O144: N/A | P144: N/A | Q144: N/A | BA144: Latrine emptying practices | BB144: Not emptied/treated and disposed in situ | BC144: N/A | BD144: N/A | BE144: N/A | BF144: N/A | BG144: N/A | BH144: N/A | BI144: N/A | BJ144: N/A | BK144: N/A | BL144: N/A | BM144: N/A | BN144: N/A | BO144: N/A | BP144: N/A | BQ144: N/A
B145: Emptied and buried on site | C145: N/A | D145: N/A | E145: N/A | F145: N/A | G145: N/A | H145: N/A | I145: N/A | J145: N/A | K145: N/A | L145: N/A | M145: N/A | N145: N/A | O145: N/A | P145: N/A | Q145: N/A | BB145: Emptied and buried on site | BC145: N/A | BD145: N/A | BE145: N/A | BF145: N/A | BG145: N/A | BH145: N/A | BI145: N/A | BJ145: N/A | BK145: N/A | BL145: N/A | BM145: N/A | BN145: N/A | BO145: N/A | BP145: N/A | BQ145: N/A
B146: Emptied and discharged locally | C146: N/A | D146: N/A | E146: N/A | F146: N/A | G146: N/A | H146: N/A | I146: N/A | J146: N/A | K146: N/A | L146: N/A | M146: N/A | N146: N/A | O146: N/A | P146: N/A | Q146: N/A | BB146: Emptied and discharged locally | BC146: N/A | BD146: N/A | BE146: N/A | BF146: N/A | BG146: N/A | BH146: N/A | BI146: N/A | BJ146: N/A | BK146: N/A | BL146: N/A | BM146: N/A | BN146: N/A | BO146: N/A | BP146: N/A | BQ146: N/A
B147: Emptied and removed offsite | C147: N/A | D147: N/A | E147: N/A | F147: N/A | G147: N/A | H147: N/A | I147: N/A | J147: N/A | K147: N/A | L147: N/A | M147: N/A | N147: N/A | O147: N/A | P147: N/A | Q147: N/A | BB147: Emptied and removed offsite | BC147: N/A | BD147: N/A | BE147: N/A | BF147: N/A | BG147: N/A | BH147: N/A | BI147: N/A | BJ147: N/A | BK147: N/A | BL147: N/A | BM147: N/A | BN147: N/A | BO147: N/A | BP147: N/A | BQ147: N/A
A148: Shared among improved sanitation facilities | B148: Yes | C148: 22.23118465 | D148: 38.02338798 | E148: 27.96214546 | F148: 24.28586224 | G148: 16.26258149 | H148: 36.55480631 | I148: 33.18374722 | J148: 28.02283434 | K148: 23.3750739 | L148: 15.92089471 | M148: 6.101184725 | N148: 11.44126984 | O148: 1.729540359 | P148: 10.94782166 | Q148: 23.4306964 | BA148: Shared among improved sanitation facilities | BB148: Yes | BC148: N/A | BD148: N/A | BE148: N/A | BF148: N/A | BG148: N/A | BH148: N/A | BI148: N/A | BJ148: N/A | BK148: N/A | BL148: N/A | BM148: N/A | BN148: N/A | BO148: N/A | BP148: N/A | BQ148: N/A
B149: No | C149: 39.18103046 | D149: 35.61267074 | E149: 27.39874329 | F149: 17.81135258 | G149: 34.34939275 | H149: 45.04879107 | I149: 32.97457816 | J149: 25.2219163 | K149: 17.23823114 | L149: 36.13671216 | M149: 43.27024086 | N149: 27.87728296 | O149: 9.735448963 | P149: 8.34012809 | Q149: 44.64783651 | BB149: No | BC149: N/A | BD149: N/A | BE149: N/A | BF149: N/A | BG149: N/A | BH149: N/A | BI149: N/A | BJ149: N/A | BK149: N/A | BL149: N/A | BM149: N/A | BN149: N/A | BO149: N/A | BP149: N/A | BQ149: N/A
B150: DK/missing | C150: 38.58778489 | D150: 26.36394128 | E150: 44.63911125 | F150: 57.90278518 | G150: 49.38802576 | H150: 18.39640262 | I150: 33.84167462 | J150: 46.75524936 | K150: 59.38669496 | L150: 47.94239313 | M150: 50.62857442 | N150: 60.6814472 | O150: 88.53501068 | P150: 80.71205025 | Q150: 31.92146709 | BB150: DK/missing | BC150: N/A | BD150: N/A | BE150: N/A | BF150: N/A | BG150: N/A | BH150: N/A | BI150: N/A | BJ150: N/A | BK150: N/A | BL150: N/A | BM150: N/A | BN150: N/A | BO150: N/A | BP150: N/A | BQ150: N/A
A151: Shared among all sanitation facilities | B151: Yes | C151: 64.90825326 | D151: 50.75144771 | E151: 49.64232869 | F151: 43.90193003 | G151: 70.41005001 | H151: 57.0762336 | I151: 52.66846904 | J151: 47.87239258 | K151: 45.09881501 | L151: 71.95805673 | M151: 92.49515832 | N151: 66.79058819 | O151: 96.56649108 | P151: 32.92227851 | Q151: 57.06051788 | BA151: Shared among all sanitation facilities | BB151: Yes | BC151: N/A | BD151: N/A | BE151: N/A | BF151: N/A | BG151: N/A | BH151: N/A | BI151: N/A | BJ151: N/A | BK151: N/A | BL151: N/A | BM151: N/A | BN151: N/A | BO151: N/A | BP151: N/A | BQ151: N/A
B152: No | C152: 35.09174674 | D152: 49.24855229 | E152: 50.35767131 | F152: 56.09806997 | G152: 29.58994999 | H152: 42.9237664 | I152: 47.33153096 | J152: 52.12760742 | K152: 54.90118499 | L152: 28.04194327 | M152: 7.504841678 | N152: 33.20941181 | O152: 3.433508916 | P152: 67.07772149 | Q152: 42.93948212 | BB152: No | BC152: N/A | BD152: N/A | BE152: N/A | BF152: N/A | BG152: N/A | BH152: N/A | BI152: N/A | BJ152: N/A | BK152: N/A | BL152: N/A | BM152: N/A | BN152: N/A | BO152: N/A | BP152: N/A | BQ152: N/A
A153: What type of toilet facilities | B153: Flush to piped sewage system | C153: 1.603467397 | D153: 1.101739765 | E153: 0.6080665066 | F153: 8.152049642 | G153: 25.0877309 | H153: 1.588168892 | I153: 1.1269738 | J153: 2.040745878 | K153: 8.301143941 | L153: 26.67286482 | M153: 0.2211312861 | N153: 0 | O153: 0 | P153: 0 | Q153: 0 | BA153: What type of toilet facilities | BB153: Flush to piped sewage system | BC153: 804.3174763 | BD153: 597.1906738 | BE153: 266.1009064 | BF153: 2755.830421 | BG153: 9345.371189 | BH153: 870.6164684 | BI153: 517.5569 | BJ153: 758.5971985 | BK153: 2438.147408 | BL153: 9170.557911 | BM153: 13.33478165 | BN153: 0 | BO153: 0 | BP153: 0 | BQ153: 0
B154: Flush to septic tank | C154: 0.5141927754 | D154: 1.930776057 | E154: 3.260015866 | F154: 12.02127595 | G154: 15.26685747 | H154: 0.9194688201 | I154: 3.499583613 | J154: 2.795764862 | K154: 14.61274722 | L154: 14.65778465 | M154: 0 | N154: 0 | O154: 0 | P154: 0 | Q154: 0 | BB154: Flush to septic tank | BC154: 257.924942 | BD154: 1046.564253 | BE154: 1426.641933 | BF154: 4063.836632 | BG154: 5687.020897 | BH154: 504.0425491 | BI154: 1607.165709 | BJ154: 1039.256977 | BK154: 4291.942413 | BL154: 5039.581009 | BM154: 0 | BN154: 0 | BO154: 0 | BP154: 0 | BQ154: 0
B155: Pour flush latrine | C155: 1.914856864 | D155: 1.190496835 | E155: 2.514219626 | F155: 2.694292979 | G155: 9.303010782 | H155: 0.7168751575 | I155: 2.564199283 | J155: 2.137867689 | K155: 2.161964491 | L155: 9.908474734 | M155: 1.903560746 | N155: 8.657477334 | O155: 0 | P155: 11.29914438 | Q155: 0.4685335416 | BB155: Pour flush latrine | BC155: 960.5139732 | BD155: 645.3008499 | BE155: 1100.268003 | BF155: 910.81567 | BG155: 3465.442501 | BH155: 392.9829636 | BI155: 1177.595284 | BJ155: 794.6998482 | BK155: 634.995388 | BL155: 3406.69223 | BM155: 114.7895775 | BN155: 358.578125 | BO155: 0 | BP155: 179.2890625 | BQ155: 22.71851921
B156: Covered dry latrine (with privacy) | C156: 51.23306446 | D156: 50.87533391 | E156: 55.21433311 | F156: 38.49413086 | G156: 33.63747089 | H156: 54.61511825 | I156: 46.60127179 | J156: 57.70113891 | K156: 37.03882787 | L156: 34.45788526 | M156: 29.02141731 | N156: 34.26323699 | O156: 66.14031954 | P156: 37.4896032 | Q156: 63.9773732 | BB156: Covered dry latrine (with privacy) | BC156: 25699.0876 | BD156: 27576.63461 | BE156: 24162.79128 | BF156: 13013.08279 | BG156: 12530.21457 | BH156: 29939.39851 | BI156: 21401.3935 | BJ156: 21448.98236 | BK156: 10878.75632 | BL156: 11847.17256 | BM156: 1750.065627 | BN156: 1419.125549 | BO156: 599.879468 | BP156: 594.8659105 | BQ156: 3102.171036
B157: Uncovered dry latrine (without privacy) | C157: 27.79484187 | D157: 35.01857763 | E157: 28.48973166 | F157: 31.57170501 | G157: 13.47234068 | H157: 29.33795199 | I157: 38.49563581 | J157: 25.64106571 | K157: 32.13461605 | L157: 10.98156548 | M157: 46.90907442 | N157: 20.39770441 | O157: 13.75144155 | P157: 15.43518975 | Q157: 10.98438591 | BB157: Uncovered dry latrine (without privacy) | BC157: 13942.20868 | BD157: 18981.58588 | BE157: 12467.6221 | BF157: 10672.93122 | BG157: 5018.549702 | BH157: 16082.73797 | BI157: 17678.92202 | BJ157: 9531.436926 | BK157: 9438.329388 | BL157: 3775.638008 | BM157: 2828.737062 | BN157: 844.8385506 | BO157: 124.7228241 | BP157: 244.9177217 | BQ157: 532.6171131
B158: Bucket latrine (where fresh excreta are manually removed) | C158: 5.410688489 | D158: 5.715844869 | E158: 5.87735945 | F158: 4.171003592 | G158: 0.818867606 | H158: 5.627452359 | I158: 4.884607776 | J158: 6.377906415 | K158: 3.442514653 | L158: 0.8380227511 | M158: 1.6191998 | N158: 3.926049171 | O158: 10.2026829 | P158: 17.49544988 | Q158: 9.709411182 | BB158: Bucket latrine (where fresh excreta are manually removed) | BC158: 2714.06286 | BD158: 3098.235497 | BE158: 2572.038847 | BF158: 1410.023134 | BG158: 305.0344315 | BH158: 3084.906601 | BI158: 2243.230906 | BJ158: 2370.830191 | BK158: 1011.108618 | BL158: 288.1256371 | BM158: 97.64188576 | BN158: 162.610342 | BO158: 92.53629303 | BP158: 277.6088791 | BQ158: 470.7954178
B159: No facilities (open defecation) | C159: 9.880281971 | D159: 2.908144154 | E159: 1.954360413 | F159: 0.4896506366 | G159: 1.068956012 | H159: 5.613283306 | I159: 0.7787409204 | J159: 1.644404057 | K159: 0.5635727468 | L159: 1.15816094 | M159: 18.87975797 | N159: 27.41395348 | O159: 9.905556012 | P159: 16.84884765 | Q159: 14.65291248 | BB159: No facilities (open defecation) | BC159: 4956.061766 | BD159: 1576.340096 | BE159: 855.2634811 | BF159: 165.5282021 | BG159: 398.1942711 | BH159: 3077.139284 | BI159: 357.6327477 | BJ159: 611.2668533 | BK159: 165.5282021 | BL159: 398.1942711 | BM159: 1138.497652 | BN159: 1135.439766 | BO159: 89.84141159 | BP159: 267.3489246 | BQ159: 710.498703
B160: Other | C160: 1.648606169 | D160: 1.259086777 | E160: 2.081913367 | F160: 2.405891333 | G160: 1.344765663 | H160: 1.581681225 | I160: 2.048987007 | J160: 1.661106474 | K160: 1.744613021 | L160: 1.32524135 | M160: 1.445858477 | N160: 5.341578605 | O160: 0 | P160: 1.431765135 | Q160: 0.2073836881 | BB160: Other | BC160: 826.9595976 | BD160: 682.4795694 | BE160: 911.082962 | BF160: 813.3204308 | BG160: 500.9354706 | BH160: 867.0600014 | BI160: 940.9867058 | BJ160: 617.4755669 | BK160: 512.4141617 | BL160: 455.6391907 | BM160: 87.18896103 | BN160: 221.2391863 | BO160: 0 | BP160: 22.71851921 | BQ160: 10.0557375
BB161: Total | BC161: 50161.1369 | BD161: 54204.33143 | BE161: 43761.80952 | BF161: 33805.3685 | BG161: 37250.76303 | BH161: 54818.88435 | BI161: 45924.48377 | BJ161: 37172.54592 | BK161: 29371.2219 | BL161: 34381.60082 | BM161: 6030.255548 | BN161: 4141.831519 | BO161: 906.9799967 | BP161: 1586.749018 | BQ161: 4848.856526
A208: =A1026 -> Congo
A209: =A1034 -> 2003
A210: Access to hygiene facilities
A211: by wealth quintile and sub-national region
A212: Notes:
A213: WHO/UNICEF JMP customised wealth index excludes water,
A214: sanitation and hygiene assets.
A215: Survey used for analysis: | B215: =A1025 -> WHS03
A220: Access to handwashing | C220: NATIONAL wealth index quintile | H220: URBAN wealth index quintile | M220: RURAL wealth index quintile | BA220: Raw numbers of respondents: | BB220: Access to handwashing | BC220: NATIONAL wealth index quintile | BH220: URBAN wealth index quintile | BM220: RURAL wealth index quintile
A221: Weighted percentage (used in graphs) | C221: Poorest | D221: Poor | E221: Middle | F221: Rich | G221: Richest | H221: Poorest | I221: Poor | J221: Middle | K221: Rich | L221: Richest | M221: Poorest | N221: Poor | O221: Middle | P221: Rich | Q221: Richest | BA221: Hygiene data, raw numbers (weighted) | BC221: Poorest | BD221: Poor | BE221: Middle | BF221: Rich | BG221: Richest | BH221: Poorest | BI221: Poor | BJ221: Middle | BK221: Rich | BL221: Richest | BM221: Poorest | BN221: Poor | BO221: Middle | BP221: Rich | BQ221: Richest
A222: Hygiene ladder | B222: Basic | C222: N/A | D222: N/A | E222: N/A | F222: N/A | G222: N/A | H222: N/A | I222: N/A | J222: N/A | K222: N/A | L222: N/A | M222: N/A | N222: N/A | O222: N/A | P222: N/A | Q222: N/A | BA222: Hygiene ladder | BB222: Basic | BC222: N/A | BD222: N/A | BE222: N/A | BF222: N/A | BG222: N/A | BH222: N/A | BI222: N/A | BJ222: N/A | BK222: N/A | BL222: N/A | BM222: N/A | BN222: N/A | BO222: N/A | BP222: N/A | BQ222: N/A
B223: Limited | C223: N/A | D223: N/A | E223: N/A | F223: N/A | G223: N/A | H223: N/A | I223: N/A | J223: N/A | K223: N/A | L223: N/A | M223: N/A | N223: N/A | O223: N/A | P223: N/A | Q223: N/A | BB223: Limited | BC223: N/A | BD223: N/A | BE223: N/A | BF223: N/A | BG223: N/A | BH223: N/A | BI223: N/A | BJ223: N/A | BK223: N/A | BL223: N/A | BM223: N/A | BN223: N/A | BO223: N/A | BP223: N/A | BQ223: N/A
B224: No facility | C224: N/A | D224: N/A | E224: N/A | F224: N/A | G224: N/A | H224: N/A | I224: N/A | J224: N/A | K224: N/A | L224: N/A | M224: N/A | N224: N/A | O224: N/A | P224: N/A | Q224: N/A | BB224: No facility | BC224: N/A | BD224: N/A | BE224: N/A | BF224: N/A | BG224: N/A | BH224: N/A | BI224: N/A | BJ224: N/A | BK224: N/A | BL224: N/A | BM224: N/A | BN224: N/A | BO224: N/A | BP224: N/A | BQ224: N/A
BA225: Observed handwashing place | BB225: Fixed | BC225: N/A | BD225: N/A | BE225: N/A | BF225: N/A | BG225: N/A | BH225: N/A | BI225: N/A | BJ225: N/A | BK225: N/A | BL225: N/A | BM225: N/A | BN225: N/A | BO225: N/A | BP225: N/A | BQ225: N/A
BB226: Mobile | BC226: N/A | BD226: N/A | BE226: N/A | BF226: N/A | BG226: N/A | BH226: N/A | BI226: N/A | BJ226: N/A | BK226: N/A | BL226: N/A | BM226: N/A | BN226: N/A | BO226: N/A | BP226: N/A | BQ226: N/A
BA227: Water / Soap | BB227: Water and soap | BC227: N/A | BD227: N/A | BE227: N/A | BF227: N/A | BG227: N/A | BH227: N/A | BI227: N/A | BJ227: N/A | BK227: N/A | BL227: N/A | BM227: N/A | BN227: N/A | BO227: N/A | BP227: N/A | BQ227: N/A
BB228: Water only | BC228: N/A | BD228: N/A | BE228: N/A | BF228: N/A | BG228: N/A | BH228: N/A | BI228: N/A | BJ228: N/A | BK228: N/A | BL228: N/A | BM228: N/A | BN228: N/A | BO228: N/A | BP228: N/A | BQ228: N/A
BB229: Soap only | BC229: N/A | BD229: N/A | BE229: N/A | BF229: N/A | BG229: N/A | BH229: N/A | BI229: N/A | BJ229: N/A | BK229: N/A | BL229: N/A | BM229: N/A | BN229: N/A | BO229: N/A | BP229: N/A | BQ229: N/A
BB230: Neither | BC230: N/A | BD230: N/A | BE230: N/A | BF230: N/A | BG230: N/A | BH230: N/A | BI230: N/A | BJ230: N/A | BK230: N/A | BL230: N/A | BM230: N/A | BN230: N/A | BO230: N/A | BP230: N/A | BQ230: N/A
BA259: Raw numbers of respondents: | BB259: Menstrual health and hygiene | BC259: NATIONAL wealth index quintile | BH259: URBAN wealth index quintile | BM259: RURAL wealth index quintile
BA260: MHH data, raw numbers (weighted) | BC260: Poorest | BD260: Poor | BE260: Middle | BF260: Rich | BG260: Richest | BH260: Poorest | BI260: Poor | BJ260: Middle | BK260: Rich | BL260: Richest | BM260: Poorest | BN260: Poor | BO260: Middle | BP260: Rich | BQ260: Richest
BA261: Private place to wash and change | BB261: Yes | BC261: N/A | BD261: N/A | BE261: N/A | BF261: N/A | BG261: N/A | BH261: N/A | BI261: N/A | BJ261: N/A | BK261: N/A | BL261: N/A | BM261: N/A | BN261: N/A | BO261: N/A | BP261: N/A | BQ261: N/A
BB262: No | BC262: N/A | BD262: N/A | BE262: N/A | BF262: N/A | BG262: N/A | BH262: N/A | BI262: N/A | BJ262: N/A | BK262: N/A | BL262: N/A | BM262: N/A | BN262: N/A | BO262: N/A | BP262: N/A | BQ262: N/A
BB263: DK/not sure/missing | BC263: N/A | BD263: N/A | BE263: N/A | BF263: N/A | BG263: N/A | BH263: N/A | BI263: N/A | BJ263: N/A | BK263: N/A | BL263: N/A | BM263: N/A | BN263: N/A | BO263: N/A | BP263: N/A | BQ263: N/A
BA264: Use of menstrual materials | BB264: Materials reusable | BC264: N/A | BD264: N/A | BE264: N/A | BF264: N/A | BG264: N/A | BH264: N/A | BI264: N/A | BJ264: N/A | BK264: N/A | BL264: N/A | BM264: N/A | BN264: N/A | BO264: N/A | BP264: N/A | BQ264: N/A
BB265: Materials not reusable | BC265: N/A | BD265: N/A | BE265: N/A | BF265: N/A | BG265: N/A | BH265: N/A | BI265: N/A | BJ265: N/A | BK265: N/A | BL265: N/A | BM265: N/A | BN265: N/A | BO265: N/A | BP265: N/A | BQ265: N/A
BB266: No materials used | BC266: N/A | BD266: N/A | BE266: N/A | BF266: N/A | BG266: N/A | BH266: N/A | BI266: N/A | BJ266: N/A | BK266: N/A | BL266: N/A | BM266: N/A | BN266: N/A | BO266: N/A | BP266: N/A | BQ266: N/A
BB267: DK/not sure/missing | BC267: N/A | BD267: N/A | BE267: N/A | BF267: N/A | BG267: N/A | BH267: N/A | BI267: N/A | BJ267: N/A | BK267: N/A | BL267: N/A | BM267: N/A | BN267: N/A | BO267: N/A | BP267: N/A | BQ267: N/A
BA268: Use of menstrual materials with private place to wash and change | BB268: Materials reusable | BC268: N/A | BD268: N/A | BE268: N/A | BF268: N/A | BG268: N/A | BH268: N/A | BI268: N/A | BJ268: N/A | BK268: N/A | BL268: N/A | BM268: N/A | BN268: N/A | BO268: N/A | BP268: N/A | BQ268: N/A
BB269: Materials not reusable | BC269: N/A | BD269: N/A | BE269: N/A | BF269: N/A | BG269: N/A | BH269: N/A | BI269: N/A | BJ269: N/A | BK269: N/A | BL269: N/A | BM269: N/A | BN269: N/A | BO269: N/A | BP269: N/A | BQ269: N/A
BB270: No materials used | BC270: N/A | BD270: N/A | BE270: N/A | BF270: N/A | BG270: N/A | BH270: N/A | BI270: N/A | BJ270: N/A | BK270: N/A | BL270: N/A | BM270: N/A | BN270: N/A | BO270: N/A | BP270: N/A | BQ270: N/A
BA271: Awareness of menstruation before menarche | BB271: Yes | BC271: N/A | BD271: N/A | BE271: N/A | BF271: N/A | BG271: N/A | BH271: N/A | BI271: N/A | BJ271: N/A | BK271: N/A | BL271: N/A | BM271: N/A | BN271: N/A | BO271: N/A | BP271: N/A | BQ271: N/A
BB272: No | BC272: N/A | BD272: N/A | BE272: N/A | BF272: N/A | BG272: N/A | BH272: N/A | BI272: N/A | BJ272: N/A | BK272: N/A | BL272: N/A | BM272: N/A | BN272: N/A | BO272: N/A | BP272: N/A | BQ272: N/A
BB273: DK/not sure/missing | BC273: N/A | BD273: N/A | BE273: N/A | BF273: N/A | BG273: N/A | BH273: N/A | BI273: N/A | BJ273: N/A | BK273: N/A | BL273: N/A | BM273: N/A | BN273: N/A | BO273: N/A | BP273: N/A | BQ273: N/A
BA274: Participation in (all) activities during menstruation | BB274: Yes | BC274: N/A | BD274: N/A | BE274: N/A | BF274: N/A | BG274: N/A | BH274: N/A | BI274: N/A | BJ274: N/A | BK274: N/A | BL274: N/A | BM274: N/A | BN274: N/A | BO274: N/A | BP274: N/A | BQ274: N/A
BB275: No | BC275: N/A | BD275: N/A | BE275: N/A | BF275: N/A | BG275: N/A | BH275: N/A | BI275: N/A | BJ275: N/A | BK275: N/A | BL275: N/A | BM275: N/A | BN275: N/A | BO275: N/A | BP275: N/A | BQ275: N/A
BB276: DK/not sure/missing/no such activity | BC276: N/A | BD276: N/A | BE276: N/A | BF276: N/A | BG276: N/A | BH276: N/A | BI276: N/A | BJ276: N/A | BK276: N/A | BL276: N/A | BM276: N/A | BN276: N/A | BO276: N/A | BP276: N/A | BQ276: N/A
BA277: Participation in specific activities during menstruation | BB277: Did not go to school (amongst those usually attending school) | BC277: N/A | BD277: N/A | BE277: N/A | BF277: N/A | BG277: N/A | BH277: N/A | BI277: N/A | BJ277: N/A | BK277: N/A | BL277: N/A | BM277: N/A | BN277: N/A | BO277: N/A | BP277: N/A | BQ277: N/A
BB278: Did not go to work (amongst those who usually work) | BC278: N/A | BD278: N/A | BE278: N/A | BF278: N/A | BG278: N/A | BH278: N/A | BI278: N/A | BJ278: N/A | BK278: N/A | BL278: N/A | BM278: N/A | BN278: N/A | BO278: N/A | BP278: N/A | BQ278: N/A
BB279: Did not participate in social activities | BC279: N/A | BD279: N/A | BE279: N/A | BF279: N/A | BG279: N/A | BH279: N/A | BI279: N/A | BJ279: N/A | BK279: N/A | BL279: N/A | BM279: N/A | BN279: N/A | BO279: N/A | BP279: N/A | BQ279: N/A
BB280: Did not cook food | BC280: N/A | BD280: N/A | BE280: N/A | BF280: N/A | BG280: N/A | BH280: N/A | BI280: N/A | BJ280: N/A | BK280: N/A | BL280: N/A | BM280: N/A | BN280: N/A | BO280: N/A | BP280: N/A | BQ280: N/A
BB281: Did not eat with others | BC281: N/A | BD281: N/A | BE281: N/A | BF281: N/A | BG281: N/A | BH281: N/A | BI281: N/A | BJ281: N/A | BK281: N/A | BL281: N/A | BM281: N/A | BN281: N/A | BO281: N/A | BP281: N/A | BQ281: N/A
BB282: Did not bathe in regular place | BC282: N/A | BD282: N/A | BE282: N/A | BF282: N/A | BG282: N/A | BH282: N/A | BI282: N/A | BJ282: N/A | BK282: N/A | BL282: N/A | BM282: N/A | BN282: N/A | BO282: N/A | BP282: N/A | BQ282: N/A
BB283: Did not participate in other activities | BC283: N/A | BD283: N/A | BE283: N/A | BF283: N/A | BG283: N/A | BH283: N/A | BI283: N/A | BJ283: N/A | BK283: N/A | BL283: N/A | BM283: N/A | BN283: N/A | BO283: N/A | BP283: N/A | BQ283: N/A
BB284: DK/not sure/missing/no such activity | BC284: N/A | BD284: N/A | BE284: N/A | BF284: N/A | BG284: N/A | BH284: N/A | BI284: N/A | BJ284: N/A | BK284: N/A | BL284: N/A | BM284: N/A | BN284: N/A | BO284: N/A | BP284: N/A | BQ284: N/A
BA339: Raw numbers of respondents: | BB339: Basic water, sanitation and hygiene | BC339: NATIONAL wealth index quintile | BH339: URBAN wealth index quintile | BM339: RURAL wealth index quintile
BA340: WatSan data, raw numbers (weighted) | BC340: Poorest | BD340: Poor | BE340: Middle | BF340: Rich | BG340: Richest | BH340: Poorest | BI340: Poor | BJ340: Middle | BK340: Rich | BL340: Richest | BM340: Poorest | BN340: Poor | BO340: Middle | BP340: Rich | BQ340: Richest
BA341: Use of Basic Water Sanitation and Hygiene | BB341: Yes | BC341: N/A | BD341: N/A | BE341: N/A | BF341: N/A | BG341: N/A | BH341: N/A | BI341: N/A | BJ341: N/A | BK341: N/A | BL341: N/A | BM341: N/A | BN341: N/A | BO341: N/A | BP341: N/A | BQ341: N/A
BB342: No | BC342: N/A | BD342: N/A | BE342: N/A | BF342: N/A | BG342: N/A | BH342: N/A | BI342: N/A | BJ342: N/A | BK342: N/A | BL342: N/A | BM342: N/A | BN342: N/A | BO342: N/A | BP342: N/A | BQ342: N/A
BA343: Use of Basic Water and Sanitation | BB343: Yes | BC343: N/A | BD343: N/A | BE343: N/A | BF343: N/A | BG343: N/A | BH343: N/A | BI343: N/A | BJ343: N/A | BK343: N/A | BL343: N/A | BM343: N/A | BN343: N/A | BO343: N/A | BP343: N/A | BQ343: N/A
BB344: No | BC344: N/A | BD344: N/A | BE344: N/A | BF344: N/A | BG344: N/A | BH344: N/A | BI344: N/A | BJ344: N/A | BK344: N/A | BL344: N/A | BM344: N/A | BN344: N/A | BO344: N/A | BP344: N/A | BQ344: N/A
BA345: Use of Basic Water and Hygiene | BB345: Yes | BC345: N/A | BD345: N/A | BE345: N/A | BF345: N/A | BG345: N/A | BH345: N/A | BI345: N/A | BJ345: N/A | BK345: N/A | BL345: N/A | BM345: N/A | BN345: N/A | BO345: N/A | BP345: N/A | BQ345: N/A
BB346: No | BC346: N/A | BD346: N/A | BE346: N/A | BF346: N/A | BG346: N/A | BH346: N/A | BI346: N/A | BJ346: N/A | BK346: N/A | BL346: N/A | BM346: N/A | BN346: N/A | BO346: N/A | BP346: N/A | BQ346: N/A
BA347: Use of Basic Sanitation and Hygiene | BB347: Yes | BC347: N/A | BD347: N/A | BE347: N/A | BF347: N/A | BG347: N/A | BH347: N/A | BI347: N/A | BJ347: N/A | BK347: N/A | BL347: N/A | BM347: N/A | BN347: N/A | BO347: N/A | BP347: N/A | BQ347: N/A
BB348: No | BC348: N/A | BD348: N/A | BE348: N/A | BF348: N/A | BG348: N/A | BH348: N/A | BI348: N/A | BJ348: N/A | BK348: N/A | BL348: N/A | BM348: N/A | BN348: N/A | BO348: N/A | BP348: N/A | BQ348: N/A
BA349: Use of Basic Water | BB349: Yes | BC349: N/A | BD349: N/A | BE349: N/A | BF349: N/A | BG349: N/A | BH349: N/A | BI349: N/A | BJ349: N/A | BK349: N/A | BL349: N/A | BM349: N/A | BN349: N/A | BO349: N/A | BP349: N/A | BQ349: N/A
BB350: No | BC350: N/A | BD350: N/A | BE350: N/A | BF350: N/A | BG350: N/A | BH350: N/A | BI350: N/A | BJ350: N/A | BK350: N/A | BL350: N/A | BM350: N/A | BN350: N/A | BO350: N/A | BP350: N/A | BQ350: N/A
BA351: Use of Basic Sanitation | BB351: Yes | BC351: N/A | BD351: N/A | BE351: N/A | BF351: N/A | BG351: N/A | BH351: N/A | BI351: N/A | BJ351: N/A | BK351: N/A | BL351: N/A | BM351: N/A | BN351: N/A | BO351: N/A | BP351: N/A | BQ351: N/A
BB352: No | BC352: N/A | BD352: N/A | BE352: N/A | BF352: N/A | BG352: N/A | BH352: N/A | BI352: N/A | BJ352: N/A | BK352: N/A | BL352: N/A | BM352: N/A | BN352: N/A | BO352: N/A | BP352: N/A | BQ352: N/A
BA353: Access to Basic Hygiene | BB353: Yes | BC353: N/A | BD353: N/A | BE353: N/A | BF353: N/A | BG353: N/A | BH353: N/A | BI353: N/A | BJ353: N/A | BK353: N/A | BL353: N/A | BM353: N/A | BN353: N/A | BO353: N/A | BP353: N/A | BQ353: N/A
BB354: No | BC354: N/A | BD354: N/A | BE354: N/A | BF354: N/A | BG354: N/A | BH354: N/A | BI354: N/A | BJ354: N/A | BK354: N/A | BL354: N/A | BM354: N/A | BN354: N/A | BO354: N/A | BP354: N/A | BQ354: N/A
C399: INITIAL (national) Wealth Index | H399: URBAN Wealth Index | M399: RURAL Wealth Index
C400: Component Matrix | H400: Component Matrix | M400: Component Matrix
E401: Component | J401: Component | O401: Component
B402: Note: The INITIAL (national) Wealth Index is based on the first component of the Principal Component Analysis (PCA) which has been obtained at national level. The final national-level (NATIONAL) Wealth Index is based on the URBAN and RURAL specific wealth indexes. Regression procedures are used to establish the relationships between the two sets of scores (urban and rural) and the initial (national) wealth factors. This allows best use of the available information for each area and a better precision of the FINAL (NATIONAL) Wealth Index. For dependency reasons, all WASH variables (contained in the generic MICS and DHS scripts) have been excluded from the sets of asset variables used in the PCAs. The PCA can extracts as many components as there are asset variables in the input. Only the first of the components is used to represent the Wealth Index. The scores represent the weights of the asset variables on the Wealth Index (correlations between the variables and the component). The communalities are the proportion of each variable's variance that can be explained by the component. Proportion of explained variance is the part of the model's total variance that is explained by the component. For more information on the procedure used: The DHS Wealth Index, DHS Comparative Reports No. 6, Shea Oscar Rutstein, Kiersten Johnson, ORC Macro International Inc., 2004. The DHS Wealth Index: Approaches for Rural and Urban Areas, Shea O. Rutstein, ORC Macro International Inc., 2008. MICS Methodological Paper No. 4, Review of options for reporting water, sanitation and hygiene coverage by wealth quintile, UNICEF, 2016. | E402: 1 | J402: 1 | O402: 1
C403: Has Electricity | E403: 0.6988749514 | H403: Has Television | J403: 0.6842465484 | M403: Has hearth floor | O403: 0.7022488934
C404: Has Television | E404: 0.6818648677 | H404: Has Electricity | J404: 0.6311267147 | M404: Uses separate building as kitchen | O404: 0.5877655038
C405: Has Refrigerator | E405: 0.599866909 | H405: Has Refrigerator | J405: 0.6217822796 | M405: Has hard floor | O405: -0.5231689597
C406: Has Mobile telephone | E406: 0.5926662827 | H406: Has Clock | J406: 0.5785431482 | M406: Uses wood fuel | O406: 0.4361463598
C407: Has hearth floor | E407: 0.5764842331 | H407: Has Mobile telephone | J407: 0.557287371 | M407: Has cement, brick, stone or wood wall | O407: -0.3980200383
C408: Uses wood fuel | E408: 0.5754144106 | H408: Kooks outdoor | J408: 0.4989869469 | M408: Heats house | O408: 0.3951139443
C409: Has Clock | E409: 0.5383164048 | H409: Uses wood fuel | J409: 0.4635865235 | M409: Uses wood heating | O409: 0.3385581389
C410: Has hard floor | E410: -0.4148481473 | H410: Uses gaz fuel | J410: -0.3702034431 | M410: Permanent Income question 16 | O410: 0.3284646582
C411: Has cement, brick, stone or wood wall | E411: -0.3787817701 | H411: Permanent Income question 16 | J411: 0.3686608389 | M411: Has Bucket | O411: 0.3213782622
C412: Uses gaz fuel | E412: -0.3617542625 | H412: Has hearth floor | J412: 0.3122785174 | M412: Uses separate room as kitchen | O412: -0.311441982
C413: Uses separate building as kitchen | E413: 0.3403835626 | H413: Uses open fire without chimney | J413: 0.2974395384 | M413: Uses open fire with chimney | O413: 0.3057167633
C414: Permanent Income question 16 | E414: 0.3330277643 | H414: Has Fix telephone | J414: 0.2937807491 | M414: Has mud brick wall | O414: 0.2126244071
C415: Has Fix telephone | E415: 0.2759742281 | H415: Has Computer | J415: 0.2937097148 | M415: Uses kerozene heating | O415: -0.2104080532
C416: Has Computer | E416: 0.2655873291 | H416: Have mosquito bed | J416: -0.2762336723 | M416: Have mosquito bed | O416: -0.2062599784
C417: Uses electricity fuel | E417: -0.2481222251 | H417: Permanent Income question 17 | J417: 0.2653195083 | M417: Has thatch wall | O417: 0.1856941542
C418: Permanent Income question 17 | E418: 0.2399365353 | H418: Uses electricity fuel | J418: -0.2337168061 | M418: Uses charcoal fuel | O418: -0.178148625
C419: Has thatch wall | E419: 0.223603903 | H419: Has Car | J419: 0.2035988041 | M419: Uses open fire without chimney | O419: -0.1713224555
C420: Has metal sheet wall | E420: 0.2196986603 | H420: Uses wood heating | J420: 0.2027307415 | M420: Permanent Income question 17 | O420: 0.1651589263
C421: Uses wood heating | E421: 0.2075870566 | H421: Has metal sheet wall | J421: 0.1965687596 | M421: Uses coal fuel | O421: -0.1568813303
C422: Uses charcoal fuel | E422: -0.1727373935 | H422: Heats house | J422: 0.1850730685 | M422: Uses kerozene fuel | O422: -0.1546692411
C423: Has mud brick wall | E423: 0.1670848124 | H423: Permanent Income question 20 | J423: 0.169660837 | M423: Permanent Income question 20 | O423: 0.1536346861
... 203 more rows

Sheet DHS05
A2: =A1026 -> Congo
A3: =A1034 -> 2005
A4: Use of drinking water sources
A5: by wealth quintile and sub-national region
A6: Notes:
A7: WHO/UNICEF JMP customised wealth index excludes water,
A8: sanitation and hygiene assets.
A9: Survey used for analysis: | B9: =A1025 -> DHS05
A10: =B1028 -> 
A11: =B1027 -> 
A14: Use of drinking water sources | C14: NATIONAL wealth index quintile | H14: URBAN wealth index quintile | M14: RURAL wealth index quintile | R14: SUB-REGIONS: | BA14: Raw numbers of respondents: | BB14: Use of drinking water sources | BC14: NATIONAL wealth index quintile | BH14: URBAN wealth index quintile | BM14: RURAL wealth index quintile | BR14: SUB-REGIONS:
A15: Weighted percentage (used in graphs) | C15: Poorest | D15: Poor | E15: Middle | F15: Rich | G15: Richest | H15: Poorest | I15: Poor | J15: Middle | K15: Rich | L15: Richest | M15: Poorest | N15: Poor | O15: Middle | P15: Rich | Q15: Richest | R15: Brazzaville | S15: Nord | T15: Pointe Noire | U15: Sud | BA15: Water data, raw numbers (weighted) | BC15: Poorest | BD15: Poor | BE15: Middle | BF15: Rich | BG15: Richest | BH15: Poorest | BI15: Poor | BJ15: Middle | BK15: Rich | BL15: Richest | BM15: Poorest | BN15: Poor | BO15: Middle | BP15: Rich | BQ15: Richest | BR15: Brazzaville | BS15: Nord | BT15: Pointe Noire | BU15: Sud
A16: Water | B16: Improved | C16: 29.82947783 | D16: 37.30271758 | E16: 73.17566417 | F16: 92.9420886 | G16: 96.05965332 | H16: 89.38143548 | I16: 94.00667697 | J16: 95.13588838 | K16: 96.41229671 | L16: 97.34544328 | M16: 27.03660336 | N16: 32.62364124 | O16: 31.11425085 | P16: 28.71071894 | Q16: 52.04104068 | R16: 96.4688022 | S16: 48.66925361 | T16: 92.4940357 | U16: 34.92348579 | BA16: Water | BB16: Improved | BC16: N/A | BD16: N/A | BE16: N/A | BF16: N/A | BG16: N/A | BH16: N/A | BI16: N/A | BJ16: N/A | BK16: N/A | BL16: N/A | BM16: N/A | BN16: N/A | BO16: N/A | BP16: N/A | BQ16: N/A | BR16: N/A | BS16: N/A | BT16: N/A | BU16: N/A
B17: Not Improved | C17: 70.17052217 | D17: 62.69728242 | E17: 26.82433583 | F17: 7.057911404 | G17: 3.940346676 | H17: 10.61856452 | I17: 5.993323028 | J17: 4.864111618 | K17: 3.58770329 | L17: 2.654556724 | M17: 72.96339664 | N17: 67.37635876 | O17: 68.88574915 | P17: 71.28928106 | Q17: 47.95895932 | R17: 3.531197796 | S17: 51.33074639 | T17: 7.505964301 | U17: 65.07651421 | BB17: Not Improved | BC17: N/A | BD17: N/A | BE17: N/A | BF17: N/A | BG17: N/A | BH17: N/A | BI17: N/A | BJ17: N/A | BK17: N/A | BL17: N/A | BM17: N/A | BN17: N/A | BO17: N/A | BP17: N/A | BQ17: N/A | BR17: N/A | BS17: N/A | BT17: N/A | BU17: N/A
A18: Water ladder | B18: Basic | C18: =C16*C23/100 -> 23.50540812 | D18: =D16*D23/100 -> 28.25191855 | E18: =E16*E23/100 -> 61.76863166 | F18: 81.63466593 | G18: 90.88123559 | H18: 78.02051663 | I18: 78.26224504 | J18: 86.2063964 | K18: 89.56252307 | L18: 93.16645168 | M18: 20.33042572 | N18: 26.64590006 | O18: 19.64826921 | P18: 23.84354807 | Q18: 41.95721172 | R18: 84.4120399 | S18: 40.15727497 | T18: 86.89461256 | U18: 27.97889578 | BA18: Water ladder | BB18: Basic | BC18: N/A | BD18: N/A | BE18: N/A | BF18: N/A | BG18: N/A | BH18: N/A | BI18: N/A | BJ18: N/A | BK18: N/A | BL18: N/A | BM18: N/A | BN18: N/A | BO18: N/A | BP18: N/A | BQ18: N/A | BR18: N/A | BS18: N/A | BT18: N/A | BU18: N/A
B19: Limited | C19: =C16*C22/100 -> 6.324069707 | D19: =D16*D22/100 -> 9.050799027 | E19: =E16*E22/100 -> 11.40703251 | F19: 11.30742266 | G19: 5.178417736 | H19: 11.36091885 | I19: 15.74443193 | J19: 8.929491987 | K19: 6.849773643 | L19: 4.178991592 | M19: 6.706177636 | N19: 5.977741176 | O19: 11.46598164 | P19: 4.867170872 | Q19: 10.08382896 | R19: 12.05676231 | S19: 8.511978636 | T19: 5.599423138 | U19: 6.944590009 | BB19: Limited | BC19: N/A | BD19: N/A | BE19: N/A | BF19: N/A | BG19: N/A | BH19: N/A | BI19: N/A | BJ19: N/A | BK19: N/A | BL19: N/A | BM19: N/A | BN19: N/A | BO19: N/A | BP19: N/A | BQ19: N/A | BR19: N/A | BS19: N/A | BT19: N/A | BU19: N/A
B20: Unimproved | C20: =100-C18-C19-C21 -> 46.19683098 | D20: =100-D18-D19-D21 -> 45.79496188 | E20: =100-E18-E19-E21 -> 21.17785426 | F20: 6.635789051 | G20: 3.940346676 | H20: 10.38875832 | I20: 5.993323028 | J20: 4.864111618 | K20: 3.58770329 | L20: 2.654556724 | M20: 48.23812123 | N20: 44.94179326 | O20: 48.5399344 | P20: 50.90938492 | Q20: 37.46951176 | R20: 3.531197796 | S20: 32.11408876 | T20: 7.434849704 | U20: 48.20254047 | BB20: Unimproved | BC20: N/A | BD20: N/A | BE20: N/A | BF20: N/A | BG20: N/A | BH20: N/A | BI20: N/A | BJ20: N/A | BK20: N/A | BL20: N/A | BM20: N/A | BN20: N/A | BO20: N/A | BP20: N/A | BQ20: N/A | BR20: N/A | BS20: N/A | BT20: N/A | BU20: N/A
B21: Surface water | C21: 23.9736912 | D21: 16.90232054 | E21: 5.646481573 | F21: 0.4221223534 | G21: 0 | H21: 0.2298062053 | I21: 0 | J21: 0 | K21: 0 | L21: 0 | M21: 24.72527542 | N21: 22.4345655 | O21: 20.34581475 | P21: 20.37989614 | Q21: 10.48944756 | R21: 0 | S21: 19.21665763 | T21: 0.07111459669 | U21: 16.87397374 | BB21: Surface water | BC21: N/A | BD21: N/A | BE21: N/A | BF21: N/A | BG21: N/A | BH21: N/A | BI21: N/A | BJ21: N/A | BK21: N/A | BL21: N/A | BM21: N/A | BN21: N/A | BO21: N/A | BP21: N/A | BQ21: N/A | BR21: N/A | BS21: N/A | BT21: N/A | BU21: N/A
A22: Improved water point at more than 30 minutes | B22: Yes | C22: 21.20073889 | D22: 24.263109 | E22: 15.58856027 | F22: 12.16609486 | G22: 5.390835338 | H22: 12.71060236 | I22: 16.74820602 | J22: 9.386039421 | K22: 7.104668052 | L22: 4.292950395 | M22: 24.80406857 | N22: 18.32334145 | O22: 36.85122196 | P22: 16.95245209 | Q22: 19.37668583 | R22: 12.49809475 | S22: 17.48943739 | T22: 6.053820763 | U22: 19.88515708 | BA22: Improved water point at more than 30 minutes | BB22: Yes | BC22: N/A | BD22: N/A | BE22: N/A | BF22: N/A | BG22: N/A | BH22: N/A | BI22: N/A | BJ22: N/A | BK22: N/A | BL22: N/A | BM22: N/A | BN22: N/A | BO22: N/A | BP22: N/A | BQ22: N/A | BR22: N/A | BS22: N/A | BT22: N/A | BU22: N/A
B23: No | C23: 78.79926111 | D23: 75.736891 | E23: 84.41143973 | F23: 87.83390514 | G23: 94.60916466 | H23: 87.28939764 | I23: 83.25179398 | J23: 90.61396058 | K23: 92.89533195 | L23: 95.7070496 | M23: 75.19593143 | N23: 81.67665855 | O23: 63.14877804 | P23: 83.04754791 | Q23: 80.62331417 | R23: 87.50190525 | S23: 82.51056261 | T23: 93.94617924 | U23: 80.11484292 | BB23: No | BC23: N/A | BD23: N/A | BE23: N/A | BF23: N/A | BG23: N/A | BH23: N/A | BI23: N/A | BJ23: N/A | BK23: N/A | BL23: N/A | BM23: N/A | BN23: N/A | BO23: N/A | BP23: N/A | BQ23: N/A | BR23: N/A | BS23: N/A | BT23: N/A | BU23: N/A
A24: Manually calculated ratios | B24: Improved wells
B25: Improved springs
B26: Other
C27: NATIONAL wealth index quintile | H27: URBAN wealth index quintile | M27: RURAL wealth index quintile | R27: SUB-REGIONS: | BA27: Raw numbers of respondents: | BB27: Use of drinking water sources | BC27: NATIONAL wealth index quintile | BH27: URBAN wealth index quintile | BM27: RURAL wealth index quintile | BR27: SUB-REGIONS:
A28: Percentage based on weighted population | C28: Poorest | D28: Poor | E28: Middle | F28: Rich | G28: Richest | H28: Poorest | I28: Poor | J28: Middle | K28: Rich | L28: Richest | M28: Poorest | N28: Poor | O28: Middle | P28: Rich | Q28: Richest | R28: Brazzaville | S28: Nord | T28: Pointe Noire | U28: Sud | BA28: Water data, raw numbers (weighted) | BC28: Poorest | BD28: Poor | BE28: Middle | BF28: Rich | BG28: Richest | BH28: Poorest | BI28: Poor | BJ28: Middle | BK28: Rich | BL28: Richest | BM28: Poorest | BN28: Poor | BO28: Middle | BP28: Rich | BQ28: Richest | BR28: Brazzaville | BS28: Nord | BT28: Pointe Noire | BU28: Sud
A29: Piped water | B29: Yes | C29: 3.844175385 | D29: 14.46409189 | E29: 55.3432949 | F29: 82.58496496 | G29: 89.01766061 | H29: 73.17213995 | I29: 84.43622188 | J29: 88.43890455 | K29: 91.90442873 | L29: 91.49671385 | M29: 4.700545114 | N29: 3.315980096 | O29: 4.712985511 | P29: 8.388617861 | Q29: 20.86264947 | R29: 88.41435171 | S29: 13.12729578 | T29: 86.84726164 | U29: 15.20870795 | BA29: Piped water | BB29: Yes | BC29: N/A | BD29: N/A | BE29: N/A | BF29: N/A | BG29: N/A | BH29: N/A | BI29: N/A | BJ29: N/A | BK29: N/A | BL29: N/A | BM29: N/A | BN29: N/A | BO29: N/A | BP29: N/A | BQ29: N/A | BR29: N/A | BS29: N/A | BT29: N/A | BU29: N/A
B30: No | C30: 96.15582462 | D30: 85.53590811 | E30: 44.6567051 | F30: 17.41503504 | G30: 10.98233939 | H30: 26.82786005 | I30: 15.56377812 | J30: 11.56109545 | K30: 8.09557127 | L30: 8.503286148 | M30: 95.29945489 | N30: 96.6840199 | O30: 95.28701449 | P30: 91.61138214 | Q30: 79.13735053 | R30: 11.58564829 | S30: 86.87270422 | T30: 13.15273836 | U30: 84.79129205 | BB30: No | BC30: N/A | BD30: N/A | BE30: N/A | BF30: N/A | BG30: N/A | BH30: N/A | BI30: N/A | BJ30: N/A | BK30: N/A | BL30: N/A | BM30: N/A | BN30: N/A | BO30: N/A | BP30: N/A | BQ30: N/A | BR30: N/A | BS30: N/A | BT30: N/A | BU30: N/A
A31: Piped water on premises | B31: Yes | C31: 0.08812854228 | D31: 1.366842636 | E31: 15.05787498 | F31: 40.8029522 | G31: 71.34835698 | H31: 14.23905071 | I31: 27.93189933 | J31: 45.23374064 | K31: 64.96729491 | L31: 79.48936449 | M31: 0.1839428078 | N31: 0 | O31: 0 | P31: 0 | Q31: 14.42797438 | R31: 50.11386323 | S31: 3.340463709 | T31: 43.96204812 | U31: 7.127364904 | BA31: Piped water on premises | BB31: Yes | BC31: N/A | BD31: N/A | BE31: N/A | BF31: N/A | BG31: N/A | BH31: N/A | BI31: N/A | BJ31: N/A | BK31: N/A | BL31: N/A | BM31: N/A | BN31: N/A | BO31: N/A | BP31: N/A | BQ31: N/A | BR31: N/A | BS31: N/A | BT31: N/A | BU31: N/A
B32: No | C32: 99.91187146 | D32: 98.63315736 | E32: 84.94212502 | F32: 59.1970478 | G32: 28.65164302 | H32: 85.76094929 | I32: 72.06810067 | J32: 54.76625936 | K32: 35.03270509 | L32: 20.51063551 | M32: 99.81605719 | N32: 100 | O32: 100 | P32: 100 | Q32: 85.57202562 | R32: 49.88613677 | S32: 96.65953629 | T32: 56.03795188 | U32: 92.8726351 | BB32: No | BC32: N/A | BD32: N/A | BE32: N/A | BF32: N/A | BG32: N/A | BH32: N/A | BI32: N/A | BJ32: N/A | BK32: N/A | BL32: N/A | BM32: N/A | BN32: N/A | BO32: N/A | BP32: N/A | BQ32: N/A | BR32: N/A | BS32: N/A | BT32: N/A | BU32: N/A
A33: Piped water into dwelling | B33: Yes | C33: N/A | D33: N/A | E33: N/A | F33: N/A | G33: N/A | H33: N/A | I33: N/A | J33: N/A | K33: N/A | L33: N/A | M33: N/A | N33: N/A | O33: N/A | P33: N/A | Q33: N/A | R33: N/A | S33: N/A | T33: N/A | U33: N/A | BA33: Piped water into dwelling | BB33: Yes | BC33: N/A | BD33: N/A | BE33: N/A | BF33: N/A | BG33: N/A | BH33: N/A | BI33: N/A | BJ33: N/A | BK33: N/A | BL33: N/A | BM33: N/A | BN33: N/A | BO33: N/A | BP33: N/A | BQ33: N/A | BR33: N/A | BS33: N/A | BT33: N/A | BU33: N/A
B34: No | C34: N/A | D34: N/A | E34: N/A | F34: N/A | G34: N/A | H34: N/A | I34: N/A | J34: N/A | K34: N/A | L34: N/A | M34: N/A | N34: N/A | O34: N/A | P34: N/A | Q34: N/A | R34: N/A | S34: N/A | T34: N/A | U34: N/A | BB34: No | BC34: N/A | BD34: N/A | BE34: N/A | BF34: N/A | BG34: N/A | BH34: N/A | BI34: N/A | BJ34: N/A | BK34: N/A | BL34: N/A | BM34: N/A | BN34: N/A | BO34: N/A | BP34: N/A | BQ34: N/A | BR34: N/A | BS34: N/A | BT34: N/A | BU34: N/A
A35: Water source on premises | B35: Yes | C35: 9.44004236 | D35: 8.50813104 | E35: 21.21872955 | F35: 43.97122617 | G35: 74.47314986 | H35: 19.13627455 | I35: 29.98141133 | J35: 46.74324067 | K35: 66.86732531 | L35: 82.24658473 | M35: 6.706702478 | N35: 12.20207849 | O35: 6.261305412 | P35: 8.974512208 | Q35: 26.88490564 | R35: 51.32125721 | S35: 18.00395403 | T35: 48.27680724 | U35: 12.98226328 | BA35: Water source on premises | BB35: Yes | BC35: N/A | BD35: N/A | BE35: N/A | BF35: N/A | BG35: N/A | BH35: N/A | BI35: N/A | BJ35: N/A | BK35: N/A | BL35: N/A | BM35: N/A | BN35: N/A | BO35: N/A | BP35: N/A | BQ35: N/A | BR35: N/A | BS35: N/A | BT35: N/A | BU35: N/A
B36: No | C36: 90.55995764 | D36: 91.49186896 | E36: 78.78127045 | F36: 56.02877383 | G36: 25.52685014 | H36: 80.86372545 | I36: 70.01858867 | J36: 53.25675933 | K36: 33.13267469 | L36: 17.75341527 | M36: 93.29329752 | N36: 87.79792151 | O36: 93.73869459 | P36: 91.02548779 | Q36: 73.11509436 | R36: 48.67874279 | S36: 81.99604597 | T36: 51.72319276 | U36: 87.01773672 | BB36: No | BC36: N/A | BD36: N/A | BE36: N/A | BF36: N/A | BG36: N/A | BH36: N/A | BI36: N/A | BJ36: N/A | BK36: N/A | BL36: N/A | BM36: N/A | BN36: N/A | BO36: N/A | BP36: N/A | BQ36: N/A | BR36: N/A | BS36: N/A | BT36: N/A | BU36: N/A
A37: Improved Water source on premises | B37: Yes | C37: 18.55536121 | D37: 15.48888678 | E37: 26.58793993 | F37: 46.85033352 | G37: 76.82109117 | H37: 20.15103485 | I37: 31.43812629 | J37: 48.54562212 | K37: 68.86950826 | L37: 84.04199218 | M37: 15.63444035 | N37: 20.637559 | O37: 10.38783121 | P37: 22.75571287 | Q37: 45.45036111 | R37: 53.04422888 | S37: 30.79233966 | T37: 51.01222458 | U37: 27.79968876 | BA37: Improved water source on premises | BB37: Yes | BC37: N/A | BD37: N/A | BE37: N/A | BF37: N/A | BG37: N/A | BH37: N/A | BI37: N/A | BJ37: N/A | BK37: N/A | BL37: N/A | BM37: N/A | BN37: N/A | BO37: N/A | BP37: N/A | BQ37: N/A | BR37: N/A | BS37: N/A | BT37: N/A | BU37: N/A
B38: No | C38: 81.44463879 | D38: 84.51111322 | E38: 73.41206007 | F38: 53.14966648 | G38: 23.17890883 | H38: 79.84896515 | I38: 68.56187371 | J38: 51.45437788 | K38: 31.13049174 | L38: 15.95800782 | M38: 84.36555965 | N38: 79.362441 | O38: 89.61216879 | P38: 77.24428713 | Q38: 54.54963889 | R38: 46.95577112 | S38: 69.20766034 | T38: 48.98777542 | U38: 72.20031124 | BB38: No | BC38: N/A | BD38: N/A | BE38: N/A | BF38: N/A | BG38: N/A | BH38: N/A | BI38: N/A | BJ38: N/A | BK38: N/A | BL38: N/A | BM38: N/A | BN38: N/A | BO38: N/A | BP38: N/A | BQ38: N/A | BR38: N/A | BS38: N/A | BT38: N/A | BU38: N/A
A39: Piped water on premises available when needed | B39: Yes | C39: N/A | D39: N/A | E39: N/A | F39: N/A | G39: N/A | H39: N/A | I39: N/A | J39: N/A | K39: N/A | L39: N/A | M39: N/A | N39: N/A | O39: N/A | P39: N/A | Q39: N/A | R39: N/A | S39: N/A | T39: N/A | U39: N/A | BA39: Piped water on premises available when needed | BB39: Yes | BC39: N/A | BD39: N/A | BE39: N/A | BF39: N/A | BG39: N/A | BH39: N/A | BI39: N/A | BJ39: N/A | BK39: N/A | BL39: N/A | BM39: N/A | BN39: N/A | BO39: N/A | BP39: N/A | BQ39: N/A | BR39: N/A | BS39: N/A | BT39: N/A | BU39: N/A
B40: No | C40: N/A | D40: N/A | E40: N/A | F40: N/A | G40: N/A | H40: N/A | I40: N/A | J40: N/A | K40: N/A | L40: N/A | M40: N/A | N40: N/A | O40: N/A | P40: N/A | Q40: N/A | R40: N/A | S40: N/A | T40: N/A | U40: N/A | BB40: No | BC40: N/A | BD40: N/A | BE40: N/A | BF40: N/A | BG40: N/A | BH40: N/A | BI40: N/A | BJ40: N/A | BK40: N/A | BL40: N/A | BM40: N/A | BN40: N/A | BO40: N/A | BP40: N/A | BQ40: N/A | BR40: N/A | BS40: N/A | BT40: N/A | BU40: N/A
A41: Water point at more than 30 minutes | B41: Yes | C41: 31.21916132 | D41: 30.84844603 | E41: 18.88780118 | F41: 14.12124338 | G41: 6.58855701 | H41: 12.5856984 | I41: 17.379984 | J41: 10.4748769 | K41: 7.844891275 | L41: 5.624082357 | M41: 29.46198102 | N41: 30.80443234 | O41: 40.3901111 | P41: 27.35496285 | Q41: 26.35435592 | R41: 13.8443349 | S41: 25.9175433 | T41: 6.327358074 | U41: 29.56222273 | BA41: Water point at more than 30 minutes | BB41: Yes | BC41: N/A | BD41: N/A | BE41: N/A | BF41: N/A | BG41: N/A | BH41: N/A | BI41: N/A | BJ41: N/A | BK41: N/A | BL41: N/A | BM41: N/A | BN41: N/A | BO41: N/A | BP41: N/A | BQ41: N/A | BR41: N/A | BS41: N/A | BT41: N/A | BU41: N/A
B42: No | C42: 68.78083868 | D42: 69.15155397 | E42: 81.11219882 | F42: 85.87875662 | G42: 93.41144299 | H42: 87.4143016 | I42: 82.620016 | J42: 89.5251231 | K42: 92.15510872 | L42: 94.37591764 | M42: 70.53801898 | N42: 69.19556766 | O42: 59.6098889 | P42: 72.64503715 | Q42: 73.64564408 | R42: 86.1556651 | S42: 74.0824567 | T42: 93.67264193 | U42: 70.43777727 | BB42: No | BC42: N/A | BD42: N/A | BE42: N/A | BF42: N/A | BG42: N/A | BH42: N/A | BI42: N/A | BJ42: N/A | BK42: N/A | BL42: N/A | BM42: N/A | BN42: N/A | BO42: N/A | BP42: N/A | BQ42: N/A | BR42: N/A | BS42: N/A | BT42: N/A | BU42: N/A
A43: Water source available when needed | B43: Yes | C43: N/A | D43: N/A | E43: N/A | F43: N/A | G43: N/A | H43: N/A | I43: N/A | J43: N/A | K43: N/A | L43: N/A | M43: N/A | N43: N/A | O43: N/A | P43: N/A | Q43: N/A | R43: N/A | S43: N/A | T43: N/A | U43: N/A | BA43: Water source available when needed | BB43: Yes | BC43: N/A | BD43: N/A | BE43: N/A | BF43: N/A | BG43: N/A | BH43: N/A | BI43: N/A | BJ43: N/A | BK43: N/A | BL43: N/A | BM43: N/A | BN43: N/A | BO43: N/A | BP43: N/A | BQ43: N/A | BR43: N/A | BS43: N/A | BT43: N/A | BU43: N/A
B44: No | C44: N/A | D44: N/A | E44: N/A | F44: N/A | G44: N/A | H44: N/A | I44: N/A | J44: N/A | K44: N/A | L44: N/A | M44: N/A | N44: N/A | O44: N/A | P44: N/A | Q44: N/A | R44: N/A | S44: N/A | T44: N/A | U44: N/A | BB44: No | BC44: N/A | BD44: N/A | BE44: N/A | BF44: N/A | BG44: N/A | BH44: N/A | BI44: N/A | BJ44: N/A | BK44: N/A | BL44: N/A | BM44: N/A | BN44: N/A | BO44: N/A | BP44: N/A | BQ44: N/A | BR44: N/A | BS44: N/A | BT44: N/A | BU44: N/A
A45: Improved water source available when needed | B45: Yes | C45: N/A | D45: N/A | E45: N/A | F45: N/A | G45: N/A | H45: N/A | I45: N/A | J45: N/A | K45: N/A | L45: N/A | M45: N/A | N45: N/A | O45: N/A | P45: N/A | Q45: N/A | R45: N/A | S45: N/A | T45: N/A | U45: N/A | BA45: Improved water source available when needed | BB45: Yes | BC45: N/A | BD45: N/A | BE45: N/A | BF45: N/A | BG45: N/A | BH45: N/A | BI45: N/A | BJ45: N/A | BK45: N/A | BL45: N/A | BM45: N/A | BN45: N/A | BO45: N/A | BP45: N/A | BQ45: N/A | BR45: N/A | BS45: N/A | BT45: N/A | BU45: N/A
B46: No | C46: N/A | D46: N/A | E46: N/A | F46: N/A | G46: N/A | H46: N/A | I46: N/A | J46: N/A | K46: N/A | L46: N/A | M46: N/A | N46: N/A | O46: N/A | P46: N/A | Q46: N/A | R46: N/A | S46: N/A | T46: N/A | U46: N/A | BB46: No | BC46: N/A | BD46: N/A | BE46: N/A | BF46: N/A | BG46: N/A | BH46: N/A | BI46: N/A | BJ46: N/A | BK46: N/A | BL46: N/A | BM46: N/A | BN46: N/A | BO46: N/A | BP46: N/A | BQ46: N/A | BR46: N/A | BS46: N/A | BT46: N/A | BU46: N/A
A47: Microbiological quality at point of collection | B47: Not contaminated (No E. coli in 100 mL) | C47: N/A | D47: N/A | E47: N/A | F47: N/A | G47: N/A | H47: N/A | I47: N/A | J47: N/A | K47: N/A | L47: N/A | M47: N/A | N47: N/A | O47: N/A | P47: N/A | Q47: N/A | R47: N/A | S47: N/A | T47: N/A | U47: N/A | BA47: Microbiological quality at point of collection | BB47: Not contaminated (No E. coli in 100 mL) | BC47: N/A | BD47: N/A | BE47: N/A | BF47: N/A | BG47: N/A | BH47: N/A | BI47: N/A | BJ47: N/A | BK47: N/A | BL47: N/A | BM47: N/A | BN47: N/A | BO47: N/A | BP47: N/A | BQ47: N/A | BR47: N/A | BS47: N/A | BT47: N/A | BU47: N/A
B48: Contaminated (E. coli detected in 100 mL) | C48: N/A | D48: N/A | E48: N/A | F48: N/A | G48: N/A | H48: N/A | I48: N/A | J48: N/A | K48: N/A | L48: N/A | M48: N/A | N48: N/A | O48: N/A | P48: N/A | Q48: N/A | R48: N/A | S48: N/A | T48: N/A | U48: N/A | BB48: Contaminated (E. coli detected in 100 mL) | BC48: N/A | BD48: N/A | BE48: N/A | BF48: N/A | BG48: N/A | BH48: N/A | BI48: N/A | BJ48: N/A | BK48: N/A | BL48: N/A | BM48: N/A | BN48: N/A | BO48: N/A | BP48: N/A | BQ48: N/A | BR48: N/A | BS48: N/A | BT48: N/A | BU48: N/A
B49: Highly contaminated (>100 CFU/100 mL) | C49: N/A | D49: N/A | E49: N/A | F49: N/A | G49: N/A | H49: N/A | I49: N/A | J49: N/A | K49: N/A | L49: N/A | M49: N/A | N49: N/A | O49: N/A | P49: N/A | Q49: N/A | R49: N/A | S49: N/A | T49: N/A | U49: N/A | BB49: Highly contaminated (>100 CFU/100 mL) | BC49: N/A | BD49: N/A | BE49: N/A | BF49: N/A | BG49: N/A | BH49: N/A | BI49: N/A | BJ49: N/A | BK49: N/A | BL49: N/A | BM49: N/A | BN49: N/A | BO49: N/A | BP49: N/A | BQ49: N/A | BR49: N/A | BS49: N/A | BT49: N/A | BU49: N/A
A50: Microbiological quality of improved water sources at point of collection | B50: Not contaminated (No E. coli in 100 mL) | C50: N/A | D50: N/A | E50: N/A | F50: N/A | G50: N/A | H50: N/A | I50: N/A | J50: N/A | K50: N/A | L50: N/A | M50: N/A | N50: N/A | O50: N/A | P50: N/A | Q50: N/A | R50: N/A | S50: N/A | T50: N/A | U50: N/A | BA50: Microbiological quality of improved water sources at point of collection | BB50: Not contaminated (No E. coli in 100 mL) | BC50: N/A | BD50: N/A | BE50: N/A | BF50: N/A | BG50: N/A | BH50: N/A | BI50: N/A | BJ50: N/A | BK50: N/A | BL50: N/A | BM50: N/A | BN50: N/A | BO50: N/A | BP50: N/A | BQ50: N/A | BR50: N/A | BS50: N/A | BT50: N/A | BU50: N/A
B51: Contaminated (E. coli detected in 100 mL) | C51: N/A | D51: N/A | E51: N/A | F51: N/A | G51: N/A | H51: N/A | I51: N/A | J51: N/A | K51: N/A | L51: N/A | M51: N/A | N51: N/A | O51: N/A | P51: N/A | Q51: N/A | R51: N/A | S51: N/A | T51: N/A | U51: N/A | BB51: Contaminated (E. coli detected in 100 mL) | BC51: N/A | BD51: N/A | BE51: N/A | BF51: N/A | BG51: N/A | BH51: N/A | BI51: N/A | BJ51: N/A | BK51: N/A | BL51: N/A | BM51: N/A | BN51: N/A | BO51: N/A | BP51: N/A | BQ51: N/A | BR51: N/A | BS51: N/A | BT51: N/A | BU51: N/A
B52: Highly contaminated (>100 CFU/100 mL) | C52: N/A | D52: N/A | E52: N/A | F52: N/A | G52: N/A | H52: N/A | I52: N/A | J52: N/A | K52: N/A | L52: N/A | M52: N/A | N52: N/A | O52: N/A | P52: N/A | Q52: N/A | R52: N/A | S52: N/A | T52: N/A | U52: N/A | BB52: Highly contaminated (>100 CFU/100 mL) | BC52: N/A | BD52: N/A | BE52: N/A | BF52: N/A | BG52: N/A | BH52: N/A | BI52: N/A | BJ52: N/A | BK52: N/A | BL52: N/A | BM52: N/A | BN52: N/A | BO52: N/A | BP52: N/A | BQ52: N/A | BR52: N/A | BS52: N/A | BT52: N/A | BU52: N/A
A53: Microbiological quality of piped on premises at point of collection | B53: Not contaminated (No E. coli in 100 mL) | C53: N/A | D53: N/A | E53: N/A | F53: N/A | G53: N/A | H53: N/A | I53: N/A | J53: N/A | K53: N/A | L53: N/A | M53: N/A | N53: N/A | O53: N/A | P53: N/A | Q53: N/A | R53: N/A | S53: N/A | T53: N/A | U53: N/A | BA53: Microbiological quality of piped on premises at point of collection | BB53: Not contaminated (No E. coli in 100 mL) | BC53: N/A | BD53: N/A | BE53: N/A | BF53: N/A | BG53: N/A | BH53: N/A | BI53: N/A | BJ53: N/A | BK53: N/A | BL53: N/A | BM53: N/A | BN53: N/A | BO53: N/A | BP53: N/A | BQ53: N/A | BR53: N/A | BS53: N/A | BT53: N/A | BU53: N/A
B54: Contaminated (E. coli detected in 100 mL) | C54: N/A | D54: N/A | E54: N/A | F54: N/A | G54: N/A | H54: N/A | I54: N/A | J54: N/A | K54: N/A | L54: N/A | M54: N/A | N54: N/A | O54: N/A | P54: N/A | Q54: N/A | R54: N/A | S54: N/A | T54: N/A | U54: N/A | BB54: Contaminated (E. coli detected in 100 mL) | BC54: N/A | BD54: N/A | BE54: N/A | BF54: N/A | BG54: N/A | BH54: N/A | BI54: N/A | BJ54: N/A | BK54: N/A | BL54: N/A | BM54: N/A | BN54: N/A | BO54: N/A | BP54: N/A | BQ54: N/A | BR54: N/A | BS54: N/A | BT54: N/A | BU54: N/A
B55: Highly contaminated (>100 CFU/100 mL) | C55: N/A | D55: N/A | E55: N/A | F55: N/A | G55: N/A | H55: N/A | I55: N/A | J55: N/A | K55: N/A | L55: N/A | M55: N/A | N55: N/A | O55: N/A | P55: N/A | Q55: N/A | R55: N/A | S55: N/A | T55: N/A | U55: N/A | BB55: Highly contaminated (>100 CFU/100 mL) | BC55: N/A | BD55: N/A | BE55: N/A | BF55: N/A | BG55: N/A | BH55: N/A | BI55: N/A | BJ55: N/A | BK55: N/A | BL55: N/A | BM55: N/A | BN55: N/A | BO55: N/A | BP55: N/A | BQ55: N/A | BR55: N/A | BS55: N/A | BT55: N/A | BU55: N/A
C56: NATIONAL wealth index quintile | H56: URBAN wealth index quintile | M56: RURAL wealth index quintile | R56: SUB-REGIONS: | BA56: Raw numbers of respondents: | BB56: Use of drinking water sources | BC56: NATIONAL wealth index quintile | BH56: URBAN wealth index quintile | BM56: RURAL wealth index quintile | BR56: SUB-REGIONS:
A57: Percentage based on weighted population | C57: Poorest | D57: Poor | E57: Middle | F57: Rich | G57: Richest | H57: Poorest | I57: Poor | J57: Middle | K57: Rich | L57: Richest | M57: Poorest | N57: Poor | O57: Middle | P57: Rich | Q57: Richest | R57: Brazzaville | S57: Nord | T57: Pointe Noire | U57: Sud | BA57: Water data, raw numbers (weighted) | BC57: Poorest | BD57: Poor | BE57: Middle | BF57: Rich | BG57: Richest | BH57: Poorest | BI57: Poor | BJ57: Middle | BK57: Rich | BL57: Richest | BM57: Poorest | BN57: Poor | BO57: Middle | BP57: Rich | BQ57: Richest | BR57: Brazzaville | BS57: Nord | BT57: Pointe Noire | BU57: Sud
A58: Source of drinking water | B58: Piped into dwelling | C58: 0 | D58: 0.2152681669 | E58: 1.184192427 | F58: 3.492825409 | G58: 8.65602512 | H58: 1.314344014 | I58: 2.469235081 | J58: 3.052066033 | K58: 4.383947415 | L58: 12.24056714 | M58: 0 | N58: 0 | O58: 0 | P58: 0 | Q58: 2.591810446 | R58: 4.768573819 | S58: 0.5977992978 | T58: 5.855642345 | U58: 0.5388421538
B59: Piped into yard/plot | C59: 0.08812854228 | D59: 1.15157447 | E59: 13.87368256 | F59: 37.31012679 | G59: 62.69233186 | H59: 12.92470669 | I59: 25.46266425 | J59: 42.18167461 | K59: 60.5833475 | L59: 67.24879735 | M59: 0.1839428078 | N59: 0 | O59: 0 | P59: 0 | Q59: 11.83616393 | R59: 45.34528941 | S59: 2.742664411 | T59: 38.10640578 | U59: 6.58852275
B60: Piped into neighbor' yard/plot {CG} | C60: 3.756046843 | D60: 13.09724925 | E60: 40.28541992 | F60: 41.78201276 | G60: 17.66930363 | H60: 58.93308924 | I60: 56.50432255 | J60: 43.20516391 | K60: 26.93713382 | L60: 12.00734936 | M60: 4.516602306 | N60: 3.315980096 | O60: 4.712985511 | P60: 8.388617861 | Q60: 6.434675095 | R60: 38.30048848 | S60: 9.786832067 | T60: 42.88521352 | U60: 8.081343048
B61: Open well in dwelling, yard/plot {CG} | C61: 3.555534647 | D61: 2.671957344 | E61: 0.5780002877 | F61: 0.4275476897 | G61: 0.6006740506 | H61: 1.124990341 | I61: 0.2739191669 | J61: 0.5589317969 | K61: 0.437843403 | L61: 0.3171300969 | M61: 1.750116597 | N61: 5.469355279 | O61: 2.90573236 | P61: 2.441183444 | Q61: 0.9032589251 | R61: 0.1110196787 | S61: 2.583635866 | T61: 0.9668274367 | U61: 2.627215681
B62: Open public well {CG} | C62: 6.86356094 | D62: 9.410855124 | E62: 5.484086623 | F62: 1.079964365 | G62: 0.388452144 | H62: 1.307401227 | I62: 1.885756208 | J62: 0.7192070765 | K62: 0.1657837719 | L62: 0.254306835 | M62: 8.615830883 | N62: 5.661252725 | O62: 9.466457351 | P62: 10.4612371 | Q62: 9.946211302 | R62: 0.6735973467 | S62: 6.219874515 | T62: 1.272036828 | U62: 9.002769881
B63: Protected well in dwelling or yard/plot {CG} | C63: 5.16056631 | D63: 4.055659007 | E63: 3.562571399 | F63: 2.273206803 | G63: 1.381893084 | H63: 2.696090269 | I63: 0.8998877021 | J63: 0.7147692667 | K63: 0.9345161994 | L63: 0.8633902455 | M63: 3.528153948 | N63: 6.650217431 | O63: 3.232095862 | P63: 5.80582394 | Q63: 8.621456536 | R63: 0.3378868742 | S63: 10.66565369 | T63: 1.998413599 | U63: 2.573400303
B64: Protected, pumped {CG} | C64: 8.666297709 | D64: 6.800691818 | E64: 7.388044448 | F64: 3.718315397 | G64: 2.827415095 | H64: 8.244205727 | I64: 4.385256619 | J64: 2.166261368 | K64: 1.285467852 | L64: 2.658634089 | M64: 6.912685888 | N64: 10.38230324 | O64: 6.497680563 | P64: 6.003718544 | Q64: 11.36307682 | R64: 2.193070657 | S64: 11.97972626 | T64: 3.542634428 | U64: 7.017619955
B65: Protected surface water {CG} | C65: 11.26666613 | D65: 10.84383545 | E65: 5.643948775 | F65: 3.950681541 | G65: 2.096471062 | H65: 4.815486657 | I65: 4.257188346 | J65: 3.815953194 | K65: 2.185206612 | L65: 1.401493795 | M65: 10.89011624 | N65: 11.4197587 | O65: 15.67053115 | P65: 6.881399524 | Q65: 8.042540088 | R65: 5.08470771 | S65: 9.006927702 | T65: 0 | U65: 10.11590244
B66: Non-protected surface water {CG} | C66: 32.37134529 | D66: 28.32927039 | E66: 8.018254534 | F66: 2.296858404 | G66: 0.3858842167 | H66: 2.668000108 | I66: 1.192479225 | J66: 1.654334334 | K66: 0.3718284569 | L66: 0 | M66: 36.27787724 | N66: 28.97003049 | O66: 31.37963622 | P66: 30.71385331 | Q66: 16.33669667 | R66: 1.22994872 | S66: 18.01656394 | T66: 0 | U66: 30.73522403
B67: River, pond, lake {CG} | C67: 23.9736912 | D67: 16.90232054 | E67: 5.634936148 | F67: 0.4214521189 | G67: 0 | H67: 0.2298062053 | I67: 0 | J67: 0 | K67: 0 | L67: 0 | M67: 24.72527542 | N67: 22.4345655 | O67: 20.34581475 | P67: 20.37989614 | Q67: 10.48944756 | R67: 0 | S67: 19.21665763 | T67: 0.07073544635 | U67: 16.87397374
B68: Rainwater | C68: 0.2862725045 | D68: 0.1375767418 | E68: 0.05441145794 | F68: 0 | G68: 0 | H68: 0.02564568665 | I68: 0 | J68: 0 | K68: 0 | L68: 0 | M68: 0.5149248691 | N68: 0.08250577941 | O68: 0 | P68: 0.2643571347 | Q68: 0.1147792138 | R68: 0 | S68: 0.4963844171 | T68: 0 | U68: 0.007855147998
B69: Tanker truck | C69: 0.6054997861 | D69: 1.000862667 | E69: 0.9595778899 | F69: 0.4001031982 | G69: 0.196175997 | H69: 0 | I69: 0 | J69: 0 | K69: 0 | L69: 0 | M69: 0.490177296 | N69: 0.7728759919 | O69: 1.000957769 | P69: 1.366801935 | Q69: 3.03653854 | R69: 0 | S69: 3.393265761 | T69: 0 | U69: 0
B70: Bottled water | C70: 0 | D70: 0 | E70: 0.2238152975 | F70: 0.01481669698 | G70: 0.540037472 | H70: 0.4278671883 | I70: 0.02812242282 | J70: 0 | K70: 0.1026773168 | L70: 0.9252112956 | M70: 0 | N70: 0 | O70: 0 | P70: 0 | Q70: 0 | R70: 0.4387852502 | S70: 0 | T70: 0.1057260328 | U70: 0
B71: Other | C71: 3.406390104 | D71: 5.382879019 | E71: 7.109058238 | F71: 2.832088827 | G71: 2.565336265 | H71: 5.288366642 | I71: 2.641168428 | J71: 1.931638411 | K71: 2.612247658 | L71: 2.083119792 | M71: 1.594296507 | N71: 4.841154764 | O71: 4.788108467 | P71: 7.293111056 | Q71: 10.28334486 | R71: 1.516632051 | S71: 5.294014438 | T71: 5.19636459 | U71: 5.837330883
A108: =A1026 -> Congo
A109: =A1034 -> 2005
A110: Use of sanitation facilities
A111: by wealth quintile and sub-national region
A112: Notes:
A113: WHO/UNICEF JMP customised wealth index excludes water,
A114: sanitation and hygiene assets.
A115: Survey used for analysis: | B115: =A1025 -> DHS05
A116: =B1030 -> Ratio of Improved latrines based on: | B116: DHS12
A117: =B1029 -> Ratio of Shared improved based on: | B117: DHS12
A120: Use of sanitation facilities | C120: NATIONAL wealth index quintile | H120: URBAN wealth index quintile | M120: RURAL wealth index quintile | R120: SUB-REGIONS: | BA120: Raw numbers of respondents: | BB120: Use of sanitation facilities | BC120: NATIONAL wealth index quintile | BH120: URBAN wealth index quintile | BM120: RURAL wealth index quintile | BR120: SUB-REGIONS:
A121: Weighted percentage (used in graphs) | C121: Poorest | D121: Poor | E121: Middle | F121: Rich | G121: Richest | H121: Poorest | I121: Poor | J121: Middle | K121: Rich | L121: Richest | M121: Poorest | N121: Poor | O121: Middle | P121: Rich | Q121: Richest | R121: Brazzaville | S121: Nord | T121: Pointe Noire | U121: Sud | BA121: Sanitation data, raw numbers (weighted) | BC121: Poorest | BD121: Poor | BE121: Middle | BF121: Rich | BG121: Richest | BH121: Poorest | BI121: Poor | BJ121: Middle | BK121: Rich | BL121: Richest | BM121: Poorest | BN121: Poor | BO121: Middle | BP121: Rich | BQ121: Richest | BR121: Brazzaville | BS121: Nord | BT121: Pointe Noire | BU121: Sud
A122: Sanitation | B122: Improved | C122: =C153+(C155+C154)*'DHS12'!C130/100 -> 4.432746353 | D122: =D153+(D155+D154)*'DHS12'!D130/100 -> 22.89565078 | E122: =E153+(E155+E154)*'DHS12'!E130/100 -> 41.96803364 | F122: =F153+(F155+F154)*'DHS12'!F130/100 -> 60.99359215 | G122: =G153+(G155+G154)*'DHS12'!G130/100 -> 73.38313995 | H122: =H153+(H155+H154)*'DHS12'!H130/100 -> 34.73232735 | I122: =I153+(I155+I154)*'DHS12'!I130/100 -> 44.14244657 | J122: =J153+(J155+J154)*'DHS12'!J130/100 -> 59.42751455 | K122: =K153+(K155+K154)*'DHS12'!K130/100 -> 68.06101649 | L122: =L153+(L155+L154)*'DHS12'!L130/100 -> 80.0306972 | M122: =M153+(M155+M154)*'DHS12'!M130/100 -> 2.045325336 | N122: =N153+(N155+N154)*'DHS12'!N130/100 -> 4.07592906 | O122: =O153+(O155+O154)*'DHS12'!O130/100 -> 7.380460628 | P122: =P153+(P155+P154)*'DHS12'!P130/100 -> 12.56002178 | Q122: =Q153+(Q155+Q154)*'DHS12'!Q130/100 -> 41.01038997 | R122: =R153+R155+R154*'DHS12'!R130/100 -> 69.52441066 | S122: =S153+S155+S154*'DHS12'!S130/100 -> 47.91455977 | T122: =T153+T155+T154*'DHS12'!T130/100 -> 41.25059295 | U122: =U153+U155+U154*'DHS12'!U130/100 -> 11.4120241 | BA122: Sanitation | BB122: Improved | BC122: N/A | BD122: N/A | BE122: N/A | BF122: N/A | BG122: N/A | BH122: N/A | BI122: N/A | BJ122: N/A | BK122: N/A | BL122: N/A | BM122: N/A | BN122: N/A | BO122: N/A | BP122: N/A | BQ122: N/A | BR122: N/A | BS122: N/A | BT122: N/A | BU122: N/A
B123: Not Improved | C123: =100-C122 -> 95.56725365 | D123: =100-D122 -> 77.10434922 | E123: 58.03196636 | F123: 39.00640785 | G123: 26.61686005 | H123: 65.26767265 | I123: 55.85755343 | J123: 40.57248545 | K123: 31.93898351 | L123: 19.9693028 | M123: 97.95467466 | N123: 95.92407094 | O123: 92.61953937 | P123: 87.43997822 | Q123: 58.98961003 | R123: 30.47558934 | S123: 52.08544023 | T123: 58.74940705 | U123: 88.5879759 | BB123: Not Improved | BC123: N/A | BD123: N/A | BE123: N/A | BF123: N/A | BG123: N/A | BH123: N/A | BI123: N/A | BJ123: N/A | BK123: N/A | BL123: N/A | BM123: N/A | BN123: N/A | BO123: N/A | BP123: N/A | BQ123: N/A | BR123: N/A | BS123: N/A | BT123: N/A | BU123: N/A
A124: Sanitation ladder | B124: Basic | C124: =C122*'DHS12'!C129/100 -> 1.934537719 | D124: =D122*'DHS12'!D129/100 -> 6.663316308 | E124: =E122*'DHS12'!E129/100 -> 9.026669114 | F124: =F122*'DHS12'!F129/100 -> 13.6184401 | G124: =G122*'DHS12'!G129/100 -> 32.70698129 | H124: =H122*'DHS12'!H129/100 -> 8.763329765 | I124: =I122*'DHS12'!I129/100 -> 7.486646004 | J124: =J122*'DHS12'!J129/100 -> 10.98241796 | K124: =K122*'DHS12'!K129/100 -> 19.14656104 | L124: =L122*'DHS12'!L129/100 -> 39.3605305 | M124: =M122*'DHS12'!M129/100 -> 0.5887391321 | N124: =N122*'DHS12'!N129/100 -> 1.683836936 | O124: =O122*'DHS12'!O129/100 -> 3.296254985 | P124: =P122*'DHS12'!P129/100 -> 4.731644841 | Q124: =Q122*'DHS12'!Q129/100 -> 17.77838501 | R124: =R122*'DHS12'!R129/100 -> 25.97310988 | S124: =S122*'DHS12'!S129/100 -> 13.44694267 | T124: =T122*'DHS12'!T129/100 -> 21.78079456 | U124: =U122*'DHS12'!U129/100 -> 3.742205364 | BA124: Sanitation ladder | BB124: Basic | BC124: N/A | BD124: N/A | BE124: N/A | BF124: N/A | BG124: N/A | BH124: N/A | BI124: N/A | BJ124: N/A | BK124: N/A | BL124: N/A | BM124: N/A | BN124: N/A | BO124: N/A | BP124: N/A | BQ124: N/A | BR124: N/A | BS124: N/A | BT124: N/A | BU124: N/A
B125: Limited | C125: =C122*'DHS12'!C128/100 -> 2.498208634 | D125: =D122*'DHS12'!D128/100 -> 16.23233447 | E125: =E122*'DHS12'!E128/100 -> 32.94136453 | F125: =F122*'DHS12'!F128/100 -> 47.37515205 | G125: =G122*'DHS12'!G128/100 -> 40.67615866 | H125: =H122*'DHS12'!H128/100 -> 25.96899758 | I125: =I122*'DHS12'!I128/100 -> 36.65580056 | J125: =J122*'DHS12'!J128/100 -> 48.44509659 | K125: =K122*'DHS12'!K128/100 -> 48.91445545 | L125: =L122*'DHS12'!L128/100 -> 40.6701667 | M125: =M122*'DHS12'!M128/100 -> 1.456586204 | N125: =N122*'DHS12'!N128/100 -> 2.392092125 | O125: =O122*'DHS12'!O128/100 -> 4.084205643 | P125: =P122*'DHS12'!P128/100 -> 7.828376942 | Q125: =Q122*'DHS12'!Q128/100 -> 23.23200497 | R125: =R122*'DHS12'!R128/100 -> 43.55130078 | S125: =S122*'DHS12'!S128/100 -> 34.4676171 | T125: =T122*'DHS12'!T128/100 -> 19.46979839 | U125: =U122*'DHS12'!U128/100 -> 7.669818733 | BB125: Limited | BC125: N/A | BD125: N/A | BE125: N/A | BF125: N/A | BG125: N/A | BH125: N/A | BI125: N/A | BJ125: N/A | BK125: N/A | BL125: N/A | BM125: N/A | BN125: N/A | BO125: N/A | BP125: N/A | BQ125: N/A | BR125: N/A | BS125: N/A | BT125: N/A | BU125: N/A
B126: Unimproved | C126: =100-C124-C125-C127 -> 72.90557539 | D126: =100-D124-D125-D127 -> 61.70203834 | E126: 51.47451335 | F126: 37.43565917 | G126: 25.74108068 | H126: 55.43897984 | I126: 53.25130958 | J126: 38.87400693 | K126: 30.92152356 | L126: 19.22505776 | M126: 70.55333728 | N126: 77.90065794 | O126: 78.73071598 | P126: 70.26561919 | Q126: 54.13189777 | R126: 29.56850734 | S126: 35.48917122 | T126: 54.9822856 | U126: 72.71731481 | BB126: Unimproved | BC126: N/A | BD126: N/A | BE126: N/A | BF126: N/A | BG126: N/A | BH126: N/A | BI126: N/A | BJ126: N/A | BK126: N/A | BL126: N/A | BM126: N/A | BN126: N/A | BO126: N/A | BP126: N/A | BQ126: N/A | BR126: N/A | BS126: N/A | BT126: N/A | BU126: N/A
B127: Open defecation | C127: =C156 -> 22.66167826 | D127: =D156 -> 15.40231088 | E127: 6.557453007 | F127: 1.570748687 | G127: 0.875779365 | H127: 9.828692818 | I127: 2.606243856 | J127: 1.698478523 | K127: 1.01745995 | L127: 0.7442450424 | M127: 27.40133738 | N127: 18.023413 | O127: 13.88882339 | P127: 17.17435903 | Q127: 4.857712251 | R127: 0.9070820008 | S127: 16.59626901 | T127: 3.76712145 | U127: 15.87066109 | BB127: Open defecation | BC127: N/A | BD127: N/A | BE127: N/A | BF127: N/A | BG127: N/A | BH127: N/A | BI127: N/A | BJ127: N/A | BK127: N/A | BL127: N/A | BM127: N/A | BN127: N/A | BO127: N/A | BP127: N/A | BQ127: N/A | BR127: N/A | BS127: N/A | BT127: N/A | BU127: N/A
A128: Shared among Improved Sanitation | B128: Yes | C128: N/A | D128: N/A | E128: N/A | F128: N/A | G128: N/A | H128: N/A | I128: N/A | J128: N/A | K128: N/A | L128: N/A | M128: N/A | N128: N/A | O128: N/A | P128: N/A | Q128: N/A | R128: N/A | S128: N/A | T128: N/A | U128: N/A | BA128: Shared among improved sanitation facilities | BB128: Yes | BC128: N/A | BD128: N/A | BE128: N/A | BF128: N/A | BG128: N/A | BH128: N/A | BI128: N/A | BJ128: N/A | BK128: N/A | BL128: N/A | BM128: N/A | BN128: N/A | BO128: N/A | BP128: N/A | BQ128: N/A | BR128: N/A | BS128: N/A | BT128: N/A | BU128: N/A
B129: No | C129: N/A | D129: N/A | E129: N/A | F129: N/A | G129: N/A | H129: N/A | I129: N/A | J129: N/A | K129: N/A | L129: N/A | M129: N/A | N129: N/A | O129: N/A | P129: N/A | Q129: N/A | R129: N/A | S129: N/A | T129: N/A | U129: N/A | BB129: No | BC129: N/A | BD129: N/A | BE129: N/A | BF129: N/A | BG129: N/A | BH129: N/A | BI129: N/A | BJ129: N/A | BK129: N/A | BL129: N/A | BM129: N/A | BN129: N/A | BO129: N/A | BP129: N/A | BQ129: N/A | BR129: N/A | BS129: N/A | BT129: N/A | BU129: N/A
A130: Manually calculated ratios | B130: Improved latrines
B131: Other
B132: Other
C133: NATIONAL wealth index quintile | H133: URBAN wealth index quintile | M133: RURAL wealth index quintile | R133: SUB-REGIONS: | BA133: Raw numbers of respondents: | BB133: Use of sanitation facilities | BC133: NATIONAL wealth index quintile | BH133: URBAN wealth index quintile | BM133: RURAL wealth index quintile | BR133: SUB-REGIONS:
A134: Percentage based on weighted population | C134: Poorest | D134: Poor | E134: Middle | F134: Rich | G134: Richest | H134: Poorest | I134: Poor | J134: Middle | K134: Rich | L134: Richest | M134: Poorest | N134: Poor | O134: Middle | P134: Rich | Q134: Richest | R134: Brazzaville | S134: Nord | T134: Pointe Noire | U134: Sud | BA134: Sanitation data, raw numbers (weighted) | BC134: Poorest | BD134: Poor | BE134: Middle | BF134: Rich | BG134: Richest | BH134: Poorest | BI134: Poor | BJ134: Middle | BK134: Rich | BL134: Richest | BM134: Poorest | BN134: Poor | BO134: Middle | BP134: Rich | BQ134: Richest | BR134: Brazzaville | BS134: Nord | BT134: Pointe Noire | BU134: Sud
A135: Sanitation type | B135: Sewer connection | C135: N/A | D135: N/A | E135: N/A | F135: N/A | G135: N/A | H135: N/A | I135: N/A | J135: N/A | K135: N/A | L135: N/A | M135: N/A | N135: N/A | O135: N/A | P135: N/A | Q135: N/A | R135: N/A | S135: N/A | T135: N/A | U135: N/A | BA135: Sanitation type | BB135: Sewer connection | BC135: N/A | BD135: N/A | BE135: N/A | BF135: N/A | BG135: N/A | BH135: N/A | BI135: N/A | BJ135: N/A | BK135: N/A | BL135: N/A | BM135: N/A | BN135: N/A | BO135: N/A | BP135: N/A | BQ135: N/A | BR135: N/A | BS135: N/A | BT135: N/A | BU135: N/A
B136: Septic tank connection | C136: N/A | D136: N/A | E136: N/A | F136: N/A | G136: N/A | H136: N/A | I136: N/A | J136: N/A | K136: N/A | L136: N/A | M136: N/A | N136: N/A | O136: N/A | P136: N/A | Q136: N/A | R136: N/A | S136: N/A | T136: N/A | U136: N/A | BB136: Septic tank connection | BC136: N/A | BD136: N/A | BE136: N/A | BF136: N/A | BG136: N/A | BH136: N/A | BI136: N/A | BJ136: N/A | BK136: N/A | BL136: N/A | BM136: N/A | BN136: N/A | BO136: N/A | BP136: N/A | BQ136: N/A | BR136: N/A | BS136: N/A | BT136: N/A | BU136: N/A
B137: Improved latrines | C137: N/A | D137: N/A | E137: N/A | F137: N/A | G137: N/A | H137: N/A | I137: N/A | J137: N/A | K137: N/A | L137: N/A | M137: N/A | N137: N/A | O137: N/A | P137: N/A | Q137: N/A | R137: N/A | S137: N/A | T137: N/A | U137: N/A | BB137: Improved latrines | BC137: N/A | BD137: N/A | BE137: N/A | BF137: N/A | BG137: N/A | BH137: N/A | BI137: N/A | BJ137: N/A | BK137: N/A | BL137: N/A | BM137: N/A | BN137: N/A | BO137: N/A | BP137: N/A | BQ137: N/A | BR137: N/A | BS137: N/A | BT137: N/A | BU137: N/A
B138: Unimproved facilities | C138: N/A | D138: N/A | E138: N/A | F138: N/A | G138: N/A | H138: N/A | I138: N/A | J138: N/A | K138: N/A | L138: N/A | M138: N/A | N138: N/A | O138: N/A | P138: N/A | Q138: N/A | R138: N/A | S138: N/A | T138: N/A | U138: N/A | BB138: Unimproved facilities | BC138: N/A | BD138: N/A | BE138: N/A | BF138: N/A | BG138: N/A | BH138: N/A | BI138: N/A | BJ138: N/A | BK138: N/A | BL138: N/A | BM138: N/A | BN138: N/A | BO138: N/A | BP138: N/A | BQ138: N/A | BR138: N/A | BS138: N/A | BT138: N/A | BU138: N/A
B139: Open defecation | C139: 22.55977923 | D139: 15.40231088 | E139: 6.557453007 | F139: 1.569068704 | G139: 0.875779365 | H139: 9.828692818 | I139: 2.606243856 | J139: 1.696751483 | K139: 1.01745995 | L139: 0.7442450424 | M139: 27.40133738 | N139: 17.85442387 | O139: 13.88882339 | P139: 17.17435903 | Q139: 4.852207376 | R139: 0.9067783645 | S139: 16.57550931 | T139: 3.76712145 | U139: 15.83519584 | BB139: Open defecation | BC139: N/A | BD139: N/A | BE139: N/A | BF139: N/A | BG139: N/A | BH139: N/A | BI139: N/A | BJ139: N/A | BK139: N/A | BL139: N/A | BM139: N/A | BN139: N/A | BO139: N/A | BP139: N/A | BQ139: N/A | BR139: N/A | BS139: N/A | BT139: N/A | BU139: N/A
A140: Septic tank emptying practices | B140: Not emptied/treated and disposed in situ | C140: N/A | D140: N/A | E140: N/A | F140: N/A | G140: N/A | H140: N/A | I140: N/A | J140: N/A | K140: N/A | L140: N/A | M140: N/A | N140: N/A | O140: N/A | P140: N/A | Q140: N/A | R140: N/A | S140: N/A | T140: N/A | U140: N/A | BA140: Septic tank emptying practices | BB140: Not emptied/treated and disposed in situ | BC140: N/A | BD140: N/A | BE140: N/A | BF140: N/A | BG140: N/A | BH140: N/A | BI140: N/A | BJ140: N/A | BK140: N/A | BL140: N/A | BM140: N/A | BN140: N/A | BO140: N/A | BP140: N/A | BQ140: N/A | BR140: N/A | BS140: N/A | BT140: N/A | BU140: N/A
B141: Emptied and buried on site | C141: N/A | D141: N/A | E141: N/A | F141: N/A | G141: N/A | H141: N/A | I141: N/A | J141: N/A | K141: N/A | L141: N/A | M141: N/A | N141: N/A | O141: N/A | P141: N/A | Q141: N/A | R141: N/A | S141: N/A | T141: N/A | U141: N/A | BB141: Emptied and buried on site | BC141: N/A | BD141: N/A | BE141: N/A | BF141: N/A | BG141: N/A | BH141: N/A | BI141: N/A | BJ141: N/A | BK141: N/A | BL141: N/A | BM141: N/A | BN141: N/A | BO141: N/A | BP141: N/A | BQ141: N/A | BR141: N/A | BS141: N/A | BT141: N/A | BU141: N/A
B142: Emptied and discharged locally | C142: N/A | D142: N/A | E142: N/A | F142: N/A | G142: N/A | H142: N/A | I142: N/A | J142: N/A | K142: N/A | L142: N/A | M142: N/A | N142: N/A | O142: N/A | P142: N/A | Q142: N/A | R142: N/A | S142: N/A | T142: N/A | U142: N/A | BB142: Emptied and discharged locally | BC142: N/A | BD142: N/A | BE142: N/A | BF142: N/A | BG142: N/A | BH142: N/A | BI142: N/A | BJ142: N/A | BK142: N/A | BL142: N/A | BM142: N/A | BN142: N/A | BO142: N/A | BP142: N/A | BQ142: N/A | BR142: N/A | BS142: N/A | BT142: N/A | BU142: N/A
B143: Emptied and removed offsite | C143: N/A | D143: N/A | E143: N/A | F143: N/A | G143: N/A | H143: N/A | I143: N/A | J143: N/A | K143: N/A | L143: N/A | M143: N/A | N143: N/A | O143: N/A | P143: N/A | Q143: N/A | R143: N/A | S143: N/A | T143: N/A | U143: N/A | BB143: Emptied and removed offsite | BC143: N/A | BD143: N/A | BE143: N/A | BF143: N/A | BG143: N/A | BH143: N/A | BI143: N/A | BJ143: N/A | BK143: N/A | BL143: N/A | BM143: N/A | BN143: N/A | BO143: N/A | BP143: N/A | BQ143: N/A | BR143: N/A | BS143: N/A | BT143: N/A | BU143: N/A
A144: Latrine emptying practices | B144: Not emptied/treated and disposed in situ | C144: N/A | D144: N/A | E144: N/A | F144: N/A | G144: N/A | H144: N/A | I144: N/A | J144: N/A | K144: N/A | L144: N/A | M144: N/A | N144: N/A | O144: N/A | P144: N/A | Q144: N/A | R144: N/A | S144: N/A | T144: N/A | U144: N/A | BA144: Latrine emptying practices | BB144: Not emptied/treated and disposed in situ | BC144: N/A | BD144: N/A | BE144: N/A | BF144: N/A | BG144: N/A | BH144: N/A | BI144: N/A | BJ144: N/A | BK144: N/A | BL144: N/A | BM144: N/A | BN144: N/A | BO144: N/A | BP144: N/A | BQ144: N/A | BR144: N/A | BS144: N/A | BT144: N/A | BU144: N/A
B145: Emptied and buried on site | C145: N/A | D145: N/A | E145: N/A | F145: N/A | G145: N/A | H145: N/A | I145: N/A | J145: N/A | K145: N/A | L145: N/A | M145: N/A | N145: N/A | O145: N/A | P145: N/A | Q145: N/A | R145: N/A | S145: N/A | T145: N/A | U145: N/A | BB145: Emptied and buried on site | BC145: N/A | BD145: N/A | BE145: N/A | BF145: N/A | BG145: N/A | BH145: N/A | BI145: N/A | BJ145: N/A | BK145: N/A | BL145: N/A | BM145: N/A | BN145: N/A | BO145: N/A | BP145: N/A | BQ145: N/A | BR145: N/A | BS145: N/A | BT145: N/A | BU145: N/A
B146: Emptied and discharged locally | C146: N/A | D146: N/A | E146: N/A | F146: N/A | G146: N/A | H146: N/A | I146: N/A | J146: N/A | K146: N/A | L146: N/A | M146: N/A | N146: N/A | O146: N/A | P146: N/A | Q146: N/A | R146: N/A | S146: N/A | T146: N/A | U146: N/A | BB146: Emptied and discharged locally | BC146: N/A | BD146: N/A | BE146: N/A | BF146: N/A | BG146: N/A | BH146: N/A | BI146: N/A | BJ146: N/A | BK146: N/A | BL146: N/A | BM146: N/A | BN146: N/A | BO146: N/A | BP146: N/A | BQ146: N/A | BR146: N/A | BS146: N/A | BT146: N/A | BU146: N/A
B147: Emptied and removed offsite | C147: N/A | D147: N/A | E147: N/A | F147: N/A | G147: N/A | H147: N/A | I147: N/A | J147: N/A | K147: N/A | L147: N/A | M147: N/A | N147: N/A | O147: N/A | P147: N/A | Q147: N/A | R147: N/A | S147: N/A | T147: N/A | U147: N/A | BB147: Emptied and removed offsite | BC147: N/A | BD147: N/A | BE147: N/A | BF147: N/A | BG147: N/A | BH147: N/A | BI147: N/A | BJ147: N/A | BK147: N/A | BL147: N/A | BM147: N/A | BN147: N/A | BO147: N/A | BP147: N/A | BQ147: N/A | BR147: N/A | BS147: N/A | BT147: N/A | BU147: N/A
A148: Shared among improved sanitation facilities | B148: Yes | C148: N/A | D148: N/A | E148: N/A | F148: N/A | G148: N/A | H148: N/A | I148: N/A | J148: N/A | K148: N/A | L148: N/A | M148: N/A | N148: N/A | O148: N/A | P148: N/A | Q148: N/A | R148: N/A | S148: N/A | T148: N/A | U148: N/A | BA148: Shared among improved sanitation facilities | BB148: Yes | BC148: N/A | BD148: N/A | BE148: N/A | BF148: N/A | BG148: N/A | BH148: N/A | BI148: N/A | BJ148: N/A | BK148: N/A | BL148: N/A | BM148: N/A | BN148: N/A | BO148: N/A | BP148: N/A | BQ148: N/A | BR148: N/A | BS148: N/A | BT148: N/A | BU148: N/A
B149: No | C149: N/A | D149: N/A | E149: N/A | F149: N/A | G149: N/A | H149: N/A | I149: N/A | J149: N/A | K149: N/A | L149: N/A | M149: N/A | N149: N/A | O149: N/A | P149: N/A | Q149: N/A | R149: N/A | S149: N/A | T149: N/A | U149: N/A | BB149: No | BC149: N/A | BD149: N/A | BE149: N/A | BF149: N/A | BG149: N/A | BH149: N/A | BI149: N/A | BJ149: N/A | BK149: N/A | BL149: N/A | BM149: N/A | BN149: N/A | BO149: N/A | BP149: N/A | BQ149: N/A | BR149: N/A | BS149: N/A | BT149: N/A | BU149: N/A
B150: DK/missing | C150: N/A | D150: N/A | E150: N/A | F150: N/A | G150: N/A | H150: N/A | I150: N/A | J150: N/A | K150: N/A | L150: N/A | M150: N/A | N150: N/A | O150: N/A | P150: N/A | Q150: N/A | R150: N/A | S150: N/A | T150: N/A | U150: N/A | BB150: DK/missing | BC150: N/A | BD150: N/A | BE150: N/A | BF150: N/A | BG150: N/A | BH150: N/A | BI150: N/A | BJ150: N/A | BK150: N/A | BL150: N/A | BM150: N/A | BN150: N/A | BO150: N/A | BP150: N/A | BQ150: N/A | BR150: N/A | BS150: N/A | BT150: N/A | BU150: N/A
A151: Shared among all sanitation facilities | B151: Yes | C151: 49.03919451 | D151: 46.4116925 | E151: 56.11916016 | F151: 66.65210243 | G151: 53.94845191 | H151: 56.11253524 | I151: 64.44843665 | J151: 68.24766741 | K151: 65.07414711 | L151: 48.28620005 | M151: 58.09031623 | N151: 40.76855597 | O151: 46.90037977 | P151: 46.62122034 | Q151: 47.80403622 | R151: 61.4270817 | S151: 55.31589559 | T151: 63.92709102 | U151: 42.92750837 | BA151: Shared among all sanitation facilities | BB151: Yes | BC151: N/A | BD151: N/A | BE151: N/A | BF151: N/A | BG151: N/A | BH151: N/A | BI151: N/A | BJ151: N/A | BK151: N/A | BL151: N/A | BM151: N/A | BN151: N/A | BO151: N/A | BP151: N/A | BQ151: N/A | BR151: N/A | BS151: N/A | BT151: N/A | BU151: N/A
B152: No | C152: 49.70736224 | D152: 49.70438972 | E152: 39.38966545 | F152: 26.00564266 | G152: 40.51476215 | H152: 38.30554752 | I152: 29.66426212 | J152: 23.20587159 | K152: 28.37565071 | L152: 46.73587973 | M152: 40.18902393 | N152: 58.28670711 | O152: 50.53858905 | P152: 49.84848158 | Q152: 48.35344117 | R152: 30.86913887 | S152: 42.09697259 | T152: 32.30307203 | U152: 54.11247061 | BB152: No | BC152: N/A | BD152: N/A | BE152: N/A | BF152: N/A | BG152: N/A | BH152: N/A | BI152: N/A | BJ152: N/A | BK152: N/A | BL152: N/A | BM152: N/A | BN152: N/A | BO152: N/A | BP152: N/A | BQ152: N/A | BR152: N/A | BS152: N/A | BT152: N/A | BU152: N/A
A153: Type of toilet facility | B153: Flush toilet | C153: 0 | D153: 0 | E153: 0.7270824678 | F153: 4.420128497 | G153: 21.83062754 | H153: 0.6221338821 | I153: 1.161992446 | J153: 5.633995772 | K153: 11.85076501 | L153: 30.51968811 | M153: 0 | N153: 0 | O153: 0 | P153: 0 | Q153: 1.744860778 | R153: 10.52174342 | S153: 0.0009480471509 | T153: 11.74773435 | U153: 0.7252424928 | BA153: Type of toilet facility | BB153: Flush toilet | BC153: 0 | BD153: 0 | BE153: 46.7122 | BF153: 283.487831 | BG153: 1400.404688 | BH153: 20.907942 | BI153: 39.306669 | BJ153: 189.058524 | BK153: 399.753208 | BL153: 1028.497007 | BM153: 0 | BN153: 0 | BO153: 0 | BP153: 0 | BQ153: 53.081369 | BR153: 1073.245296 | BS153: 0.056685 | BT153: 577.906659 | BU153: 79.396079
B154: Traditional pit toilet | C154: 76.33417961 | D154: 80.51652661 | E154: 80.79715686 | F154: 70.30791389 | G154: 41.95926036 | H154: 79.60431281 | I154: 80.06271412 | J154: 64.20400307 | K154: 53.18110335 | L154: 31.83042395 | M154: 71.99101885 | N154: 80.48525384 | O154: 85.42746549 | P154: 77.23944893 | Q154: 80.23363752 | R154: 60.50688396 | S154: 79.91697132 | T154: 64.99318683 | U154: 75.63882105 | BB154: Traditional pit toilet | BC154: 4825.880478 | BD154: 5210.336242 | BE154: 5190.900782 | BF154: 4509.244024 | BG154: 2691.628759 | BH154: 2675.24789 | BI154: 2708.278023 | BJ154: 2154.476955 | BK154: 1793.919351 | BL154: 1072.668097 | BM154: 2190.417185 | BN154: 2428.265021 | BO154: 2614.505233 | BP154: 2349.380933 | BQ154: 2440.831597 | BR154: 6171.860116 | BS154: 4778.342 | BT154: 3197.21185 | BU154: 8280.576319
B155: Ventilated improved pit latrine | C155: 0.640532137 | D155: 3.847791392 | E155: 11.64973347 | F155: 23.61748404 | G155: 35.33433274 | H155: 9.670411319 | I155: 15.92672285 | J155: 28.46352264 | K155: 33.79148436 | L155: 36.9056429 | M155: 0 | N155: 1.34220446 | O155: 0.435422381 | P155: 5.344970538 | Q155: 13.16378945 | R155: 27.84248659 | S155: 3.101348125 | T155: 19.48858901 | U155: 7.628842032 | BB155: Ventilated improved pit latrine | BC155: 40.494724 | BD155: 248.995924 | BE155: 748.449734 | BF155: 1514.72278 | BG155: 2266.648777 | BH155: 324.991782 | BI155: 538.752576 | BJ155: 955.142992 | BK155: 1139.863483 | BL155: 1243.700235 | BM155: 0 | BN155: 40.494724 | BO155: 13.32609 | BP155: 162.577181 | BQ155: 400.462876 | BR155: 2840.006314 | BS155: 185.433729 | BT155: 958.702762 | BU155: 835.169134
B156: No facility, bush, field | C156: 22.66167826 | D156: 15.40231088 | E156: 6.557453007 | F156: 1.570748687 | G156: 0.875779365 | H156: 9.828692818 | I156: 2.606243856 | J156: 1.698478523 | K156: 1.01745995 | L156: 0.7442450424 | M156: 27.40133738 | N156: 18.023413 | O156: 13.88882339 | P156: 17.17435903 | Q156: 4.857712251 | R156: 0.9070820008 | S156: 16.59626901 | T156: 3.76712145 | U156: 15.87066109 | BB156: No facility, bush, field | BC156: 1432.681287 | BD156: 996.704925 | BE156: 421.290665 | BF156: 100.740994 | BG156: 56.18004 | BH156: 330.31112 | BI156: 88.1613 | BJ156: 56.9954 | BK156: 34.321234 | BL156: 25.080656 | BM156: 833.720112 | BN156: 543.771949 | BO156: 425.067058 | BP156: 522.389947 | BQ156: 147.779135 | BR156: 92.524732 | BS156: 992.312996 | BT156: 185.316122 | BU156: 1737.444061
B157: OTHER | C157: 0.3636099928 | D157: 0.2333711164 | E157: 0.2685741979 | F157: 0.08372488129 | G157: 0 | H157: 0.2744491663 | I157: 0.2423267305 | J157: 0 | K157: 0.1591873289 | L157: 0 | M157: 0.6076437688 | N157: 0.1491286987 | O157: 0.248288738 | P157: 0.2412215063 | Q157: 0 | R157: 0.2218040293 | S157: 0.3844635004 | T157: 0.0033683633 | U157: 0.1364333359 | BB157: OTHER | BC157: 22.987584 | BD157: 15.101769 | BE157: 17.25484 | BF157: 5.36975 | BG157: 0 | BH157: 9.223364 | BI157: 8.197176 | BJ157: 0 | BK157: 5.36975 | BL157: 0 | BM157: 18.488325 | BN157: 4.499259 | BO157: 7.59887 | BP157: 7.337199 | BQ157: 0 | BR157: 22.62459 | BS157: 22.987584 | BT157: 0.1657 | BU157: 14.936069
BB158: Total | BC158: 6322.044073 | BD158: 6471.13886 | BE158: 6424.608221 | BF158: 6413.565379 | BG158: 6414.862264 | BH158: 3360.682098 | BI158: 3382.695744 | BJ158: 3355.673871 | BK158: 3373.227026 | BL158: 3369.945995 | BM158: 3042.625622 | BN158: 3017.030953 | BO158: 3060.497251 | BP158: 3041.68526 | BQ158: 3042.154977 | BR158: 10200.26105 | BS158: 5979.132994 | BT158: 4919.303093 | BU158: 10947.52166
A208: =A1026 -> Congo
A209: =A1034 -> 2005
A210: Access to hygiene facilities
A211: by wealth quintile and sub-national region
A212: Notes:
A213: WHO/UNICEF JMP customised wealth index excludes water,
A214: sanitation and hygiene assets.
A215: Survey used for analysis: | B215: =A1025 -> DHS05
A220: Access to handwashing | C220: NATIONAL wealth index quintile | H220: URBAN wealth index quintile | M220: RURAL wealth index quintile | R220: SUB-REGIONS: | BA220: Raw numbers of respondents: | BB220: Access to handwashing | BC220: NATIONAL wealth index quintile | BH220: URBAN wealth index quintile | BM220: RURAL wealth index quintile | BR220: SUB-REGIONS:
A221: Weighted percentage (used in graphs) | C221: Poorest | D221: Poor | E221: Middle | F221: Rich | G221: Richest | H221: Poorest | I221: Poor | J221: Middle | K221: Rich | L221: Richest | M221: Poorest | N221: Poor | O221: Middle | P221: Rich | Q221: Richest | R221: Brazzaville | S221: Nord | T221: Pointe Noire | U221: Sud | BA221: Hygiene data, raw numbers (weighted) | BC221: Poorest | BD221: Poor | BE221: Middle | BF221: Rich | BG221: Richest | BH221: Poorest | BI221: Poor | BJ221: Middle | BK221: Rich | BL221: Richest | BM221: Poorest | BN221: Poor | BO221: Middle | BP221: Rich | BQ221: Richest | BR221: Brazzaville | BS221: Nord | BT221: Pointe Noire | BU221: Sud
A222: Hygiene ladder | B222: Basic | C222: N/A | D222: N/A | E222: N/A | F222: N/A | G222: N/A | H222: N/A | I222: N/A | J222: N/A | K222: N/A | L222: N/A | M222: N/A | N222: N/A | O222: N/A | P222: N/A | Q222: N/A | R222: N/A | S222: N/A | T222: N/A | U222: N/A | BA222: Hygiene ladder | BB222: Basic | BC222: N/A | BD222: N/A | BE222: N/A | BF222: N/A | BG222: N/A | BH222: N/A | BI222: N/A | BJ222: N/A | BK222: N/A | BL222: N/A | BM222: N/A | BN222: N/A | BO222: N/A | BP222: N/A | BQ222: N/A | BR222: N/A | BS222: N/A | BT222: N/A | BU222: N/A
B223: Limited | C223: N/A | D223: N/A | E223: N/A | F223: N/A | G223: N/A | H223: N/A | I223: N/A | J223: N/A | K223: N/A | L223: N/A | M223: N/A | N223: N/A | O223: N/A | P223: N/A | Q223: N/A | R223: N/A | S223: N/A | T223: N/A | U223: N/A | BB223: Limited | BC223: N/A | BD223: N/A | BE223: N/A | BF223: N/A | BG223: N/A | BH223: N/A | BI223: N/A | BJ223: N/A | BK223: N/A | BL223: N/A | BM223: N/A | BN223: N/A | BO223: N/A | BP223: N/A | BQ223: N/A | BR223: N/A | BS223: N/A | BT223: N/A | BU223: N/A
B224: No facility | C224: N/A | D224: N/A | E224: N/A | F224: N/A | G224: N/A | H224: N/A | I224: N/A | J224: N/A | K224: N/A | L224: N/A | M224: N/A | N224: N/A | O224: N/A | P224: N/A | Q224: N/A | R224: N/A | S224: N/A | T224: N/A | U224: N/A | BB224: No facility | BC224: N/A | BD224: N/A | BE224: N/A | BF224: N/A | BG224: N/A | BH224: N/A | BI224: N/A | BJ224: N/A | BK224: N/A | BL224: N/A | BM224: N/A | BN224: N/A | BO224: N/A | BP224: N/A | BQ224: N/A | BR224: N/A | BS224: N/A | BT224: N/A | BU224: N/A
BA225: Observed handwashing place | BB225: Fixed | BC225: N/A | BD225: N/A | BE225: N/A | BF225: N/A | BG225: N/A | BH225: N/A | BI225: N/A | BJ225: N/A | BK225: N/A | BL225: N/A | BM225: N/A | BN225: N/A | BO225: N/A | BP225: N/A | BQ225: N/A | BR225: N/A | BS225: N/A | BT225: N/A | BU225: N/A
BB226: Mobile | BC226: N/A | BD226: N/A | BE226: N/A | BF226: N/A | BG226: N/A | BH226: N/A | BI226: N/A | BJ226: N/A | BK226: N/A | BL226: N/A | BM226: N/A | BN226: N/A | BO226: N/A | BP226: N/A | BQ226: N/A | BR226: N/A | BS226: N/A | BT226: N/A | BU226: N/A
BA227: Water / Soap | BB227: Water and soap | BC227: N/A | BD227: N/A | BE227: N/A | BF227: N/A | BG227: N/A | BH227: N/A | BI227: N/A | BJ227: N/A | BK227: N/A | BL227: N/A | BM227: N/A | BN227: N/A | BO227: N/A | BP227: N/A | BQ227: N/A | BR227: N/A | BS227: N/A | BT227: N/A | BU227: N/A
BB228: Water only | BC228: N/A | BD228: N/A | BE228: N/A | BF228: N/A | BG228: N/A | BH228: N/A | BI228: N/A | BJ228: N/A | BK228: N/A | BL228: N/A | BM228: N/A | BN228: N/A | BO228: N/A | BP228: N/A | BQ228: N/A | BR228: N/A | BS228: N/A | BT228: N/A | BU228: N/A
BB229: Soap only | BC229: N/A | BD229: N/A | BE229: N/A | BF229: N/A | BG229: N/A | BH229: N/A | BI229: N/A | BJ229: N/A | BK229: N/A | BL229: N/A | BM229: N/A | BN229: N/A | BO229: N/A | BP229: N/A | BQ229: N/A | BR229: N/A | BS229: N/A | BT229: N/A | BU229: N/A
BB230: Neither | BC230: N/A | BD230: N/A | BE230: N/A | BF230: N/A | BG230: N/A | BH230: N/A | BI230: N/A | BJ230: N/A | BK230: N/A | BL230: N/A | BM230: N/A | BN230: N/A | BO230: N/A | BP230: N/A | BQ230: N/A | BR230: N/A | BS230: N/A | BT230: N/A | BU230: N/A
BA259: Raw numbers of respondents: | BB259: Menstrual health and hygiene | BC259: NATIONAL wealth index quintile | BH259: URBAN wealth index quintile | BM259: RURAL wealth index quintile | BR259: SUB-REGIONS:
BA260: MHH data, raw numbers (weighted) | BC260: Poorest | BD260: Poor | BE260: Middle | BF260: Rich | BG260: Richest | BH260: Poorest | BI260: Poor | BJ260: Middle | BK260: Rich | BL260: Richest | BM260: Poorest | BN260: Poor | BO260: Middle | BP260: Rich | BQ260: Richest | BR260: Brazzaville | BS260: Nord | BT260: Pointe Noire | BU260: Sud
BA261: Private place to wash and change | BB261: Yes | BC261: N/A | BD261: N/A | BE261: N/A | BF261: N/A | BG261: N/A | BH261: N/A | BI261: N/A | BJ261: N/A | BK261: N/A | BL261: N/A | BM261: N/A | BN261: N/A | BO261: N/A | BP261: N/A | BQ261: N/A | BR261: N/A | BS261: N/A | BT261: N/A | BU261: N/A
BB262: No | BC262: N/A | BD262: N/A | BE262: N/A | BF262: N/A | BG262: N/A | BH262: N/A | BI262: N/A | BJ262: N/A | BK262: N/A | BL262: N/A | BM262: N/A | BN262: N/A | BO262: N/A | BP262: N/A | BQ262: N/A | BR262: N/A | BS262: N/A | BT262: N/A | BU262: N/A
BB263: DK/not sure/missing | BC263: N/A | BD263: N/A | BE263: N/A | BF263: N/A | BG263: N/A | BH263: N/A | BI263: N/A | BJ263: N/A | BK263: N/A | BL263: N/A | BM263: N/A | BN263: N/A | BO263: N/A | BP263: N/A | BQ263: N/A | BR263: N/A | BS263: N/A | BT263: N/A | BU263: N/A
BA264: Use of menstrual materials | BB264: Materials reusable | BC264: N/A | BD264: N/A | BE264: N/A | BF264: N/A | BG264: N/A | BH264: N/A | BI264: N/A | BJ264: N/A | BK264: N/A | BL264: N/A | BM264: N/A | BN264: N/A | BO264: N/A | BP264: N/A | BQ264: N/A | BR264: N/A | BS264: N/A | BT264: N/A | BU264: N/A
BB265: Materials not reusable | BC265: N/A | BD265: N/A | BE265: N/A | BF265: N/A | BG265: N/A | BH265: N/A | BI265: N/A | BJ265: N/A | BK265: N/A | BL265: N/A | BM265: N/A | BN265: N/A | BO265: N/A | BP265: N/A | BQ265: N/A | BR265: N/A | BS265: N/A | BT265: N/A | BU265: N/A
BB266: No materials used | BC266: N/A | BD266: N/A | BE266: N/A | BF266: N/A | BG266: N/A | BH266: N/A | BI266: N/A | BJ266: N/A | BK266: N/A | BL266: N/A | BM266: N/A | BN266: N/A | BO266: N/A | BP266: N/A | BQ266: N/A | BR266: N/A | BS266: N/A | BT266: N/A | BU266: N/A
BB267: DK/not sure/missing | BC267: N/A | BD267: N/A | BE267: N/A | BF267: N/A | BG267: N/A | BH267: N/A | BI267: N/A | BJ267: N/A | BK267: N/A | BL267: N/A | BM267: N/A | BN267: N/A | BO267: N/A | BP267: N/A | BQ267: N/A | BR267: N/A | BS267: N/A | BT267: N/A | BU267: N/A
BA268: Use of menstrual materials with private place to wash and change | BB268: Materials reusable | BC268: N/A | BD268: N/A | BE268: N/A | BF268: N/A | BG268: N/A | BH268: N/A | BI268: N/A | BJ268: N/A | BK268: N/A | BL268: N/A | BM268: N/A | BN268: N/A | BO268: N/A | BP268: N/A | BQ268: N/A | BR268: N/A | BS268: N/A | BT268: N/A | BU268: N/A
BB269: Materials not reusable | BC269: N/A | BD269: N/A | BE269: N/A | BF269: N/A | BG269: N/A | BH269: N/A | BI269: N/A | BJ269: N/A | BK269: N/A | BL269: N/A | BM269: N/A | BN269: N/A | BO269: N/A | BP269: N/A | BQ269: N/A | BR269: N/A | BS269: N/A | BT269: N/A | BU269: N/A
BB270: No materials used | BC270: N/A | BD270: N/A | BE270: N/A | BF270: N/A | BG270: N/A | BH270: N/A | BI270: N/A | BJ270: N/A | BK270: N/A | BL270: N/A | BM270: N/A | BN270: N/A | BO270: N/A | BP270: N/A | BQ270: N/A | BR270: N/A | BS270: N/A | BT270: N/A | BU270: N/A
BA271: Awareness of menstruation before menarche | BB271: Yes | BC271: N/A | BD271: N/A | BE271: N/A | BF271: N/A | BG271: N/A | BH271: N/A | BI271: N/A | BJ271: N/A | BK271: N/A | BL271: N/A | BM271: N/A | BN271: N/A | BO271: N/A | BP271: N/A | BQ271: N/A | BR271: N/A | BS271: N/A | BT271: N/A | BU271: N/A
BB272: No | BC272: N/A | BD272: N/A | BE272: N/A | BF272: N/A | BG272: N/A | BH272: N/A | BI272: N/A | BJ272: N/A | BK272: N/A | BL272: N/A | BM272: N/A | BN272: N/A | BO272: N/A | BP272: N/A | BQ272: N/A | BR272: N/A | BS272: N/A | BT272: N/A | BU272: N/A
BB273: DK/not sure/missing | BC273: N/A | BD273: N/A | BE273: N/A | BF273: N/A | BG273: N/A | BH273: N/A | BI273: N/A | BJ273: N/A | BK273: N/A | BL273: N/A | BM273: N/A | BN273: N/A | BO273: N/A | BP273: N/A | BQ273: N/A | BR273: N/A | BS273: N/A | BT273: N/A | BU273: N/A
BA274: Participation in (all) activities during menstruation | BB274: Yes | BC274: N/A | BD274: N/A | BE274: N/A | BF274: N/A | BG274: N/A | BH274: N/A | BI274: N/A | BJ274: N/A | BK274: N/A | BL274: N/A | BM274: N/A | BN274: N/A | BO274: N/A | BP274: N/A | BQ274: N/A | BR274: N/A | BS274: N/A | BT274: N/A | BU274: N/A
BB275: No | BC275: N/A | BD275: N/A | BE275: N/A | BF275: N/A | BG275: N/A | BH275: N/A | BI275: N/A | BJ275: N/A | BK275: N/A | BL275: N/A | BM275: N/A | BN275: N/A | BO275: N/A | BP275: N/A | BQ275: N/A | BR275: N/A | BS275: N/A | BT275: N/A | BU275: N/A
BB276: DK/not sure/missing/no such activity | BC276: N/A | BD276: N/A | BE276: N/A | BF276: N/A | BG276: N/A | BH276: N/A | BI276: N/A | BJ276: N/A | BK276: N/A | BL276: N/A | BM276: N/A | BN276: N/A | BO276: N/A | BP276: N/A | BQ276: N/A | BR276: N/A | BS276: N/A | BT276: N/A | BU276: N/A
BA277: Participation in specific activities during menstruation | BB277: Did not go to school (amongst those usually attending school) | BC277: N/A | BD277: N/A | BE277: N/A | BF277: N/A | BG277: N/A | BH277: N/A | BI277: N/A | BJ277: N/A | BK277: N/A | BL277: N/A | BM277: N/A | BN277: N/A | BO277: N/A | BP277: N/A | BQ277: N/A | BR277: N/A | BS277: N/A | BT277: N/A | BU277: N/A
BB278: Did not go to work (amongst those who usually work) | BC278: N/A | BD278: N/A | BE278: N/A | BF278: N/A | BG278: N/A | BH278: N/A | BI278: N/A | BJ278: N/A | BK278: N/A | BL278: N/A | BM278: N/A | BN278: N/A | BO278: N/A | BP278: N/A | BQ278: N/A | BR278: N/A | BS278: N/A | BT278: N/A | BU278: N/A
BB279: Did not participate in social activities | BC279: N/A | BD279: N/A | BE279: N/A | BF279: N/A | BG279: N/A | BH279: N/A | BI279: N/A | BJ279: N/A | BK279: N/A | BL279: N/A | BM279: N/A | BN279: N/A | BO279: N/A | BP279: N/A | BQ279: N/A | BR279: N/A | BS279: N/A | BT279: N/A | BU279: N/A
BB280: Did not cook food | BC280: N/A | BD280: N/A | BE280: N/A | BF280: N/A | BG280: N/A | BH280: N/A | BI280: N/A | BJ280: N/A | BK280: N/A | BL280: N/A | BM280: N/A | BN280: N/A | BO280: N/A | BP280: N/A | BQ280: N/A | BR280: N/A | BS280: N/A | BT280: N/A | BU280: N/A
BB281: Did not eat with others | BC281: N/A | BD281: N/A | BE281: N/A | BF281: N/A | BG281: N/A | BH281: N/A | BI281: N/A | BJ281: N/A | BK281: N/A | BL281: N/A | BM281: N/A | BN281: N/A | BO281: N/A | BP281: N/A | BQ281: N/A | BR281: N/A | BS281: N/A | BT281: N/A | BU281: N/A
BB282: Did not bathe in regular place | BC282: N/A | BD282: N/A | BE282: N/A | BF282: N/A | BG282: N/A | BH282: N/A | BI282: N/A | BJ282: N/A | BK282: N/A | BL282: N/A | BM282: N/A | BN282: N/A | BO282: N/A | BP282: N/A | BQ282: N/A | BR282: N/A | BS282: N/A | BT282: N/A | BU282: N/A
BB283: Did not participate in other activities | BC283: N/A | BD283: N/A | BE283: N/A | BF283: N/A | BG283: N/A | BH283: N/A | BI283: N/A | BJ283: N/A | BK283: N/A | BL283: N/A | BM283: N/A | BN283: N/A | BO283: N/A | BP283: N/A | BQ283: N/A | BR283: N/A | BS283: N/A | BT283: N/A | BU283: N/A
BB284: DK/not sure/missing/no such activity | BC284: N/A | BD284: N/A | BE284: N/A | BF284: N/A | BG284: N/A | BH284: N/A | BI284: N/A | BJ284: N/A | BK284: N/A | BL284: N/A | BM284: N/A | BN284: N/A | BO284: N/A | BP284: N/A | BQ284: N/A | BR284: N/A | BS284: N/A | BT284: N/A | BU284: N/A
BA339: Raw numbers of respondents: | BB339: Basic water, sanitation and hygiene | BC339: NATIONAL wealth index quintile | BH339: URBAN wealth index quintile | BM339: RURAL wealth index quintile | BR339: SUB-REGIONS:
BA340: WatSan data, raw numbers (weighted) | BC340: Poorest | BD340: Poor | BE340: Middle | BF340: Rich | BG340: Richest | BH340: Poorest | BI340: Poor | BJ340: Middle | BK340: Rich | BL340: Richest | BM340: Poorest | BN340: Poor | BO340: Middle | BP340: Rich | BQ340: Richest | BR340: Brazzaville | BS340: Nord | BT340: Pointe Noire | BU340: Sud
BA341: Use of Basic Water Sanitation and Hygiene | BB341: Yes | BC341: N/A | BD341: N/A | BE341: N/A | BF341: N/A | BG341: N/A | BH341: N/A | BI341: N/A | BJ341: N/A | BK341: N/A | BL341: N/A | BM341: N/A | BN341: N/A | BO341: N/A | BP341: N/A | BQ341: N/A | BR341: N/A | BS341: N/A | BT341: N/A | BU341: N/A
BB342: No | BC342: N/A | BD342: N/A | BE342: N/A | BF342: N/A | BG342: N/A | BH342: N/A | BI342: N/A | BJ342: N/A | BK342: N/A | BL342: N/A | BM342: N/A | BN342: N/A | BO342: N/A | BP342: N/A | BQ342: N/A | BR342: N/A | BS342: N/A | BT342: N/A | BU342: N/A
BA343: Use of Basic Water and Sanitation | BB343: Yes | BC343: N/A | BD343: N/A | BE343: N/A | BF343: N/A | BG343: N/A | BH343: N/A | BI343: N/A | BJ343: N/A | BK343: N/A | BL343: N/A | BM343: N/A | BN343: N/A | BO343: N/A | BP343: N/A | BQ343: N/A | BR343: N/A | BS343: N/A | BT343: N/A | BU343: N/A
BB344: No | BC344: N/A | BD344: N/A | BE344: N/A | BF344: N/A | BG344: N/A | BH344: N/A | BI344: N/A | BJ344: N/A | BK344: N/A | BL344: N/A | BM344: N/A | BN344: N/A | BO344: N/A | BP344: N/A | BQ344: N/A | BR344: N/A | BS344: N/A | BT344: N/A | BU344: N/A
BA345: Use of Basic Water and Hygiene | BB345: Yes | BC345: N/A | BD345: N/A | BE345: N/A | BF345: N/A | BG345: N/A | BH345: N/A | BI345: N/A | BJ345: N/A | BK345: N/A | BL345: N/A | BM345: N/A | BN345: N/A | BO345: N/A | BP345: N/A | BQ345: N/A | BR345: N/A | BS345: N/A | BT345: N/A | BU345: N/A
BB346: No | BC346: N/A | BD346: N/A | BE346: N/A | BF346: N/A | BG346: N/A | BH346: N/A | BI346: N/A | BJ346: N/A | BK346: N/A | BL346: N/A | BM346: N/A | BN346: N/A | BO346: N/A | BP346: N/A | BQ346: N/A | BR346: N/A | BS346: N/A | BT346: N/A | BU346: N/A
BA347: Use of Basic Sanitation and Hygiene | BB347: Yes | BC347: N/A | BD347: N/A | BE347: N/A | BF347: N/A | BG347: N/A | BH347: N/A | BI347: N/A | BJ347: N/A | BK347: N/A | BL347: N/A | BM347: N/A | BN347: N/A | BO347: N/A | BP347: N/A | BQ347: N/A | BR347: N/A | BS347: N/A | BT347: N/A | BU347: N/A
BB348: No | BC348: N/A | BD348: N/A | BE348: N/A | BF348: N/A | BG348: N/A | BH348: N/A | BI348: N/A | BJ348: N/A | BK348: N/A | BL348: N/A | BM348: N/A | BN348: N/A | BO348: N/A | BP348: N/A | BQ348: N/A | BR348: N/A | BS348: N/A | BT348: N/A | BU348: N/A
BA349: Use of Basic Water | BB349: Yes | BC349: N/A | BD349: N/A | BE349: N/A | BF349: N/A | BG349: N/A | BH349: N/A | BI349: N/A | BJ349: N/A | BK349: N/A | BL349: N/A | BM349: N/A | BN349: N/A | BO349: N/A | BP349: N/A | BQ349: N/A | BR349: N/A | BS349: N/A | BT349: N/A | BU349: N/A
BB350: No | BC350: N/A | BD350: N/A | BE350: N/A | BF350: N/A | BG350: N/A | BH350: N/A | BI350: N/A | BJ350: N/A | BK350: N/A | BL350: N/A | BM350: N/A | BN350: N/A | BO350: N/A | BP350: N/A | BQ350: N/A | BR350: N/A | BS350: N/A | BT350: N/A | BU350: N/A
BA351: Use of Basic Sanitation | BB351: Yes | BC351: N/A | BD351: N/A | BE351: N/A | BF351: N/A | BG351: N/A | BH351: N/A | BI351: N/A | BJ351: N/A | BK351: N/A | BL351: N/A | BM351: N/A | BN351: N/A | BO351: N/A | BP351: N/A | BQ351: N/A | BR351: N/A | BS351: N/A | BT351: N/A | BU351: N/A
BB352: No | BC352: N/A | BD352: N/A | BE352: N/A | BF352: N/A | BG352: N/A | BH352: N/A | BI352: N/A | BJ352: N/A | BK352: N/A | BL352: N/A | BM352: N/A | BN352: N/A | BO352: N/A | BP352: N/A | BQ352: N/A | BR352: N/A | BS352: N/A | BT352: N/A | BU352: N/A
BA353: Access to Basic Hygiene | BB353: Yes | BC353: N/A | BD353: N/A | BE353: N/A | BF353: N/A | BG353: N/A | BH353: N/A | BI353: N/A | BJ353: N/A | BK353: N/A | BL353: N/A | BM353: N/A | BN353: N/A | BO353: N/A | BP353: N/A | BQ353: N/A | BR353: N/A | BS353: N/A | BT353: N/A | BU353: N/A
BB354: No | BC354: N/A | BD354: N/A | BE354: N/A | BF354: N/A | BG354: N/A | BH354: N/A | BI354: N/A | BJ354: N/A | BK354: N/A | BL354: N/A | BM354: N/A | BN354: N/A | BO354: N/A | BP354: N/A | BQ354: N/A | BR354: N/A | BS354: N/A | BT354: N/A | BU354: N/A
C399: INITIAL (national) Wealth Index | H399: URBAN Wealth Index | M399: RURAL Wealth Index
C400: Component Matrix | H400: Component Matrix | M400: Component Matrix
E401: Component | J401: Component | O401: Component
B402: Note: The INITIAL (national) Wealth Index is based on the first component of the Principal Component Analysis (PCA) which has been obtained at national level. The final national-level (NATIONAL) Wealth Index is based on the URBAN and RURAL specific wealth indexes. Regression procedures are used to establish the relationships between the two sets of scores (urban and rural) and the initial (national) wealth factors. This allows best use of the available information for each area and a better precision of the FINAL (NATIONAL) Wealth Index. For dependency reasons, all WASH variables (contained in the generic MICS and DHS scripts) have been excluded from the sets of asset variables used in the PCAs. The PCA can extracts as many components as there are asset variables in the input. Only the first of the components is used to represent the Wealth Index. The scores represent the weights of the asset variables on the Wealth Index (correlations between the variables and the component). The communalities are the proportion of each variable's variance that can be explained by the component. Proportion of explained variance is the part of the model's total variance that is explained by the component. For more information on the procedure used: The DHS Wealth Index, DHS Comparative Reports No. 6, Shea Oscar Rutstein, Kiersten Johnson, ORC Macro International Inc., 2004. The DHS Wealth Index: Approaches for Rural and Urban Areas, Shea O. Rutstein, ORC Macro International Inc., 2008. MICS Methodological Paper No. 4, Review of options for reporting water, sanitation and hygiene coverage by wealth quintile, UNICEF, 2016. | E402: 1 | J402: 1 | O402: 1
C403: Has earth/sand floor | E403: -0.8021354082 | H403: Has television | J403: 0.7219283939 | M403: Has earth/sand floor | O403: -0.7658466944
C404: Household fuel type: charcoal | E404: -0.7393579942 | H404: Has electricity | J404: 0.691552804 | M404: Has cement floor | O404: 0.6467836341
C405: Has a mobile telephone | E405: 0.6863639474 | H405: Has rechaud à gaz/cuisinière {CG} | J405: 0.6706697846 | M405: Has metal roof | O405: 0.6397915167
C406: Has television | E406: 0.683002202 | H406: Has a mobile telephone | J406: 0.6490575255 | M406: Has no roof | O406: -0.6367360848
C407: Has stone wall | E407: 0.6791600061 | H407: Has refrigerator | J407: 0.6389403894 | M407: Has a mobile telephone | O407: 0.5353690731
C408: Has electricity | E408: 0.6559523118 | H408: Household fuel type: LPG, natural gas | J408: 0.6056409843 | M408: Has no wall | O408: -0.5321682698
C409: Has metal roof | E409: 0.6434312084 | H409: Has stone wall | J409: 0.5955273443 | M409: Has electricity | O409: 0.5269088756
C410: Has no roof | E410: -0.6420299071 | H410: Has earth/sand floor | J410: -0.5065304635 | M410: Has television | O410: 0.5208272106
C411: Has rechaud à gaz/cuisinière {CG} | E411: 0.5752775121 | H411: Household fuel type: charcoal | J411: -0.484713304 | M411: Household fuel type: charcoal | O411: -0.4749770542
C412: Has no wall | E412: -0.5547243684 | H412: Has radio | J412: 0.4141576182 | M412: Has stone wall | O412: 0.4604763951
C413: Has cement floor | E413: 0.5475126024 | H413: Has ceramic tile floor | J413: 0.3863634374 | M413: Has refrigerator | O413: 0.4229651345
C414: Has refrigerator | E414: 0.5213416433 | H414: Has car/truck | J414: 0.3557929058 | M414: Has rechaud à gaz/cuisinière {CG} | O414: 0.3999022252
C415: Household fuel type: LPG, natural gas | E415: 0.4758538352 | H415: Has computer {CG} | J415: 0.2836595355 | M415: Has rechaud à pétrole {CG} | O415: 0.3455532745
C416: Has radio | E416: 0.4079828361 | H416: Has bamboo with mud wall | J416: -0.2691777731 | M416: Household fuel type: coal/lignite | O416: 0.3039894276
C417: Household fuel type: coal/lignite | E417: 0.3295587812 | H417: Has cement wall | J417: -0.2491164662 | M417: Household fuel type: electricity | O417: 0.2804452143
C418: Has rechaud à pétrole {CG} | E418: 0.3200498008 | H418: Has no wall | J418: -0.2350296138 | M418: Household fuel type: LPG, natural gas | O418: 0.2781494634
C419: Has ceramic tile floor | E419: 0.2903112178 | H419: Household fuel type: electricity | J419: 0.2267999583 | M419: Has radio | O419: 0.273446872
C420: Has boat without motor {CG} | E420: -0.2815445073 | H420: Has straw with mud wall | J420: -0.2236679824 | M420: Has wood floor | O420: 0.2366129031
... 151 more rows

Sheet AIS09
A2: =A1026 -> Congo
A3: =A1034 -> 2009
A4: Use of drinking water sources
A5: by wealth quintile and sub-national region
A6: Notes:
A7: WHO/UNICEF JMP customised wealth index excludes water,
A8: sanitation and hygiene assets.
A9: Survey used for analysis: | B9: =A1025 -> AIS09
A10: =B1028 -> 
A11: =B1027 -> Time to improved source based on: | B11: DHS12
A14: Use of drinking water sources | C14: NATIONAL wealth index quintile | H14: URBAN wealth index quintile | M14: RURAL wealth index quintile | R14: SUB-REGIONS: | BA14: Raw numbers of respondents: | BB14: Use of drinking water sources | BC14: NATIONAL wealth index quintile | BH14: URBAN wealth index quintile | BM14: RURAL wealth index quintile | BR14: SUB-REGIONS:
A15: Weighted percentage (used in graphs) | C15: Poorest | D15: Poor | E15: Middle | F15: Rich | G15: Richest | H15: Poorest | I15: Poor | J15: Middle | K15: Rich | L15: Richest | M15: Poorest | N15: Poor | O15: Middle | P15: Rich | Q15: Richest | R15: Bouénza | S15: Brazzaville | T15: Cuvette | U15: Cuvette-Ouest | V15: Kouilou | W15: Lékoumou | X15: Likouala | Y15: Niari | Z15: Plateaux | AA15: Pointe-Noire | AB15: Pool | AC15: Sangha | BA15: Water data, raw numbers (weighted) | BC15: Poorest | BD15: Poor | BE15: Middle | BF15: Rich | BG15: Richest | BH15: Poorest | BI15: Poor | BJ15: Middle | BK15: Rich | BL15: Richest | BM15: Poorest | BN15: Poor | BO15: Middle | BP15: Rich | BQ15: Richest | BR15: Bouénza | BS15: Brazzaville | BT15: Cuvette | BU15: Cuvette-Ouest | BV15: Kouilou | BW15: Lékoumou | BX15: Likouala | BY15: Niari | BZ15: Plateaux | CA15: Pointe-Noire | CB15: Pool | CC15: Sangha
A16: Water | B16: Improved | C16: 28.31793283 | D16: 67.13900309 | E16: 93.05092711 | F16: 97.05555476 | G16: 98.3519171 | H16: 91.07754396 | I16: 96.43116948 | J16: 97.73094247 | K16: 99.2508924 | L16: 98.7318495 | M16: 13.43821993 | N16: 34.00335291 | O16: 38.65575824 | P16: 47.40265494 | Q16: 63.65869389 | R16: 46.6930706 | S16: 98.91472393 | T16: 58.81516204 | U16: 13.93779541 | V16: 30.66979778 | W16: 51.99776052 | X16: 17.34804634 | Y16: 63.26171413 | Z16: 53.67194029 | AA16: 94.03691847 | AB16: 52.15068349 | AC16: 52.7995589 | BA16: Water | BB16: Improved | BC16: N/A | BD16: N/A | BE16: N/A | BF16: N/A | BG16: N/A | BH16: N/A | BI16: N/A | BJ16: N/A | BK16: N/A | BL16: N/A | BM16: N/A | BN16: N/A | BO16: N/A | BP16: N/A | BQ16: N/A | BR16: N/A | BS16: N/A | BT16: N/A | BU16: N/A | BV16: N/A | BW16: N/A | BX16: N/A | BY16: N/A | BZ16: N/A | CA16: N/A | CB16: N/A | CC16: N/A
B17: Not Improved | C17: 71.68206717 | D17: 32.86099691 | E17: 6.949072894 | F17: 2.944445239 | G17: 1.648082902 | H17: 8.922456043 | I17: 3.568830518 | J17: 2.269057531 | K17: 0.7491076027 | L17: 1.268150499 | M17: 86.56178007 | N17: 65.99664709 | O17: 61.34424176 | P17: 52.59734506 | Q17: 36.34130611 | R17: 53.3069294 | S17: 1.085276068 | T17: 41.18483796 | U17: 86.06220459 | V17: 69.33020222 | W17: 48.00223948 | X17: 82.65195366 | Y17: 36.73828587 | Z17: 46.32805971 | AA17: 5.96308153 | AB17: 47.84931651 | AC17: 47.2004411 | BB17: Not Improved | BC17: N/A | BD17: N/A | BE17: N/A | BF17: N/A | BG17: N/A | BH17: N/A | BI17: N/A | BJ17: N/A | BK17: N/A | BL17: N/A | BM17: N/A | BN17: N/A | BO17: N/A | BP17: N/A | BQ17: N/A | BR17: N/A | BS17: N/A | BT17: N/A | BU17: N/A | BV17: N/A | BW17: N/A | BX17: N/A | BY17: N/A | BZ17: N/A | CA17: N/A | CB17: N/A | CC17: N/A
A18: Water ladder | B18: Basic | C18: =C16*'DHS12'!C23/100 -> 20.75704476 | D18: =D16*'DHS12'!D23/100 -> 49.21288927 | E18: =E16*'DHS12'!E23/100 -> 74.71989447 | F18: =F16*'DHS12'!F23/100 -> 83.85599931 | G18: =G16*'DHS12'!G23/100 -> 86.74639088 | H18: =H16*'DHS12'!H23/100 -> 67.03307235 | I18: =I16*'DHS12'!I23/100 -> 81.09861353 | J18: =J16*'DHS12'!J23/100 -> 84.53726524 | K18: =K16*'DHS12'!K23/100 -> 84.56176032 | L18: =L16*'DHS12'!L23/100 -> 88.3650053 | M18: =M16*'DHS12'!M23/100 -> 10.62963196 | N18: =N16*'DHS12'!N23/100 -> 24.51641745 | O18: =O16*'DHS12'!O23/100 -> 26.55650591 | P18: =P16*'DHS12'!P23/100 -> 33.89289828 | Q18: =Q16*'DHS12'!Q23/100 -> 49.90841601 | R18: =R16*'DHS12'!R23/100 -> 44.03156558 | S18: =S16*'DHS12'!S23/100 -> 82.00030614 | T18: =T16*'DHS12'!T23/100 -> 40.11194051 | U18: =U16*'DHS12'!U23/100 -> 9.129255996 | V18: =V16*'DHS12'!V23/100 -> 20.64077391 | W18: =W16*'DHS12'!W23/100 -> 42.06618826 | X18: =X16*'DHS12'!X23/100 -> 15.00606008 | Y18: =Y16*'DHS12'!Y23/100 -> 55.60704672 | Z18: =Z16*'DHS12'!Z23/100 -> 47.2849794 | AA18: =AA16*'DHS12'!AA23/100 -> 77.95660541 | AB18: =AB16*'DHS12'!AB23/100 -> 25.60598559 | AC18: =AC16*'DHS12'!AC23/100 -> 33.10532343 | BA18: Water ladder | BB18: Basic | BC18: N/A | BD18: N/A | BE18: N/A | BF18: N/A | BG18: N/A | BH18: N/A | BI18: N/A | BJ18: N/A | BK18: N/A | BL18: N/A | BM18: N/A | BN18: N/A | BO18: N/A | BP18: N/A | BQ18: N/A | BR18: N/A | BS18: N/A | BT18: N/A | BU18: N/A | BV18: N/A | BW18: N/A | BX18: N/A | BY18: N/A | BZ18: N/A | CA18: N/A | CB18: N/A | CC18: N/A
B19: Limited | C19: =C16*'DHS12'!C22/100 -> 7.560888064 | D19: =D16*'DHS12'!D22/100 -> 17.92611383 | E19: =E16*'DHS12'!E22/100 -> 18.33103264 | F19: =F16*'DHS12'!F22/100 -> 13.19955545 | G19: =G16*'DHS12'!G22/100 -> 11.60552622 | H19: =H16*'DHS12'!H22/100 -> 24.0444716 | I19: =I16*'DHS12'!I22/100 -> 15.33255595 | J19: =J16*'DHS12'!J22/100 -> 13.19367723 | K19: =K16*'DHS12'!K22/100 -> 14.68913207 | L19: =L16*'DHS12'!L22/100 -> 10.3668442 | M19: =M16*'DHS12'!M22/100 -> 2.808587964 | N19: =N16*'DHS12'!N22/100 -> 9.486935462 | O19: =O16*'DHS12'!O22/100 -> 12.09925233 | P19: =P16*'DHS12'!P22/100 -> 13.50975666 | Q19: =Q16*'DHS12'!Q22/100 -> 13.75027788 | R19: =R16*'DHS12'!R22/100 -> 2.661505024 | S19: =S16*'DHS12'!S22/100 -> 16.91441779 | T19: =T16*'DHS12'!T22/100 -> 18.70322153 | U19: =U16*'DHS12'!U22/100 -> 4.808539418 | V19: =V16*'DHS12'!V22/100 -> 10.02902388 | W19: =W16*'DHS12'!W22/100 -> 9.931572259 | X19: =X16*'DHS12'!X22/100 -> 2.341986255 | Y19: =Y16*'DHS12'!Y22/100 -> 7.654667409 | Z19: =Z16*'DHS12'!Z22/100 -> 6.386960895 | AA19: =AA16*'DHS12'!AA22/100 -> 16.08031306 | AB19: =AB16*'DHS12'!AB22/100 -> 26.54469789 | AC19: =AC16*'DHS12'!AC22/100 -> 19.69423547 | BB19: Limited | BC19: N/A | BD19: N/A | BE19: N/A | BF19: N/A | BG19: N/A | BH19: N/A | BI19: N/A | BJ19: N/A | BK19: N/A | BL19: N/A | BM19: N/A | BN19: N/A | BO19: N/A | BP19: N/A | BQ19: N/A | BR19: N/A | BS19: N/A | BT19: N/A | BU19: N/A | BV19: N/A | BW19: N/A | BX19: N/A | BY19: N/A | BZ19: N/A | CA19: N/A | CB19: N/A | CC19: N/A
B20: Unimproved | C20: =100-C18-C19-C21 -> 43.96329361 | D20: =100-D18-D19-D21 -> 26.9330945 | E20: 6.552485568 | F20: 2.662418353 | G20: 1.58213716 | H20: 8.922456043 | I20: 3.568830518 | J20: 2.269057531 | K20: 0.7491076027 | L20: 1.268150499 | M20: 44.65830821 | N20: 43.37540224 | O20: 44.71380134 | P20: 40.57861319 | Q20: 30.40661377 | R20: 41.53162099 | S20: 1.085276068 | T20: 11.65395911 | U20: 76.18381117 | V20: 57.9683468 | W20: 41.29508974 | X20: 33.69162006 | Y20: 25.84419749 | Z20: 25.43301346 | AA20: 5.96308153 | AB20: 34.59664579 | AC20: 35.92329037 | BB20: Unimproved | BC20: N/A | BD20: N/A | BE20: N/A | BF20: N/A | BG20: N/A | BH20: N/A | BI20: N/A | BJ20: N/A | BK20: N/A | BL20: N/A | BM20: N/A | BN20: N/A | BO20: N/A | BP20: N/A | BQ20: N/A | BR20: N/A | BS20: N/A | BT20: N/A | BU20: N/A | BV20: N/A | BW20: N/A | BX20: N/A | BY20: N/A | BZ20: N/A | CA20: N/A | CB20: N/A | CC20: N/A
B21: Surface water | C21: =C66 -> 27.71877356 | D21: 5.927902405 | E21: 0.396587326 | F21: 0.2820268859 | G21: 0.06594574249 | H21: 0 | I21: 0 | J21: 0 | K21: 0 | L21: 0 | M21: 41.90347187 | N21: 22.62124485 | O21: 16.63044042 | P21: 12.01873188 | Q21: 5.934692331 | R21: 11.77530841 | S21: 0 | T21: 29.53087885 | U21: 9.878393415 | V21: 11.36185542 | W21: 6.707149741 | X21: 48.9603336 | Y21: 10.89408838 | Z21: 20.89504624 | AA21: 0 | AB21: 13.25267073 | AC21: 11.27715072 | BB21: Surface water | BC21: N/A | BD21: N/A | BE21: N/A | BF21: N/A | BG21: N/A | BH21: N/A | BI21: N/A | BJ21: N/A | BK21: N/A | BL21: N/A | BM21: N/A | BN21: N/A | BO21: N/A | BP21: N/A | BQ21: N/A | BR21: N/A | BS21: N/A | BT21: N/A | BU21: N/A | BV21: N/A | BW21: N/A | BX21: N/A | BY21: N/A | BZ21: N/A | CA21: N/A | CB21: N/A | CC21: N/A
A22: Improved water point at more than 30 minutes | B22: Yes | C22: N/A | D22: N/A | E22: N/A | F22: N/A | G22: N/A | H22: N/A | I22: N/A | J22: N/A | K22: N/A | L22: N/A | M22: N/A | N22: N/A | O22: N/A | P22: N/A | Q22: N/A | R22: N/A | S22: N/A | T22: N/A | U22: N/A | V22: N/A | W22: N/A | X22: N/A | Y22: N/A | Z22: N/A | AA22: N/A | AB22: N/A | AC22: N/A | BA22: Improved water point at more than 30 minutes | BB22: Yes | BC22: N/A | BD22: N/A | BE22: N/A | BF22: N/A | BG22: N/A | BH22: N/A | BI22: N/A | BJ22: N/A | BK22: N/A | BL22: N/A | BM22: N/A | BN22: N/A | BO22: N/A | BP22: N/A | BQ22: N/A | BR22: N/A | BS22: N/A | BT22: N/A | BU22: N/A | BV22: N/A | BW22: N/A | BX22: N/A | BY22: N/A | BZ22: N/A | CA22: N/A | CB22: N/A | CC22: N/A
B23: No | C23: N/A | D23: N/A | E23: N/A | F23: N/A | G23: N/A | H23: N/A | I23: N/A | J23: N/A | K23: N/A | L23: N/A | M23: N/A | N23: N/A | O23: N/A | P23: N/A | Q23: N/A | R23: N/A | S23: N/A | T23: N/A | U23: N/A | V23: N/A | W23: N/A | X23: N/A | Y23: N/A | Z23: N/A | AA23: N/A | AB23: N/A | AC23: N/A | BB23: No | BC23: N/A | BD23: N/A | BE23: N/A | BF23: N/A | BG23: N/A | BH23: N/A | BI23: N/A | BJ23: N/A | BK23: N/A | BL23: N/A | BM23: N/A | BN23: N/A | BO23: N/A | BP23: N/A | BQ23: N/A | BR23: N/A | BS23: N/A | BT23: N/A | BU23: N/A | BV23: N/A | BW23: N/A | BX23: N/A | BY23: N/A | BZ23: N/A | CA23: N/A | CB23: N/A | CC23: N/A
A24: Manually calculated ratios | B24: Improved wells
B25: Improved springs
B26: Other
C27: NATIONAL wealth index quintile | H27: URBAN wealth index quintile | M27: RURAL wealth index quintile | R27: SUB-REGIONS: | BA27: Raw numbers of respondents: | BB27: Use of drinking water sources | BC27: NATIONAL wealth index quintile | BH27: URBAN wealth index quintile | BM27: RURAL wealth index quintile | BR27: SUB-REGIONS:
A28: Percentage based on weighted population | C28: Poorest | D28: Poor | E28: Middle | F28: Rich | G28: Richest | H28: Poorest | I28: Poor | J28: Middle | K28: Rich | L28: Richest | M28: Poorest | N28: Poor | O28: Middle | P28: Rich | Q28: Richest | R28: Bouénza | S28: Brazzaville | T28: Cuvette | U28: Cuvette-Ouest | V28: Kouilou | W28: Lékoumou | X28: Likouala | Y28: Niari | Z28: Plateaux | AA28: Pointe-Noire | AB28: Pool | AC28: Sangha | BA28: Water data, raw numbers (weighted) | BC28: Poorest | BD28: Poor | BE28: Middle | BF28: Rich | BG28: Richest | BH28: Poorest | BI28: Poor | BJ28: Middle | BK28: Rich | BL28: Richest | BM28: Poorest | BN28: Poor | BO28: Middle | BP28: Rich | BQ28: Richest | BR28: Bouénza | BS28: Brazzaville | BT28: Cuvette | BU28: Cuvette-Ouest | BV28: Kouilou | BW28: Lékoumou | BX28: Likouala | BY28: Niari | BZ28: Plateaux | CA28: Pointe-Noire | CB28: Pool | CC28: Sangha
A29: Piped water | B29: Yes | C29: 5.229997877 | D29: 38.34780522 | E29: 77.73914576 | F29: 85.1580062 | G29: 84.38377395 | H29: 75.73183079 | I29: 84.08554495 | J29: 87.14463981 | K29: 88.0334399 | L29: 85.70893922 | M29: 2.060901424 | N29: 5.737311435 | O29: 8.256862148 | P29: 9.041487802 | Q29: 21.58314239 | R29: 24.55657877 | S29: 85.12866445 | T29: 23.79917684 | U29: 10.70389083 | V29: 0 | W29: 46.35528477 | X29: 2.166747984 | Y29: 40.66847738 | Z29: 14.38559291 | AA29: 83.46444655 | AB29: 5.333249433 | AC29: 32.79640313 | BA29: Piped water | BB29: Yes | BC29: N/A | BD29: N/A | BE29: N/A | BF29: N/A | BG29: N/A | BH29: N/A | BI29: N/A | BJ29: N/A | BK29: N/A | BL29: N/A | BM29: N/A | BN29: N/A | BO29: N/A | BP29: N/A | BQ29: N/A | BR29: N/A | BS29: N/A | BT29: N/A | BU29: N/A | BV29: N/A | BW29: N/A | BX29: N/A | BY29: N/A | BZ29: N/A | CA29: N/A | CB29: N/A | CC29: N/A
B30: No | C30: 94.77000212 | D30: 61.65219478 | E30: 22.26085424 | F30: 14.8419938 | G30: 15.61622605 | H30: 24.26816921 | I30: 15.91445505 | J30: 12.85536019 | K30: 11.9665601 | L30: 14.29106078 | M30: 97.93909858 | N30: 94.26268856 | O30: 91.74313785 | P30: 90.9585122 | Q30: 78.41685761 | R30: 75.44342123 | S30: 14.87133555 | T30: 76.20082316 | U30: 89.29610917 | V30: 100 | W30: 53.64471523 | X30: 97.83325202 | Y30: 59.33152262 | Z30: 85.61440709 | AA30: 16.53555345 | AB30: 94.66675057 | AC30: 67.20359687 | BB30: No | BC30: N/A | BD30: N/A | BE30: N/A | BF30: N/A | BG30: N/A | BH30: N/A | BI30: N/A | BJ30: N/A | BK30: N/A | BL30: N/A | BM30: N/A | BN30: N/A | BO30: N/A | BP30: N/A | BQ30: N/A | BR30: N/A | BS30: N/A | BT30: N/A | BU30: N/A | BV30: N/A | BW30: N/A | BX30: N/A | BY30: N/A | BZ30: N/A | CA30: N/A | CB30: N/A | CC30: N/A
A31: Piped water on premises | B31: Yes | C31: 0.2427710383 | D31: 7.507563065 | E31: 20.87930307 | F31: 38.34109883 | G31: 49.30450656 | H31: 14.93843524 | I31: 24.72837586 | J31: 36.45133307 | K31: 46.6557511 | L31: 50.34595084 | M31: 0.3482244968 | N31: 0.1601634577 | O31: 0.2529819285 | P31: 1.167122888 | Q31: 7.671534871 | R31: 10.77861414 | S31: 36.48172748 | T31: 8.492770186 | U31: 1.904005692 | V31: 0 | W31: 11.12124667 | X31: 0.9189264626 | Y31: 14.95770257 | Z31: 1.91397653 | AA31: 32.58865299 | AB31: 0.2860789511 | AC31: 5.107568519 | BA31: Piped water on premises | BB31: Yes | BC31: N/A | BD31: N/A | BE31: N/A | BF31: N/A | BG31: N/A | BH31: N/A | BI31: N/A | BJ31: N/A | BK31: N/A | BL31: N/A | BM31: N/A | BN31: N/A | BO31: N/A | BP31: N/A | BQ31: N/A | BR31: N/A | BS31: N/A | BT31: N/A | BU31: N/A | BV31: N/A | BW31: N/A | BX31: N/A | BY31: N/A | BZ31: N/A | CA31: N/A | CB31: N/A | CC31: N/A
B32: No | C32: 99.75722896 | D32: 92.49243693 | E32: 79.12069693 | F32: 61.65890117 | G32: 50.69549344 | H32: 85.06156476 | I32: 75.27162414 | J32: 63.54866693 | K32: 53.3442489 | L32: 49.65404916 | M32: 99.6517755 | N32: 99.83983654 | O32: 99.74701807 | P32: 98.83287711 | Q32: 92.32846513 | R32: 89.22138586 | S32: 63.51827252 | T32: 91.50722981 | U32: 98.09599431 | V32: 100 | W32: 88.87875333 | X32: 99.08107354 | Y32: 85.04229743 | Z32: 98.08602347 | AA32: 67.41134701 | AB32: 99.71392105 | AC32: 94.89243148 | BB32: No | BC32: N/A | BD32: N/A | BE32: N/A | BF32: N/A | BG32: N/A | BH32: N/A | BI32: N/A | BJ32: N/A | BK32: N/A | BL32: N/A | BM32: N/A | BN32: N/A | BO32: N/A | BP32: N/A | BQ32: N/A | BR32: N/A | BS32: N/A | BT32: N/A | BU32: N/A | BV32: N/A | BW32: N/A | BX32: N/A | BY32: N/A | BZ32: N/A | CA32: N/A | CB32: N/A | CC32: N/A
A33: Piped water into dwelling | B33: Yes | C33: N/A | D33: N/A | E33: N/A | F33: N/A | G33: N/A | H33: N/A | I33: N/A | J33: N/A | K33: N/A | L33: N/A | M33: N/A | N33: N/A | O33: N/A | P33: N/A | Q33: N/A | R33: N/A | S33: N/A | T33: N/A | U33: N/A | V33: N/A | W33: N/A | X33: N/A | Y33: N/A | Z33: N/A | AA33: N/A | AB33: N/A | AC33: N/A | BA33: Piped water into dwelling | BB33: Yes | BC33: N/A | BD33: N/A | BE33: N/A | BF33: N/A | BG33: N/A | BH33: N/A | BI33: N/A | BJ33: N/A | BK33: N/A | BL33: N/A | BM33: N/A | BN33: N/A | BO33: N/A | BP33: N/A | BQ33: N/A | BR33: N/A | BS33: N/A | BT33: N/A | BU33: N/A | BV33: N/A | BW33: N/A | BX33: N/A | BY33: N/A | BZ33: N/A | CA33: N/A | CB33: N/A | CC33: N/A
B34: No | C34: N/A | D34: N/A | E34: N/A | F34: N/A | G34: N/A | H34: N/A | I34: N/A | J34: N/A | K34: N/A | L34: N/A | M34: N/A | N34: N/A | O34: N/A | P34: N/A | Q34: N/A | R34: N/A | S34: N/A | T34: N/A | U34: N/A | V34: N/A | W34: N/A | X34: N/A | Y34: N/A | Z34: N/A | AA34: N/A | AB34: N/A | AC34: N/A | BB34: No | BC34: N/A | BD34: N/A | BE34: N/A | BF34: N/A | BG34: N/A | BH34: N/A | BI34: N/A | BJ34: N/A | BK34: N/A | BL34: N/A | BM34: N/A | BN34: N/A | BO34: N/A | BP34: N/A | BQ34: N/A | BR34: N/A | BS34: N/A | BT34: N/A | BU34: N/A | BV34: N/A | BW34: N/A | BX34: N/A | BY34: N/A | BZ34: N/A | CA34: N/A | CB34: N/A | CC34: N/A
A35: Water source on premises | B35: Yes | C35: N/A | D35: N/A | E35: N/A | F35: N/A | G35: N/A | H35: N/A | I35: N/A | J35: N/A | K35: N/A | L35: N/A | M35: N/A | N35: N/A | O35: N/A | P35: N/A | Q35: N/A | R35: N/A | S35: N/A | T35: N/A | U35: N/A | V35: N/A | W35: N/A | X35: N/A | Y35: N/A | Z35: N/A | AA35: N/A | AB35: N/A | AC35: N/A | BA35: Water source on premises | BB35: Yes | BC35: N/A | BD35: N/A | BE35: N/A | BF35: N/A | BG35: N/A | BH35: N/A | BI35: N/A | BJ35: N/A | BK35: N/A | BL35: N/A | BM35: N/A | BN35: N/A | BO35: N/A | BP35: N/A | BQ35: N/A | BR35: N/A | BS35: N/A | BT35: N/A | BU35: N/A | BV35: N/A | BW35: N/A | BX35: N/A | BY35: N/A | BZ35: N/A | CA35: N/A | CB35: N/A | CC35: N/A
B36: No | C36: N/A | D36: N/A | E36: N/A | F36: N/A | G36: N/A | H36: N/A | I36: N/A | J36: N/A | K36: N/A | L36: N/A | M36: N/A | N36: N/A | O36: N/A | P36: N/A | Q36: N/A | R36: N/A | S36: N/A | T36: N/A | U36: N/A | V36: N/A | W36: N/A | X36: N/A | Y36: N/A | Z36: N/A | AA36: N/A | AB36: N/A | AC36: N/A | BB36: No | BC36: N/A | BD36: N/A | BE36: N/A | BF36: N/A | BG36: N/A | BH36: N/A | BI36: N/A | BJ36: N/A | BK36: N/A | BL36: N/A | BM36: N/A | BN36: N/A | BO36: N/A | BP36: N/A | BQ36: N/A | BR36: N/A | BS36: N/A | BT36: N/A | BU36: N/A | BV36: N/A | BW36: N/A | BX36: N/A | BY36: N/A | BZ36: N/A | CA36: N/A | CB36: N/A | CC36: N/A
A37: Improved Water source on premises | B37: Yes | C37: N/A | D37: N/A | E37: N/A | F37: N/A | G37: N/A | H37: N/A | I37: N/A | J37: N/A | K37: N/A | L37: N/A | M37: N/A | N37: N/A | O37: N/A | P37: N/A | Q37: N/A | R37: N/A | S37: N/A | T37: N/A | U37: N/A | V37: N/A | W37: N/A | X37: N/A | Y37: N/A | Z37: N/A | AA37: N/A | AB37: N/A | AC37: N/A | BA37: Improved water source on premises | BB37: Yes | BC37: N/A | BD37: N/A | BE37: N/A | BF37: N/A | BG37: N/A | BH37: N/A | BI37: N/A | BJ37: N/A | BK37: N/A | BL37: N/A | BM37: N/A | BN37: N/A | BO37: N/A | BP37: N/A | BQ37: N/A | BR37: N/A | BS37: N/A | BT37: N/A | BU37: N/A | BV37: N/A | BW37: N/A | BX37: N/A | BY37: N/A | BZ37: N/A | CA37: N/A | CB37: N/A | CC37: N/A
B38: No | C38: N/A | D38: N/A | E38: N/A | F38: N/A | G38: N/A | H38: N/A | I38: N/A | J38: N/A | K38: N/A | L38: N/A | M38: N/A | N38: N/A | O38: N/A | P38: N/A | Q38: N/A | R38: N/A | S38: N/A | T38: N/A | U38: N/A | V38: N/A | W38: N/A | X38: N/A | Y38: N/A | Z38: N/A | AA38: N/A | AB38: N/A | AC38: N/A | BB38: No | BC38: N/A | BD38: N/A | BE38: N/A | BF38: N/A | BG38: N/A | BH38: N/A | BI38: N/A | BJ38: N/A | BK38: N/A | BL38: N/A | BM38: N/A | BN38: N/A | BO38: N/A | BP38: N/A | BQ38: N/A | BR38: N/A | BS38: N/A | BT38: N/A | BU38: N/A | BV38: N/A | BW38: N/A | BX38: N/A | BY38: N/A | BZ38: N/A | CA38: N/A | CB38: N/A | CC38: N/A
A39: Piped water on premises available when needed | B39: Yes | C39: N/A | D39: N/A | E39: N/A | F39: N/A | G39: N/A | H39: N/A | I39: N/A | J39: N/A | K39: N/A | L39: N/A | M39: N/A | N39: N/A | O39: N/A | P39: N/A | Q39: N/A | R39: N/A | S39: N/A | T39: N/A | U39: N/A | V39: N/A | W39: N/A | X39: N/A | Y39: N/A | Z39: N/A | AA39: N/A | AB39: N/A | AC39: N/A | BA39: Piped water on premises available when needed | BB39: Yes | BC39: N/A | BD39: N/A | BE39: N/A | BF39: N/A | BG39: N/A | BH39: N/A | BI39: N/A | BJ39: N/A | BK39: N/A | BL39: N/A | BM39: N/A | BN39: N/A | BO39: N/A | BP39: N/A | BQ39: N/A | BR39: N/A | BS39: N/A | BT39: N/A | BU39: N/A | BV39: N/A | BW39: N/A | BX39: N/A | BY39: N/A | BZ39: N/A | CA39: N/A | CB39: N/A | CC39: N/A
B40: No | C40: N/A | D40: N/A | E40: N/A | F40: N/A | G40: N/A | H40: N/A | I40: N/A | J40: N/A | K40: N/A | L40: N/A | M40: N/A | N40: N/A | O40: N/A | P40: N/A | Q40: N/A | R40: N/A | S40: N/A | T40: N/A | U40: N/A | V40: N/A | W40: N/A | X40: N/A | Y40: N/A | Z40: N/A | AA40: N/A | AB40: N/A | AC40: N/A | BB40: No | BC40: N/A | BD40: N/A | BE40: N/A | BF40: N/A | BG40: N/A | BH40: N/A | BI40: N/A | BJ40: N/A | BK40: N/A | BL40: N/A | BM40: N/A | BN40: N/A | BO40: N/A | BP40: N/A | BQ40: N/A | BR40: N/A | BS40: N/A | BT40: N/A | BU40: N/A | BV40: N/A | BW40: N/A | BX40: N/A | BY40: N/A | BZ40: N/A | CA40: N/A | CB40: N/A | CC40: N/A
A41: Water point at more than 30 minutes | B41: Yes | C41: N/A | D41: N/A | E41: N/A | F41: N/A | G41: N/A | H41: N/A | I41: N/A | J41: N/A | K41: N/A | L41: N/A | M41: N/A | N41: N/A | O41: N/A | P41: N/A | Q41: N/A | R41: N/A | S41: N/A | T41: N/A | U41: N/A | V41: N/A | W41: N/A | X41: N/A | Y41: N/A | Z41: N/A | AA41: N/A | AB41: N/A | AC41: N/A | BA41: Water point at more than 30 minutes | BB41: Yes | BC41: N/A | BD41: N/A | BE41: N/A | BF41: N/A | BG41: N/A | BH41: N/A | BI41: N/A | BJ41: N/A | BK41: N/A | BL41: N/A | BM41: N/A | BN41: N/A | BO41: N/A | BP41: N/A | BQ41: N/A | BR41: N/A | BS41: N/A | BT41: N/A | BU41: N/A | BV41: N/A | BW41: N/A | BX41: N/A | BY41: N/A | BZ41: N/A | CA41: N/A | CB41: N/A | CC41: N/A
B42: No | C42: N/A | D42: N/A | E42: N/A | F42: N/A | G42: N/A | H42: N/A | I42: N/A | J42: N/A | K42: N/A | L42: N/A | M42: N/A | N42: N/A | O42: N/A | P42: N/A | Q42: N/A | R42: N/A | S42: N/A | T42: N/A | U42: N/A | V42: N/A | W42: N/A | X42: N/A | Y42: N/A | Z42: N/A | AA42: N/A | AB42: N/A | AC42: N/A | BB42: No | BC42: N/A | BD42: N/A | BE42: N/A | BF42: N/A | BG42: N/A | BH42: N/A | BI42: N/A | BJ42: N/A | BK42: N/A | BL42: N/A | BM42: N/A | BN42: N/A | BO42: N/A | BP42: N/A | BQ42: N/A | BR42: N/A | BS42: N/A | BT42: N/A | BU42: N/A | BV42: N/A | BW42: N/A | BX42: N/A | BY42: N/A | BZ42: N/A | CA42: N/A | CB42: N/A | CC42: N/A
A43: Water source available when needed | B43: Yes | C43: N/A | D43: N/A | E43: N/A | F43: N/A | G43: N/A | H43: N/A | I43: N/A | J43: N/A | K43: N/A | L43: N/A | M43: N/A | N43: N/A | O43: N/A | P43: N/A | Q43: N/A | R43: N/A | S43: N/A | T43: N/A | U43: N/A | V43: N/A | W43: N/A | X43: N/A | Y43: N/A | Z43: N/A | AA43: N/A | AB43: N/A | AC43: N/A | BA43: Water source available when needed | BB43: Yes | BC43: N/A | BD43: N/A | BE43: N/A | BF43: N/A | BG43: N/A | BH43: N/A | BI43: N/A | BJ43: N/A | BK43: N/A | BL43: N/A | BM43: N/A | BN43: N/A | BO43: N/A | BP43: N/A | BQ43: N/A | BR43: N/A | BS43: N/A | BT43: N/A | BU43: N/A | BV43: N/A | BW43: N/A | BX43: N/A | BY43: N/A | BZ43: N/A | CA43: N/A | CB43: N/A | CC43: N/A
B44: No | C44: N/A | D44: N/A | E44: N/A | F44: N/A | G44: N/A | H44: N/A | I44: N/A | J44: N/A | K44: N/A | L44: N/A | M44: N/A | N44: N/A | O44: N/A | P44: N/A | Q44: N/A | R44: N/A | S44: N/A | T44: N/A | U44: N/A | V44: N/A | W44: N/A | X44: N/A | Y44: N/A | Z44: N/A | AA44: N/A | AB44: N/A | AC44: N/A | BB44: No | BC44: N/A | BD44: N/A | BE44: N/A | BF44: N/A | BG44: N/A | BH44: N/A | BI44: N/A | BJ44: N/A | BK44: N/A | BL44: N/A | BM44: N/A | BN44: N/A | BO44: N/A | BP44: N/A | BQ44: N/A | BR44: N/A | BS44: N/A | BT44: N/A | BU44: N/A | BV44: N/A | BW44: N/A | BX44: N/A | BY44: N/A | BZ44: N/A | CA44: N/A | CB44: N/A | CC44: N/A
A45: Improved water source available when needed | B45: Yes | C45: N/A | D45: N/A | E45: N/A | F45: N/A | G45: N/A | H45: N/A | I45: N/A | J45: N/A | K45: N/A | L45: N/A | M45: N/A | N45: N/A | O45: N/A | P45: N/A | Q45: N/A | R45: N/A | S45: N/A | T45: N/A | U45: N/A | V45: N/A | W45: N/A | X45: N/A | Y45: N/A | Z45: N/A | AA45: N/A | AB45: N/A | AC45: N/A | BA45: Improved water source available when needed | BB45: Yes | BC45: N/A | BD45: N/A | BE45: N/A | BF45: N/A | BG45: N/A | BH45: N/A | BI45: N/A | BJ45: N/A | BK45: N/A | BL45: N/A | BM45: N/A | BN45: N/A | BO45: N/A | BP45: N/A | BQ45: N/A | BR45: N/A | BS45: N/A | BT45: N/A | BU45: N/A | BV45: N/A | BW45: N/A | BX45: N/A | BY45: N/A | BZ45: N/A | CA45: N/A | CB45: N/A | CC45: N/A
B46: No | C46: N/A | D46: N/A | E46: N/A | F46: N/A | G46: N/A | H46: N/A | I46: N/A | J46: N/A | K46: N/A | L46: N/A | M46: N/A | N46: N/A | O46: N/A | P46: N/A | Q46: N/A | R46: N/A | S46: N/A | T46: N/A | U46: N/A | V46: N/A | W46: N/A | X46: N/A | Y46: N/A | Z46: N/A | AA46: N/A | AB46: N/A | AC46: N/A | BB46: No | BC46: N/A | BD46: N/A | BE46: N/A | BF46: N/A | BG46: N/A | BH46: N/A | BI46: N/A | BJ46: N/A | BK46: N/A | BL46: N/A | BM46: N/A | BN46: N/A | BO46: N/A | BP46: N/A | BQ46: N/A | BR46: N/A | BS46: N/A | BT46: N/A | BU46: N/A | BV46: N/A | BW46: N/A | BX46: N/A | BY46: N/A | BZ46: N/A | CA46: N/A | CB46: N/A | CC46: N/A
A47: Microbiological quality at point of collection | B47: Not contaminated (No E. coli in 100 mL) | C47: N/A | D47: N/A | E47: N/A | F47: N/A | G47: N/A | H47: N/A | I47: N/A | J47: N/A | K47: N/A | L47: N/A | M47: N/A | N47: N/A | O47: N/A | P47: N/A | Q47: N/A | R47: N/A | S47: N/A | T47: N/A | U47: N/A | V47: N/A | W47: N/A | X47: N/A | Y47: N/A | Z47: N/A | AA47: N/A | AB47: N/A | AC47: N/A | BA47: Microbiological quality at point of collection | BB47: Not contaminated (No E. coli in 100 mL) | BC47: N/A | BD47: N/A | BE47: N/A | BF47: N/A | BG47: N/A | BH47: N/A | BI47: N/A | BJ47: N/A | BK47: N/A | BL47: N/A | BM47: N/A | BN47: N/A | BO47: N/A | BP47: N/A | BQ47: N/A | BR47: N/A | BS47: N/A | BT47: N/A | BU47: N/A | BV47: N/A | BW47: N/A | BX47: N/A | BY47: N/A | BZ47: N/A | CA47: N/A | CB47: N/A | CC47: N/A
B48: Contaminated (E. coli detected in 100 mL) | C48: N/A | D48: N/A | E48: N/A | F48: N/A | G48: N/A | H48: N/A | I48: N/A | J48: N/A | K48: N/A | L48: N/A | M48: N/A | N48: N/A | O48: N/A | P48: N/A | Q48: N/A | R48: N/A | S48: N/A | T48: N/A | U48: N/A | V48: N/A | W48: N/A | X48: N/A | Y48: N/A | Z48: N/A | AA48: N/A | AB48: N/A | AC48: N/A | BB48: Contaminated (E. coli detected in 100 mL) | BC48: N/A | BD48: N/A | BE48: N/A | BF48: N/A | BG48: N/A | BH48: N/A | BI48: N/A | BJ48: N/A | BK48: N/A | BL48: N/A | BM48: N/A | BN48: N/A | BO48: N/A | BP48: N/A | BQ48: N/A | BR48: N/A | BS48: N/A | BT48: N/A | BU48: N/A | BV48: N/A | BW48: N/A | BX48: N/A | BY48: N/A | BZ48: N/A | CA48: N/A | CB48: N/A | CC48: N/A
B49: Highly contaminated (>100 CFU/100 mL) | C49: N/A | D49: N/A | E49: N/A | F49: N/A | G49: N/A | H49: N/A | I49: N/A | J49: N/A | K49: N/A | L49: N/A | M49: N/A | N49: N/A | O49: N/A | P49: N/A | Q49: N/A | R49: N/A | S49: N/A | T49: N/A | U49: N/A | V49: N/A | W49: N/A | X49: N/A | Y49: N/A | Z49: N/A | AA49: N/A | AB49: N/A | AC49: N/A | BB49: Highly contaminated (>100 CFU/100 mL) | BC49: N/A | BD49: N/A | BE49: N/A | BF49: N/A | BG49: N/A | BH49: N/A | BI49: N/A | BJ49: N/A | BK49: N/A | BL49: N/A | BM49: N/A | BN49: N/A | BO49: N/A | BP49: N/A | BQ49: N/A | BR49: N/A | BS49: N/A | BT49: N/A | BU49: N/A | BV49: N/A | BW49: N/A | BX49: N/A | BY49: N/A | BZ49: N/A | CA49: N/A | CB49: N/A | CC49: N/A
A50: Microbiological quality of improved water sources at point of collection | B50: Not contaminated (No E. coli in 100 mL) | C50: N/A | D50: N/A | E50: N/A | F50: N/A | G50: N/A | H50: N/A | I50: N/A | J50: N/A | K50: N/A | L50: N/A | M50: N/A | N50: N/A | O50: N/A | P50: N/A | Q50: N/A | R50: N/A | S50: N/A | T50: N/A | U50: N/A | V50: N/A | W50: N/A | X50: N/A | Y50: N/A | Z50: N/A | AA50: N/A | AB50: N/A | AC50: N/A | BA50: Microbiological quality of improved water sources at point of collection | BB50: Not contaminated (No E. coli in 100 mL) | BC50: N/A | BD50: N/A | BE50: N/A | BF50: N/A | BG50: N/A | BH50: N/A | BI50: N/A | BJ50: N/A | BK50: N/A | BL50: N/A | BM50: N/A | BN50: N/A | BO50: N/A | BP50: N/A | BQ50: N/A | BR50: N/A | BS50: N/A | BT50: N/A | BU50: N/A | BV50: N/A | BW50: N/A | BX50: N/A | BY50: N/A | BZ50: N/A | CA50: N/A | CB50: N/A | CC50: N/A
B51: Contaminated (E. coli detected in 100 mL) | C51: N/A | D51: N/A | E51: N/A | F51: N/A | G51: N/A | H51: N/A | I51: N/A | J51: N/A | K51: N/A | L51: N/A | M51: N/A | N51: N/A | O51: N/A | P51: N/A | Q51: N/A | R51: N/A | S51: N/A | T51: N/A | U51: N/A | V51: N/A | W51: N/A | X51: N/A | Y51: N/A | Z51: N/A | AA51: N/A | AB51: N/A | AC51: N/A | BB51: Contaminated (E. coli detected in 100 mL) | BC51: N/A | BD51: N/A | BE51: N/A | BF51: N/A | BG51: N/A | BH51: N/A | BI51: N/A | BJ51: N/A | BK51: N/A | BL51: N/A | BM51: N/A | BN51: N/A | BO51: N/A | BP51: N/A | BQ51: N/A | BR51: N/A | BS51: N/A | BT51: N/A | BU51: N/A | BV51: N/A | BW51: N/A | BX51: N/A | BY51: N/A | BZ51: N/A | CA51: N/A | CB51: N/A | CC51: N/A
B52: Highly contaminated (>100 CFU/100 mL) | C52: N/A | D52: N/A | E52: N/A | F52: N/A | G52: N/A | H52: N/A | I52: N/A | J52: N/A | K52: N/A | L52: N/A | M52: N/A | N52: N/A | O52: N/A | P52: N/A | Q52: N/A | R52: N/A | S52: N/A | T52: N/A | U52: N/A | V52: N/A | W52: N/A | X52: N/A | Y52: N/A | Z52: N/A | AA52: N/A | AB52: N/A | AC52: N/A | BB52: Highly contaminated (>100 CFU/100 mL) | BC52: N/A | BD52: N/A | BE52: N/A | BF52: N/A | BG52: N/A | BH52: N/A | BI52: N/A | BJ52: N/A | BK52: N/A | BL52: N/A | BM52: N/A | BN52: N/A | BO52: N/A | BP52: N/A | BQ52: N/A | BR52: N/A | BS52: N/A | BT52: N/A | BU52: N/A | BV52: N/A | BW52: N/A | BX52: N/A | BY52: N/A | BZ52: N/A | CA52: N/A | CB52: N/A | CC52: N/A
A53: Microbiological quality of piped on premises at point of collection | B53: Not contaminated (No E. coli in 100 mL) | C53: N/A | D53: N/A | E53: N/A | F53: N/A | G53: N/A | H53: N/A | I53: N/A | J53: N/A | K53: N/A | L53: N/A | M53: N/A | N53: N/A | O53: N/A | P53: N/A | Q53: N/A | R53: N/A | S53: N/A | T53: N/A | U53: N/A | V53: N/A | W53: N/A | X53: N/A | Y53: N/A | Z53: N/A | AA53: N/A | AB53: N/A | AC53: N/A | BA53: Microbiological quality of piped on premises at point of collection | BB53: Not contaminated (No E. coli in 100 mL) | BC53: N/A | BD53: N/A | BE53: N/A | BF53: N/A | BG53: N/A | BH53: N/A | BI53: N/A | BJ53: N/A | BK53: N/A | BL53: N/A | BM53: N/A | BN53: N/A | BO53: N/A | BP53: N/A | BQ53: N/A | BR53: N/A | BS53: N/A | BT53: N/A | BU53: N/A | BV53: N/A | BW53: N/A | BX53: N/A | BY53: N/A | BZ53: N/A | CA53: N/A | CB53: N/A | CC53: N/A
B54: Contaminated (E. coli detected in 100 mL) | C54: N/A | D54: N/A | E54: N/A | F54: N/A | G54: N/A | H54: N/A | I54: N/A | J54: N/A | K54: N/A | L54: N/A | M54: N/A | N54: N/A | O54: N/A | P54: N/A | Q54: N/A | R54: N/A | S54: N/A | T54: N/A | U54: N/A | V54: N/A | W54: N/A | X54: N/A | Y54: N/A | Z54: N/A | AA54: N/A | AB54: N/A | AC54: N/A | BB54: Contaminated (E. coli detected in 100 mL) | BC54: N/A | BD54: N/A | BE54: N/A | BF54: N/A | BG54: N/A | BH54: N/A | BI54: N/A | BJ54: N/A | BK54: N/A | BL54: N/A | BM54: N/A | BN54: N/A | BO54: N/A | BP54: N/A | BQ54: N/A | BR54: N/A | BS54: N/A | BT54: N/A | BU54: N/A | BV54: N/A | BW54: N/A | BX54: N/A | BY54: N/A | BZ54: N/A | CA54: N/A | CB54: N/A | CC54: N/A
B55: Highly contaminated (>100 CFU/100 mL) | C55: N/A | D55: N/A | E55: N/A | F55: N/A | G55: N/A | H55: N/A | I55: N/A | J55: N/A | K55: N/A | L55: N/A | M55: N/A | N55: N/A | O55: N/A | P55: N/A | Q55: N/A | R55: N/A | S55: N/A | T55: N/A | U55: N/A | V55: N/A | W55: N/A | X55: N/A | Y55: N/A | Z55: N/A | AA55: N/A | AB55: N/A | AC55: N/A | BB55: Highly contaminated (>100 CFU/100 mL) | BC55: N/A | BD55: N/A | BE55: N/A | BF55: N/A | BG55: N/A | BH55: N/A | BI55: N/A | BJ55: N/A | BK55: N/A | BL55: N/A | BM55: N/A | BN55: N/A | BO55: N/A | BP55: N/A | BQ55: N/A | BR55: N/A | BS55: N/A | BT55: N/A | BU55: N/A | BV55: N/A | BW55: N/A | BX55: N/A | BY55: N/A | BZ55: N/A | CA55: N/A | CB55: N/A | CC55: N/A
C56: NATIONAL wealth index quintile | H56: URBAN wealth index quintile | M56: RURAL wealth index quintile | R56: SUB-REGIONS: | BA56: Raw numbers of respondents: | BB56: Use of drinking water sources | BC56: NATIONAL wealth index quintile | BH56: URBAN wealth index quintile | BM56: RURAL wealth index quintile | BR56: SUB-REGIONS:
A57: Percentage based on weighted population | C57: Poorest | D57: Poor | E57: Middle | F57: Rich | G57: Richest | H57: Poorest | I57: Poor | J57: Middle | K57: Rich | L57: Richest | M57: Poorest | N57: Poor | O57: Middle | P57: Rich | Q57: Richest | R57: Bouénza | S57: Brazzaville | T57: Cuvette | U57: Cuvette-Ouest | V57: Kouilou | W57: Lékoumou | X57: Likouala | Y57: Niari | Z57: Plateaux | AA57: Pointe-Noire | AB57: Pool | AC57: Sangha | BA57: Water data, raw numbers (weighted) | BC57: Poorest | BD57: Poor | BE57: Middle | BF57: Rich | BG57: Richest | BH57: Poorest | BI57: Poor | BJ57: Middle | BK57: Rich | BL57: Richest | BM57: Poorest | BN57: Poor | BO57: Middle | BP57: Rich | BQ57: Richest | BR57: Bouénza | BS57: Brazzaville | BT57: Cuvette | BU57: Cuvette-Ouest | BV57: Kouilou | BW57: Lékoumou | BX57: Likouala | BY57: Niari | BZ57: Plateaux | CA57: Pointe-Noire | CB57: Pool | CC57: Sangha
A58: Source of drinking water | B58: Piped into dwelling | C58: 0.09916498074 | D58: 0.5737257771 | E58: 3.34613762 | F58: 5.892957377 | G58: 4.028555704 | H58: 0.557914194 | I58: 5.0465008 | J58: 5.179824598 | K58: 6.030061888 | L58: 3.941358388 | M58: 0.1255255984 | N58: 0.1603203981 | O58: 0.06206518905 | P58: 0.3048281835 | Q58: 0.4725210397 | R58: 2.115554298 | S58: 6.417246926 | T58: 0.7438638731 | U58: 0.2364066237 | V58: 0 | W58: 0 | X58: 0.7134199802 | Y58: 0.7024873456 | Z58: 0.5330788019 | AA58: 0.5877643857 | AB58: 0.05041171903 | AC58: 2.173440926
B59: Piped to yard/plot | C59: 0.1436885505 | D59: 6.942385619 | E59: 17.56985882 | F59: 32.59139221 | G59: 45.27595086 | H59: 14.38052104 | I59: 19.74812563 | J59: 31.43566486 | K59: 40.62568921 | L59: 46.40459245 | M59: 0.2226988984 | N59: 0 | O59: 0.1909167394 | P59: 0.8661315161 | Q59: 7.217019598 | R59: 8.680111372 | S59: 30.06448055 | T59: 7.748906313 | U59: 1.667599069 | V59: 0 | W59: 11.12124667 | X59: 0.2055064824 | Y59: 14.34990072 | Z59: 1.381662077 | AA59: 32.08324497 | AB59: 0.235667232 | AC59: 2.966874907
B60: Public tap/standpipe | C60: 4.988921485 | D60: 30.87535775 | E60: 56.9597684 | F60: 46.99182561 | G60: 35.07926739 | H60: 60.79339555 | I60: 59.51619475 | J60: 50.92160101 | K60: 41.3776888 | L60: 35.36298839 | M60: 1.712676927 | N60: 5.582612894 | O60: 8.00388022 | P60: 7.900251184 | Q60: 13.94425929 | R60: 13.79976107 | S60: 48.64693697 | T60: 15.30640665 | U60: 8.799885134 | V60: 0 | W60: 35.2340381 | X60: 1.247821521 | Y60: 25.87352959 | Z60: 12.47659694 | AA60: 51.00436423 | AB60: 5.047170482 | AC60: 27.86636233
B61: Tube well or borehole | C61: 6.245154292 | D61: 10.82608188 | E61: 7.61786632 | F61: 7.412003158 | G61: 9.174576385 | H61: 7.474382344 | I61: 7.175309834 | J61: 6.840355623 | K61: 9.385577006 | L61: 7.734851487 | M61: 2.452781199 | N61: 10.26437323 | O61: 5.69368723 | P61: 13.33636682 | Q61: 14.57237357 | R61: 2.813196762 | S61: 10.14057973 | T61: 19.37834215 | U61: 1.52911983 | V61: 16.84298499 | W61: 2.746532649 | X61: 2.615462234 | Y61: 9.478554905 | Z61: 1.088957335 | AA61: 4.724266746 | AB61: 15.95502606 | AC61: 6.954307353
B62: Protected well | C62: 3.343208235 | D62: 6.808326024 | E62: 4.894261087 | F62: 1.932599447 | G62: 1.143227569 | H62: 6.12540993 | I62: 2.80724947 | J62: 2.177790241 | K62: 0.509050076 | L62: 0.8975044689 | M62: 1.765788427 | N62: 1.609419792 | O62: 7.116406221 | P62: 8.107513784 | Q62: 10.04911004 | R62: 15.98538081 | S62: 0.3520728208 | T62: 4.854748937 | U62: 0 | V62: 0.9569585263 | W62: 1.632891657 | X62: 10.88534392 | Y62: 6.986175206 | Z62: 0.07135237999 | AA62: 4.894174467 | AB62: 1.181762753 | AC62: 2.296881853
B63: Unprotected well | C63: 13.52934761 | D63: 10.75931501 | E63: 4.676736328 | F63: 1.268048845 | G63: 0.7317865393 | H63: 7.645571972 | I63: 2.70164998 | J63: 0.9221292906 | K63: 0.4504521456 | L63: 0.2191291197 | M63: 12.1209524 | N63: 11.15429747 | O63: 16.77557301 | P63: 11.62830369 | Q63: 15.04637711 | R63: 23.79543086 | S63: 0.2413700371 | T63: 5.811785988 | U63: 1.468642622 | V63: 6.531470036 | W63: 0.9356084696 | X63: 16.37062248 | Y63: 13.27808259 | Z63: 18.29498729 | AA63: 5.130724541 | AB63: 5.256189322 | AC63: 8.460408411
B64: Protected spring | C64: 8.435395246 | D64: 7.399681363 | E64: 2.083593345 | F64: 1.901328613 | G64: 1.675238652 | H64: 1.745920894 | I64: 2.19459328 | J64: 1.61583157 | K64: 0.5595515898 | L64: 1.912317503 | M64: 4.619691641 | N64: 9.007084746 | O64: 12.11580556 | P64: 10.57460963 | Q64: 10.53186883 | R64: 3.372933716 | S64: 2.23845382 | T64: 10.35361143 | U64: 1.063829807 | V64: 12.96446736 | W64: 1.263051443 | X64: 1.680492202 | Y64: 6.271526716 | Z64: 1.003323163 | AA64: 0.719428482 | AB64: 22.4379111 | AC64: 10.15232195
B65: Unprotected spring | C65: 28.32889686 | D65: 14.4730568 | E65: 1.245209034 | F65: 0.6636879846 | G65: 0.03838892066 | H65: 1.215596097 | I65: 0.5464443791 | J65: 0.5452523765 | K65: 0.2986554571 | L65: 0 | M65: 30.33048299 | N65: 29.95788698 | O65: 26.1974904 | P65: 25.76842421 | Q65: 11.8215541 | R65: 13.83408779 | S65: 0.6917243194 | T65: 5.473401609 | U65: 74.31025096 | V65: 51.34226366 | W65: 40.35948127 | X65: 1.021208681 | Y65: 12.0443307 | Z65: 6.912590185 | AA65: 0 | AB65: 28.8344491 | AC65: 27.12435616
B66: River/dam/lake/ponds/stream/canal/irirgation channel | C66: 27.71877356 | D66: 5.927902405 | E66: 0.396587326 | F66: 0.2820268859 | G66: 0.06594574249 | H66: 0 | I66: 0 | J66: 0 | K66: 0 | L66: 0 | M66: 41.90347187 | N66: 22.62124485 | O66: 16.63044042 | P66: 12.01873188 | Q66: 5.934692331 | R66: 11.77530841 | S66: 0 | T66: 29.53087885 | U66: 9.878393415 | V66: 11.36185542 | W66: 6.707149741 | X66: 48.9603336 | Y66: 10.89408838 | Z66: 20.89504624 | AA66: 0 | AB66: 13.25267073 | AC66: 11.27715072
B67: Rainwater | C67: 5.07202239 | D67: 3.693555659 | E67: 0.5940576438 | F67: 0.3463267683 | G67: 0.1956203534 | H67: 0 | I67: 0 | J67: 0 | K67: 0 | L67: 0 | M67: 2.539057235 | N67: 7.412860942 | O67: 5.243838151 | P67: 6.420660878 | Q67: 6.932913727 | R67: 0 | S67: 0 | T67: 0.3499447051 | U67: 0.640954952 | V67: 0 | W67: 0 | X67: 0 | Y67: 0 | Z67: 37.13840358 | AA67: 0 | AB67: 6.900969614 | AC67: 0.355053447
B68: Tanker truck | C68: 0 | D68: 0.07966687794 | E68: 0 | F68: 0 | G68: 0 | H68: 0 | I68: 0 | J68: 0 | K68: 0 | L68: 0 | M68: 0 | N68: 0 | O68: 0.2291589309 | P68: 0 | Q68: 0 | R68: 0 | S68: 0 | T68: 0 | U68: 0 | V68: 0 | W68: 0 | X68: 0 | Y68: 0 | Z68: 0 | AA68: 0 | AB68: 0.2409410849 | AC68: 0
B69: Bottled water | C69: 0 | D69: 0.01666857385 | E69: 0.148911934 | F69: 0.3497424258 | G69: 1.779480187 | H69: 0 | I69: 0.2015474995 | J69: 0 | K69: 0.7632738301 | L69: 2.478236818 | M69: 0 | N69: 0 | O69: 0 | P69: 0.04812492039 | Q69: 0.08804036078 | R69: 0 | S69: 1.054953112 | T69: 0.07933797946 | U69: 0 | V69: 0 | W69: 0 | X69: 0 | Y69: 0 | Z69: 0 | AA69: 0.261320432 | AB69: 0.1008234381 | AC69: 0.3728419487
B70: Other | C70: 2.095426783 | D70: 1.624276252 | E70: 0.4670121491 | F70: 0.3680606767 | G70: 0.8119617 | H70: 0.06128797317 | I70: 0.06238438393 | J70: 0.361550425 | K70: 0 | L70: 1.049021379 | M70: 2.206872818 | N70: 2.229898703 | O70: 1.740737929 | P70: 3.026053316 | Q70: 3.389270019 | R70: 3.828234916 | S70: 0.1521817119 | T70: 0.3687715158 | U70: 0.4049175842 | V70: 0 | W70: 0 | X70: 16.2997889 | Y70: 0.1213238419 | Z70: 0.2040020091 | AA70: 0.5947117441 | AB70: 0.5060073622 | AC70: 0
A108: =A1026 -> Congo
A109: =A1034 -> 2009
A110: Use of sanitation facilities
A111: by wealth quintile and sub-national region
A112: Notes:
A113: WHO/UNICEF JMP customised wealth index excludes water,
A114: sanitation and hygiene assets.
A115: Survey used for analysis: | B115: =A1025 -> AIS09
A116: =B1030 -> Ratio of Improved latrines based on: | B116: DHS12
A117: =B1029 -> Ratio of Shared improved based on: | B117: DHS12
A120: Use of sanitation facilities | C120: NATIONAL wealth index quintile | H120: URBAN wealth index quintile | M120: RURAL wealth index quintile | R120: SUB-REGIONS: | BA120: Raw numbers of respondents: | BB120: Use of sanitation facilities | BC120: NATIONAL wealth index quintile | BH120: URBAN wealth index quintile | BM120: RURAL wealth index quintile | BR120: SUB-REGIONS:
A121: Weighted percentage (used in graphs) | C121: Poorest | D121: Poor | E121: Middle | F121: Rich | G121: Richest | H121: Poorest | I121: Poor | J121: Middle | K121: Rich | L121: Richest | M121: Poorest | N121: Poor | O121: Middle | P121: Rich | Q121: Richest | R121: Bouénza | S121: Brazzaville | T121: Cuvette | U121: Cuvette-Ouest | V121: Kouilou | W121: Lékoumou | X121: Likouala | Y121: Niari | Z121: Plateaux | AA121: Pointe-Noire | AB121: Pool | AC121: Sangha | BA121: Sanitation data, raw numbers (weighted) | BC121: Poorest | BD121: Poor | BE121: Middle | BF121: Rich | BG121: Richest | BH121: Poorest | BI121: Poor | BJ121: Middle | BK121: Rich | BL121: Richest | BM121: Poorest | BN121: Poor | BO121: Middle | BP121: Rich | BQ121: Richest | BR121: Bouénza | BS121: Brazzaville | BT121: Cuvette | BU121: Cuvette-Ouest | BV121: Kouilou | BW121: Lékoumou | BX121: Likouala | BY121: Niari | BZ121: Plateaux | CA121: Pointe-Noire | CB121: Pool | CC121: Sangha
A122: Sanitation | B122: Improved | C122: =C153+(C154+C155)*'DHS12'!C130/100 -> 4.382457507 | D122: =D153+(D154+D155)*'DHS12'!D130/100 -> 25.30826605 | E122: =E153+(E154+E155)*'DHS12'!E130/100 -> 44.04461942 | F122: =F153+(F154+F155)*'DHS12'!F130/100 -> 59.53329343 | G122: =G153+(G154+G155)*'DHS12'!G130/100 -> 71.99062934 | H122: =H153+(H154+H155)*'DHS12'!H130/100 -> 36.57238745 | I122: =I153+(I154+I155)*'DHS12'!I130/100 -> 44.74936246 | J122: =J153+(J154+J155)*'DHS12'!J130/100 -> 56.99369145 | K122: =K153+(K154+K155)*'DHS12'!K130/100 -> 65.58604114 | L122: =L153+(L154+L155)*'DHS12'!L130/100 -> 77.85076941 | M122: =M153+(M154+M155)*'DHS12'!M130/100 -> 1.716581983 | N122: =N153+(N154+N155)*'DHS12'!N130/100 -> 4.239022097 | O122: =O153+(O154+O155)*'DHS12'!O130/100 -> 7.314814082 | P122: =P153+(P154+P155)*'DHS12'!P130/100 -> 13.76127311 | Q122: =Q153+(Q154+Q155)*'DHS12'!Q130/100 -> 40.73287649 | R122: =R153+(R154+R155)*'DHS12'!R130/100 -> 49.90827488 | S122: =S153+(S154+S155)*'DHS12'!S130/100 -> 57.36306357 | T122: =T153+(T154+T155)*'DHS12'!T130/100 -> 12.88793827 | U122: =U153+(U154+U155)*'DHS12'!U130/100 -> 2.878017485 | V122: =V153+(V154+V155)*'DHS12'!V130/100 -> 8.467219146 | W122: =W153+(W154+W155)*'DHS12'!W130/100 -> 21.24453103 | X122: =X153+(X154+X155)*'DHS12'!X130/100 -> 9.624392137 | Y122: =Y153+(Y154+Y155)*'DHS12'!Y130/100 -> 45.41405191 | Z122: =Z153+(Z154+Z155)*'DHS12'!Z130/100 -> 2.90532491 | AA122: =AA153+(AA154+AA155)*'DHS12'!AA130/100 -> 44.0888431 | AB122: =AB153+(AB154+AB155)*'DHS12'!AB130/100 -> 9.125672626 | AC122: =AC153+(AC154+AC155)*'DHS12'!AC130/100 -> 13.34152282 | BA122: Sanitation | BB122: Improved | BC122: N/A | BD122: N/A | BE122: N/A | BF122: N/A | BG122: N/A | BH122: N/A | BI122: N/A | BJ122: N/A | BK122: N/A | BL122: N/A | BM122: N/A | BN122: N/A | BO122: N/A | BP122: N/A | BQ122: N/A | BR122: N/A | BS122: N/A | BT122: N/A | BU122: N/A | BV122: N/A | BW122: N/A | BX122: N/A | BY122: N/A | BZ122: N/A | CA122: N/A | CB122: N/A | CC122: N/A
B123: Not Improved | C123: =100-C122 -> 95.61754249 | D123: =100-D122 -> 74.69173395 | E123: 55.95538058 | F123: 40.46670657 | G123: 28.00937066 | H123: 63.42761255 | I123: 55.25063754 | J123: 43.00630855 | K123: 34.41395886 | L123: 22.14923059 | M123: 98.28341802 | N123: 95.7609779 | O123: 92.68518592 | P123: 86.23872689 | Q123: 59.26712351 | R123: 50.09172512 | S123: 42.63693643 | T123: 87.11206173 | U123: 97.12198252 | V123: 91.53278085 | W123: 78.75546897 | X123: 90.37560786 | Y123: 54.58594809 | Z123: 97.09467509 | AA123: 55.9111569 | AB123: 90.87432737 | AC123: 86.65847718 | BB123: Not Improved | BC123: N/A | BD123: N/A | BE123: N/A | BF123: N/A | BG123: N/A | BH123: N/A | BI123: N/A | BJ123: N/A | BK123: N/A | BL123: N/A | BM123: N/A | BN123: N/A | BO123: N/A | BP123: N/A | BQ123: N/A | BR123: N/A | BS123: N/A | BT123: N/A | BU123: N/A | BV123: N/A | BW123: N/A | BX123: N/A | BY123: N/A | BZ123: N/A | CA123: N/A | CB123: N/A | CC123: N/A
A124: Sanitation ladder | B124: Basic | C124: =C122*'DHS12'!C129/100 -> 1.912590677 | D124: =D122*'DHS12'!D129/100 -> 7.365459211 | E124: =E122*'DHS12'!E129/100 -> 9.473310309 | F124: =F122*'DHS12'!F129/100 -> 13.29238961 | G124: =G122*'DHS12'!G129/100 -> 32.08633712 | H124: =H122*'DHS12'!H129/100 -> 9.227596191 | I124: =I122*'DHS12'!I129/100 -> 7.589580136 | J124: =J122*'DHS12'!J129/100 -> 10.53263871 | K124: =K122*'DHS12'!K129/100 -> 18.45031421 | L124: =L122*'DHS12'!L129/100 -> 38.28840297 | M124: =M122*'DHS12'!M129/100 -> 0.494111606 | N124: =N122*'DHS12'!N129/100 -> 1.751213496 | O124: =O122*'DHS12'!O129/100 -> 3.266935982 | P124: =P122*'DHS12'!P129/100 -> 5.184183439 | Q124: =Q122*'DHS12'!Q129/100 -> 17.65808033 | R124: =R122*'DHS12'!R129/100 -> 18.64486293 | S124: =S122*'DHS12'!S129/100 -> 16.09861034 | T124: =T122*'DHS12'!T129/100 -> 6.804981835 | U124: =U122*'DHS12'!U129/100 -> 0.9437530431 | V124: =V122*'DHS12'!V129/100 -> 5.262774028 | W124: =W122*'DHS12'!W129/100 -> 10.23128482 | X124: =X122*'DHS12'!X129/100 -> 2.476295933 | Y124: =Y122*'DHS12'!Y129/100 -> 12.6825161 | Z124: =Z122*'DHS12'!Z129/100 -> 0.9191887839 | AA124: =AA122*'DHS12'!AA129/100 -> 14.96045185 | AB124: =AB122*'DHS12'!AB129/100 -> 3.551057194 | AC124: =AC122*'DHS12'!AC129/100 -> 5.813535332 | BA124: Sanitation ladder | BB124: Basic | BC124: N/A | BD124: N/A | BE124: N/A | BF124: N/A | BG124: N/A | BH124: N/A | BI124: N/A | BJ124: N/A | BK124: N/A | BL124: N/A | BM124: N/A | BN124: N/A | BO124: N/A | BP124: N/A | BQ124: N/A | BR124: N/A | BS124: N/A | BT124: N/A | BU124: N/A | BV124: N/A | BW124: N/A | BX124: N/A | BY124: N/A | BZ124: N/A | CA124: N/A | CB124: N/A | CC124: N/A
B125: Limited | C125: =C122*'DHS12'!C128/100 -> 2.46986683 | D125: =D122*'DHS12'!D128/100 -> 17.94280684 | E125: =E122*'DHS12'!E128/100 -> 34.57130911 | F125: =F122*'DHS12'!F128/100 -> 46.24090382 | G125: =G122*'DHS12'!G128/100 -> 39.90429223 | H125: =H122*'DHS12'!H128/100 -> 27.34479126 | I125: =I122*'DHS12'!I128/100 -> 37.15978232 | J125: =J122*'DHS12'!J128/100 -> 46.46105274 | K125: =K122*'DHS12'!K128/100 -> 47.13572692 | L125: =L122*'DHS12'!L128/100 -> 39.56236644 | M125: =M122*'DHS12'!M128/100 -> 1.222470377 | N125: =N122*'DHS12'!N128/100 -> 2.487808601 | O125: =O122*'DHS12'!O128/100 -> 4.047878101 | P125: =P122*'DHS12'!P128/100 -> 8.577089672 | Q125: =Q122*'DHS12'!Q128/100 -> 23.07479615 | R125: =R122*'DHS12'!R128/100 -> 31.26341194 | S125: =S122*'DHS12'!S128/100 -> 41.26445323 | T125: =T122*'DHS12'!T128/100 -> 6.082956435 | U125: =U122*'DHS12'!U128/100 -> 1.934264442 | V125: =V122*'DHS12'!V128/100 -> 3.204445118 | W125: =W122*'DHS12'!W128/100 -> 11.01324622 | X125: =X122*'DHS12'!X128/100 -> 7.148096204 | Y125: =Y122*'DHS12'!Y128/100 -> 32.73153581 | Z125: =Z122*'DHS12'!Z128/100 -> 1.986136126 | AA125: =AA122*'DHS12'!AA128/100 -> 29.12839125 | AB125: =AB122*'DHS12'!AB128/100 -> 5.574615432 | AC125: =AC122*'DHS12'!AC128/100 -> 7.527987486 | BB125: Limited | BC125: N/A | BD125: N/A | BE125: N/A | BF125: N/A | BG125: N/A | BH125: N/A | BI125: N/A | BJ125: N/A | BK125: N/A | BL125: N/A | BM125: N/A | BN125: N/A | BO125: N/A | BP125: N/A | BQ125: N/A | BR125: N/A | BS125: N/A | BT125: N/A | BU125: N/A | BV125: N/A | BW125: N/A | BX125: N/A | BY125: N/A | BZ125: N/A | CA125: N/A | CB125: N/A | CC125: N/A
B126: Unimproved | C126: =100-C124-C125-C127 -> 70.02375222 | D126: =100-D124-D125-D127 -> 67.29430307 | E126: 53.73410251 | F126: 37.71402285 | G126: 26.80494991 | H126: 58.67764909 | I126: 53.86866786 | J126: 39.48483705 | K126: 32.79947553 | L126: 21.13801089 | M126: 60.45918438 | N126: 72.99463105 | O126: 77.85225222 | P126: 76.71422034 | Q126: 54.42823279 | R126: 45.81648104 | S126: 39.8721156 | T126: 60.11950294 | U126: 65.00642554 | V126: 81.30092805 | W126: 58.01522304 | X126: 65.38904832 | Y126: 51.14763458 | Z126: 52.99102371 | AA126: 53.87409204 | AB126: 81.12304844 | AC126: 72.05573823 | BB126: Unimproved | BC126: N/A | BD126: N/A | BE126: N/A | BF126: N/A | BG126: N/A | BH126: N/A | BI126: N/A | BJ126: N/A | BK126: N/A | BL126: N/A | BM126: N/A | BN126: N/A | BO126: N/A | BP126: N/A | BQ126: N/A | BR126: N/A | BS126: N/A | BT126: N/A | BU126: N/A | BV126: N/A | BW126: N/A | BX126: N/A | BY126: N/A | BZ126: N/A | CA126: N/A | CB126: N/A | CC126: N/A
B127: Open defecation | C127: =C156 -> 25.59379027 | D127: =D156 -> 7.397430877 | E127: 2.221278068 | F127: 2.75268372 | G127: 1.204420747 | H127: 4.749963462 | I127: 1.381969681 | J127: 3.521471503 | K127: 1.614483336 | L127: 1.0112197 | M127: 37.82423364 | N127: 22.76634685 | O127: 14.83293369 | P127: 9.524506552 | Q127: 4.838890724 | R127: 4.275244089 | S127: 2.764820834 | T127: 26.99255879 | U127: 32.11555698 | V127: 10.23185281 | W127: 20.74024592 | X127: 24.98655954 | Y127: 3.438313516 | Z127: 44.10365138 | AA127: 2.037064862 | AB127: 9.751278935 | AC127: 14.60273896 | BB127: Open defecation | BC127: N/A | BD127: N/A | BE127: N/A | BF127: N/A | BG127: N/A | BH127: N/A | BI127: N/A | BJ127: N/A | BK127: N/A | BL127: N/A | BM127: N/A | BN127: N/A | BO127: N/A | BP127: N/A | BQ127: N/A | BR127: N/A | BS127: N/A | BT127: N/A | BU127: N/A | BV127: N/A | BW127: N/A | BX127: N/A | BY127: N/A | BZ127: N/A | CA127: N/A | CB127: N/A | CC127: N/A
A128: Shared among Improved Sanitation | B128: Yes | C128: N/A | D128: N/A | E128: N/A | F128: N/A | G128: N/A | H128: N/A | I128: N/A | J128: N/A | K128: N/A | L128: N/A | M128: N/A | N128: N/A | O128: N/A | P128: N/A | Q128: N/A | R128: N/A | S128: N/A | T128: N/A | U128: N/A | V128: N/A | W128: N/A | X128: N/A | Y128: N/A | Z128: N/A | AA128: N/A | AB128: N/A | AC128: N/A | BA128: Shared among improved sanitation facilities | BB128: Yes | BC128: N/A | BD128: N/A | BE128: N/A | BF128: N/A | BG128: N/A | BH128: N/A | BI128: N/A | BJ128: N/A | BK128: N/A | BL128: N/A | BM128: N/A | BN128: N/A | BO128: N/A | BP128: N/A | BQ128: N/A | BR128: N/A | BS128: N/A | BT128: N/A | BU128: N/A | BV128: N/A | BW128: N/A | BX128: N/A | BY128: N/A | BZ128: N/A | CA128: N/A | CB128: N/A | CC128: N/A
B129: No | C129: N/A | D129: N/A | E129: N/A | F129: N/A | G129: N/A | H129: N/A | I129: N/A | J129: N/A | K129: N/A | L129: N/A | M129: N/A | N129: N/A | O129: N/A | P129: N/A | Q129: N/A | R129: N/A | S129: N/A | T129: N/A | U129: N/A | V129: N/A | W129: N/A | X129: N/A | Y129: N/A | Z129: N/A | AA129: N/A | AB129: N/A | AC129: N/A | BB129: No | BC129: N/A | BD129: N/A | BE129: N/A | BF129: N/A | BG129: N/A | BH129: N/A | BI129: N/A | BJ129: N/A | BK129: N/A | BL129: N/A | BM129: N/A | BN129: N/A | BO129: N/A | BP129: N/A | BQ129: N/A | BR129: N/A | BS129: N/A | BT129: N/A | BU129: N/A | BV129: N/A | BW129: N/A | BX129: N/A | BY129: N/A | BZ129: N/A | CA129: N/A | CB129: N/A | CC129: N/A
A130: Manually calculated ratios | B130: Improved latrines
B131: Other
B132: Other
C133: NATIONAL wealth index quintile | H133: URBAN wealth index quintile | M133: RURAL wealth index quintile | R133: SUB-REGIONS: | BA133: Raw numbers of respondents: | BB133: Use of sanitation facilities | BC133: NATIONAL wealth index quintile | BH133: URBAN wealth index quintile | BM133: RURAL wealth index quintile | BR133: SUB-REGIONS:
A134: Percentage based on weighted population | C134: Poorest | D134: Poor | E134: Middle | F134: Rich | G134: Richest | H134: Poorest | I134: Poor | J134: Middle | K134: Rich | L134: Richest | M134: Poorest | N134: Poor | O134: Middle | P134: Rich | Q134: Richest | R134: Bouénza | S134: Brazzaville | T134: Cuvette | U134: Cuvette-Ouest | V134: Kouilou | W134: Lékoumou | X134: Likouala | Y134: Niari | Z134: Plateaux | AA134: Pointe-Noire | AB134: Pool | AC134: Sangha | BA134: Sanitation data, raw numbers (weighted) | BC134: Poorest | BD134: Poor | BE134: Middle | BF134: Rich | BG134: Richest | BH134: Poorest | BI134: Poor | BJ134: Middle | BK134: Rich | BL134: Richest | BM134: Poorest | BN134: Poor | BO134: Middle | BP134: Rich | BQ134: Richest | BR134: Bouénza | BS134: Brazzaville | BT134: Cuvette | BU134: Cuvette-Ouest | BV134: Kouilou | BW134: Lékoumou | BX134: Likouala | BY134: Niari | BZ134: Plateaux | CA134: Pointe-Noire | CB134: Pool | CC134: Sangha
A135: Sanitation type | B135: Sewer connection | C135: N/A | D135: N/A | E135: N/A | F135: N/A | G135: N/A | H135: N/A | I135: N/A | J135: N/A | K135: N/A | L135: N/A | M135: N/A | N135: N/A | O135: N/A | P135: N/A | Q135: N/A | R135: N/A | S135: N/A | T135: N/A | U135: N/A | V135: N/A | W135: N/A | X135: N/A | Y135: N/A | Z135: N/A | AA135: N/A | AB135: N/A | AC135: N/A | BA135: Sanitation type | BB135: Sewer connection | BC135: N/A | BD135: N/A | BE135: N/A | BF135: N/A | BG135: N/A | BH135: N/A | BI135: N/A | BJ135: N/A | BK135: N/A | BL135: N/A | BM135: N/A | BN135: N/A | BO135: N/A | BP135: N/A | BQ135: N/A | BR135: N/A | BS135: N/A | BT135: N/A | BU135: N/A | BV135: N/A | BW135: N/A | BX135: N/A | BY135: N/A | BZ135: N/A | CA135: N/A | CB135: N/A | CC135: N/A
B136: Septic tank connection | C136: N/A | D136: N/A | E136: N/A | F136: N/A | G136: N/A | H136: N/A | I136: N/A | J136: N/A | K136: N/A | L136: N/A | M136: N/A | N136: N/A | O136: N/A | P136: N/A | Q136: N/A | R136: N/A | S136: N/A | T136: N/A | U136: N/A | V136: N/A | W136: N/A | X136: N/A | Y136: N/A | Z136: N/A | AA136: N/A | AB136: N/A | AC136: N/A | BB136: Septic tank connection | BC136: N/A | BD136: N/A | BE136: N/A | BF136: N/A | BG136: N/A | BH136: N/A | BI136: N/A | BJ136: N/A | BK136: N/A | BL136: N/A | BM136: N/A | BN136: N/A | BO136: N/A | BP136: N/A | BQ136: N/A | BR136: N/A | BS136: N/A | BT136: N/A | BU136: N/A | BV136: N/A | BW136: N/A | BX136: N/A | BY136: N/A | BZ136: N/A | CA136: N/A | CB136: N/A | CC136: N/A
B137: Improved latrines | C137: N/A | D137: N/A | E137: N/A | F137: N/A | G137: N/A | H137: N/A | I137: N/A | J137: N/A | K137: N/A | L137: N/A | M137: N/A | N137: N/A | O137: N/A | P137: N/A | Q137: N/A | R137: N/A | S137: N/A | T137: N/A | U137: N/A | V137: N/A | W137: N/A | X137: N/A | Y137: N/A | Z137: N/A | AA137: N/A | AB137: N/A | AC137: N/A | BB137: Improved latrines | BC137: N/A | BD137: N/A | BE137: N/A | BF137: N/A | BG137: N/A | BH137: N/A | BI137: N/A | BJ137: N/A | BK137: N/A | BL137: N/A | BM137: N/A | BN137: N/A | BO137: N/A | BP137: N/A | BQ137: N/A | BR137: N/A | BS137: N/A | BT137: N/A | BU137: N/A | BV137: N/A | BW137: N/A | BX137: N/A | BY137: N/A | BZ137: N/A | CA137: N/A | CB137: N/A | CC137: N/A
B138: Unimproved facilities | C138: N/A | D138: N/A | E138: N/A | F138: N/A | G138: N/A | H138: N/A | I138: N/A | J138: N/A | K138: N/A | L138: N/A | M138: N/A | N138: N/A | O138: N/A | P138: N/A | Q138: N/A | R138: N/A | S138: N/A | T138: N/A | U138: N/A | V138: N/A | W138: N/A | X138: N/A | Y138: N/A | Z138: N/A | AA138: N/A | AB138: N/A | AC138: N/A | BB138: Unimproved facilities | BC138: N/A | BD138: N/A | BE138: N/A | BF138: N/A | BG138: N/A | BH138: N/A | BI138: N/A | BJ138: N/A | BK138: N/A | BL138: N/A | BM138: N/A | BN138: N/A | BO138: N/A | BP138: N/A | BQ138: N/A | BR138: N/A | BS138: N/A | BT138: N/A | BU138: N/A | BV138: N/A | BW138: N/A | BX138: N/A | BY138: N/A | BZ138: N/A | CA138: N/A | CB138: N/A | CC138: N/A
B139: Open defecation | C139: 25.56759687 | D139: 7.375542058 | E139: 2.214170366 | F139: 2.697047381 | G139: 1.20401491 | H139: 4.743443359 | I139: 1.376921536 | J139: 3.466051271 | K139: 1.589769687 | L139: 1.010697098 | M139: 37.75830476 | N139: 22.74452281 | O139: 14.8292644 | P139: 9.449592059 | Q139: 4.837054047 | R139: 4.275244089 | S139: 2.73886198 | T139: 26.88958766 | U139: 31.97073574 | V139: 10.17560731 | W139: 20.72144187 | X139: 24.98655954 | Y139: 3.417900359 | Z139: 44.08604555 | AA139: 2.031929873 | AB139: 9.716224645 | AC139: 14.29192735 | BB139: Open defecation | BC139: N/A | BD139: N/A | BE139: N/A | BF139: N/A | BG139: N/A | BH139: N/A | BI139: N/A | BJ139: N/A | BK139: N/A | BL139: N/A | BM139: N/A | BN139: N/A | BO139: N/A | BP139: N/A | BQ139: N/A | BR139: N/A | BS139: N/A | BT139: N/A | BU139: N/A | BV139: N/A | BW139: N/A | BX139: N/A | BY139: N/A | BZ139: N/A | CA139: N/A | CB139: N/A | CC139: N/A
A140: Septic tank emptying practices | B140: Not emptied/treated and disposed in situ | C140: N/A | D140: N/A | E140: N/A | F140: N/A | G140: N/A | H140: N/A | I140: N/A | J140: N/A | K140: N/A | L140: N/A | M140: N/A | N140: N/A | O140: N/A | P140: N/A | Q140: N/A | R140: N/A | S140: N/A | T140: N/A | U140: N/A | V140: N/A | W140: N/A | X140: N/A | Y140: N/A | Z140: N/A | AA140: N/A | AB140: N/A | AC140: N/A | BA140: Septic tank emptying practices | BB140: Not emptied/treated and disposed in situ | BC140: N/A | BD140: N/A | BE140: N/A | BF140: N/A | BG140: N/A | BH140: N/A | BI140: N/A | BJ140: N/A | BK140: N/A | BL140: N/A | BM140: N/A | BN140: N/A | BO140: N/A | BP140: N/A | BQ140: N/A | BR140: N/A | BS140: N/A | BT140: N/A | BU140: N/A | BV140: N/A | BW140: N/A | BX140: N/A | BY140: N/A | BZ140: N/A | CA140: N/A | CB140: N/A | CC140: N/A
B141: Emptied and buried on site | C141: N/A | D141: N/A | E141: N/A | F141: N/A | G141: N/A | H141: N/A | I141: N/A | J141: N/A | K141: N/A | L141: N/A | M141: N/A | N141: N/A | O141: N/A | P141: N/A | Q141: N/A | R141: N/A | S141: N/A | T141: N/A | U141: N/A | V141: N/A | W141: N/A | X141: N/A | Y141: N/A | Z141: N/A | AA141: N/A | AB141: N/A | AC141: N/A | BB141: Emptied and buried on site | BC141: N/A | BD141: N/A | BE141: N/A | BF141: N/A | BG141: N/A | BH141: N/A | BI141: N/A | BJ141: N/A | BK141: N/A | BL141: N/A | BM141: N/A | BN141: N/A | BO141: N/A | BP141: N/A | BQ141: N/A | BR141: N/A | BS141: N/A | BT141: N/A | BU141: N/A | BV141: N/A | BW141: N/A | BX141: N/A | BY141: N/A | BZ141: N/A | CA141: N/A | CB141: N/A | CC141: N/A
B142: Emptied and discharged locally | C142: N/A | D142: N/A | E142: N/A | F142: N/A | G142: N/A | H142: N/A | I142: N/A | J142: N/A | K142: N/A | L142: N/A | M142: N/A | N142: N/A | O142: N/A | P142: N/A | Q142: N/A | R142: N/A | S142: N/A | T142: N/A | U142: N/A | V142: N/A | W142: N/A | X142: N/A | Y142: N/A | Z142: N/A | AA142: N/A | AB142: N/A | AC142: N/A | BB142: Emptied and discharged locally | BC142: N/A | BD142: N/A | BE142: N/A | BF142: N/A | BG142: N/A | BH142: N/A | BI142: N/A | BJ142: N/A | BK142: N/A | BL142: N/A | BM142: N/A | BN142: N/A | BO142: N/A | BP142: N/A | BQ142: N/A | BR142: N/A | BS142: N/A | BT142: N/A | BU142: N/A | BV142: N/A | BW142: N/A | BX142: N/A | BY142: N/A | BZ142: N/A | CA142: N/A | CB142: N/A | CC142: N/A
B143: Emptied and removed offsite | C143: N/A | D143: N/A | E143: N/A | F143: N/A | G143: N/A | H143: N/A | I143: N/A | J143: N/A | K143: N/A | L143: N/A | M143: N/A | N143: N/A | O143: N/A | P143: N/A | Q143: N/A | R143: N/A | S143: N/A | T143: N/A | U143: N/A | V143: N/A | W143: N/A | X143: N/A | Y143: N/A | Z143: N/A | AA143: N/A | AB143: N/A | AC143: N/A | BB143: Emptied and removed offsite | BC143: N/A | BD143: N/A | BE143: N/A | BF143: N/A | BG143: N/A | BH143: N/A | BI143: N/A | BJ143: N/A | BK143: N/A | BL143: N/A | BM143: N/A | BN143: N/A | BO143: N/A | BP143: N/A | BQ143: N/A | BR143: N/A | BS143: N/A | BT143: N/A | BU143: N/A | BV143: N/A | BW143: N/A | BX143: N/A | BY143: N/A | BZ143: N/A | CA143: N/A | CB143: N/A | CC143: N/A
A144: Latrine emptying practices | B144: Not emptied/treated and disposed in situ | C144: N/A | D144: N/A | E144: N/A | F144: N/A | G144: N/A | H144: N/A | I144: N/A | J144: N/A | K144: N/A | L144: N/A | M144: N/A | N144: N/A | O144: N/A | P144: N/A | Q144: N/A | R144: N/A | S144: N/A | T144: N/A | U144: N/A | V144: N/A | W144: N/A | X144: N/A | Y144: N/A | Z144: N/A | AA144: N/A | AB144: N/A | AC144: N/A | BA144: Latrine emptying practices | BB144: Not emptied/treated and disposed in situ | BC144: N/A | BD144: N/A | BE144: N/A | BF144: N/A | BG144: N/A | BH144: N/A | BI144: N/A | BJ144: N/A | BK144: N/A | BL144: N/A | BM144: N/A | BN144: N/A | BO144: N/A | BP144: N/A | BQ144: N/A | BR144: N/A | BS144: N/A | BT144: N/A | BU144: N/A | BV144: N/A | BW144: N/A | BX144: N/A | BY144: N/A | BZ144: N/A | CA144: N/A | CB144: N/A | CC144: N/A
B145: Emptied and buried on site | C145: N/A | D145: N/A | E145: N/A | F145: N/A | G145: N/A | H145: N/A | I145: N/A | J145: N/A | K145: N/A | L145: N/A | M145: N/A | N145: N/A | O145: N/A | P145: N/A | Q145: N/A | R145: N/A | S145: N/A | T145: N/A | U145: N/A | V145: N/A | W145: N/A | X145: N/A | Y145: N/A | Z145: N/A | AA145: N/A | AB145: N/A | AC145: N/A | BB145: Emptied and buried on site | BC145: N/A | BD145: N/A | BE145: N/A | BF145: N/A | BG145: N/A | BH145: N/A | BI145: N/A | BJ145: N/A | BK145: N/A | BL145: N/A | BM145: N/A | BN145: N/A | BO145: N/A | BP145: N/A | BQ145: N/A | BR145: N/A | BS145: N/A | BT145: N/A | BU145: N/A | BV145: N/A | BW145: N/A | BX145: N/A | BY145: N/A | BZ145: N/A | CA145: N/A | CB145: N/A | CC145: N/A
